Workbook

Sheet Menu
A4: ='Business Details'!B4 -> SEQ INTERIM REVENUE MONITORING - INFORMATION REQUIREMENT TEMPLATE
L8: Please note that the macro in the intermediate input sheets workbook uses the original filenames for both this templates workbook and itself. Therefore, if you wish to save this workbook under a different filename, please do so ONLY AFTER FILLING OUT THE TEMPLATES AND THE MACRO IN THE INTERMEDIATE INPUT SHEETS HAS BEEN RUN, otherwise the macro will not function properly. Please note that the revenue model should also be open before you save either this templates workbook or the intermediate input sheets under a different name, as the pricing model has links to both these workbooks.

Sheet Format Guide
B5: ='Business Details'!B4 -> SEQ INTERIM REVENUE MONITORING - INFORMATION REQUIREMENT TEMPLATE
B6: FORMAT GUIDE
B8: PROJECT FILE: | E8: Information Requirement Template
B10: VERSION AND STATUS OF MODEL: | E10: Version 1.0
B12: DATE OF MODEL: | E12: =NOW() -> 2014-01-17T14:40:59.310
B19: SPREADSHEET FORMATTING PROTOCOLS
B21: Column headings | D21: 2010/11
B23: Hard coded cells (assumptions, data inputs, and value-copied cells) | D23: 15246 | F23: List Box
B25: Row formula different to others | D25: 100 | F25: Macro button (navigation)
B27: Calculated Cell | D27: 15246
B29: Sub-total | D29: 300.51
B31: Total (eg maximum revenue requirement) | D31: 250.86

Sheet Business Details
B4: SEQ INTERIM REVENUE MONITORING - INFORMATION REQUIREMENT TEMPLATE
B7: Business Details | I7: Supporting Documents
B9: Business name | D9: Allconnex Water
B11: Geographical areas
C12: 1 | D12: Gold Coast
C13: 2 | D13: Logan
C14: 3 | D14: Redland
C15: 4 | D15: Allconnex (all districts)
C16: 5
B18: Are additional geographic areas used? | D18: No | G18: If yes, please provide supporting information. | I18: Not applicable
B20: Analysis Years
B22: Period of information requirement | D22: Year ending 30 June:
C23: Start date | D23: 2009
C24: Smoothing Period - Start Year | D24: 2011
C25: Smoothing Period - End year Year | D25: 2014
C26: Reporting year | D26: 2012
B28: Indexation rates | E28: Year Ending 30 June:
E29: =StartDate -> 2009 | F29: =E29+1 -> 2010 | G29: =F29+1 -> 2011 | H29: =G29+1 -> 2012 | I29: =H29+1 -> 2013 | J29: =CONCATENATE(I29+1," onwards") -> 2014 onwards | K29: Supporting Documents
B30: Indexation rates
C31: Annual Indexation rate | D31: % pa | E31: 0.0202 | F31: 0.032 | G31: 0.0325 | H31: 0.027 | I31: 0.025 | J31: 0.025 | K31: See explanation in Allconnex Water Submission
B37: Asset Class Details | I37: Supporting Documents
B39: Asset classes
C40: 1 | D40: Reservoirs
C41: 2 | D41: Pump stations
C42: 3 | D42: Treatment
C43: 4 | D43: Associated telemetry and control systems
C44: 5 | D44: Meters
C45: 6 | D45: Billing systems
C46: 7 | D46: Corporate systems
C47: 8 | D47: Sundry property, plant and equipment
C48: 9 | D48: Land
C49: 10 | D49: Building other than infrastructure housing
C50: 11 | D50: Distribution infrastructure not included in another category
C51: 12 | D51: Support services
C52: 13 | D52: Mains
C53: 14 | D53: Establishment Costs | I53: N/A
C54: 15 | D54: Unallocated cash contribution

Sheet 3.3
B4: ='Business Details'!$B$4 -> SEQ INTERIM REVENUE MONITORING - INFORMATION REQUIREMENT TEMPLATE
B7: =CONCATENATE("Supporting Documents for ",'Business Details'!$D$9) -> Supporting Documents for Allconnex Water
B8: =CONCATENATE("Reporting year = ",AnalysisYear) -> Reporting year = 2012
F10: 0 | G10: 1 | H10: 2
J11: Supporting
J12: Documents | Y12: =X12 -> 
B14: Basis for preparation of historical information:
B16: Most historical information has been retained from Allconnex Water's 2010-11 Information Template. For the 2010-11 prices monitoring review process, data was provided to Allconnex Water by each of the legacy Council water businesses, based on the historical data available for Gold Coast, Logan and Redland. Most of this data was collected by the WB3 project team, with residual information (such as end of year data, where available) collected by Allconnex Water. "Actual" data for the FY2010-11 year (as collected within financial systems, and adjusted to reflect year-end estimates) has been included where possible. NOTE: due to differences in format of information available from the various data sources (i.e. previous Information Template (i.e. 2010 Information Template; outputs from financial systems; and, financial forecasting model), there are differences in the presentation and categorisation of data between historical and forecast years. Any direct comparisons between historical information, 2010-11 information, and forecast information for 2011-12 onwards, should therefore be undertaken with caution. | J16: See Allconnex Water's submission to the QCA
B27: Basis for preparation of forecast information:
B29: The Information Template draws on source data from Allconnex Water's financial forecasting model, with relevant adjustments to reflect the QCA's presentation of certain information. This finance model captures relevant cost, revenue and other information and is Allconnex Water's primary source of forecast financial information. Due to differences in the specification of data for corporate-level reporting compared to the specification of data required in the Information Template, a number of allocation/apportionment assumptions have been applied. Where data has been adjusted, Allconnex Water's submission and other supporting information explains the basis of the various allocation/adjustment methodologies. | J29: See Allconnex Water's submission to the QCA
Y235: =X235 -> 

Sheet 5.1.1
B4: ='Business Details'!$B$4 -> SEQ INTERIM REVENUE MONITORING - INFORMATION REQUIREMENT TEMPLATE
B7: =CONCATENATE("Consolidated Statement for ",'Business Details'!$D$9) -> Consolidated Statement for Allconnex Water
B8: =CONCATENATE("Reporting year = ",AnalysisYear) -> Reporting year = 2012
F12: For Year Ending 30 June: | M12: =CONCATENATE("For Year Ending 30 June ",AnalysisYear,":") -> For Year Ending 30 June 2012:
C13: Account heading | F13: =StartDate -> 2009 | G13: =F13+1 -> 2010 | H13: =G13+1 -> 2011 | I13: =H13+1 -> 2012 | J13: =I13+1 -> 2013 | K13: =J13+1 -> 2014 | M13: Ledger Code | N13: Relevant Notes | O13: Supporting Documents | AF13: =AE13 -> 
C15: Revenues
C16: Revenue from services | E16: $'000 | F16: 473902 | G16: 519164 | H16: 553986.2015 | I16: 629016.23 | J16: 678136.372 | K16: 729928.7556
C17: Investment income | E17: $'000 | F17: 4651 | G17: 3676 | H17: 0
C18: Net profit / (loss) from sale of regulatory assets | E18: $'000 | F18: 84555.129 | G18: -1608 | H18: -15.86604 | I18: -840 | J18: -861 | K18: -882.5235692
C19: Net profit / (loss) from sale of unregulated assets | F19: 0 | G19: 0 | H19: 0
C20: Contributions | E20: $'000 | F20: 85538.544 | G20: 126943 | H20: 77620.60779 | I20: 71220.85847 | J20: 73001.37993 | K20: 74826.29312
C21: Other operating income | E21: $'000 | F21: 0 | G21: 0 | H21: 15425.39844 | I21: 13369.72578 | J21: 13703.96892 | K21: 14046.54537
C22: Other 1 - [specify] | E22: $'000 | F22: 0 | G22: 0 | H22: 1060.02
C23: Total Revenue | E23: $'000 | F23: =SUM(F16:F22) -> 648646.673 | G23: 648175 | H23: 648076.3617 | I23: 712766.8142 | J23: 763980.7208 | K23: 817919.0705
I24: 1.600710675e-10 | J24: 0 | K24: 0
C25: Expenses | H25: =H26-'5.11.1'!H652 -> 0 | I25: =I26-'5.11.1'!I652 -> 0 | J25: =J26-'5.11.1'!J652 -> 0 | K25: =K26-'5.11.1'!K652 -> 0
C26: Operating expenditure | E26: $'000 | F26: 250478 | G26: 285890 | H26: 328939.7216 | I26: 385539.0966 | J26: 424885.7551 | K26: 453809.3214
C27: Bad debts | E27: $'000 | F27: 17 | G27: 0 | H27: 5500 | I27: 5000 | J27: 5125 | K27: 5095.53125
C28: Other 1 - [specify] | E28: $'000 | F28: 4584 | G28: 7264 | H28: 35272.19069
C29: Other 2 - [specify] | E29: $'000 | F29: 0 | G29: 0
C30: Total Expenses | E30: $'000 | F30: =SUM(F26:F29) -> 255079 | G30: 293154 | H30: 369711.9123 | I30: 390539.0966 | J30: 430010.7551 | K30: 458904.8527
C32: Earnings Before Interest, Tax, Depreciation and Amortisation | E32: $'000 | F32: =F23-F30 -> 393567.673 | G32: 355021 | H32: 278364.4494 | I32: 322227.7177 | J32: 333969.9657 | K32: 359014.2178
I33: 0 | J33: 0 | K33: 0
C34: Depreciation and amortization | E34: $'000 | F34: 105986 | G34: 129987 | H34: 109500 | I34: 112323.5648 | J34: 119895.3306 | K34: 128054.8745
C35: Earnings Before Interest, and Tax | E35: $'000 | F35: =F32-F34 -> 287581.673 | G35: 225034 | H35: 168864.4494 | I35: 209904.1529 | J35: 214074.6351 | K35: 230959.3433
C37: Borrowing costs | E37: $'000 | F37: 2232 | G37: 17860 | H37: 132978 | I37: 143066.5124 | J37: 149136.4859 | K37: 159907.0271
C38: Earnings Before Tax | E38: $'000 | F38: =F35-F37 -> 285349.673 | G38: 207174 | H38: 35886.4494 | I38: 66837.64048 | J38: 64938.1492 | K38: 71052.31618
C40: Tax Expense | E40: $'000 | F40: 18685 | G40: 26787 | H40: 9488 | I40: 20051.29214 | J40: 19481.44476 | K40: 21315.69485
C42: Earnings After Tax | E42: $'000 | F42: =F38-F40 -> 266664.673 | G42: 180387 | H42: 26398.4494 | I42: 46786.34834 | J42: 45456.70444 | K42: 49736.62132
C44: Dividends paid | E44: $'000 | F44: 138756 | G44: 123206 | H44: 0 | I44: 12015.57867 | J44: 10316.52605 | K44: 13089.28191
C46: Retained earnings for year | E46: $'000 | F46: =F42-F44 -> 127908.673 | G46: 57181 | H46: 26398.4494 | I46: 34770.76967 | J46: 35140.17839 | K46: 36647.33942
C47: Retained earnings brought forward | E47: $'000 | H47: =G49 -> -11492.39704 | I47: 9039 | J47: =I49 -> 43809.76967 | K47: =J49 -> 78949.94806
C48: Movement in retained earnings | E48: $'000 | H48: =H46 -> 26398.4494 | I48: =I46 -> 34770.76967 | J48: =J46 -> 35140.17839 | K48: =K46 -> 36647.33942
C49: Retained earnings carried forward | E49: $'000 | G49: -11492.39704 | H49: =H47+H48 -> 14906.05236 | I49: =I47+I48 -> 43809.76967 | J49: =J47+J48 -> 78949.94806 | K49: =K47+K48 -> 115597.2875
F50: 0 | G50: 0 | H50: -5.456968211e-11 | I50: 6.548361853e-11 | J50: 5.820766091e-11 | K50: 0
AF246: =AE246 -> 

Sheet 5.1.2
B4: ='Business Details'!$B$4 -> SEQ INTERIM REVENUE MONITORING - INFORMATION REQUIREMENT TEMPLATE
B7: =CONCATENATE("Consolidated Statement for ",'Business Details'!$D$9) -> Consolidated Statement for Allconnex Water
B8: =CONCATENATE("Reporting year = ",AnalysisYear) -> Reporting year = 2012
F12: ='5.1.1'!F12 -> For Year Ending 30 June: | M12: ='5.1.1'!M12 -> For Year Ending 30 June 2012:
C13: ='5.1.1'!C13 -> Account heading | F13: ='5.1.1'!F13 -> 2009 | G13: ='5.1.1'!G13 -> 2010 | H13: ='5.1.1'!H13 -> 2011 | I13: ='5.1.1'!I13 -> 2012 | J13: ='5.1.1'!J13 -> 2013 | K13: ='5.1.1'!K13 -> 2014 | M13: Ledger Code | N13: Relevant Notes | O13: Supporting Documents
C15: Current Assets
C17: Cash | E17: $'000 | F17: 143667 | G17: 47823 | H17: 10261.7938 | I17: 0.3277932111 | J17: 0 | K17: 0
C18: Receivables | E18: $'000 | F18: 95703 | G18: 120329 | H18: 160984.676 | I18: 181113.7299 | J18: 131717.5198 | K18: 143982.0589
C19: Other - [specify] | E19: $'000 | F19: 1290 | G19: 1336 | H19: 2487.09941
C20: Total Current Assets | E20: $'000 | F20: =SUM(F17:F19) -> 240660 | G20: 169488 | H20: 173733.5692 | I20: 181114.0577 | J20: 131717.5198 | K20: 143982.0589
C22: Non-Current Assets
C24: Property, plant and equipment | E24: $'000 | F24: 5915248 | G24: 6077289 | H24: 4129262.984 | I24: 4305415.595 | J24: 4548572.346 | K24: 4746684.91
C25: Deferred tax assets | E25: $'000 | F25: 0 | G25: 0 | H25: 0 | I25: 0 | J25: 0 | K25: 0
C26: Other - [specify] | E26: $'000 | F26: 540 | G26: 572 | H26: 0 | I26: 0 | J26: 0 | K26: 0
C27: Total non-current assets | E27: $'000 | F27: =SUM(F24:F26) -> 5915788 | G27: 6077861 | H27: 4129262.984 | I27: 4305415.595 | J27: 4548572.346 | K27: 4746684.91
C29: TOTAL ASSETS | E29: $'000 | F29: =F27+F20 -> 6156448 | G29: 6247349 | H29: 4302996.553 | I29: 4486529.653 | J29: 4680289.865 | K29: 4890666.968
I30: 0 | J30: 0 | K30: 0
C31: Current Liabilities
C33: Payables | E33: $'000 | F33: 80620 | G33: 35533 | H33: 42684.47986 | I33: 65159.76197 | J33: 71809.93007 | K33: 77674.89312
C34: Interest-bearing liabilities | E34: $'000 | F34: 1065 | G34: 2554 | H34: 113741.7143 | I34: 36792.12725 | J34: 39371.96142 | K34: 42225.70136
C35: Current tax liabilities | E35: $'000 | F35: 4115 | G35: 4483 | H35: 0
C36: Provisions | E36: $'000 | F36: 1765 | G36: 3213 | H36: 0 | I36: -2.664535259e-12 | J36: 0 | K36: 0
C37: Other - [specify] | E37: $'000 | F37: 904 | G37: 1146 | H37: 70929.85339 | I37: 7943.073851 | J37: 8141.650697 | K37: 8345.191965 | N37: Miscellaneous
C38: Total current Liabilities | E38: $'000 | F38: =SUM(F33:F37) -> 88469 | G38: 46929 | H38: 227356.0475 | I38: 109894.9631 | J38: 119323.5422 | K38: 128245.7864
I39: 0 | J39: 0 | K39: 0
C40: Non-Current Liabilities
C42: Payables | E42: $'000 | F42: 0 | G42: 10569 | H42: 0
C43: Interest-bearing liabilities | E43: $'000 | F43: 501554 | G43: 377735 | H43: 1819703.984 | I43: 2089514.249 | J43: 2236368.949 | K43: 2398836.095
C44: Tax liabilities | E44: $'000 | F44: 174736 | G44: 171288 | H44: 0 | I44: 0 | J44: 0 | K44: 0
C45: Provisions | E45: $'000 | F45: 2605 | G45: 1917 | H45: 16947.82321 | I45: 19243.61863 | J45: 21580.37258 | K45: 23920.74658
C46: Other - [specify] | E46: $'000 | F46: 9246 | G46: 0 | H46: 0
C47: Total Non-Current Liabilities | E47: $'000 | F47: =SUM(F42:F46) -> 688141 | G47: =SUM(G42:G46) -> 561509 | H47: =SUM(H42:H46) -> 1836651.807 | I47: =SUM(I43:I46) -> 2108757.867 | J47: =SUM(J43:J46) -> 2257949.322 | K47: =SUM(K43:K46) -> 2422756.841
C49: TOTAL LIABILITIES | E49: $'000 | F49: =F47+F38 -> 776610 | G49: 608438 | H49: 2064007.854 | I49: 2218652.83 | J49: 2377272.864 | K49: 2551002.628
C51: NET ASSETS/(LIABILITIES) | E51: $'000 | F51: =F29-F49 -> 5379838 | G51: 5638911 | H51: 2238988.699 | I51: 2267876.823 | J51: 2303017.001 | K51: 2339664.341
I52: 0 | J52: 0 | K52: 0
C53: Shareholders Equity
C55: Share Capital | E55: $'000 | F55: 1981123 | G55: 2191910 | H55: 2224082.646 | I55: 2224083 | J55: 2224083 | K55: 2224083
C56: Reserves | E56: $'000 | F56: 3425342 | G56: 3450623 | H56: 0 | I56: 0 | J56: 0 | K56: 0
C57: Retained earnings | E57: $'000 | F57: -26627 | G57: -3622 | H57: 14906.05236 | I57: 43809.76967 | J57: 78949.94806 | K57: 115597.2875
C59: TOTAL SHAREHOLDERS EQUITY | E59: $'000 | F59: =SUM(F55:F57) -> 5379838 | G59: 5638911 | H59: 2238988.699 | I59: =SUM(I55:I57) -> 2267892.77 | J59: 2303032.948 | K59: 2339680.287
F60: 0 | G60: 0 | I60: 0 | J60: 0 | K60: 0

Sheet 5.1.3
B4: ='Business Details'!$B$4 -> SEQ INTERIM REVENUE MONITORING - INFORMATION REQUIREMENT TEMPLATE
B7: =CONCATENATE("Consolidated Statement for ",'Business Details'!$D$9) -> Consolidated Statement for Allconnex Water
B8: =CONCATENATE("Reporting year = ",AnalysisYear) -> Reporting year = 2012
F11: 0 | G11: 1 | H11: 2 | I11: 3 | J11: 4
F12: ='5.1.2'!F12 -> For Year Ending 30 June: | M12: ='5.1.1'!M12 -> For Year Ending 30 June 2012:
C13: ='5.1.2'!C13 -> Account heading | F13: ='5.1.2'!F13 -> 2009 | G13: ='5.1.2'!G13 -> 2010 | H13: ='5.1.2'!H13 -> 2011 | I13: ='5.1.2'!I13 -> 2012 | J13: ='5.1.2'!J13 -> 2013 | K13: ='5.1.2'!K13 -> 2014 | M13: ='5.1.2'!N13 -> Relevant Notes | N13: ='5.1.2'!O13 -> Supporting Documents | AE13: =AD13 -> 
C15: Cash flows from operating activities
C17: Receipts from customers | E17: $'000 | F17: 487518 | G17: 573728 | H17: 452946.2558 | I17: 659308.5186 | J17: 730682.6215 | K17: 782575.6639
C18: Payments to suppliers and employees | E18: $'000 | F18: -234434 | G18: -275258 | H18: -332056.812 | I18: -376058.7407 | J18: -369842.4674 | K18: -462178.5036
C19: Cash flow arising from restructuring | E19: $'000 | F19: 51210 | G19: 0 | H19: 0
C20: Other - [specify] | E20: $'000 | F20: -25513 | G20: -26041 | H20: 16260.27476
C21: Net cash inflow (outflow) from operating activities | E21: $'000 | F21: =SUM(F17:F20) -> 278781 | G21: 272429 | H21: 137149.7185 | I21: 283249.7779 | J21: 360840.1541 | K21: 320397.1602
C23: Cash flow from investing activities
E24: $'000
C25: Payments for property, plant and equipment | E25: $'000 | F25: -224883 | G25: -204930 | H25: -156194 | I25: -257717.2852 | J25: -330491.0338 | K25: -292792.4195
C26: Net movement in loans and advances | E26: $'000 | F26: 0 | G26: 121666 | H26: 0
C27: Proceeds from sale of property, plant and equipment | E27: $'000 | F27: 25446 | G27: -1591 | H27: 0
C28: Interest received | E28: $'000 | F28: 478 | G28: 390 | H28: 413 | I28: 0.02078660221 | J28: 3220.209566 | K28: 3450.82625
C29: Other - [specify] | E29: $'000 | F29: 22540 | G29: 3350 | H29: 0
C30: Net cash inflow (outflow) from investing activities | E30: $'000 | F30: =SUM(F25:F29) -> -176419 | G30: -81115 | H30: -155781 | I30: -257717.2644 | J30: -327270.8243 | K30: -289341.5933
C32: Cash flow from financing activities
C34: Proceeds from borrowings | E34: $'000 | F34: 16323 | G34: 0 | H34: 113741.7143 | I34: 131360.3017 | J34: 146854.7008 | K34: 162467.1454
C35: Repayments of borrowings | E35: $'000 | F35: -21434 | G35: -83174 | H35: 0
C36: Finance costs | E36: $'000 | F36: 826 | G36: -79124 | H36: -84412.63876 | I36: -149464.406 | J36: -149777.1448 | K36: -160504.065
C37: Other - [specify] | E37: $'000 | F37: -103861 | G37: -97882 | H37: 0 | I37: -7529.081478 | J37: -30647.49712 | K37: -33018.59883 | M37: Tax & Dividends
C38: Net cash inflow (outflow) from financing activities | E38: $'000 | F38: =SUM(F34:F37) -> -108146 | G38: -260180 | H38: 29329.07549 | I38: -25633.18569 | J38: -33569.94112 | K38: -31055.51848
C40: Net increase (decrease) in cash held | E40: $'000 | F40: =F21+F30+F38 -> -5784 | G40: -68866 | H40: 10697.794 | I40: -100.6722068 | J40: -0.6112687702 | K40: 0.04843170747
C42: Cash at beginning of reporting period | E42: $'000 | F42: 161664 | G42: 124351 | H42: -436 | I42: 101 | J42: =I44 -> 0.3277932112 | K42: =J44 -> -0.283475559
C44: Cash at end of reporting period | E44: $'000 | F44: =F38+F30+F21+F42 -> 155880 | G44: 55485 | H44: 10261.794 | I44: 0.3277932112 | J44: -0.283475559 | K44: -0.2350438515
F45: 0 | G45: 0 | H45: 5.27506927e-11 | I45: 1.248217085e-10 | J45: 2.262303678e-10 | K45: 2.305504676e-10
AE72: =AD72 -> 

Sheet 5.1.4
B4: ='Business Details'!$B$4 -> SEQ INTERIM REVENUE MONITORING - INFORMATION REQUIREMENT TEMPLATE
B7: =CONCATENATE("Regulatory Adjustment Journals for ",'Business Details'!$D$9) -> Regulatory Adjustment Journals for Allconnex Water
B8: =CONCATENATE("Reporting year = ",AnalysisYear) -> Reporting year = 2012
F11: ='5.1.1'!M12 -> For Year Ending 30 June 2012:
B12: Journal Number | C12: Account Debited | F12: Profit and Loss Statement | H12: Balance Sheet
D13: Account Credited | F13: Debit | G13: Credit | H13: Debit | I13: Credit
B15: 1 | C15: Reserves (balancing entry) | E15: $'000
B16: 1 | D16: Fixed assets - opening gross undepreciated (financial accounting values) | E16: $'000
B18: 1 | C18: Fixed assets - opening undepreciated regulatory values | E18: $'000
C20: Replacement of opening accounting gross asset balances with opening regulatory values.
B23: 2 | D23: Reserves (balancing entry) | E23: $'000
B24: 2 | C24: Fixed assets - opening accumulated depreciation (financial accounting values) | E24: $'000
B26: 2 | D26: Fixed assets Opening Accumulated Depreciation (regulatory values) | E26: $'000
C28: Replacement of opening accounting accumulated depreciation balances with opening regulatory values.
B31: 3 | D31: Fixed assets - gross undepreciated value (regulatory values) | E31: $'000
B32: 3 | C32: Revenue - customer contributions | E32: $'000
C34: Adjustment to credit current year customer contributions to assets instead of revenues (This adjustments should be carried forward in regulatory asset values)
B36: 4 | C36: Fixed assets - accumulated depreciation (financial accounting values) | E36: $'000
B37: 4 | D37: P&L depreciation charge (financial accounting values) | E37: $'000
B38: 4 | D38: Accumulated depreciation (regulatory values) | E38: $'000
B40: 4 | C40: P&L depreciation charge (regulatory basis values) | E40: $'000
C42: Reversal of current period accounting depreciation charge with regulatory annual charge
B45: 5 | C45: Undepreciated value of fixed assets (financial accounting values) | E45: $'000
B46: 5 | D46: Accumulated depreciation on disposal of assets (financial accounting values) | E46: $'000
B47: 5 | D47: Undepreciated value of fixed asset disposed (regulatory values) | E47: $'000
B48: 5 | D48: Accumulated depreciation on assets disposal (regulatory values) | E48: $'000
B49: 5 | C49: Adjustment to profits / loss on disposal (balancing figure) | E49: $'000
C51: Restatement of profit and loss of disposal of fixed assets - at regulatory values
B54: 6 | C54: Opening undepreciated value of fixed assets (regulatory values) | E54: $'000
B55: 6 | D55: Reserves | E55: $'000
C57: Inflation adjustment to opening fixed asset (regulatory values)
B60: 7 | D60: Opening accumulated depreciation on fixed assets (regulatory values) | E60: $'000
B61: 7 | C61: Reserves | E61: $'000
C63: Inflation adjustment to accumulated depreciation brought forward on fixed assets (regulatory values)
B66: 8 | C66: Item A - specify | E66: $'000
B67: 8 | D67: Item B - specify | E67: $'000
C69: Reason for the regulatory adjustment - specify
B72: 9 | C72: Item A - specify | E72: $'000
B73: 9 | D73: Item B - specify | E73: $'000
C75: Reason for the regulatory adjustment - specify

Sheet 5.1.5
B4: ='Business Details'!$B$4 -> SEQ INTERIM REVENUE MONITORING - INFORMATION REQUIREMENT TEMPLATE
B7: =CONCATENATE("Regulatory Adjustments for ",'Business Details'!$D$9) -> Regulatory Adjustments for Allconnex Water
B8: =CONCATENATE("Reporting year = ",AnalysisYear) -> Reporting year = 2012
F11: =CONCATENATE("For Year Ending 30 June ",AnalysisYear) -> For Year Ending 30 June 2012
C12: Account heading | F12: Consolidated Statement Value | G12: Regulatory Adjustments | H12: Regulatory Value | J12: Journal Reference | Z12: =Y12 -> 
C14: Revenues
C15: Revenue from services | E15: $'000 | F15: ='5.1.1'!I16 -> 629016.23 | G15: 0 | H15: =F15-G15 -> 629016.23
C16: Investment income | E16: $'000 | F16: ='5.1.1'!I17 -> 0 | G16: 0 | H16: =F16-G16 -> 0
C17: Net profit / (loss) from sale of regulatory assets | E17: $'000 | F17: ='5.1.1'!I18 -> -840 | G17: 0 | H17: -840
C18: Net profit / (loss) from sale of unregulated assets | E18: $'000 | F18: ='5.1.1'!I19 -> 0 | G18: 0 | H18: 0
C19: Contributions | E19: $'000 | F19: ='5.1.1'!I20 -> 71220.85847 | G19: =F19 -> 71220.85847 | H19: 0
C20: ='5.1.1'!C21 -> Other operating income | E20: $'000 | F20: ='5.1.1'!I21 -> 13369.72578 | G20: =F20 -> 13369.72578 | H20: 0
C21: ='5.1.1'!C22 -> Other 1 - [specify] | E21: $'000 | F21: ='5.1.1'!I22 -> 0 | G21: 0 | H21: 0
C22: Total Revenue | E22: $'000 | F22: ='5.1.1'!I23 -> 712766.8142 | G22: =SUM(G15:G21) -> 84590.58424 | H22: =SUM(H15:H21) -> 628176.23
C24: Expenses
C25: Operating expenditure | E25: $'000 | F25: ='5.1.1'!I26 -> 385539.0966 | G25: ='5.11.1'!I650 -> 6364.677687 | H25: =F25-G25 -> 379174.4189
C26: Bad debts | E26: $'000 | F26: ='5.1.1'!I27 -> 5000 | G26: 0 | H26: =F26-G26 -> 5000
C27: ='5.1.1'!C28 -> Other 1 - [specify] | E27: $'000 | F27: ='5.1.1'!I28 -> 0 | G27: 0 | H27: =F27-G27 -> 0
C28: ='5.1.1'!C29 -> Other 2 - [specify] | E28: $'000 | F28: ='5.1.1'!I29 -> 0 | G28: 0 | H28: =F28-G28 -> 0
C29: Total Expenses | E29: $'000 | F29: ='5.1.1'!I30 -> 390539.0966 | G29: =SUM(G25:G28) -> 6364.677687 | H29: =SUM(H25:H28) -> 384174.4189
C31: EBITDA | E31: $'000 | F31: ='5.1.1'!I32 -> 322227.7177 | G31: =G22-G29 -> 78225.90656 | H31: =H22-H29 -> 244001.8111
C33: Depreciation | E33: $'000 | F33: ='5.1.1'!I34 -> 112323.5648 | G33: =F33-140209.8 -> -27886.23521 | H33: =F33-G33 -> 140209.8
C34: Earnings Before Interest, Tax and Amortisation | E34: $'000 | F34: ='5.1.1'!I35 -> 209904.1529 | G34: =G31-G33 -> 106112.1418 | H34: =H31-H33 -> 103792.0111
C36: Borrowing costs | E36: $'000 | F36: ='5.1.1'!I37 -> 143066.5124 | G36: 0 | H36: =F36-G36 -> 143066.5124
C37: Profit/Loss Before Tax | E37: $'000 | F37: ='5.1.1'!I38 -> 66837.64048 | G37: =G34-G36 -> 106112.1418 | H37: =H34-H36 -> -39274.50129
C39: Tax Expense | E39: $'000 | F39: ='5.1.1'!I40 -> 20051.29214
C41: Profit/Loss After Tax | E41: $'000 | F41: ='5.1.1'!I42 -> 46786.34834
F42: =F41-'5.1.1'!I42 -> 0
Z245: =Y245 -> 

Sheet 5.1.6
B4: ='Business Details'!$B$4 -> SEQ INTERIM REVENUE MONITORING - INFORMATION REQUIREMENT TEMPLATE
B7: =CONCATENATE("Regulatory Adjustments for ",'Business Details'!$D$9) -> Regulatory Adjustments for Allconnex Water
B8: =CONCATENATE("Reporting year = ",AnalysisYear) -> Reporting year = 2012
F11: ='5.1.1'!M12 -> For Year Ending 30 June 2012:
C12: ='5.1.7'!C12 -> Account heading | F12: Consolidated Statement Value | G12: Regulatory Adjustments | H12: Regulatory Value | J12: Journal Reference
C14: Current Assets
C16: Cash | E16: $'000 | F16: ='5.1.2'!I17 -> 0.3277932111 | G16: 0 | H16: =F16-G16 -> 0.3277932111
C17: Receivables | E17: $'000 | F17: ='5.1.2'!I18 -> 181113.7299 | G17: =F17-F17*('5.1.5'!H22/('5.1.5'!F22-'5.1.5'!F19)) -> 3774.384175 | H17: =F17-G17 -> 177339.3457
C18: Other | E18: $'000 | F18: ='5.1.2'!I19 -> 0 | G18: 0 | H18: =F18-G18 -> 0
C19: Total Current Assets | E19: $'000 | F19: ='5.1.2'!I20 -> 181114.0577 | G19: =SUM(G16:G18) -> 3774.384175 | H19: =SUM(H16:H18) -> 177339.6735
C21: Non-Current Assets
C23: Property, plant and equipment | E23: $'000 | F23: ='5.1.2'!I24 -> 4305415.595 | G23: =F23-4349950 -> -44534.40457 | H23: =F23-G23 -> 4349950
C24: Deferred tax assets | E24: $'000 | F24: ='5.1.2'!I25 -> 0 | G24: 0 | H24: =F24-G24 -> 0
C25: Other | E25: $'000 | F25: ='5.1.2'!I26 -> 0 | G25: 0 | H25: =F25-G25 -> 0
C26: Total non-current assets | E26: $'000 | F26: ='5.1.2'!I27 -> 4305415.595 | G26: =SUM(G23:G25) -> -44534.40457 | H26: =SUM(H23:H25) -> 4349950
C28: TOTAL ASSETS | E28: $'000 | F28: ='5.1.2'!I29 -> 4486529.653 | G28: =G26+G19 -> -40760.0204 | H28: =H26+H19 -> 4527289.674
C30: Current Liabilities
C32: Payables | E32: $'000 | F32: ='5.1.2'!I33 -> 65159.76197 | G32: =F32-F32*('5.1.5'!H25/'5.1.5'!F25) -> 1075.690862 | H32: =F32-G32 -> 64084.07111
C33: Interest-bearing liabilities | E33: $'000 | F33: ='5.1.2'!I34 -> 36792.12725 | G33: 0 | H33: =F33-G33 -> 36792.12725
C34: Current tax liabilities | E34: $'000 | F34: ='5.1.2'!I35 -> 0 | G34: 0 | H34: =F34-G34 -> 0
C35: Provisions | E35: $'000 | F35: ='5.1.2'!I36 -> -2.664535259e-12 | G35: 0 | H35: =F35-G35 -> -2.664535259e-12
C36: Other | E36: $'000 | F36: ='5.1.2'!I37 -> 7943.073851 | G36: ='5.11.1'!I650/'5.11.1'!I652*'5.1.2'!I37 -> 131.1283482 | H36: =F36-G36 -> 7811.945503
C37: Total current Liabilities | E37: $'000 | F37: ='5.1.2'!I38 -> 109894.9631 | G37: =SUM(G32:G36) -> 1206.81921 | H37: =SUM(H32:H36) -> 108688.1439
C39: Non-Current Liabilities
C41: Payables | E41: $'000 | F41: ='5.1.2'!I42 -> 0 | G41: 0 | H41: =F41-G41 -> 0
C42: Interest-bearing liabilities | E42: $'000 | F42: ='5.1.2'!I43 -> 2089514.249 | G42: 0 | H42: =F42-G42 -> 2089514.249
C43: Non-current tax liabilities | E43: $'000 | F43: ='5.1.2'!I44 -> 0 | G43: 0 | H43: =F43-G43 -> 0
C44: Provisions | E44: $'000 | F44: ='5.1.2'!I45 -> 19243.61863 | G44: =F44*('5.11.1'!H639/SUM('5.11.1'!H562,'5.11.1'!H577,'5.11.1'!H593,'5.11.1'!H608,'5.11.1'!H623)) -> 959.0443898 | H44: =F44-G44 -> 18284.57424
C45: Other | E45: $'000 | F45: ='5.1.2'!I46 -> 0 | G45: 0 | H45: =F45-G45 -> 0
C46: Total Non-Current Liabilities | E46: $'000 | F46: ='5.1.2'!I47 -> 2108757.867 | G46: =SUM(G41:G45) -> 959.0443898 | H46: =SUM(H41:H45) -> 2107798.823
C48: TOTAL LIABILITIES | E48: $'000 | F48: ='5.1.2'!I49 -> 2218652.83 | G48: =G46+G37 -> 2165.8636 | H48: =H46+H37 -> 2216486.967
C50: NET ASSETS/(LIABILITIES) | E50: $'000 | F50: ='5.1.2'!I51 -> 2267876.823 | G50: =G28-G48 -> -42925.884 | H50: =H28-H48 -> 2310802.707
C52: Shareholders Equity
C54: Share Capital | E54: $'000 | F54: ='5.1.2'!I55 -> 2224083
C55: Reserves | E55: $'000 | F55: ='5.1.2'!I56 -> 0
C56: Retained earnings | E56: $'000 | F56: ='5.1.2'!I57 -> 43809.76967
C58: TOTAL SHAREHOLDERS EQUITY | E58: $'000 | F58: ='5.1.2'!I59 -> 2267892.77
F59: =F58-'5.1.2'!I59 -> 0

Sheet 5.1.7
B4: ='Business Details'!$B$4 -> SEQ INTERIM REVENUE MONITORING - INFORMATION REQUIREMENT TEMPLATE
B7: =CONCATENATE("Regulatory Values for ",'Business Details'!$D$9) -> Regulatory Values for Allconnex Water
B8: =CONCATENATE("Reporting year = ",AnalysisYear) -> Reporting year = 2012
F11: For Year Ending 30 June:
C12: Account heading | E12: Numeration | F12: ='5.1.1'!F13 -> 2009 | G12: ='5.1.1'!G13 -> 2010 | H12: ='5.1.1'!H13 -> 2011 | I12: ='5.1.1'!I13 -> 2012 | J12: ='5.1.1'!J13 -> 2013 | K12: ='5.1.1'!K13 -> 2014 | AC12: =AB12 -> 
C14: Revenues
C15: Revenue from services | E15: $'000 | H15: ='5.1.1'!H16 -> 553986.2015 | I15: ='5.1.5'!H15 -> 629016.23 | J15: ='5.1.1'!J16 -> 678136.372 | K15: ='5.1.1'!K16 -> 729928.7556
C16: Investment income | E16: $'000 | H16: 0 | I16: ='5.1.5'!H16 -> 0 | J16: 0 | K16: 0
C17: Net profit / (loss) from sale of regulatory assets | E17: $'000 | H17: ='5.1.1'!H18 -> -15.86604 | I17: ='5.1.5'!H17 -> -840 | J17: ='5.1.1'!J18 -> -861 | K17: ='5.1.1'!K18 -> -882.5235692
C19: Contributions | E19: $'000 | H19: 0 | I19: ='5.1.5'!H19 -> 0 | J19: 0 | K19: 0
C20: ='5.1.1'!C21 -> Other operating income | E20: $'000 | H20: 0 | I20: ='5.1.5'!H20 -> 0 | J20: 0 | K20: 0
C21: ='5.1.1'!C22 -> Other 1 - [specify] | E21: $'000 | H21: 0 | I21: ='5.1.5'!H21 -> 0 | J21: 0 | K21: 0
C22: Total Revenue | E22: $'000 | F22: =SUM(F15:F21) -> 0 | G22: 0 | H22: =SUM(H15:H21) -> 553970.3355 | I22: =SUM(I15:I21) -> 628176.23 | J22: 677275.372 | K22: 729046.232
C24: Expenses | I24: =I25+'5.11.1'!I650-'5.11.1'!I652 -> 0 | J24: =J25+'5.11.1'!J650-'5.11.1'!J652 -> 0 | K24: =K25+'5.11.1'!K650-'5.11.1'!K652 -> 0
C25: Operating expenditure | E25: $'000 | H25: ='5.11.1'!H652-'5.11.1'!H650 -> 323065.1226 | I25: ='5.1.5'!H25 -> 379174.4189 | J25: ='5.11.1'!J652-'5.11.1'!J650 -> 418155.8125 | K25: ='5.11.1'!K652-'5.11.1'!K650 -> 447094.4809
C26: Bad debts | E26: $'000 | H26: ='5.1.1'!H27 -> 5500 | I26: ='5.1.5'!H26 -> 5000 | J26: ='5.1.1'!J27 -> 5125 | K26: ='5.1.1'!K27 -> 5095.53125
C27: ='5.1.1'!C28 -> Other 1 - [specify] | E27: $'000 | H27: 0 | I27: ='5.1.5'!H27 -> 0 | J27: 0 | K27: 0
C28: ='5.1.1'!C29 -> Other 2 - [specify] | E28: $'000 | H28: ='5.1.1'!H29 -> 0 | I28: ='5.1.5'!H28 -> 0 | J28: 0 | K28: 0
C29: Total Expenses | E29: $'000 | F29: =SUM(F25:F28) -> 0 | G29: 0 | H29: =SUM(H25:H28) -> 328565.1226 | I29: =SUM(I25:I28) -> 384174.4189 | J29: 423280.8125 | K29: 452190.0121
C31: EBITDA | E31: $'000 | F31: =F22-F29 -> 0 | G31: 0 | H31: =H22-H29 -> 225405.2128 | I31: =I22-I29 -> 244001.8111 | J31: 253994.5595 | K31: 276856.2199
C33: Depreciation | E33: $'000 | H33: 129570.8788 | I33: 140209.7802 | J33: 150725.5781 | K33: 163903.0239
C34: Earnings Before Interest, Tax and Amortisation | E34: $'000 | F34: =F31-F33 -> 0 | G34: 0 | H34: =H31-H33 -> 95834.33401 | I34: =I31-I33 -> 103792.031 | J34: 103268.9814 | K34: 112953.196
C36: Borrowing costs | E36: $'000 | H36: ='5.1.1'!H37 -> 132978 | I36: ='5.1.5'!H36 -> 143066.5124 | J36: ='5.1.1'!J37 -> 149136.4859 | K36: ='5.1.1'!K37 -> 159907.0271
C37: Profit/Loss Before Tax | E37: $'000 | F37: =F34-F36 -> 0 | G37: 0 | H37: =H34-H36 -> -37143.66599 | I37: =I34-I36 -> -39274.48146 | J37: -45867.50451 | K37: -46953.83117
C39: Tax Expense | E39: $'000
C41: Profit/Loss After Tax | E41: $'000 | F41: =F37-F39 -> 0 | G41: =G37-G39 -> 0
C43: Dividend paid | E43: $'000
C45: Retained earnings for the year | E45: $'000 | F45: =F41-F43 -> 0 | G45: =G41-G43 -> 0
G50: EBIT/Total Assets | H50: =H34/'5.1.8'!H28 -> 0.02163222482 | I50: =I34/'5.1.8'!I28 -> 0.02292586646 | J50: =J34/'5.1.8'!J28 -> 0.02235613329 | K50: =K34/'5.1.8'!K28 -> 0.02296196344
G51: Net Debt / Fixed Assets | H51: =('5.1.8'!H42+'5.1.8'!H33-'5.1.8'!H16)/'5.1.8'!H23 -> 0.4512164797 | I51: =('5.1.8'!I42+'5.1.8'!I33-'5.1.8'!I16)/'5.1.8'!I23 -> 0.4888116066 | J51: =('5.1.8'!J42+'5.1.8'!J33-'5.1.8'!J16)/'5.1.8'!J23 -> 0.5068284673 | K51: =('5.1.8'!K42+'5.1.8'!K33-'5.1.8'!K16)/'5.1.8'!K23 -> 0.5109089797
G52: NPAT/net assets | H52: n/a | I52: n/a | J52: n/a | K52: n/a
G53: EBIT/Interest Expense | H53: =H34/H36 -> 0.7206781123 | I53: =I34/I36 -> 0.7254809613 | J53: =J34/J36 -> 0.6924461226 | K53: =K34/K36 -> 0.7063679314
AC245: =AB245 -> 

Sheet 5.1.8
B4: ='Business Details'!$B$4 -> SEQ INTERIM REVENUE MONITORING - INFORMATION REQUIREMENT TEMPLATE
B7: =CONCATENATE("Regulatory Values for ",'Business Details'!$D$9) -> Regulatory Values for Allconnex Water
B8: =CONCATENATE("Reporting year = ",AnalysisYear) -> Reporting year = 2012
F11: ='5.1.7'!F11 -> For Year Ending 30 June:
C12: ='5.1.7'!C12 -> Account heading | E12: ='5.1.7'!E12 -> Numeration | F12: ='5.1.7'!F12 -> 2009 | G12: ='5.1.7'!G12 -> 2010 | H12: ='5.1.7'!H12 -> 2011 | I12: ='5.1.7'!I12 -> 2012 | J12: ='5.1.7'!J12 -> 2013 | K12: ='5.1.7'!K12 -> 2014
C14: Current Assets
C16: Cash | E16: $'000 | H16: ='5.1.2'!H17 -> 10261.7938 | I16: ='5.1.6'!H16 -> 0.3277932111 | J16: ='5.1.2'!J17 -> 0 | K16: ='5.1.2'!K17 -> 0
C17: Receivables | E17: $'000 | H17: ='5.1.1'!H16/SUM('5.1.1'!H16,'5.1.1'!H21)*'5.1.2'!H18 -> 156623.5904 | I17: ='5.1.6'!H17 -> 177339.3457 | J17: ='5.1.1'!J16/SUM('5.1.1'!J16,'5.1.1'!J21)*'5.1.2'!J18 -> 129108.4601 | K17: ='5.1.1'!K16/SUM('5.1.1'!K16,'5.1.1'!K21)*'5.1.2'!K18 -> 141263.6212
C18: Other | E18: $'000 | H18: ='5.1.1'!H22 -> 1060.02 | I18: ='5.1.6'!H18 -> 0 | J18: ='5.1.1'!J22 -> 0 | K18: ='5.1.1'!K22 -> 0
C19: Total Current Assets | E19: $'000 | F19: =SUM(F16:F18) -> 0 | G19: 0 | H19: 167945.4042 | I19: =I17 -> 177339.3457 | J19: 129108.4601 | K19: 141263.6212
C21: Non-Current Assets
C23: Property, plant and equipment | E23: $'000 | H23: 4262220 | I23: ='5.1.6'!H23 -> 4349950 | J23: 4490160 | K23: 4777880
C24: Deferred tax assets | E24: $'000 | H24: ='5.1.2'!H25 -> 0 | I24: ='5.1.6'!H24 -> 0 | J24: ='5.1.2'!J25 -> 0 | K24: ='5.1.2'!K25 -> 0
C25: Other | E25: $'000 | H25: ='5.1.2'!H26 -> 0 | I25: ='5.1.6'!H25 -> 0 | J25: ='5.1.2'!J26 -> 0 | K25: ='5.1.2'!K26 -> 0
C26: Total non-current assets | E26: $'000 | F26: =SUM(F23:F25) -> 0 | G26: 0 | H26: =SUM(H23:H25) -> 4262220 | I26: =SUM(I23:I25) -> 4349950 | J26: 4490160 | K26: 4777880
C28: TOTAL ASSETS | E28: $'000 | F28: =F26+F19 -> 0 | G28: 0 | H28: 4430165.404 | I28: 4527289.346 | J28: 4619268.46 | K28: 4919143.621
C30: Current Liabilities
C32: Payables | E32: $'000 | H32: =(1-'5.11.1'!H650/'5.11.1'!H652)*'5.1.2'!H33 -> 41922.16936 | I32: ='5.1.6'!H32 -> 64084.07111 | J32: =(1-'5.11.1'!J650/'5.11.1'!J652)*'5.1.2'!J33 -> 70672.50265 | K32: =(1-'5.11.1'!K650/'5.11.1'!K652)*'5.1.2'!K33 -> 76525.56784
C33: Interest-bearing liabilities | E33: $'000 | H33: ='5.1.2'!H34 -> 113741.7143 | I33: ='5.1.6'!H33 -> 36792.12725 | J33: ='5.1.2'!J34 -> 39371.96142 | K33: ='5.1.2'!K34 -> 42225.70136
C34: Current tax liabilities | E34: $'000 | H34: ='5.1.2'!H35 -> 0 | I34: ='5.1.6'!H34 -> 0 | J34: ='5.1.2'!J35 -> 0 | K34: ='5.1.2'!K35 -> 0
C35: Provisions | E35: $'000 | H35: ='5.1.2'!H36 -> 0 | I35: ='5.1.6'!H35 -> -2.664535259e-12 | J35: ='5.1.2'!J36 -> 0 | K35: ='5.1.2'!K36 -> 0
C36: Other | E36: $'000 | H36: ='5.1.2'!H37*(1-'5.11.1'!H650/'5.11.1'!H652) -> 69663.10323 | I36: ='5.1.6'!H36 -> 7811.945503 | J36: ='5.1.2'!J37*(1-'5.11.1'!J650/'5.11.1'!J652) -> 8012.691698 | K36: ='5.1.2'!K37*(1-'5.11.1'!K650/'5.11.1'!K652) -> 8221.711395
C37: Total current Liabilities | E37: $'000 | F37: =SUM(F32:F36) -> 0 | G37: 0 | H37: 225326.9868 | I37: 108688.1439 | J37: 118057.1558 | K37: 126972.9806
C39: Non-Current Liabilities
C41: Payables | E41: $'000 | H41: ='5.1.2'!H42 -> 0 | I41: ='5.1.6'!H41 -> 0 | J41: ='5.1.2'!J42 -> 0 | K41: ='5.1.2'!K42 -> 0
C42: Intrest-bearing liabilities | E42: $'000 | H42: ='5.1.2'!H43 -> 1819703.984 | I42: ='5.1.6'!H42 -> 2089514.249 | J42: ='5.1.2'!J43 -> 2236368.949 | K42: ='5.1.2'!K43 -> 2398836.095
C43: Current tax liabilities | E43: $'000 | H43: ='5.1.2'!H35 -> 0 | I43: ='5.1.6'!H43 -> 0 | J43: ='5.1.2'!J35 -> 0 | K43: ='5.1.2'!K35 -> 0
C44: Provisions | E44: $'000 | H44: =(1-'5.11.1'!H639/SUM('5.11.1'!H562,'5.11.1'!H577,'5.11.1'!H593,'5.11.1'!H608,'5.11.1'!H623,'5.11.1'!H639))*'5.1.2'!H45 -> 16143.28993 | I44: ='5.1.6'!H44 -> 18284.57424 | J44: =(1-'5.11.1'!J639/SUM('5.11.1'!J562,'5.11.1'!J577,'5.11.1'!J593,'5.11.1'!J608,'5.11.1'!J623,'5.11.1'!J639))*'5.1.2'!J45 -> 20807.22075 | K44: =(1-'5.11.1'!K639/SUM('5.11.1'!K562,'5.11.1'!K577,'5.11.1'!K593,'5.11.1'!K608,'5.11.1'!K623,'5.11.1'!K639))*'5.1.2'!K45 -> 23057.54271
C45: Other | E45: $'000 | H45: ='5.1.2'!H46 -> 0 | I45: ='5.1.6'!H45 -> 0 | J45: ='5.1.2'!J46 -> 0 | K45: ='5.1.2'!K46 -> 0
C46: Total Non-Current Liabilities | E46: $'000 | F46: =SUM(F41:F45) -> 0 | G46: 0 | H46: 1835847.273 | I46: 2107798.823 | J46: 2257176.17 | K46: 2421893.638
C48: TOTAL LIABILITIES | E48: $'000 | F48: =F46+F37 -> 0 | G48: 0 | H48: 2061174.26 | I48: 2216486.967 | J48: 2375233.326 | K48: 2548866.618
C50: NET ASSETS/(LIABILITIES) | E50: $'000 | F50: =F28-F48 -> 0 | G50: 0 | H50: 2368991.144 | I50: 2310802.379 | J50: 2244035.134 | K50: 2370277.003
C52: Shareholders Equity
C54: Share Capital | E54: $'000
C55: Reserves | E55: $'000
C56: Retained earnings | E56: $'000 | F56: ='5.1.1'!F47+'5.1.7'!F45 -> 0 | G56: =F56+'5.1.7'!G45 -> 0
C58: TOTAL SHAREHOLDERS EQUITY | E58: $'000 | F58: =SUM(F54:F56) -> 0 | G58: 0 | H58: 0 | I58: 0 | J58: 0 | K58: 0

Sheet 5.2.1
AA1: ="If revenues are smoothed beyond "&J12&", additional data is to be provided for the corresponding period. Additional years can be accessed by clicking on the '+' sign above" -> If revenues are smoothed beyond 2013, additional data is to be provided for the corresponding period. Additional years can be accessed by clicking on the '+' sign above
B4: ='Business Details'!$B$4 -> SEQ INTERIM REVENUE MONITORING - INFORMATION REQUIREMENT TEMPLATE
B7: =CONCATENATE("Revenue Details for ",'Business Details'!$D$9) -> Revenue Details for Allconnex Water
B8: =CONCATENATE("Reporting year = ",AnalysisYear) -> Reporting year = 2012
F10: 0 | G10: 1 | H10: 2 | I10: 3 | J10: 4
F11: ='5.1.7'!F11 -> For Year Ending 30 June: | AA11: =CONCATENATE("For Year Ending 30 June ",AnalysisYear) -> For Year Ending 30 June 2012
F12: ='5.1.7'!F12 -> 2009 | G12: ='5.1.7'!G12 -> 2010 | H12: ='5.1.7'!H12 -> 2011 | I12: ='5.1.7'!I12 -> 2012 | J12: ='5.1.7'!J12 -> 2013 | K12: =J12+1 -> 2014 | L12: =K12+1 -> 2015 | M12: 2016 | N12: 2017 | O12: 2018 | P12: 2019 | Q12: 2020 | R12: 2021 | S12: 2022 | T12: 2023 | U12: 2024 | V12: 2025 | W12: 2026 | X12: 2027 | Y12: 2028 | AA12: Supporting Documents | AT12: =AS12 -> 
B14: ="Geographical Area 1 - "&'Business Details'!$D$12 -> Geographical Area 1 - Gold Coast
B16: REVENUE FROM SERVICES
C17: Revenue from water services:
C18: Drinking water | E18: $'000 | F18: 127789.2185 | G18: 158223.2581 | H18: 174663.1165 | I18: 209659.4137 | J18: 231908.6591 | K18: 255249.1409 | AA18: Drinking water
C19: Other core water services | E19: $'000 | F19: 0 | G19: 0 | H19: 264.37846 | I19: 325.4041344 | J19: 333.4780723 | K19: 341.7523296 | AA19: Recycled water
C21: Revenue from wastewater services:
C22: Wastewater via sewer | E22: $'000 | F22: 120037 | G22: 133442 | H22: 170160.4789 | I22: 187024.6087 | J22: 195772.6731 | K22: 205164.23
C23: Trade waste | E23: $'000 | F23: 6618.918584 | G23: 7561.995971 | H23: 1446.22403 | I23: 359.6728027 | J23: 368.6646228 | K23: 377.8812384
C24: Other core wastewater services | E24: $'000 | F24: 0 | G24: 0 | H24: 0 | I24: 0 | J24: 0 | K24: 0
C26: Non-regulated:
C27: Aggregate non-regulated services | E27: $'000 | F27: 22494.468 | G27: 15069.59 | H27: 9963.5682 | I27: 6971.2 | J27: 7145.48 | K27: 7324.105126 | AA27: Other operating income (NB. for 2009 and 2010, this includes services defined as non-core in prior year template)
C29: Subtotal Revenue from Services | E29: $'000 | F29: =SUM(F18:F19)+SUM(F22:F24)+F27 -> 276939.6051 | G29: 314296.8441 | H29: 356497.7661 | I29: =SUM(I18:I19)+SUM(I22:I24)+I27 -> 404340.2993 | J29: =SUM(J18:J19)+SUM(J22:J24)+J27 -> 435528.9549 | K29: =SUM(K18:K19)+SUM(K22:K24)+K27 -> 468457.1096 | L29: 0 | M29: 0 | N29: 0 | O29: 0 | P29: 0 | Q29: 0 | R29: 0 | S29: 0 | T29: 0 | U29: 0 | V29: 0 | W29: 0 | X29: 0 | Y29: 0
I30: 0 | J30: 0 | K30: 0
B31: OTHER REVENUE
C32: Other Revenue Offset Against Revenue Requirements:
C33: Investment Income | E33: $'000 | F33: 0 | G33: 6231.51 | H33: 0 | I33: 0 | J33: 0 | K33: 0
C34: Net profit from Sale of Assets | E34: $'000 | F34: 0 | G34: 0 | H34: -65.86604 | I34: 1200 | J34: 1230 | K34: 1260.747956 | AA34: Other capital revenue(loss)
C35: Contributions | E35: $'000 | F35: 79714.55908 | G35: 68331.80176 | H35: 0 | AA35: Asset-offset approach therefore excluded from RAB not revenue offset
C37: Other Revenue Not Offset Against Revenue Requirements:
C38: Investment Income | E38: $'000 | F38: 0 | G38: 0 | H38: 0 | I38: 0 | J38: 0 | K38: 0
C39: Net profit from Sale of Assets | E39: $'000 | F39: 86101 | G39: 0 | H39: 0 | I39: 0 | J39: 0 | K39: 0
C40: Contributions | E40: $'000 | F40: 0 | G40: 0 | H40: 54205.67023 | I40: 47300 | J40: 48482.5 | K40: 49694.48193 | AA40: Includes developer contributions and contributed assets
C42: Subtotal Other Revenue | E42: $'000 | F42: =SUM(F33:F35)+SUM(F38:F40) -> 165815.5591 | G42: 74563.31176 | H42: 54139.80419 | I42: 48500 | J42: 49712.5 | K42: 50955.22989 | L42: =SUM(L33:L35)+SUM(L38:L40) -> 0 | M42: 0 | N42: 0 | O42: 0 | P42: 0 | Q42: 0 | R42: 0 | S42: 0 | T42: 0 | U42: 0 | V42: 0 | W42: 0 | X42: 0 | Y42: 0
B44: TOTAL REVENUE | E44: $'000 | F44: =F42+F29 -> 442755.1642 | G44: =G42+G29 -> 388860.1558 | H44: =H42+H29 -> 410637.5703 | I44: =I42+I29 -> 452840.2993 | J44: =J42+J29 -> 485241.4549 | K44: =K42+K29 -> 519412.3395 | L44: 0 | M44: 0 | N44: 0 | O44: 0 | P44: 0 | Q44: 0 | R44: 0 | S44: 0 | T44: 0 | U44: 0 | V44: 0 | W44: 0 | X44: 0 | Y44: 0
F45: 0 | G45: 0 | H45: 0 | I45: -8.003553376e-11 | J45: -7.275957614e-11 | K45: 0
F47: =F11 -> For Year Ending 30 June: | AA47: =AA11 -> For Year Ending 30 June 2012
F48: =F12 -> 2009 | G48: =G12 -> 2010 | H48: =H12 -> 2011 | I48: =I12 -> 2012 | J48: =J12 -> 2013 | K48: =K12 -> 2014 | L48: 2015 | M48: 2016 | N48: 2017 | O48: 2018 | P48: 2019 | Q48: 2020 | R48: 2021 | S48: 2022 | T48: 2023 | U48: 2024 | V48: 2025 | W48: 2026 | X48: 2027 | Y48: 2028 | AA48: =AA12 -> Supporting Documents | AT48: =AS48 -> 
B50: ="Geographical Area 2 - "&'Business Details'!$D$13 -> Geographical Area 2 - Logan
B52: =B16 -> REVENUE FROM SERVICES
C53: =C17 -> Revenue from water services:
C54: =C18 -> Drinking water | E54: $'000 | F54: 50705.789 | G54: 64487.1405 | H54: 73685.27782 | I54: 87289.14177 | J54: 95401.80533 | K54: 104185.9244
C55: =C19 -> Other core water services | E55: $'000 | F55: 0 | G55: 0 | H55: 0 | I55: 0 | J55: 0 | K55: 0 | AA55: Recycled water
C57: =C21 -> Revenue from wastewater services:
C58: =C22 -> Wastewater via sewer | E58: $'000 | F58: 35052.20664 | G58: 41826.85102 | H58: 54552.6069 | I58: 59772.45298 | J58: 62944.52115 | K58: 66237.83495
C59: =C23 -> Trade waste | E59: $'000 | F59: 2280 | G59: 2480 | H59: 3277.8959 | I59: 3343.944773 | J59: 3427.543392 | K59: 3513.231977
C60: =C24 -> Other core wastewater services | E60: $'000 | F60: 0 | G60: 0 | H60: 0 | I60: 0 | J60: 0 | K60: 0
C62: =C26 -> Non-regulated:
C63: =C27 -> Aggregate non-regulated services | E63: $'000 | F63: 7793 | G63: 4681 | H63: 4506.42044 | I63: 3892 | J63: 3989.3 | K63: 4089.025871 | AA63: Other operating income
C65: =C29 -> Subtotal Revenue from Services | E65: $'000 | F65: =SUM(F54:F55)+SUM(F58:F60)+F63 -> 95830.99564 | G65: 113474.9915 | H65: =SUM(H54:H55)+SUM(H58:H60)+H63 -> 136022.2011 | I65: =SUM(I54:I55)+SUM(I58:I60)+I63 -> 154297.5395 | J65: 165763.1699 | K65: 178026.0172 | L65: 0 | M65: 0 | N65: 0 | O65: 0 | P65: 0 | Q65: 0 | R65: 0 | S65: 0 | T65: 0 | U65: 0 | V65: 0 | W65: 0 | X65: 0 | Y65: 0
B67: =B31 -> OTHER REVENUE
C68: =C32 -> Other Revenue Offset Against Revenue Requirements:
C69: =C33 -> Investment Income | E69: $'000 | F69: 0 | G69: 0 | H69: 0 | I69: 0 | J69: 0 | K69: 0 | L69: 4199.433414 | M69: 0 | N69: 0 | O69: 0 | P69: 0 | Q69: 0 | R69: 0 | S69: 0 | T69: 0 | U69: 0 | V69: 0 | W69: 0 | X69: 0 | Y69: 0
C70: =C34 -> Net profit from Sale of Assets | E70: $'000 | F70: -4584 | G70: -1060 | H70: 50 | I70: -2040 | J70: -2091 | K70: -2143.271525 | AA70: Other capital revenue(loss)
C71: =C35 -> Contributions | E71: $'000 | F71: 8107 | G71: 13262 | H71: 0 | L71: 18558.64715 | M71: 0 | N71: 0 | O71: 0 | P71: 0 | Q71: 0 | R71: 0 | S71: 0 | T71: 0 | U71: 0 | V71: 0 | W71: 0 | X71: 0 | Y71: 0
C73: =C37 -> Other Revenue Not Offset Against Revenue Requirements:
C74: =C38 -> Investment Income | E74: $'000 | F74: 0 | G74: 0 | H74: 0 | I74: 0 | J74: 0 | K74: 0
C75: =C39 -> Net profit from Sale of Assets | E75: $'000 | F75: -120 | G75: 0 | H75: 0 | I75: 0 | J75: 0 | K75: 0
C76: =C40 -> Contributions | E76: $'000 | F76: 0 | G76: 0 | H76: 17275.6872 | I76: 17200 | J76: 17630 | K76: 18070.7207
C78: =C42 -> Subtotal Other Revenue | E78: $'000 | F78: =SUM(F69:F71)+SUM(F74:F76) -> 3403 | G78: =SUM(G69:G71)+SUM(G74:G76) -> 12202 | H78: =SUM(H69:H71)+SUM(H74:H76) -> 17325.6872 | I78: =SUM(I69:I71)+SUM(I74:I76) -> 15160 | J78: =SUM(J69:J71)+SUM(J74:J76) -> 15539 | K78: =SUM(K69:K71)+SUM(K74:K76) -> 15927.44918 | L78: 22758.08057 | M78: 0 | N78: 0 | O78: 0 | P78: 0 | Q78: 0 | R78: 0 | S78: 0 | T78: 0 | U78: 0 | V78: 0 | W78: 0 | X78: 0 | Y78: 0
B80: =B44 -> TOTAL REVENUE | E80: $'000 | F80: =F78+F65 -> 99233.99564 | G80: =G78+G65 -> 125676.9915 | H80: =H78+H65 -> 153347.8883 | I80: =I78+I65 -> 169457.5395 | J80: =J78+J65 -> 181302.1699 | K80: =K78+K65 -> 193953.4664 | L80: 22758.08057 | M80: 0 | N80: 0 | O80: 0 | P80: 0 | Q80: 0 | R80: 0 | S80: 0 | T80: 0 | U80: 0 | V80: 0 | W80: 0 | X80: 0 | Y80: 0
F81: 0 | G81: 0 | H81: 0 | I81: 0 | J81: 0 | K81: 0
F83: =F47 -> For Year Ending 30 June: | AA83: =AA47 -> For Year Ending 30 June 2012
F84: =F48 -> 2009 | G84: =G48 -> 2010 | H84: =H48 -> 2011 | I84: =I48 -> 2012 | J84: =J48 -> 2013 | K84: =K48 -> 2014 | L84: 2015 | M84: 2016 | N84: 2017 | O84: 2018 | P84: 2019 | Q84: 2020 | R84: 2021 | S84: 2022 | T84: 2023 | U84: 2024 | V84: 2025 | W84: 2026 | X84: 2027 | Y84: 2028 | AA84: =AA48 -> Supporting Documents | AT84: =AS84 -> 
B86: ="Geographical Area 3 - "&'Business Details'!$D$14 -> Geographical Area 3 - Redland
B88: =B52 -> REVENUE FROM SERVICES
C89: =C53 -> Revenue from water services:
C90: =C54 -> Drinking water | E90: $'000 | F90: 29744.76652 | G90: 35619.983 | H90: 35938.78193 | I90: 41550.09294 | J90: 46346.98101 | K90: 51213.94541
C91: =C55 -> Other core water services | E91: $'000 | F91: 6.5 | G91: 4 | H91: 0.03741 | I91: 0 | J91: 0 | K91: 0 | AA91: Recycled water
C93: =C57 -> Revenue from wastewater services:
C94: =C58 -> Wastewater via sewer | E94: $'000 | F94: 34036.00573 | G94: 35511.94921 | H94: 38712.35967 | I94: 38352.70402 | J94: 40259.78213 | K94: 42238.24371
C95: =C59 -> Trade waste | E95: $'000 | F95: 1153.988599 | G95: 1430 | H95: 1285.04394 | I95: 1338.794217 | J95: 1372.264072 | K95: 1406.570674
C96: =C60 -> Other core wastewater services | E96: $'000 | H96: 0
C98: =C62 -> Non-regulated:
C99: =C63 -> Aggregate non-regulated services | E99: $'000 | F99: 2654.533 | G99: 3810 | H99: 2022.04388 | I99: 2506.525775 | J99: 2569.188919 | K99: 2633.414373 | AA99: Other operating income
C101: =C65 -> Subtotal Revenue from Services | E101: $'000 | F101: =SUM(F90:F91)+SUM(F94:F96)+F99 -> 67595.79385 | G101: 76375.93221 | H101: 77958.26683 | I101: 83748.11695 | J101: 90548.21614 | K101: 97492.17416 | L101: 0 | M101: 0 | N101: 0 | O101: 0 | P101: 0 | Q101: 0 | R101: 0 | S101: 0 | T101: 0 | U101: 0 | V101: 0 | W101: 0 | X101: 0 | Y101: 0
B103: =B67 -> OTHER REVENUE
C104: =C68 -> Other Revenue Offset Against Revenue Requirements:
C105: =C69 -> Investment Income | E105: $'000 | F105: 0 | G105: 0 | H105: 0
C106: =C70 -> Net profit from Sale of Assets | E106: $'000 | F106: 0 | G106: 0 | H106: 0 | I106: 0 | J106: 0 | K106: 0 | AA106: Other capital revenue(loss)
C107: =C71 -> Contributions | E107: $'000 | F107: 5505.662 | G107: 7247 | H107: 0
C109: =C73 -> Other Revenue Not Offset Against Revenue Requirements:
C110: =C74 -> Investment Income | E110: $'000 | F110: 0 | G110: 0 | H110: 0
C111: =C75 -> Net profit from Sale of Assets | E111: $'000 | F111: -1425.871 | G111: 0 | H111: 0
C112: =C76 -> Contributions | E112: $'000 | F112: 0 | G112: 0 | H112: 6139.25036 | I112: 6720.858467 | J112: 6888.879929 | K112: 7061.090479
C114: =C78 -> Subtotal Other Revenue | E114: $'000 | F114: =SUM(F105:F107)+SUM(F110:F112) -> 4079.791 | G114: =SUM(G105:G107)+SUM(G110:G112) -> 7247 | H114: =SUM(H105:H107)+SUM(H110:H112) -> 6139.25036 | I114: =SUM(I105:I107)+SUM(I110:I112) -> 6720.858467 | J114: =SUM(J105:J107)+SUM(J110:J112) -> 6888.879929 | K114: =SUM(K105:K107)+SUM(K110:K112) -> 7061.090479 | L114: 0 | M114: 0 | N114: 0 | O114: 0 | P114: 0 | Q114: 0 | R114: 0 | S114: 0 | T114: 0 | U114: 0 | V114: 0 | W114: 0 | X114: 0 | Y114: 0
B116: =B80 -> TOTAL REVENUE | E116: $'000 | F116: =F114+F101 -> 71675.58485 | G116: =G114+G101 -> 83622.93221 | H116: =H114+H101 -> 84097.51719 | I116: =I114+I101 -> 90468.97542 | J116: =J114+J101 -> 97437.09607 | K116: =K114+K101 -> 104553.2646 | L116: 0 | M116: 0 | N116: 0 | O116: 0 | P116: 0 | Q116: 0 | R116: 0 | S116: 0 | T116: 0 | U116: 0 | V116: 0 | W116: 0 | X116: 0 | Y116: 0
F117: 0 | G117: 0 | H117: 0 | I117: 0 | J117: 0 | K117: 0
F119: =F83 -> For Year Ending 30 June: | AA119: =AA83 -> For Year Ending 30 June 2012
F120: =F84 -> 2009 | G120: =G84 -> 2010 | H120: =H84 -> 2011 | I120: =I84 -> 2012 | J120: =J84 -> 2013 | K120: =K84 -> 2014 | L120: 2015 | M120: 2016 | N120: 2017 | O120: 2018 | P120: 2019 | Q120: 2020 | R120: 2021 | S120: 2022 | T120: 2023 | U120: 2024 | V120: 2025 | W120: 2026 | X120: 2027 | Y120: 2028 | AA120: =AA84 -> Supporting Documents | AT120: =AS120 -> 
B122: ="Geographical Area 4 - "&'Business Details'!$D$15 -> Geographical Area 4 - Allconnex (all districts)
B124: =B88 -> REVENUE FROM SERVICES
C125: =C89 -> Revenue from water services:
C126: =C90 -> Drinking water | E126: $'000
C127: =C91 -> Other core water services | E127: $'000
C129: =C93 -> Revenue from wastewater services:
C130: =C94 -> Wastewater via sewer | E130: $'000
C131: =C95 -> Trade waste | E131: $'000
C132: =C96 -> Other core wastewater services | E132: $'000
C134: =C98 -> Non-regulated:
C135: =C99 -> Aggregate non-regulated services | E135: $'000
C137: =C101 -> Subtotal Revenue from Services | E137: $'000 | F137: =SUM(F126:F127)+SUM(F130:F132)+F135 -> 0 | G137: 0 | H137: 0 | I137: 0 | J137: 0 | K137: 0 | L137: 0 | M137: 0 | N137: 0 | O137: 0 | P137: 0 | Q137: 0 | R137: 0 | S137: 0 | T137: 0 | U137: 0 | V137: 0 | W137: 0 | X137: 0 | Y137: 0
B139: =B103 -> OTHER REVENUE
C140: =C104 -> Other Revenue Offset Against Revenue Requirements:
C141: =C105 -> Investment Income | E141: $'000
C142: =C106 -> Net profit from Sale of Assets | E142: $'000
C143: =C107 -> Contributions | E143: $'000
C145: =C109 -> Other Revenue Not Offset Against Revenue Requirements:
C146: =C110 -> Investment Income | E146: $'000
C147: =C111 -> Net profit from Sale of Assets | E147: $'000
C148: =C112 -> Contributions | E148: $'000
C150: =C114 -> Subtotal Other Revenue | E150: $'000 | F150: =SUM(F141:F143)+SUM(F146:F148) -> 0 | G150: =SUM(G141:G143)+SUM(G146:G148) -> 0 | H150: =SUM(H141:H143)+SUM(H146:H148) -> 0 | I150: =SUM(I141:I143)+SUM(I146:I148) -> 0 | J150: =SUM(J141:J143)+SUM(J146:J148) -> 0 | K150: =SUM(K141:K143)+SUM(K146:K148) -> 0 | L150: 0 | M150: 0 | N150: 0 | O150: 0 | P150: 0 | Q150: 0 | R150: 0 | S150: 0 | T150: 0 | U150: 0 | V150: 0 | W150: 0 | X150: 0 | Y150: 0
B152: =B116 -> TOTAL REVENUE | E152: $'000 | F152: =F150+F137 -> 0 | G152: =G150+G137 -> 0 | H152: =H150+H137 -> 0 | I152: =I150+I137 -> 0 | J152: =J150+J137 -> 0 | K152: =K150+K137 -> 0 | L152: 0 | M152: 0 | N152: 0 | O152: 0 | P152: 0 | Q152: 0 | R152: 0 | S152: 0 | T152: 0 | U152: 0 | V152: 0 | W152: 0 | X152: 0 | Y152: 0
F155: =F119 -> For Year Ending 30 June: | AA155: =AA119 -> For Year Ending 30 June 2012
F156: =F120 -> 2009 | G156: =G120 -> 2010 | H156: =H120 -> 2011 | I156: =I120 -> 2012 | J156: =J120 -> 2013 | K156: =K120 -> 2014 | L156: 2015 | M156: 2016 | N156: 2017 | O156: 2018 | P156: 2019 | Q156: 2020 | R156: 2021 | S156: 2022 | T156: 2023 | U156: 2024 | V156: 2025 | W156: 2026 | X156: 2027 | Y156: 2028 | AA156: =AA120 -> Supporting Documents | AT156: =AS156 -> 
B158: ="Geographical Area 5 - "&'Business Details'!$D$16 -> Geographical Area 5 -
B160: =B124 -> REVENUE FROM SERVICES
C161: =C125 -> Revenue from water services:
C162: =C126 -> Drinking water | E162: $'000
C163: =C127 -> Other core water services | E163: $'000
C165: =C129 -> Revenue from wastewater services:
C166: =C130 -> Wastewater via sewer | E166: $'000
C167: =C131 -> Trade waste | E167: $'000
C168: =C132 -> Other core wastewater services | E168: $'000
C170: =C134 -> Non-regulated:
C171: =C135 -> Aggregate non-regulated services | E171: $'000
C173: =C137 -> Subtotal Revenue from Services | E173: $'000 | F173: =SUM(F162:F163)+SUM(F166:F168)+F171 -> 0 | G173: 0 | H173: =SUM(H162:H163)+SUM(H166:H168)+H171 -> 0 | I173: =SUM(I162:I163)+SUM(I166:I168)+I171 -> 0 | J173: 0 | K173: 0 | L173: 0 | M173: 0 | N173: 0 | O173: 0 | P173: 0 | Q173: 0 | R173: 0 | S173: 0 | T173: 0 | U173: 0 | V173: 0 | W173: 0 | X173: 0 | Y173: 0
B175: =B139 -> OTHER REVENUE
C176: =C140 -> Other Revenue Offset Against Revenue Requirements:
C177: =C141 -> Investment Income | E177: $'000
C178: =C142 -> Net profit from Sale of Assets | E178: $'000
C179: =C143 -> Contributions | E179: $'000
C181: =C145 -> Other Revenue Not Offset Against Revenue Requirements:
C182: =C146 -> Investment Income | E182: $'000
C183: =C147 -> Net profit from Sale of Assets | E183: $'000
C184: =C148 -> Contributions | E184: $'000
C186: =C150 -> Subtotal Other Revenue | E186: $'000 | F186: =SUM(F177:F179)+SUM(F182:F184) -> 0 | G186: =SUM(G177:G179)+SUM(G182:G184) -> 0 | H186: =SUM(H177:H179)+SUM(H182:H184) -> 0 | I186: =SUM(I177:I179)+SUM(I182:I184) -> 0 | J186: =SUM(J177:J179)+SUM(J182:J184) -> 0 | K186: =SUM(K177:K179)+SUM(K182:K184) -> 0 | L186: 0 | M186: 0 | N186: 0 | O186: 0 | P186: 0 | Q186: 0 | R186: 0 | S186: 0 | T186: 0 | U186: 0 | V186: 0 | W186: 0 | X186: 0 | Y186: 0
B188: =B152 -> TOTAL REVENUE | E188: $'000 | F188: =F186+F173 -> 0 | G188: =G186+G173 -> 0 | H188: =H186+H173 -> 0 | I188: =I186+I173 -> 0 | J188: =J186+J173 -> 0 | K188: =K186+K173 -> 0 | L188: 0 | M188: 0 | N188: 0 | O188: 0 | P188: 0 | Q188: 0 | R188: 0 | S188: 0 | T188: 0 | U188: 0 | V188: 0 | W188: 0 | X188: 0 | Y188: 0
F191: =F155 -> For Year Ending 30 June: | AA191: =AA155 -> For Year Ending 30 June 2012
F192: =F156 -> 2009 | G192: =G156 -> 2010 | H192: =H156 -> 2011 | I192: =I156 -> 2012 | J192: =J156 -> 2013 | K192: =K156 -> 2014 | L192: 2015 | M192: 2016 | N192: 2017 | O192: 2018 | P192: 2019 | Q192: 2020 | R192: 2021 | S192: 2022 | T192: 2023 | U192: 2024 | V192: 2025 | W192: 2026 | X192: 2027 | Y192: 2028 | AA192: =AA156 -> Supporting Documents
B194: Unallocated Revenue
C196: REVENUE FROM SERVICES
C197: Revenue from water services:
C198: Drinking water | E198: $'000
C199: Other core water services | E199: $'000
C201: =C165 -> Revenue from wastewater services:
C202: =C166 -> Wastewater via sewer | E202: $'000
C203: =C167 -> Trade waste | E203: $'000
C204: =C168 -> Other core wastewater services | E204: $'000
C206: =C170 -> Non-regulated:
C207: =C171 -> Aggregate non-regulated services | E207: $'000 | H207: -6.61408 | AA207: Sundry fees & charges & other income allocated to "corporate"
C209: =C173 -> Subtotal Revenue from Services | E209: $'000 | F209: =SUM(F198:F199)+SUM(F202:F204)+F207 -> 0 | G209: 0 | H209: -6.61408 | I209: 0 | J209: 0 | K209: 0 | L209: 0 | M209: 0 | N209: 0 | O209: 0 | P209: 0 | Q209: 0 | R209: 0 | S209: 0 | T209: 0 | U209: 0 | V209: 0 | W209: 0 | X209: 0 | Y209: 0
B211: =B175 -> OTHER REVENUE
C212: =C176 -> Other Revenue Offset Against Revenue Requirements:
C213: =C177 -> Investment Income | E213: $'000
C214: =C178 -> Net profit from Sale of Assets | E214: $'000
C215: =C179 -> Contributions | E215: $'000
C217: =C181 -> Other Revenue Not Offset Against Revenue Requirements:
C218: =C182 -> Investment Income | E218: $'000
C219: =C183 -> Net profit from Sale of Assets | E219: $'000
C220: =C184 -> Contributions | E220: $'000
C222: =C186 -> Subtotal Other Revenue | E222: $'000 | F222: =SUM(F213:F215)+SUM(F218:F220) -> 0 | G222: =SUM(G213:G215)+SUM(G218:G220) -> 0 | H222: =SUM(H213:H215)+SUM(H218:H220) -> 0 | I222: =SUM(I213:I215)+SUM(I218:I220) -> 0 | J222: =SUM(J213:J215)+SUM(J218:J220) -> 0 | K222: =SUM(K213:K215)+SUM(K218:K220) -> 0 | L222: 0 | M222: 0 | N222: 0 | O222: 0 | P222: 0 | Q222: 0 | R222: 0 | S222: 0 | T222: 0 | U222: 0 | V222: 0 | W222: 0 | X222: 0 | Y222: 0
B224: TOTAL UNALLOCATED REVENUE | E224: $'000 | F224: =F222+F209 -> 0 | G224: =G222+G209 -> 0 | H224: =H222+H209 -> -6.61408 | I224: =I222+I209 -> 0 | J224: =J222+J209 -> 0 | K224: =K222+K209 -> 0 | L224: 0 | M224: 0 | N224: 0 | O224: 0 | P224: 0 | Q224: 0 | R224: 0 | S224: 0 | T224: 0 | U224: 0 | V224: 0 | W224: 0 | X224: 0 | Y224: 0
F227: =F155 -> For Year Ending 30 June: | AA227: =AA155 -> For Year Ending 30 June 2012
F228: =F156 -> 2009 | G228: =G156 -> 2010 | H228: =H156 -> 2011 | I228: =I156 -> 2012 | J228: =J156 -> 2013 | K228: =K156 -> 2014 | L228: 2015 | M228: 2016 | N228: 2017 | O228: 2018 | P228: 2019 | Q228: 2020 | R228: 2021 | S228: 2022 | T228: 2023 | U228: 2024 | V228: 2025 | W228: 2026 | X228: 2027 | Y228: 2028 | AA228: =AA156 -> Supporting Documents
B230: Total
B232: =B160 -> REVENUE FROM SERVICES
C233: =C161 -> Revenue from water services:
C234: =C162 -> Drinking water | E234: $'000 | F234: =F18+F54+F90+F126+F162+F198 -> 208239.774 | G234: 258330.3816 | H234: =H18+H54+H90+H126+H162+H198 -> 284287.1763 | I234: =I18+I54+I90+I126+I162+I198 -> 338498.6484 | J234: 373657.4454 | K234: 410649.0107 | L234: 0 | M234: 0 | N234: 0 | O234: 0 | P234: 0 | Q234: 0 | R234: 0 | S234: 0 | T234: 0 | U234: 0 | V234: 0 | W234: 0 | X234: 0 | Y234: 0
C235: =C163 -> Other core water services | E235: $'000 | F235: =F19+F55+F91+F127+F163+F199 -> 6.5 | G235: 4 | H235: =H19+H55+H91+H127+H163+H199 -> 264.41587 | I235: =I19+I55+I91+I127+I163+I199 -> 325.4041344 | J235: 333.4780723 | K235: 341.7523296 | L235: 0 | M235: 0 | N235: 0 | O235: 0 | P235: 0 | Q235: 0 | R235: 0 | S235: 0 | T235: 0 | U235: 0 | V235: 0 | W235: 0 | X235: 0 | Y235: 0
C237: =C165 -> Revenue from wastewater services:
C238: =C166 -> Wastewater via sewer | E238: $'000 | F238: =F22+F58+F94+F130+F166+F202 -> 189125.2124 | G238: 210780.8002 | H238: =H22+H58+H94+H130+H166+H202 -> 263425.4455 | I238: 285149.7657 | J238: 298976.9764 | K238: 313640.3087 | L238: 0 | M238: 0 | N238: 0 | O238: 0 | P238: 0 | Q238: 0 | R238: 0 | S238: 0 | T238: 0 | U238: 0 | V238: 0 | W238: 0 | X238: 0 | Y238: 0
C239: =C167 -> Trade waste | E239: $'000 | F239: =F23+F59+F95+F131+F167+F203 -> 10052.90718 | G239: 11471.99597 | H239: 6009.16387 | I239: 5042.411793 | J239: 5168.472087 | K239: 5297.68389 | L239: 0 | M239: 0 | N239: 0 | O239: 0 | P239: 0 | Q239: 0 | R239: 0 | S239: 0 | T239: 0 | U239: 0 | V239: 0 | W239: 0 | X239: 0 | Y239: 0
C240: =C168 -> Other core wastewater services | E240: $'000 | F240: =F24+F60+F96+F132+F168+F204 -> 0 | G240: 0 | H240: 0 | I240: 0 | J240: 0 | K240: 0 | L240: 0 | M240: 0 | N240: 0 | O240: 0 | P240: 0 | Q240: 0 | R240: 0 | S240: 0 | T240: 0 | U240: 0 | V240: 0 | W240: 0 | X240: 0 | Y240: 0
C242: =C170 -> Non-regulated:
C243: =C171 -> Aggregate non-regulated services | E243: $'000 | F243: =F27+F63+F99+F135+F171+F207 -> 32942.001 | G243: 23560.59 | H243: =H27+H63+H99+H135+H171+H207 -> 16485.41844 | I243: =I27+I63+I99+I135+I171+I207 -> 13369.72578 | J243: =J27+J63+J99+J135+J171+J207 -> 13703.96892 | K243: =K27+K63+K99+K135+K171+K207 -> 14046.54537 | L243: 0 | M243: 0 | N243: 0 | O243: 0 | P243: 0 | Q243: 0 | R243: 0 | S243: 0 | T243: 0 | U243: 0 | V243: 0 | W243: 0 | X243: 0 | Y243: 0
C245: =C173 -> Subtotal Revenue from Services | E245: $'000 | F245: =SUM(F234:F235)+SUM(F238:F240)+F243 -> 440366.3946 | G245: 504147.7678 | H245: 570471.6199 | I245: 642385.9558 | J245: 691840.3409 | K245: 743975.301 | L245: 0 | M245: 0 | N245: 0 | O245: 0 | P245: 0 | Q245: 0 | R245: 0 | S245: 0 | T245: 0 | U245: 0 | V245: 0 | W245: 0 | X245: 0 | Y245: 0
H246: =H245-'5.1.1'!H16-'5.1.1'!H21-'5.1.1'!H22 -> 3.683453542e-11 | I246: =I245-'5.1.1'!I16-'5.1.1'!I21 -> 5.456968211e-11 | J246: =J245-'5.1.1'!J16-'5.1.1'!J21 -> -1.818989404e-11 | K246: =K245-'5.1.1'!K16-'5.1.1'!K21 -> 1.291482477e-10
B247: =B175 -> OTHER REVENUE
C248: =C176 -> Other Revenue Offset Against Revenue Requirements:
C249: =C177 -> Investment Income | E249: $'000 | F249: =F33+F69+F105+F141+F177+F213 -> 0 | G249: 6231.51 | H249: 0 | I249: =I33+I69+I105+I141+I177+I213 -> 0 | J249: =J33+J69+J105+J141+J177+J213 -> 0 | K249: =K33+K69+K105+K141+K177+K213 -> 0 | L249: 4199.433414 | M249: 0 | N249: 0 | O249: 0 | P249: 0 | Q249: 0 | R249: 0 | S249: 0 | T249: 0 | U249: 0 | V249: 0 | W249: 0 | X249: 0 | Y249: 0
C250: =C178 -> Net profit from Sale of Assets | E250: $'000 | F250: =F34+F70+F106+F142+F178+F214 -> -4584 | G250: -1060 | H250: -15.86604 | I250: -840 | J250: -861 | K250: -882.5235692 | L250: 0 | M250: 0 | N250: 0 | O250: 0 | P250: 0 | Q250: 0 | R250: 0 | S250: 0 | T250: 0 | U250: 0 | V250: 0 | W250: 0 | X250: 0 | Y250: 0
C251: =C179 -> Contributions | E251: $'000 | F251: =F35+F71+F107+F143+F179+F215 -> 93327.22108 | G251: 88840.80176 | H251: 0 | I251: 0 | J251: 0 | K251: 0 | L251: 18558.64715 | M251: 0 | N251: 0 | O251: 0 | P251: 0 | Q251: 0 | R251: 0 | S251: 0 | T251: 0 | U251: 0 | V251: 0 | W251: 0 | X251: 0 | Y251: 0
C253: =C181 -> Other Revenue Not Offset Against Revenue Requirements:
C254: =C182 -> Investment Income | E254: $'000 | F254: =F38+F74+F110+F146+F182+F218 -> 0 | G254: 0 | H254: 0 | I254: 0 | J254: 0 | K254: 0 | L254: 0 | M254: 0 | N254: 0 | O254: 0 | P254: 0 | Q254: 0 | R254: 0 | S254: 0 | T254: 0 | U254: 0 | V254: 0 | W254: 0 | X254: 0 | Y254: 0
C255: =C183 -> Net profit from Sale of Assets | E255: $'000 | F255: =F39+F75+F111+F147+F183+F219 -> 84555.129 | G255: 0 | H255: 0 | I255: 0 | J255: 0 | K255: 0 | L255: 0 | M255: 0 | N255: 0 | O255: 0 | P255: 0 | Q255: 0 | R255: 0 | S255: 0 | T255: 0 | U255: 0 | V255: 0 | W255: 0 | X255: 0 | Y255: 0
C256: =C184 -> Contributions | E256: $'000 | F256: =F40+F76+F112+F148+F184+F220 -> 0 | G256: 0 | H256: 77620.60779 | I256: 71220.85847 | J256: 73001.37993 | K256: 74826.29312 | L256: 0 | M256: 0 | N256: 0 | O256: 0 | P256: 0 | Q256: 0 | R256: 0 | S256: 0 | T256: 0 | U256: 0 | V256: 0 | W256: 0 | X256: 0 | Y256: 0
C258: =C186 -> Subtotal Other Revenue | E258: $'000 | F258: =SUM(F249:F251)+SUM(F254:F256) -> 173298.3501 | G258: =SUM(G249:G251)+SUM(G254:G256) -> 94012.31176 | H258: =SUM(H249:H251)+SUM(H254:H256) -> 77604.74175 | I258: =SUM(I249:I251)+SUM(I254:I256) -> 70380.85847 | J258: =SUM(J249:J251)+SUM(J254:J256) -> 72140.37993 | K258: =SUM(K249:K251)+SUM(K254:K256) -> 73943.76955 | L258: 22758.08057 | M258: 0 | N258: 0 | O258: 0 | P258: 0 | Q258: 0 | R258: 0 | S258: 0 | T258: 0 | U258: 0 | V258: 0 | W258: 0 | X258: 0 | Y258: 0
B260: =B188 -> TOTAL REVENUE | E260: $'000 | F260: =F258+F245 -> 613664.7447 | G260: =G258+G245 -> 598160.0795 | H260: =H258+H245 -> 648076.3617 | I260: =I258+I245 -> 712766.8142 | J260: =J258+J245 -> 763980.7208 | K260: =K258+K245 -> 817919.0705 | L260: 22758.08057 | M260: 0 | N260: 0 | O260: 0 | P260: 0 | Q260: 0 | R260: 0 | S260: 0 | T260: 0 | U260: 0 | V260: 0 | W260: 0 | X260: 0 | Y260: 0
F261: 0 | G261: 0 | H261: 0 | I261: =I260-'5.1.1'!I23 -> 0 | J261: =J260-'5.1.1'!J23 -> 0 | K261: =K260-'5.1.1'!K23 -> 0

Sheet 5.2.2
B4: ='Business Details'!$B$4 -> SEQ INTERIM REVENUE MONITORING - INFORMATION REQUIREMENT TEMPLATE
B7: =CONCATENATE("Revenue Details for ",'Business Details'!$D$9," - Customer Groups for Year Ending 30 June ",AnalysisYear) -> Revenue Details for Allconnex Water - Customer Groups for Year Ending 30 June 2012
B8: =CONCATENATE("Reporting year = ",AnalysisYear) -> Reporting year = 2012
G10: 0 | H10: 0 | I10: 3 | J10: 4
F11: CUSTOMER GROUPS: | L11: =CONCATENATE("For Year Ending 30 June ",AnalysisYear) -> For Year Ending 30 June 2012
F12: Residential | G12: Non-residential | H12: Commercially Negotiated Agreements | I12: Other | J12: Total | L12: Supporting Documents | AE12: =AD12 -> 
B14: ="Geographical Area 1 - "&'Business Details'!$D$12 -> Geographical Area 1 - Gold Coast
B16: REVENUE FROM SERVICES
C17: Water:
C18: Drinking water | E18: $'000 | F18: 158805.3101 | G18: 49365.25507 | I18: 1488.848488 | J18: =SUM(F18:I18) -> 209659.4137 | K18: =IF($J18='5.2.1'!I18,"OK","check") -> OK | L18: Drinking water + standpipe water (other)
C19: Other core water services | E19: $'000 | F19: 264 | G19: 61.4041344 | I19: 0 | J19: =SUM(F19:I19) -> 325.4041344 | K19: =IF($J19='5.2.1'!I19,"OK","check") -> OK | L19: Recycled water
C21: Wastewater:
C22: Wastewater via sewer | E22: $'000 | F22: 139294.6163 | G22: 47729.99237 | J22: =SUM(F22:I22) -> 187024.6087 | K22: =IF($J22='5.2.1'!I22,"OK","check") -> OK
C23: Trade waste | E23: $'000 | G23: 359.6728027 | J23: =SUM(F23:I23) -> 359.6728027 | K23: =IF($J23='5.2.1'!I23,"OK","check") -> OK
C24: Other core wastewater services | E24: $'000 | J24: =SUM(F24:I24) -> 0 | K24: =IF($J24='5.2.1'!I24,"OK","check") -> OK
C26: Non-regulated:
C27: Aggregate non-regulated services | E27: $'000 | I27: 6971.2 | J27: =SUM(F27:I27) -> 6971.2 | K27: =IF($J27='5.2.1'!I27,"OK","check") -> OK
C29: Subtotal Revenue from Services | E29: $'000 | F29: =SUM(F18:F19)+SUM(F22:F24)+F27 -> 298363.9264 | G29: =SUM(G18:G19)+SUM(G22:G24)+G27 -> 97516.32437 | H29: =SUM(H18:H19)+SUM(H22:H24)+H27 -> 0 | I29: =SUM(I18:I19)+SUM(I22:I24)+I27 -> 8460.048488 | J29: =SUM(J18:J19)+SUM(J22:J24)+J27 -> 404340.2993 | K29: =IF($J29='5.2.1'!I29,"OK","check") -> OK
B31: OTHER REVENUES
C32: Revenue Offset Against Revenue:
C33: Investment income | E33: $'000 | J33: =SUM(F33:I33) -> 0 | K33: =IF($J33='5.2.1'!I33,"OK","check") -> OK
C34: Net profit from sale of assets | E34: $'000 | I34: 1200 | J34: =SUM(F34:I34) -> 1200 | K34: =IF($J34='5.2.1'!I34,"OK","check") -> OK
C35: Contributions | E35: $'000 | K35: =IF($J35='5.2.1'!I35,"OK","check") -> OK
C37: Revenue Not Offset Against Revenue:
C38: Investment income | E38: $'000 | J38: =SUM(F38:I38) -> 0 | K38: =IF($J38='5.2.1'!I38,"OK","check") -> OK
C39: Net profit from sale of assets | E39: $'000 | J39: =SUM(F39:I39) -> 0 | K39: =IF($J39='5.2.1'!I39,"OK","check") -> OK
C40: Contributions | E40: $'000 | I40: 47300 | J40: =SUM(F40:I40) -> 47300 | K40: =IF($J40='5.2.1'!I40,"OK","check") -> OK
C42: Subtotal Other Revenues | E42: $'000 | F42: =SUM(F33:F35)+SUM(F38:F40) -> 0 | G42: =SUM(G33:G35)+SUM(G38:G40) -> 0 | H42: =SUM(H33:H35)+SUM(H38:H40) -> 0 | I42: =SUM(I33:I35)+SUM(I38:I40) -> 48500 | J42: =SUM(J33:J35)+SUM(J38:J40) -> 48500 | K42: =IF($J42='5.2.1'!I42,"OK","check") -> OK
B44: TOTAL REVENUE | E44: $'000 | F44: =F42+F29 -> 298363.9264 | G44: =G42+G29 -> 97516.32437 | H44: =H42+H29 -> 0 | I44: =I42+I29 -> 56960.04849 | J44: =J42+J29 -> 452840.2993 | K44: =IF($J44='5.2.1'!I44,"OK","check") -> OK
J45: =J44-'5.2.1'!I44 -> 0
F49: =F$11 -> CUSTOMER GROUPS: | L49: =L$11 -> For Year Ending 30 June 2012
F50: =F$12 -> Residential | G50: =G$12 -> Non-residential | H50: =H$12 -> Commercially Negotiated Agreements | I50: =I$12 -> Other | J50: =J$12 -> Total | L50: =L$12 -> Supporting Documents | AE50: =AD50 -> 
B52: ="Geographical Area 2 - "&'Business Details'!$D$13 -> Geographical Area 2 - Logan
B54: REVENUE FROM SERVICES
C55: Water:
C56: Drinking water | E56: $'000 | F56: 70803 | G56: 15893.54977 | I56: 592.592 | J56: =SUM(F56:I56) -> 87289.14177 | K56: =IF($J56='5.2.1'!I54,"OK","check") -> OK
C57: Other core water services | E57: $'000 | F57: 0 | G57: 0 | I57: 0 | J57: =SUM(F57:I57) -> 0 | K57: =IF($J57='5.2.1'!I55,"OK","check") -> OK
C59: Wastewater:
C60: Wastewater via sewer | E60: $'000 | F60: 49275.33287 | G60: 10497.1201 | J60: =SUM(F60:I60) -> 59772.45298 | K60: =IF($J60='5.2.1'!I58,"OK","check") -> OK
C61: Trade waste | E61: $'000 | G61: 3343.944773 | J61: =SUM(F61:I61) -> 3343.944773 | K61: =IF($J61='5.2.1'!I59,"OK","check") -> OK
C62: Other core wastewater services | J62: =SUM(F62:I62) -> 0 | K62: =IF($J62='5.2.1'!I60,"OK","check") -> OK
C64: Non-regulated:
C65: Aggregate non-regulated services | E65: $'000 | I65: 3892 | J65: =SUM(F65:I65) -> 3892 | K65: =IF($J65='5.2.1'!I63,"OK","check") -> OK
C67: Subtotal Revenue from Services | E67: $'000 | F67: =SUM(F56:F57)+SUM(F60:F62)+F65 -> 120078.3329 | G67: =SUM(G56:G57)+SUM(G60:G62)+G65 -> 29734.61465 | H67: =SUM(H56:H57)+SUM(H60:H62)+H65 -> 0 | I67: =SUM(I56:I57)+SUM(I60:I62)+I65 -> 4484.592 | J67: =SUM(J56:J57)+SUM(J60:J62)+J65 -> 154297.5395 | K67: =IF($J67='5.2.1'!I65,"OK","check") -> OK
B69: OTHER REVENUES
C70: Revenue Offset Against Revenue:
C71: Investment income | E71: $'000 | J71: =SUM(F71:I71) -> 0 | K71: =IF($J71='5.2.1'!I69,"OK","check") -> OK
C72: Net profit from sale of assets | E72: $'000 | I72: -2040 | J72: =SUM(F72:I72) -> -2040 | K72: =IF($J72='5.2.1'!I70,"OK","check") -> OK
C73: Contributions | E73: $'000 | K73: =IF($J73='5.2.1'!I71,"OK","check") -> OK
C75: Revenue Not Offset Against Revenue:
C76: Investment income | E76: $'000 | J76: =SUM(F76:I76) -> 0 | K76: =IF($J76='5.2.1'!I74,"OK","check") -> OK
C77: Net profit from sale of assets | E77: $'000 | J77: =SUM(F77:I77) -> 0 | K77: =IF($J77='5.2.1'!I75,"OK","check") -> OK
C78: Contributions | E78: $'000 | I78: 17200 | J78: =SUM(F78:I78) -> 17200 | K78: =IF($J78='5.2.1'!I76,"OK","check") -> OK
C80: Subtotal Other Revenues | E80: $'000 | F80: =SUM(F71:F73)+SUM(F76:F78) -> 0 | G80: =SUM(G71:G73)+SUM(G76:G78) -> 0 | H80: =SUM(H71:H73)+SUM(H76:H78) -> 0 | I80: =SUM(I71:I73)+SUM(I76:I78) -> 15160 | J80: =SUM(J71:J73)+SUM(J76:J78) -> 15160 | K80: =IF($J80='5.2.1'!I78,"OK","check") -> OK
B82: TOTAL REVENUE | E82: $'000 | F82: =F80+F67 -> 120078.3329 | G82: =G80+G67 -> 29734.61465 | H82: =H80+H67 -> 0 | I82: =I80+I67 -> 19644.592 | J82: =J80+J67 -> 169457.5395 | K82: =IF($J82='5.2.1'!I80,"OK","check") -> OK
J83: =J82-'5.2.1'!I80 -> 0
F87: =F$11 -> CUSTOMER GROUPS: | L87: =L$11 -> For Year Ending 30 June 2012
F88: =F$12 -> Residential | G88: =G$12 -> Non-residential | H88: =H$12 -> Commercially Negotiated Agreements | I88: =I$12 -> Other | J88: =J$12 -> Total | L88: =L$12 -> Supporting Documents | AE88: =AD88 -> 
B90: ="Geographical Area 3 - "&'Business Details'!$D$14 -> Geographical Area 3 - Redland
B92: REVENUE FROM SERVICES
C93: Water:
C94: Drinking water | E94: $'000 | F94: 34340.05136 | G94: 7072.719773 | I94: 137.3218 | J94: =SUM(F94:I94) -> 41550.09294 | K94: =IF($J94='5.2.1'!I90,"OK","check") -> OK
C95: Other core water services | E95: $'000 | F95: 0 | G95: 0 | I95: 0 | J95: =SUM(F95:I95) -> 0 | K95: =IF($J95='5.2.1'!I91,"OK","check") -> OK
C97: Wastewater:
C98: Wastewater via sewer | E98: $'000 | F98: 34292.9405 | G98: 4059.763521 | J98: =SUM(F98:I98) -> 38352.70402 | K98: =IF($J98='5.2.1'!I94,"OK","check") -> OK
C99: Trade waste | E99: $'000 | G99: 1338.794217 | J99: =SUM(F99:I99) -> 1338.794217 | K99: =IF($J99='5.2.1'!I95,"OK","check") -> OK
C100: Other core wastewater services | J100: =SUM(F100:I100) -> 0 | K100: =IF($J100='5.2.1'!I96,"OK","check") -> OK
C102: Non-regulated:
C103: Aggregate non-regulated services | E103: $'000 | I103: 2506.525775 | J103: =SUM(F103:I103) -> 2506.525775 | K103: =IF($J103='5.2.1'!I99,"OK","check") -> OK
C105: Subtotal Revenue from Services | E105: $'000 | F105: =SUM(F94:F95)+SUM(F98:F100)+F103 -> 68632.99187 | G105: =SUM(G94:G95)+SUM(G98:G100)+G103 -> 12471.27751 | H105: =SUM(H94:H95)+SUM(H98:H100)+H103 -> 0 | I105: =SUM(I94:I95)+SUM(I98:I100)+I103 -> 2643.847575 | J105: =SUM(J94:J95)+SUM(J98:J100)+J103 -> 83748.11695 | K105: =IF($J105='5.2.1'!I101,"OK","check") -> OK
B107: OTHER REVENUES
C108: Revenue Offset Against Revenue:
C109: Investment income | E109: $'000 | J109: =SUM(F109:I109) -> 0 | K109: =IF($J109='5.2.1'!I105,"OK","check") -> OK
C110: Net profit from sale of assets | E110: $'000 | I110: 0 | J110: =SUM(F110:I110) -> 0 | K110: =IF($J110='5.2.1'!I106,"OK","check") -> OK
C111: Contributions | E111: $'000 | K111: =IF($J111='5.2.1'!I107,"OK","check") -> OK
C113: Revenue Not Offset Against Revenue:
C114: Investment income | E114: $'000 | J114: =SUM(F114:I114) -> 0 | K114: =IF($J114='5.2.1'!I110,"OK","check") -> OK
C115: Net profit from sale of assets | E115: $'000 | J115: =SUM(F115:I115) -> 0 | K115: =IF($J115='5.2.1'!I111,"OK","check") -> OK
C116: Contributions | E116: $'000 | I116: 6720.858467 | J116: =SUM(F116:I116) -> 6720.858467 | K116: =IF($J116='5.2.1'!I112,"OK","check") -> OK
C118: Subtotal Other Revenues | E118: $'000 | F118: =SUM(F109:F111)+SUM(F114:F116) -> 0 | G118: =SUM(G109:G111)+SUM(G114:G116) -> 0 | H118: =SUM(H109:H111)+SUM(H114:H116) -> 0 | I118: =SUM(I109:I111)+SUM(I114:I116) -> 6720.858467 | J118: =SUM(J109:J111)+SUM(J114:J116) -> 6720.858467 | K118: =IF($J118='5.2.1'!I114,"OK","check") -> OK
B120: TOTAL REVENUE | E120: $'000 | F120: =F118+F105 -> 68632.99187 | G120: =G118+G105 -> 12471.27751 | H120: =H118+H105 -> 0 | I120: =I118+I105 -> 9364.706042 | J120: =J118+J105 -> 90468.97542 | K120: =IF($J120='5.2.1'!I116,"OK","check") -> OK
J121: =J120-'5.2.1'!I116 -> 0
F125: =F$11 -> CUSTOMER GROUPS: | L125: =L$11 -> For Year Ending 30 June 2012
F126: =F$12 -> Residential | G126: =G$12 -> Non-residential | H126: =H$12 -> Commercially Negotiated Agreements | I126: =I$12 -> Other | J126: =J$12 -> Total | L126: =L$12 -> Supporting Documents | AE126: =AD126 -> 
B128: ="Geographical Area 4 - "&'Business Details'!$D$15 -> Geographical Area 4 - Allconnex (all districts)
B130: REVENUE FROM SERVICES
C131: Water:
C132: Drinking water | E132: $'000 | J132: =SUM(F132:I132) -> 0 | K132: =IF($J132='5.2.1'!$I126,"OK","check") -> OK
C133: Other core water services | E133: $'000 | J133: =SUM(F133:I133) -> 0 | K133: =IF($J133='5.2.1'!$I127,"OK","check") -> OK
C135: Wastewater:
C136: Wastewater via sewer | E136: $'000 | J136: =SUM(F136:I136) -> 0 | K136: =IF($J136='5.2.1'!$I130,"OK","check") -> OK
C137: Trade waste | E137: $'000 | J137: =SUM(F137:I137) -> 0 | K137: =IF($J137='5.2.1'!$I131,"OK","check") -> OK
C138: Other core wastewater services | J138: =SUM(F138:I138) -> 0 | K138: =IF($J138='5.2.1'!$I132,"OK","check") -> OK
C140: Non-regulated:
C141: Aggregate non-regulated services | E141: $'000 | J141: =SUM(F141:I141) -> 0 | K141: =IF($J141='5.2.1'!$I135,"OK","check") -> OK
C143: Subtotal Revenue from Services | E143: $'000 | F143: =SUM(F132:F133)+SUM(F136:F138)+F141 -> 0 | G143: =SUM(G132:G133)+SUM(G136:G138)+G141 -> 0 | H143: =SUM(H132:H133)+SUM(H136:H138)+H141 -> 0 | I143: =SUM(I132:I133)+SUM(I136:I138)+I141 -> 0 | J143: =SUM(J132:J133)+SUM(J136:J138)+J141 -> 0 | K143: =IF($J143='5.2.1'!$I137,"OK","check") -> OK
B145: OTHER REVENUES
C146: Revenue Offset Against Revenue:
C147: Investment income | E147: $'000 | J147: =SUM(F147:I147) -> 0 | K147: =IF($J147='5.2.1'!$I141,"OK","check") -> OK
C148: Net profit from sale of assets | E148: $'000 | J148: =SUM(F148:I148) -> 0 | K148: =IF($J148='5.2.1'!$I142,"OK","check") -> OK
C149: Contributions | E149: $'000 | J149: =SUM(F149:I149) -> 0 | K149: =IF($J149='5.2.1'!$I143,"OK","check") -> OK
C151: Revenue Not Offset Against Revenue:
C152: Investment income | E152: $'000 | J152: =SUM(F152:I152) -> 0 | K152: =IF($J152='5.2.1'!$I146,"OK","check") -> OK
C153: Net profit from sale of assets | E153: $'000 | J153: =SUM(F153:I153) -> 0 | K153: =IF($J153='5.2.1'!$I147,"OK","check") -> OK
C154: Contributions | E154: $'000 | J154: =SUM(F154:I154) -> 0 | K154: =IF($J154='5.2.1'!$I148,"OK","check") -> OK
C156: Subtotal Other Revenues | E156: $'000 | F156: =SUM(F147:F149)+SUM(F152:F154) -> 0 | G156: =SUM(G147:G149)+SUM(G152:G154) -> 0 | H156: =SUM(H147:H149)+SUM(H152:H154) -> 0 | I156: =SUM(I147:I149)+SUM(I152:I154) -> 0 | J156: =SUM(J147:J149)+SUM(J152:J154) -> 0 | K156: =IF($J156='5.2.1'!$I150,"OK","check") -> OK
B158: TOTAL REVENUE | E158: $'000 | F158: =F156+F143 -> 0 | G158: =G156+G143 -> 0 | H158: =H156+H143 -> 0 | I158: =I156+I143 -> 0 | J158: =J156+J143 -> 0 | K158: =IF($J158='5.2.1'!$I152,"OK","check") -> OK
F163: =F$11 -> CUSTOMER GROUPS: | L163: =L$11 -> For Year Ending 30 June 2012
F164: =F$12 -> Residential | G164: =G$12 -> Non-residential | H164: =H$12 -> Commercially Negotiated Agreements | I164: =I$12 -> Other | J164: =J$12 -> Total | L164: =L$12 -> Supporting Documents | AE164: =AD164 -> 
B166: ="Geographical Area 5 - "&'Business Details'!$D$16 -> Geographical Area 5 -
B168: REVENUE FROM SERVICES
C169: Water:
C170: Drinking water | E170: $'000 | J170: =SUM(F170:I170) -> 0 | K170: =IF($J170='5.2.1'!$I162,"OK","check") -> OK
C171: Other core water services | E171: $'000 | J171: =SUM(F171:I171) -> 0 | K171: =IF($J171='5.2.1'!$I163,"OK","check") -> OK
C173: Wastewater:
C174: Wastewater via sewer | E174: $'000 | J174: =SUM(F174:I174) -> 0 | K174: =IF($J174='5.2.1'!$I166,"OK","check") -> OK
C175: Trade waste | E175: $'000 | J175: =SUM(F175:I175) -> 0 | K175: =IF($J175='5.2.1'!$I167,"OK","check") -> OK
C176: Other core wastewater services | J176: =SUM(F176:I176) -> 0 | K176: =IF($J176='5.2.1'!$I168,"OK","check") -> OK
C178: Non-regulated:
C179: Aggregate non-regulated services | E179: $'000 | J179: =SUM(F179:I179) -> 0 | K179: =IF($J179='5.2.1'!$I171,"OK","check") -> OK
C181: Subtotal Revenue from Services | E181: $'000 | F181: =SUM(F170:F171)+SUM(F174:F176)+F179 -> 0 | G181: =SUM(G170:G171)+SUM(G174:G176)+G179 -> 0 | H181: =SUM(H170:H171)+SUM(H174:H176)+H179 -> 0 | I181: =SUM(I170:I171)+SUM(I174:I176)+I179 -> 0 | J181: =SUM(J170:J171)+SUM(J174:J176)+J179 -> 0 | K181: =IF($J181='5.2.1'!$I173,"OK","check") -> OK
B183: OTHER REVENUES
C184: Revenue Offset Against Revenue:
C185: Investment income | E185: $'000 | J185: =SUM(F185:I185) -> 0 | K185: =IF($J185='5.2.1'!$I177,"OK","check") -> OK
C186: Net profit from sale of assets | E186: $'000 | J186: =SUM(F186:I186) -> 0 | K186: =IF($J186='5.2.1'!$I178,"OK","check") -> OK
C187: Contributions | E187: $'000 | J187: =SUM(F187:I187) -> 0 | K187: =IF($J187='5.2.1'!$I179,"OK","check") -> OK
C189: Revenue Not Offset Against Revenue:
C190: Investment income | E190: $'000 | J190: =SUM(F190:I190) -> 0 | K190: =IF($J190='5.2.1'!$I182,"OK","check") -> OK
C191: Net profit from sale of assets | E191: $'000 | J191: =SUM(F191:I191) -> 0 | K191: =IF($J191='5.2.1'!$I183,"OK","check") -> OK
C192: Contributions | E192: $'000 | J192: =SUM(F192:I192) -> 0 | K192: =IF($J192='5.2.1'!$I184,"OK","check") -> OK
C194: Subtotal Other Revenues | E194: $'000 | F194: =SUM(F185:F187)+SUM(F190:F192) -> 0 | G194: =SUM(G185:G187)+SUM(G190:G192) -> 0 | H194: =SUM(H185:H187)+SUM(H190:H192) -> 0 | I194: =SUM(I185:I187)+SUM(I190:I192) -> 0 | J194: =SUM(J185:J187)+SUM(J190:J192) -> 0 | K194: =IF($J194='5.2.1'!$I186,"OK","check") -> OK
B196: TOTAL REVENUE | E196: $'000 | F196: =F194+F181 -> 0 | G196: =G194+G181 -> 0 | H196: =H194+H181 -> 0 | I196: =I194+I181 -> 0 | J196: =J194+J181 -> 0 | K196: =IF($J196='5.2.1'!$I188,"OK","check") -> OK
F201: =F$11 -> CUSTOMER GROUPS: | L201: =L$11 -> For Year Ending 30 June 2012
F202: =F$12 -> Residential | G202: =G$12 -> Non-residential | H202: =H$12 -> Commercially Negotiated Agreements | I202: =I$12 -> Other | J202: =J$12 -> Total | L202: =L$12 -> Supporting Documents | AE202: =AD202 -> 
B204: Unallocated Revenue
B206: REVENUE FROM SERVICES
C207: Water:
C208: Drinking water | E208: $'000 | J208: =SUM(F208:I208) -> 0 | K208: =IF($J208='5.2.1'!$I198,"OK","check") -> OK
C209: Other core water services | E209: $'000 | J209: =SUM(F209:I209) -> 0 | K209: =IF($J209='5.2.1'!$I199,"OK","check") -> OK
C211: Wastewater:
C212: Wastewater via sewer | E212: $'000 | J212: =SUM(F212:I212) -> 0 | K212: =IF($J212='5.2.1'!$I202,"OK","check") -> OK
C213: Trade waste | E213: $'000 | J213: =SUM(F213:I213) -> 0 | K213: =IF($J213='5.2.1'!$I203,"OK","check") -> OK
C214: Other core wastewater services | J214: =SUM(F214:I214) -> 0 | K214: =IF($J214='5.2.1'!$I204,"OK","check") -> OK
C216: Non-regulated:
C217: Aggregate non-regulated services | E217: $'000 | J217: =SUM(F217:I217) -> 0 | K217: =IF($J217='5.2.1'!$I207,"OK","check") -> OK
C219: Subtotal Revenue from Services | E219: $'000 | F219: =SUM(F208:F209)+SUM(F212:F214)+F217 -> 0 | G219: =SUM(G208:G209)+SUM(G212:G214)+G217 -> 0 | H219: =SUM(H208:H209)+SUM(H212:H214)+H217 -> 0 | I219: =SUM(I208:I209)+SUM(I212:I214)+I217 -> 0 | J219: =SUM(J208:J209)+SUM(J212:J214)+J217 -> 0 | K219: =IF($J219='5.2.1'!$I209,"OK","check") -> OK
B221: OTHER REVENUES
C222: Revenue Offset Against Revenue:
C223: Investment income | E223: $'000 | J223: =SUM(F223:I223) -> 0 | K223: =IF($J223='5.2.1'!$I213,"OK","check") -> OK
C224: Net profit from sale of assets | E224: $'000 | J224: =SUM(F224:I224) -> 0 | K224: =IF($J224='5.2.1'!$I214,"OK","check") -> OK
C225: Contributions | E225: $'000 | J225: =SUM(F225:I225) -> 0 | K225: =IF($J225='5.2.1'!$I215,"OK","check") -> OK
C227: Revenue Not Offset Against Revenue:
C228: Investment income | E228: $'000 | J228: =SUM(F228:I228) -> 0 | K228: =IF($J228='5.2.1'!$I218,"OK","check") -> OK
C229: Net profit from sale of assets | E229: $'000 | J229: =SUM(F229:I229) -> 0 | K229: =IF($J229='5.2.1'!$I219,"OK","check") -> OK
C230: Contributions | E230: $'000 | J230: =SUM(F230:I230) -> 0 | K230: =IF($J230='5.2.1'!$I220,"OK","check") -> OK
C232: Subtotal Other Revenues | E232: $'000 | F232: =SUM(F223:F225)+SUM(F228:F230) -> 0 | G232: =SUM(G223:G225)+SUM(G228:G230) -> 0 | H232: =SUM(H223:H225)+SUM(H228:H230) -> 0 | I232: =SUM(I223:I225)+SUM(I228:I230) -> 0 | J232: =SUM(J223:J225)+SUM(J228:J230) -> 0 | K232: =IF($J232='5.2.1'!$I222,"OK","check") -> OK
B234: TOTAL REVENUE | E234: $'000 | F234: =F232+F219 -> 0 | G234: =G232+G219 -> 0 | H234: =H232+H219 -> 0 | I234: =I232+I219 -> 0 | J234: =J232+J219 -> 0 | K234: =IF($J234='5.2.1'!$I224,"OK","check") -> OK
F239: =F$11 -> CUSTOMER GROUPS: | L239: =L$11 -> For Year Ending 30 June 2012
F240: =F$12 -> Residential | G240: =G$12 -> Non-residential | H240: =H$12 -> Commercially Negotiated Agreements | I240: =I$12 -> Other | J240: =J$12 -> Total | L240: =L$12 -> Supporting Documents
B242: Total
B244: REVENUE FROM SERVICES
C245: Water:
C246: Drinking water | E246: $'000 | F246: =F208+F170+F132+F94+F56+F18 -> 263948.3615 | G246: 72331.52461 | H246: 0 | I246: 2218.762288 | J246: 338498.6484 | K246: =IF($J246='5.2.1'!I234,"OK","check") -> OK
C247: Other core water services | E247: $'000 | F247: 264 | G247: 61.4041344 | H247: 0 | I247: 0 | J247: 325.4041344 | K247: =IF($J247='5.2.1'!I235,"OK","check") -> OK
C249: Wastewater:
C250: Wastewater via sewer | E250: $'000 | F250: =F212+F174+F136+F98+F60+F22 -> 222862.8897 | G250: 62286.87599 | H250: 0 | I250: 0 | J250: 285149.7657 | K250: =IF($J250='5.2.1'!I238,"OK","check") -> OK
C251: Trade waste | E251: $'000 | F251: 0 | G251: 5042.411793 | H251: 0 | I251: 0 | J251: 5042.411793 | K251: =IF($J251='5.2.1'!I239,"OK","check") -> OK
C252: Other core wastewater services | E252: $'000 | F252: 0 | G252: 0 | H252: 0 | I252: 0 | J252: 0 | K252: =IF($J252='5.2.1'!I240,"OK","check") -> OK
C254: Non-regulated:
C255: Aggregate non-regulated services | E255: $'000 | F255: =F217+F179+F141+F103+F65+F27 -> 0 | G255: =G217+G179+G141+G103+G65+G27 -> 0 | H255: =H217+H179+H141+H103+H65+H27 -> 0 | I255: =I217+I179+I141+I103+I65+I27 -> 13369.72577 | J255: =J217+J179+J141+J103+J65+J27 -> 13369.72577 | K255: =IF($J255='5.2.1'!I243,"OK","check") -> OK
C257: Subtotal Revenue from Services | E257: $'000 | F257: =SUM(F246:F247)+SUM(F250:F252)+F255 -> 487075.2512 | G257: =SUM(G246:G247)+SUM(G250:G252)+G255 -> 139722.2165 | H257: =SUM(H246:H247)+SUM(H250:H252)+H255 -> 0 | I257: =SUM(I246:I247)+SUM(I250:I252)+I255 -> 15588.48806 | J257: =SUM(J246:J247)+SUM(J250:J252)+J255 -> 642385.9558 | K257: =IF($J257='5.2.1'!I245,"OK","check") -> check
J258: =J257-'5.2.1'!I245 -> 0
B259: OTHER REVENUES
C260: Revenue Offset Against Revenue:
C261: Investment income | E261: $'000 | F261: =F223+F185+F147+F109+F71+F33 -> 0 | G261: 0 | H261: 0 | I261: 0 | J261: 0 | K261: =IF($J261='5.2.1'!I249,"OK","check") -> OK
C262: Net profit from sale of assets | E262: $'000 | F262: 0 | G262: 0 | H262: 0 | I262: -840 | J262: -840 | K262: =IF($J262='5.2.1'!I250,"OK","check") -> OK
C263: Contributions | E263: $'000 | F263: 0 | G263: 0 | H263: 0 | I263: 0 | J263: 0 | K263: =IF($J263='5.2.1'!I251,"OK","check") -> OK
C265: Revenue Not Offset Against Revenue:
C266: Investment income | E266: $'000 | F266: =F228+F190+F152+F114+F76+F38 -> 0 | G266: 0 | H266: 0 | I266: 0 | J266: 0 | K266: =IF($J266='5.2.1'!I254,"OK","check") -> OK
C267: Net profit from sale of assets | E267: $'000 | F267: 0 | G267: 0 | H267: 0 | I267: 0 | J267: 0 | K267: =IF($J267='5.2.1'!I255,"OK","check") -> OK
C268: Contributions | E268: $'000 | F268: 0 | G268: 0 | H268: 0 | I268: 71220.85847 | J268: 71220.85847 | K268: =IF($J268='5.2.1'!I256,"OK","check") -> OK
C270: Subtotal Other Revenues | E270: $'000 | F270: =SUM(F261:F263)+SUM(F266:F268) -> 0 | G270: =SUM(G261:G263)+SUM(G266:G268) -> 0 | H270: =SUM(H261:H263)+SUM(H266:H268) -> 0 | I270: =SUM(I261:I263)+SUM(I266:I268) -> 70380.85847 | J270: =SUM(J261:J263)+SUM(J266:J268) -> 70380.85847 | K270: =IF($J270='5.2.1'!I258,"OK","check") -> OK
B272: TOTAL REVENUE | E272: $'000 | F272: =F270+F257 -> 487075.2512 | G272: =G270+G257 -> 139722.2165 | H272: =H270+H257 -> 0 | I272: =I270+I257 -> 85969.34653 | J272: =J270+J257 -> 712766.8142 | K272: =IF($J272='5.2.1'!I260,"OK","check") -> check
J273: =J272-'5.2.1'!I260 -> 0

Sheet 5.2.3
B4: ='Business Details'!$B$4 -> SEQ INTERIM REVENUE MONITORING - INFORMATION REQUIREMENT TEMPLATE
B7: =CONCATENATE("Revenue Details for ",'Business Details'!$D$9," - Tariff Structures") -> Revenue Details for Allconnex Water - Tariff Structures
B8: =CONCATENATE("Reporting year = ",AnalysisYear) -> Reporting year = 2012
D13: Geographic Area | F13: Service Category | H13: Customer Category | L13: Type | P13: For Year Ending 30 June: | W13: Supporting
C14: Parameter | D14: (dropdown list) | F14: (dropdown list) | H14: (dropdown list) | J14: Tariff Description | L14: (dropdown list) | N14: Unit | P14: ='5.1.1'!F13 -> 2009 | Q14: ='5.1.1'!G13 -> 2010 | R14: ='5.1.1'!H13 -> 2011 | S14: ='5.1.1'!I13 -> 2012 | T14: ='5.1.1'!J13 -> 2013 | U14: ='5.1.1'!K13 -> 2014 | W14: Documents | AS14: =AR14 -> 
B16: 1 | C16: Price | D16: Gold Coast | F16: Drinking water | H16: Residential | J16: Fixed charge per property ($) - Residential water: Gold Coast | L16: Fixed | N16: $ | P16: 152.3295597 | Q16: 159.1838388 | R16: 192 | S16: 198.912 | T16: 203.8848 | U16: 208.98192
C17: Quantity | D17: =D16 -> Gold Coast | F17: =F16 -> Drinking water | H17: =H16 -> Residential | J17: =J16 -> Fixed charge per property ($) - Residential water: Gold Coast | L17: =L16 -> Fixed | N17: Connections | P17: 208108 | Q17: 211943.626 | R17: 215710.1543 | S17: 225508.3158 | T17: 231583.6338 | U17: 237658.9518
C18: Revenue | D18: =D16 -> Gold Coast | F18: =F16 -> Drinking water | H18: =H16 -> Residential | J18: =J16 -> Fixed charge per property ($) - Residential water: Gold Coast | L18: =L16 -> Fixed | N18: $'000 | P18: 31701 | Q18: 33738 | R18: 41416.34962 | S18: 44856.31011 | T18: 47216.38286 | U18: 49666.42405
B19: =B16+1 -> 2 | C19: Price | D19: Logan | F19: Drinking water | H19: Residential | J19: Fixed charge per property ($) - Residential water: Logan A | L19: Fixed | N19: $ | P19: 195.1216693 | Q19: 200.9403361 | R19: 240 | S19: 258.4169206 | T19: 264.8773436 | U19: 271.4992772
C20: Quantity | D20: =D19 -> Logan | F20: =F19 -> Drinking water | H20: =H19 -> Residential | J20: =J19 -> Fixed charge per property ($) - Residential water: Logan A | L20: =L19 -> Fixed | N20: Connections | P20: 86957 | Q20: 89032 | R20: 93022.92987 | S20: 96379.1378 | T20: 99018.4278 | U20: 101657.7178
C21: Revenue | D21: =D19 -> Logan | F21: =F19 -> Drinking water | H21: =H19 -> Residential | J21: =J19 -> Fixed charge per property ($) - Residential water: Logan A | L21: =L19 -> Fixed | N21: $'000 | P21: 16967.195 | Q21: 17890.12 | R21: 22325.50317 | S21: 24906 | T21: 26227.73812 | U21: 27599.9969
B22: =B19+1 -> 3 | C22: Price | D22: Logan | F22: Drinking water | H22: Residential | J22: Fixed charge per property ($) - Residential water: Logan B | L22: Fixed | N22: $ | R22: 0 | S22: 0 | T22: 0 | U22: 0
C23: Quantity | D23: =D22 -> Logan | F23: =F22 -> Drinking water | H23: =H22 -> Residential | J23: =J22 -> Fixed charge per property ($) - Residential water: Logan B | L23: =L22 -> Fixed | N23: Connections | R23: 0 | S23: 0 | T23: 0 | U23: 0
C24: Revenue | D24: =D22 -> Logan | F24: =F22 -> Drinking water | H24: =H22 -> Residential | J24: =J22 -> Fixed charge per property ($) - Residential water: Logan B | L24: =L22 -> Fixed | N24: $'000 | R24: 0 | S24: 0 | T24: 0 | U24: 0
B25: =B22+1 -> 4 | C25: Price | D25: Logan | F25: Drinking water | H25: Residential | J25: Fixed charge per property ($) - Residential water: Logan C | L25: Fixed | N25: $ | R25: 0 | S25: 0 | T25: 0 | U25: 0
C26: Quantity | D26: =D25 -> Logan | F26: =F25 -> Drinking water | H26: =H25 -> Residential | J26: =J25 -> Fixed charge per property ($) - Residential water: Logan C | L26: =L25 -> Fixed | N26: Connections | R26: 0 | S26: 0 | T26: 0 | U26: 0
C27: Revenue | D27: =D25 -> Logan | F27: =F25 -> Drinking water | H27: =H25 -> Residential | J27: =J25 -> Fixed charge per property ($) - Residential water: Logan C | L27: =L25 -> Fixed | N27: $'000 | R27: 0 | S27: 0 | T27: 0 | U27: 0
B28: =B25+1 -> 5 | C28: Price | D28: Redland | F28: Drinking water | H28: Residential | J28: Fixed charge per property ($) - Residential water: Redland | L28: Fixed | N28: $ | P28: 207 | Q28: 236.8230138 | R28: 240.36 | S28: 249.01296 | T28: 255.238284 | U28: 261.6192411
C29: Quantity | D29: =D28 -> Redland | F29: =F28 -> Drinking water | H29: =H28 -> Residential | J29: =J28 -> Fixed charge per property ($) - Residential water: Redland | L29: =L28 -> Fixed | N29: Connections | P29: 56372 | Q29: 56333 | R29: 56332.67353 | S29: 55860.75264 | T29: 57208.20864 | U29: 58555.66464
C30: Revenue | D30: =D28 -> Redland | F30: =F28 -> Drinking water | H30: =H28 -> Residential | J30: =J28 -> Fixed charge per property ($) - Residential water: Redland | L30: =L28 -> Fixed | N30: $'000 | P30: 11669.004 | Q30: 13340.95084 | R30: 13540.12141 | S30: 13910.05136 | T30: 14601.725 | U30: 15319.28855
B31: =B28+1 -> 6 | C31: Price | D31: Gold Coast | F31: Waste-water via Sewer | H31: Residential | J31: Fixed charge per property ($) - Residential wastewater: Gold Coast | L31: Fixed | N31: $ | P31: 493.2008335 | Q31: 546.7235324 | R31: 656.4 | S31: 680.0304 | T31: 697.03116 | U31: 714.456939
C32: Quantity | D32: =D31 -> Gold Coast | F32: =F31 -> Waste-water via Sewer | H32: =H31 -> Residential | J32: =J31 -> Fixed charge per property ($) - Residential wastewater: Gold Coast | L32: =L31 -> Fixed | N32: Connections | P32: 199152.1371 | Q32: 199300 | R32: 204556.303 | S32: 204835.8667 | T32: 210354.2575 | U32: 215872.6484
C33: Revenue | D33: =D31 -> Gold Coast | F33: =F31 -> Waste-water via Sewer | H33: =H31 -> Residential | J33: =J31 -> Fixed charge per property ($) - Residential wastewater: Gold Coast | L33: =L31 -> Fixed | N33: $'000 | P33: 98222 | Q33: 108962 | R33: 134270.7573 | S33: 139294.6163 | T33: 146623.4721 | U33: 154231.7116
B34: =B31+1 -> 7 | C34: Price | D34: Logan | F34: Waste-water via Sewer | H34: Residential | J34: Fixed charge per property ($) - Residential wastewater: Logan | L34: Fixed | N34: $ | P34: 429.9428945 | Q34: 467.3464526 | R34: 550.8 | S34: 570.6288 | T34: 584.89452 | U34: 599.516883
C35: Quantity | D35: =D34 -> Logan | F35: =F34 -> Waste-water via Sewer | H35: =H34 -> Residential | J35: =J34 -> Fixed charge per property ($) - Residential wastewater: Logan | L35: =L34 -> Fixed | N35: Connections | P35: 76618.96748 | Q35: 76883 | R35: 81648.84868 | S35: 86352.69176 | T35: 88717.41301 | U35: 91082.13427
C36: Revenue | D36: =D34 -> Logan | F36: =F34 -> Waste-water via Sewer | H36: =H34 -> Residential | J36: =J34 -> Fixed charge per property ($) - Residential wastewater: Logan | L36: =L34 -> Fixed | N36: $'000 | P36: 32941.78065 | Q36: 35930.99732 | R36: 44972.18585 | S36: 49275.33287 | T36: 51890.3287 | U36: 54605.27723
B37: =B34+1 -> 8 | C37: Price | D37: Redland | F37: Waste-water via Sewer | H37: Residential | J37: Fixed charge per property ($) - Residential wastewater: Redland | L37: Fixed | N37: $ | P37: 635 | Q37: 650.0590202 | R37: 696 | S37: 721.056 | T37: 739.0824 | U37: 757.55946
C38: Quantity | D38: =D37 -> Redland | F38: =F37 -> Waste-water via Sewer | H38: =H37 -> Residential | J38: =J37 -> Fixed charge per property ($) - Residential wastewater: Redland | L38: =L37 -> Fixed | N38: Connections | P38: 47068.39 | Q38: 47944.87736 | R38: 55075.45726 | S38: 47559.33035 | T38: 48706.54198 | U38: 49853.75361
C39: Revenue | D39: =D37 -> Redland | F39: =F37 -> Waste-water via Sewer | H39: =H37 -> Residential | J39: =J37 -> Fixed charge per property ($) - Residential wastewater: Redland | L39: =L37 -> Fixed | N39: $'000 | P39: 29888.42765 | Q39: 31167 | R39: 38332.51825 | S39: 34292.9405 | T39: 35998.14794 | U39: 37767.18266
B40: =B37+1 -> 9 | C40: Price | D40: Gold Coast | F40: Other Core Water Services | H40: Residential | J40: Fixed charge per property ($) - Residential recycled water: Gold Coast | L40: Fixed | N40: $
C41: Quantity | D41: =D40 -> Gold Coast | F41: =F40 -> Other Core Water Services | H41: =H40 -> Residential | J41: =J40 -> Fixed charge per property ($) - Residential recycled water: Gold Coast | L41: =L40 -> Fixed | N41: Connections
C42: Revenue | D42: =D40 -> Gold Coast | F42: =F40 -> Other Core Water Services | H42: =H40 -> Residential | J42: =J40 -> Fixed charge per property ($) - Residential recycled water: Gold Coast | L42: =L40 -> Fixed | N42: $'000
B43: =B40+1 -> 10 | C43: Price | D43: Logan | F43: Other Core Water Services | H43: Residential | J43: Fixed charge per property ($) - Residential recycled water: Logan | L43: Fixed | N43: $
C44: Quantity | D44: =D43 -> Logan | F44: =F43 -> Other Core Water Services | H44: =H43 -> Residential | J44: =J43 -> Fixed charge per property ($) - Residential recycled water: Logan | L44: =L43 -> Fixed | N44: Connections
C45: Revenue | D45: =D43 -> Logan | F45: =F43 -> Other Core Water Services | H45: =H43 -> Residential | J45: =J43 -> Fixed charge per property ($) - Residential recycled water: Logan | L45: =L43 -> Fixed | N45: $'000
B46: =B43+1 -> 11 | C46: Price | D46: Redland | F46: Other Core Water Services | H46: Residential | J46: Fixed charge per property ($) - Residential recycled water: Redland | L46: Fixed | N46: $
C47: Quantity | D47: =D46 -> Redland | F47: =F46 -> Other Core Water Services | H47: =H46 -> Residential | J47: =J46 -> Fixed charge per property ($) - Residential recycled water: Redland | L47: =L46 -> Fixed | N47: Connections
C48: Revenue | D48: =D46 -> Redland | F48: =F46 -> Other Core Water Services | H48: =H46 -> Residential | J48: =J46 -> Fixed charge per property ($) - Residential recycled water: Redland | L48: =L46 -> Fixed | N48: $'000
B49: =B46+1 -> 12 | C49: Price | D49: Gold Coast | F49: Drinking water | H49: Business | J49: Fixed charge per property ($) - Non-residential water: Gold Coast | L49: Fixed | N49: $ | P49: =P51/P50*1000 -> 686.9863788 | Q49: =Q51/Q50*1000 -> 687.9904458 | R49: 771.5900008 | S49: 799.3672409 | T49: 819.3514219 | U49: 839.8352074
C50: Quantity | D50: =D49 -> Gold Coast | F50: =F49 -> Drinking water | H50: =H49 -> Business | J50: =J49 -> Fixed charge per property ($) - Non-residential water: Gold Coast | L50: =L49 -> Fixed | N50: Connections | P50: 15085.33333 | Q50: 15545.71721 | R50: 16540.34137 | S50: 16973.7442 | T50: 17431.0262 | U50: 17888.3082
C51: Revenue | D51: =D49 -> Gold Coast | F51: =F49 -> Drinking water | H51: =H49 -> Business | J51: =J49 -> Fixed charge per property ($) - Non-residential water: Gold Coast | L51: =L49 -> Fixed | N51: $'000 | P51: 10363.41852 | Q51: 10695.30492 | R51: 12762.36201 | S51: 13568.25507 | T51: 14282.1361 | U51: 15023.23103
B52: =B49+1 -> 13 | C52: Price | D52: Logan | F52: Drinking water | H52: Business | J52: Fixed charge per property ($) - Non-residential water: Logan | L52: Fixed | N52: $ | P52: 201.6072682 | Q52: 212.0459183 | R52: 944.6929568 | S52: 978.7019032 | T52: 1003.169451 | U52: 1028.248687
C53: Quantity | D53: =D52 -> Logan | F53: =F52 -> Drinking water | H53: =H52 -> Business | J53: =J52 -> Fixed charge per property ($) - Non-residential water: Logan | L53: =L52 -> Fixed | N53: Connections | P53: 17666 | Q53: 17738 | R53: 4766.940251 | S53: 5072.5862 | T53: 5211.4962 | U53: 5350.4062
C54: Revenue | D54: =D52 -> Logan | F54: =F52 -> Drinking water | H54: =H52 -> Business | J54: =J52 -> Fixed charge per property ($) - Non-residential water: Logan | L54: =L52 -> Fixed | N54: $'000 | P54: 3561.594 | Q54: 3761.270499 | R54: 4503.29488 | S54: 4964.549768 | T54: 5228.013781 | U54: 5501.54815
B55: =B52+1 -> 14 | C55: Price | D55: Redland | F55: Drinking water | H55: Business | J55: Fixed charge per property ($) - Non-residential water: Redland | L55: Fixed | N55: $ | P55: 1311.88 | Q55: 1352.275995 | R55: 1060.712445 | S55: 1098.898093 | T55: 1126.370545 | U55: 1154.529809
C56: Quantity | D56: =D55 -> Redland | F56: =F55 -> Drinking water | H56: =H55 -> Business | J56: =J55 -> Fixed charge per property ($) - Non-residential water: Redland | L56: =L55 -> Fixed | N56: Connections | P56: 1604 | Q56: 1628 | R56: 2049.245062 | S56: 2327.53136 | T56: 2383.67536 | U56: 2439.81936
C57: Revenue | D57: =D55 -> Redland | F57: =F55 -> Drinking water | H57: =H55 -> Business | J57: =J55 -> Fixed charge per property ($) - Non-residential water: Redland | L57: =L55 -> Fixed | N57: $'000 | P57: 2104.25552 | Q57: 2201.505319 | R57: 2173.65974 | S57: 2557.719773 | T57: 2684.901715 | U57: 2816.844179
B58: =B55+1 -> 15 | C58: Price | D58: Gold Coast | F58: Waste-water via Sewer | H58: Business | J58: Fixed charge per property ($) - Non-residential wastewater: Gold Coast | L58: Fixed | N58: $ | P58: 521.7635212 | Q58: 543.5664213 | R58: 656.4 | S58: 680.0304 | T58: 697.03116 | U58: 714.456939
C59: Quantity | D59: =D58 -> Gold Coast | F59: =F58 -> Waste-water via Sewer | H59: =H58 -> Business | J59: =J58 -> Fixed charge per property ($) - Non-residential wastewater: Gold Coast | L59: =L58 -> Fixed | N59: Connections | P59: 14347.49593 | Q59: 14785.68154 | R59: 14801.68694 | S59: 25316.79251 | T59: 25998.84082 | U59: 26680.88912
C60: Revenue | D60: =D58 -> Gold Coast | F60: =F58 -> Waste-water via Sewer | H60: =H58 -> Business | J60: =J58 -> Fixed charge per property ($) - Non-residential wastewater: Gold Coast | L60: =L58 -> Fixed | N60: $'000 | P60: 7486 | Q60: 8037 | R60: 9715.82731 | S60: 17216.18854 | T60: 18122.00217 | U60: 19062.34637
B61: =B58+1 -> 16 | C61: Price | D61: Logan | F61: Waste-water via Sewer | H61: Business | J61: Fixed charge per property ($) - Non-residential wastewater: Logan | L61: Fixed | N61: $ | P61: 785.6698741 | Q61: 1555.682104 | R61: 2229.400694 | S61: 2309.659119 | T61: 2367.400597 | U61: 2426.585612
C62: Quantity | D62: =D61 -> Logan | F62: =F61 -> Waste-water via Sewer | H62: =H61 -> Business | J62: =J61 -> Fixed charge per property ($) - Non-residential wastewater: Logan | L62: =L61 -> Fixed | N62: Connections | P62: 4883 | Q62: 4990 | R62: 4297.307825 | S62: 4544.878513 | T62: 4669.337527 | U62: 4793.79654
C63: Revenue | D63: =D61 -> Logan | F63: =F61 -> Waste-water via Sewer | H63: =H61 -> Business | J63: =J61 -> Fixed charge per property ($) - Non-residential wastewater: Logan | L63: =L61 -> Fixed | N63: $'000 | P63: 3836.425995 | Q63: 7762.8537 | R63: 9580.421049 | S63: 10497.1201 | T63: 11054.19245 | U63: 11632.55771
B64: =B61+1 -> 17 | C64: Price | D64: Redland | F64: Waste-water via Sewer | H64: Business | J64: Fixed charge per property ($) - Non-residential wastewater: Redland | L64: Fixed | N64: $ | P64: 2260.355 | Q64: 2319.12423 | R64: 1977.5 | S64: 2048.69 | T64: 2099.90725 | U64: 2152.404931
C65: Quantity | D65: =D64 -> Redland | F65: =F64 -> Waste-water via Sewer | H65: =H64 -> Business | J65: =J64 -> Fixed charge per property ($) - Non-residential wastewater: Redland | L65: =L64 -> Fixed | N65: Connections | P65: 1772.63 | Q65: 1807.556987 | R65: 192.0816283 | S65: 1981.638765 | T65: 2029.439249 | U65: 2077.239734
C66: Revenue | D66: =D64 -> Redland | F66: =F64 -> Waste-water via Sewer | H66: =H64 -> Business | J66: =J64 -> Fixed charge per property ($) - Non-residential wastewater: Redland | L66: =L64 -> Fixed | N66: $'000 | P66: 4006.773084 | Q66: 4191.949207 | R66: 379.84142 | S66: 4059.763521 | T66: 4261.634193 | U66: 4471.061046
B67: =B64+1 -> 18 | C67: Price | D67: Gold Coast | F67: Other Core Water Services | H67: Business | J67: Fixed charge per property ($) - Non-residential recycled water: Gold Coast | L67: Fixed | N67: $
C68: Quantity | D68: =D67 -> Gold Coast | F68: =F67 -> Other Core Water Services | H68: =H67 -> Business | J68: =J67 -> Fixed charge per property ($) - Non-residential recycled water: Gold Coast | L68: =L67 -> Fixed | N68: Connections
C69: Revenue | D69: =D67 -> Gold Coast | F69: =F67 -> Other Core Water Services | H69: =H67 -> Business | J69: =J67 -> Fixed charge per property ($) - Non-residential recycled water: Gold Coast | L69: =L67 -> Fixed | N69: $'000
B70: =B67+1 -> 19 | C70: Price | D70: Logan | F70: Other Core Water Services | H70: Business | J70: Fixed charge per property ($) - Non-residential recycled water: Logan | L70: Fixed | N70: $
C71: Quantity | D71: =D70 -> Logan | F71: =F70 -> Other Core Water Services | H71: =H70 -> Business | J71: =J70 -> Fixed charge per property ($) - Non-residential recycled water: Logan | L71: =L70 -> Fixed | N71: Connections
C72: Revenue | D72: =D70 -> Logan | F72: =F70 -> Other Core Water Services | H72: =H70 -> Business | J72: =J70 -> Fixed charge per property ($) - Non-residential recycled water: Logan | L72: =L70 -> Fixed | N72: $'000
B73: =B70+1 -> 20 | C73: Price | D73: Redland | F73: Other Core Water Services | H73: Business | J73: Fixed charge per property ($) - Non-residential recycled water: Redland | L73: Fixed | N73: $
C74: Quantity | D74: =D73 -> Redland | F74: =F73 -> Other Core Water Services | H74: =H73 -> Business | J74: =J73 -> Fixed charge per property ($) - Non-residential recycled water: Redland | L74: =L73 -> Fixed | N74: Connections
C75: Revenue | D75: =D73 -> Redland | F75: =F73 -> Other Core Water Services | H75: =H73 -> Business | J75: =J73 -> Fixed charge per property ($) - Non-residential recycled water: Redland | L75: =L73 -> Fixed | N75: $'000
B76: =B73+1 -> 21 | C76: Price | D76: Gold Coast | F76: Trade Waste | H76: Business | J76: Fixed charge per property ($) - Non-residential trade waste: Gold Coast COD | L76: Fixed | N76: $
C77: Quantity | D77: =D76 -> Gold Coast | F77: =F76 -> Trade Waste | H77: =H76 -> Business | J77: =J76 -> Fixed charge per property ($) - Non-residential trade waste: Gold Coast COD | L77: =L76 -> Fixed | N77: Properties
C78: Revenue | D78: =D76 -> Gold Coast | F78: =F76 -> Trade Waste | H78: =H76 -> Business | J78: =J76 -> Fixed charge per property ($) - Non-residential trade waste: Gold Coast COD | L78: =L76 -> Fixed | N78: $'000
B79: =B76+1 -> 22 | C79: Price | D79: Gold Coast | F79: Trade Waste | H79: Business | J79: Fixed charge per property ($) - Non-residential trade waste: Gold Coast NVSS | L79: Fixed | N79: $
C80: Quantity | D80: =D79 -> Gold Coast | F80: =F79 -> Trade Waste | H80: =H79 -> Business | J80: =J79 -> Fixed charge per property ($) - Non-residential trade waste: Gold Coast NVSS | L80: =L79 -> Fixed | N80: Properties
C81: Revenue | D81: =D79 -> Gold Coast | F81: =F79 -> Trade Waste | H81: =H79 -> Business | J81: =J79 -> Fixed charge per property ($) - Non-residential trade waste: Gold Coast NVSS | L81: =L79 -> Fixed | N81: $'000
B82: =B79+1 -> 23 | C82: Price | D82: Gold Coast | F82: Trade Waste | H82: Business | J82: Fixed charge per property ($) - Non-residential trade waste: Gold Coast phosphorous | L82: Fixed | N82: $
C83: Quantity | D83: =D82 -> Gold Coast | F83: =F82 -> Trade Waste | H83: =H82 -> Business | J83: =J82 -> Fixed charge per property ($) - Non-residential trade waste: Gold Coast phosphorous | L83: =L82 -> Fixed | N83: Properties
C84: Revenue | D84: =D82 -> Gold Coast | F84: =F82 -> Trade Waste | H84: =H82 -> Business | J84: =J82 -> Fixed charge per property ($) - Non-residential trade waste: Gold Coast phosphorous | L84: =L82 -> Fixed | N84: $'000
B85: =B82+1 -> 24 | C85: Price | D85: Logan | F85: Trade Waste | H85: Business | J85: Fixed charge per property ($) - Non-residential trade waste: Logan | L85: Fixed | N85: $ | R85: 520 | S85: 538.72 | T85: 552.188 | U85: 565.9927
C86: Quantity | D86: =D85 -> Logan | F86: =F85 -> Trade Waste | H86: =H85 -> Business | J86: =J85 -> Fixed charge per property ($) - Non-residential trade waste: Logan | L86: =L85 -> Fixed | N86: Properties | R86: 1467.720058 | S86: 1663 | T86: 1663 | U86: 1663
C87: Revenue | D87: =D85 -> Logan | F87: =F85 -> Trade Waste | H87: =H85 -> Business | J87: =J85 -> Fixed charge per property ($) - Non-residential trade waste: Logan | L87: =L85 -> Fixed | N87: $'000 | R87: 763.21443 | S87: 895.89136 | T87: 918.288644 | U87: 941.2458601
B88: =B85+1 -> 25 | C88: Price | D88: Redland | F88: Trade Waste | H88: Business | J88: Fixed charge per property ($) - Non-residential trade waste: Redland | L88: Fixed | N88: $ | R88: 348 | S88: 360.528 | T88: 369.5412 | U88: 378.77973
C89: Quantity | D89: =D88 -> Redland | F89: =F88 -> Trade Waste | H89: =H88 -> Business | J89: =J88 -> Fixed charge per property ($) - Non-residential trade waste: Redland | L89: =L88 -> Fixed | N89: Properties | R89: 758.9728448 | S89: 240 | T89: 240 | U89: 240
C90: Revenue | D90: =D88 -> Redland | F90: =F88 -> Trade Waste | H90: =H88 -> Business | J90: =J88 -> Fixed charge per property ($) - Non-residential trade waste: Redland | L90: =L88 -> Fixed | N90: $'000 | R90: 264.12255 | S90: 86.52672 | T90: 88.689888 | U90: 90.9071352
B91: =B88+1 -> 26 | C91: Price | D91: Gold Coast | F91: Other Core Water Services | H91: Other | J91: Fixed charge per property ($) - Standpipe water: Gold Coast | L91: Fixed | N91: $ | R91: 38.39 | S91: 39.77204 | T91: 40.766341 | U91: 41.78549952
C92: Quantity | D92: =D91 -> Gold Coast | F92: =F91 -> Other Core Water Services | H92: =H91 -> Other | J92: =J91 -> Fixed charge per property ($) - Standpipe water: Gold Coast | L92: =L91 -> Fixed | N92: Access connection | R92: 2765.617869 | S92: 396 | T92: 396 | U92: 396
C93: Revenue | D93: =D91 -> Gold Coast | F93: =F91 -> Other Core Water Services | H93: =H91 -> Other | J93: =J91 -> Fixed charge per property ($) - Standpipe water: Gold Coast | L93: =L91 -> Fixed | N93: $'000 | R93: 106.17207 | S93: 15.74972784 | T93: 16.14347104 | U93: 16.54705781
B94: =B91+1 -> 27 | C94: Price | D94: Logan | F94: Other Core Water Services | H94: Other | J94: Fixed charge per property ($) - Standpipe water: Logan | L94: Fixed | N94: $ | R94: 0 | S94: 0 | T94: 0 | U94: 0
C95: Quantity | D95: =D94 -> Logan | F95: =F94 -> Other Core Water Services | H95: =H94 -> Other | J95: =J94 -> Fixed charge per property ($) - Standpipe water: Logan | L95: =L94 -> Fixed | N95: Access connection | R95: 0 | S95: 0 | T95: 0 | U95: 0
C96: Revenue | D96: =D94 -> Logan | F96: =F94 -> Other Core Water Services | H96: =H94 -> Other | J96: =J94 -> Fixed charge per property ($) - Standpipe water: Logan | L96: =L94 -> Fixed | N96: $'000 | R96: 0 | S96: 0 | T96: 0 | U96: 0
B97: =B94+1 -> 28 | C97: Price | D97: Redland | F97: Other Core Water Services | H97: Other | J97: Fixed charge per property ($) - Standpipe water: Redland | L97: Fixed | N97: $ | R97: 0 | S97: 0 | T97: 0 | U97: 0
C98: Quantity | D98: =D97 -> Redland | F98: =F97 -> Other Core Water Services | H98: =H97 -> Other | J98: =J97 -> Fixed charge per property ($) - Standpipe water: Redland | L98: =L97 -> Fixed | N98: Access connection | R98: 0 | S98: 0 | T98: 0 | U98: 0
C99: Revenue | D99: =D97 -> Redland | F99: =F97 -> Other Core Water Services | H99: =H97 -> Other | J99: =J97 -> Fixed charge per property ($) - Standpipe water: Redland | L99: =L97 -> Fixed | N99: $'000 | R99: 29.43246 | S99: 0 | T99: 0 | U99: 0
B100: =B97+1 -> 29 | C100: Price | D100: Gold Coast | F100: Other Core Water Services | H100: Other | J100: Fixed charge per property ($) - Standpipe recycled water: Gold Coast | L100: Fixed | N100: $ | R100: 0 | S100: 0 | T100: 0 | U100: 0
C101: Quantity | D101: =D100 -> Gold Coast | F101: =F100 -> Other Core Water Services | H101: =H100 -> Other | J101: =J100 -> Fixed charge per property ($) - Standpipe recycled water: Gold Coast | L101: =L100 -> Fixed | N101: Access connection | R101: 0 | S101: 0 | T101: 0 | U101: 0
C102: Revenue | D102: =D100 -> Gold Coast | F102: =F100 -> Other Core Water Services | H102: =H100 -> Other | J102: =J100 -> Fixed charge per property ($) - Standpipe recycled water: Gold Coast | L102: =L100 -> Fixed | N102: $'000 | R102: 0 | S102: 0 | T102: 0 | U102: 0
B103: =B100+1 -> 30 | C103: Price | D103: Logan | F103: Other Core Water Services | H103: Other | J103: Fixed charge per property ($) - Standpipe recycled water: Logan | L103: Fixed | N103: $ | R103: 0 | S103: 0 | T103: 0 | U103: 0
C104: Quantity | D104: =D103 -> Logan | F104: =F103 -> Other Core Water Services | H104: =H103 -> Other | J104: =J103 -> Fixed charge per property ($) - Standpipe recycled water: Logan | L104: =L103 -> Fixed | N104: Access connection | R104: 0 | S104: 0 | T104: 0 | U104: 0
C105: Revenue | D105: =D103 -> Logan | F105: =F103 -> Other Core Water Services | H105: =H103 -> Other | J105: =J103 -> Fixed charge per property ($) - Standpipe recycled water: Logan | L105: =L103 -> Fixed | N105: $'000 | R105: 0 | S105: 0 | T105: 0 | U105: 0
B106: =B103+1 -> 31 | C106: Price | D106: Redland | F106: Other Core Water Services | H106: Other | J106: Fixed charge per property ($) - Standpipe recycled water: Redland | L106: Fixed | N106: $ | R106: 426.42 | S106: 441.77112 | T106: 452.815398 | U106: 464.1357829
C107: Quantity | D107: =D106 -> Redland | F107: =F106 -> Other Core Water Services | H107: =H106 -> Other | J107: =J106 -> Fixed charge per property ($) - Standpipe recycled water: Redland | L107: =L106 -> Fixed | N107: [please specify] | R107: 1 | S107: 0 | T107: 0 | U107: 0
C108: Revenue | D108: =D106 -> Redland | F108: =F106 -> Other Core Water Services | H108: =H106 -> Other | J108: =J106 -> Fixed charge per property ($) - Standpipe recycled water: Redland | L108: =L106 -> Fixed | N108: Access connection | R108: 0.42642 | S108: 0 | T108: 0 | U108: 0
B109: =B106+1 -> 32 | C109: Price | D109: Gold Coast | F109: Drinking water | H109: Residential | J109: Charge per unit of volume ($) - Residential water: Gold Coast | L109: Variable | N109: $ | P109: =P111/P110 -> 2.121577618 | Q109: =Q111/Q110 -> 2.240368894 | R109: 2.68 | S109: 2.975621274 | T109: 3.28 | U109: 3.58
C110: Quantity | D110: =D109 -> Gold Coast | F110: =F109 -> Drinking water | H110: =H109 -> Residential | J110: =J109 -> Charge per unit of volume ($) - Residential water: Gold Coast | L110: =L109 -> Variable | N110: ML | P110: 30096 | Q110: 39144 | R110: 35660.81578 | S110: 38294.18784 | T110: 39168.72846 | U110: 40148.44717
C111: Revenue | D111: =D109 -> Gold Coast | F111: =F109 -> Drinking water | H111: =H109 -> Residential | J111: =J109 -> Charge per unit of volume ($) - Residential water: Gold Coast | L111: =L109 -> Variable | N111: $'000 | P111: 63851 | Q111: 87697 | R111: 95570.98629 | S111: 113949 | T111: 128473.4293 | U111: 143731.4409
B112: =B109+1 -> 33 | C112: Price | D112: Logan | F112: Drinking water | H112: Residential | J112: Charge per unit of volume ($) - Residential water: Logan A | L112: Variable | N112: $ | P112: 1.803105607 | Q112: 2.25 | R112: 2.7 | S112: 3.001060699 | T112: 3.28 | U112: 3.57
C113: Quantity | D113: =D112 -> Logan | F113: =F112 -> Drinking water | H113: =H112 -> Residential | J113: =J112 -> Charge per unit of volume ($) - Residential water: Logan A | L113: =L112 -> Variable | N113: ML | P113: 13650.50439 | Q113: 15487 | R113: 13926.86334 | S113: 15293.5927 | T113: 15578.97555 | U113: 15906.14418
C114: Revenue | D114: =D112 -> Logan | F114: =F112 -> Drinking water | H114: =H112 -> Residential | J114: =J112 -> Charge per unit of volume ($) - Residential water: Logan A | L114: =L112 -> Variable | N114: $'000 | P114: 24613.301 | Q114: 34845.75 | R114: 37602.53102 | S114: 45897 | T114: 51099.03981 | U114: 56784.93471
B115: =B112+1 -> 34 | C115: Price | D115: Logan | F115: Drinking water | H115: Residential | J115: Charge per unit of volume ($) - Residential water: Logan B | L115: Variable | N115: $ | R115: 2.7 | S115: 2.7 | T115: 3.28 | U115: 3.57
C116: Quantity | D116: =D115 -> Logan | F116: =F115 -> Drinking water | H116: =H115 -> Residential | J116: =J115 -> Charge per unit of volume ($) - Residential water: Logan B | L116: =L115 -> Variable | N116: ML | R116: 0 | S116: 0 | T116: 0 | U116: 0
C117: Revenue | D117: =D115 -> Logan | F117: =F115 -> Drinking water | H117: =H115 -> Residential | J117: =J115 -> Charge per unit of volume ($) - Residential water: Logan B | L117: =L115 -> Variable | N117: $'000 | R117: 0 | S117: 0 | T117: 0 | U117: 0
B118: =B115+1 -> 35 | C118: Price | D118: Logan | F118: Drinking water | H118: Residential | J118: Charge per unit of volume ($) - Residential water: Logan C | L118: Variable | N118: $ | R118: 2.7 | S118: 2.7 | T118: 3.28 | U118: 3.57
C119: Quantity | D119: =D118 -> Logan | F119: =F118 -> Drinking water | H119: =H118 -> Residential | J119: =J118 -> Charge per unit of volume ($) - Residential water: Logan C | L119: =L118 -> Variable | N119: ML | R119: 0 | S119: 0 | T119: 0 | U119: 0
C120: Revenue | D120: =D118 -> Logan | F120: =F118 -> Drinking water | H120: =H118 -> Residential | J120: =J118 -> Charge per unit of volume ($) - Residential water: Logan C | L120: =L118 -> Variable | N120: $'000 | R120: 0 | S120: 0 | T120: 0 | U120: 0
B121: =B118+1 -> 36 | C121: Price | D121: Redland | F121: Drinking water | H121: Residential | J121: Charge per unit of volume ($) - Residential water: Redland | L121: Variable | N121: $ | P121: 1.370790434 | Q121: 1.707931223 | R121: 1.933251071 | S121: 2.12923782 | T121: 2.443942739 | U121: 2.74027659
C122: Quantity | D122: =D121 -> Redland | F122: =F121 -> Drinking water | H122: =H121 -> Residential | J122: =J121 -> Charge per unit of volume ($) - Residential water: Redland | L122: =L121 -> Variable | N122: ML | P122: 9868 | Q122: 10016.868 | R122: 8459.246076 | S122: 9594.982676 | T122: 9740.817416 | U122: 9912.867956
C123: Revenue | D123: =D121 -> Redland | F123: =F121 -> Drinking water | H123: =H121 -> Residential | J123: =J121 -> Charge per unit of volume ($) - Residential water: Redland | L123: =L121 -> Variable | N123: $'000 | P123: 13526.96 | Q123: 17108.12161 | R123: 16353.84654 | S123: 20430 | T123: 23806 | U123: 27164
B124: =B121+1 -> 37 | C124: Price | D124: Gold Coast | F124: Waste-water via Sewer | H124: Residential | J124: Charge per unit of volume ($) - Residential wastewater: Gold Coast | L124: Variable | N124: $ | R124: 0 | S124: 0 | T124: 0 | U124: 0
C125: Quantity | D125: =D124 -> Gold Coast | F125: =F124 -> Waste-water via Sewer | H125: =H124 -> Residential | J125: =J124 -> Charge per unit of volume ($) - Residential wastewater: Gold Coast | L125: =L124 -> Variable | N125: ML | R125: 0 | S125: 0 | T125: 0 | U125: 0
C126: Revenue | D126: =D124 -> Gold Coast | F126: =F124 -> Waste-water via Sewer | H126: =H124 -> Residential | J126: =J124 -> Charge per unit of volume ($) - Residential wastewater: Gold Coast | L126: =L124 -> Variable | N126: $'000 | R126: 0 | S126: 0 | T126: 0 | U126: 0
B127: =B124+1 -> 38 | C127: Price | D127: Logan | F127: Waste-water via Sewer | H127: Residential | J127: Charge per unit of volume ($) - Residential wastewater: Logan | L127: Variable | N127: $ | R127: 0 | S127: 0 | T127: 0 | U127: 0
C128: Quantity | D128: =D127 -> Logan | F128: =F127 -> Waste-water via Sewer | H128: =H127 -> Residential | J128: =J127 -> Charge per unit of volume ($) - Residential wastewater: Logan | L128: =L127 -> Variable | N128: ML | R128: 0 | S128: 0 | T128: 0 | U128: 0
C129: Revenue | D129: =D127 -> Logan | F129: =F127 -> Waste-water via Sewer | H129: =H127 -> Residential | J129: =J127 -> Charge per unit of volume ($) - Residential wastewater: Logan | L129: =L127 -> Variable | N129: $'000 | R129: 0 | S129: 0 | T129: 0 | U129: 0
B130: =B127+1 -> 39 | C130: Price | D130: Redland | F130: Waste-water via Sewer | H130: Residential | J130: Charge per unit of volume ($) - Residential wastewater: Redland | L130: Variable | N130: $ | R130: 0 | S130: 0 | T130: 0 | U130: 0
C131: Quantity | D131: =D130 -> Redland | F131: =F130 -> Waste-water via Sewer | H131: =H130 -> Residential | J131: =J130 -> Charge per unit of volume ($) - Residential wastewater: Redland | L131: =L130 -> Variable | N131: ML | R131: 0 | S131: 0 | T131: 0 | U131: 0
C132: Revenue | D132: =D130 -> Redland | F132: =F130 -> Waste-water via Sewer | H132: =H130 -> Residential | J132: =J130 -> Charge per unit of volume ($) - Residential wastewater: Redland | L132: =L130 -> Variable | N132: $'000 | R132: 0 | S132: 0 | T132: 0 | U132: 0
B133: =B130+1 -> 40 | C133: Price | D133: Gold Coast | F133: Other Core Water Services | H133: Residential | J133: Charge per unit of volume ($) - Residential recycled water: Gold Coast | L133: Variable | N133: $ | R133: 1.6 | S133: 2.155964427 | T133: 2.209863537 | U133: 2.265110126
C134: Quantity | D134: =D133 -> Gold Coast | F134: =F133 -> Other Core Water Services | H134: =H133 -> Residential | J134: =J133 -> Charge per unit of volume ($) - Residential recycled water: Gold Coast | L134: =L133 -> Variable | N134: ML | R134: 140.1928312 | S134: 122.451 | T134: 122.451 | U134: 122.451
C135: Revenue | D135: =D133 -> Gold Coast | F135: =F133 -> Other Core Water Services | H135: =H133 -> Residential | J135: =J133 -> Charge per unit of volume ($) - Residential recycled water: Gold Coast | L135: =L133 -> Variable | N135: $'000 | P135: 0 | Q135: 0 | R135: 224.30853 | S135: 264 | T135: 270.6 | U135: 277.365
B136: =B133+1 -> 41 | C136: Price | D136: Logan | F136: Other Core Water Services | H136: Residential | J136: Charge per unit of volume ($) - Residential recycled water: Logan | L136: Variable | N136: $ | R136: 1 | S136: 1 | T136: 1.025 | U136: 1.050625
C137: Quantity | D137: =D136 -> Logan | F137: =F136 -> Other Core Water Services | H137: =H136 -> Residential | J137: =J136 -> Charge per unit of volume ($) - Residential recycled water: Logan | L137: =L136 -> Variable | N137: ML | R137: 0 | S137: 0 | T137: 0 | U137: 0
C138: Revenue | D138: =D136 -> Logan | F138: =F136 -> Other Core Water Services | H138: =H136 -> Residential | J138: =J136 -> Charge per unit of volume ($) - Residential recycled water: Logan | L138: =L136 -> Variable | N138: $'000 | P138: 0 | Q138: 0 | R138: 0 | S138: 0 | T138: 0 | U138: 0
B139: =B136+1 -> 42 | C139: Price | D139: Redland | F139: Other Core Water Services | H139: Residential | J139: Charge per unit of volume ($) - Residential recycled water: Redland | L139: Variable | N139: $ | R139: 1.59 | S139: 1.59 | T139: 1.62975 | U139: 1.67049375
C140: Quantity | D140: =D139 -> Redland | F140: =F139 -> Other Core Water Services | H140: =H139 -> Residential | J140: =J139 -> Charge per unit of volume ($) - Residential recycled water: Redland | L140: =L139 -> Variable | N140: ML | R140: 0 | S140: 0 | T140: 0 | U140: 0
C141: Revenue | D141: =D139 -> Redland | F141: =F139 -> Other Core Water Services | H141: =H139 -> Residential | J141: =J139 -> Charge per unit of volume ($) - Residential recycled water: Redland | L141: =L139 -> Variable | N141: $'000 | P141: 6.5 | Q141: 4 | R141: 0 | S141: 0 | T141: 0 | U141: 0
B142: =B139+1 -> 43 | C142: Price | D142: Gold Coast | F142: Drinking water | H142: Business | J142: Charge per unit of volume ($) - Non-residential water: Gold Coast | L142: Variable | N142: $ | P142: =P144/P143 -> 2.000530455 | Q142: =Q144/Q143 -> 2.327649704 | R142: 2.68 | S142: 2.975649789 | T142: 3.28 | U142: 3.58
C143: Quantity | D143: =D142 -> Gold Coast | F143: =F142 -> Drinking water | H143: =H142 -> Business | J143: =J142 -> Charge per unit of volume ($) - Non-residential water: Gold Coast | L143: =L142 -> Variable | N143: ML | P143: 10934 | Q143: 11210 | R143: 9091.081078 | S143: 12029.97749 | T143: 12320.31741 | U143: 12643.52611
C144: Revenue | D144: =D142 -> Gold Coast | F144: =F142 -> Drinking water | H144: =H142 -> Business | J144: =J142 -> Charge per unit of volume ($) - Non-residential water: Gold Coast | L144: =L142 -> Variable | N144: $'000 | P144: 21873.8 | Q144: 26092.95318 | R144: 24364.09729 | S144: 35797 | T144: 40410.6411 | U144: 45263.82348
B145: =B142+1 -> 44 | C145: Price | D145: Logan | F145: Drinking water | H145: Business | J145: Charge per unit of volume ($) - Non-residential water: Logan | L145: Variable | N145: $ | P145: =P147/P146 -> 1.856189043 | Q145: =Q147/Q146 -> 2.564225408 | R145: 2.7 | S145: 3.000762137 | T145: 3.28 | U145: 3.57
C146: Quantity | D146: =D145 -> Logan | F146: =F145 -> Drinking water | H146: =H145 -> Business | J146: =J145 -> Charge per unit of volume ($) - Non-residential water: Logan | L146: =L145 -> Variable | N146: ML | P146: 3464.463398 | Q146: 3477.463398 | R146: 3316.266629 | S146: 3642.074746 | T146: 3731.587445 | U146: 3831.051168
C147: Revenue | D147: =D145 -> Logan | F147: =F145 -> Drinking water | H147: =H145 -> Business | J147: =J145 -> Charge per unit of volume ($) - Non-residential water: Logan | L147: =L145 -> Variable | N147: $'000 | P147: 6430.699 | Q147: 8917 | R147: 8953.919898 | S147: 10929 | T147: 12239.60682 | U147: 13676.85267
B148: =B145+1 -> 45 | C148: Price | D148: Redland | F148: Drinking water | H148: Business | J148: Charge per unit of volume ($) - Non-residential water: Redland | L148: Variable | N148: $ | P148: =P150/P149 -> 1.96 | Q148: =Q150/Q149 -> 2.396303188 | R148: 2.41 | S148: 2.732354356 | T148: 3.03 | U148: 3.34
C149: Quantity | D149: =D148 -> Redland | F149: =F148 -> Drinking water | H149: =H148 -> Business | J149: =J148 -> Charge per unit of volume ($) - Non-residential water: Redland | L149: =L148 -> Variable | N149: ML | P149: 1076 | Q149: 1076 | R149: 1587.938531 | S149: 1652.421104 | T149: 1687.656584 | U149: 1727.406876
C150: Revenue | D150: =D148 -> Redland | F150: =F148 -> Drinking water | H150: =H148 -> Business | J150: =J148 -> Charge per unit of volume ($) - Non-residential water: Redland | L150: =L148 -> Variable | N150: $'000 | P150: 2108.96 | Q150: 2578.42223 | R150: 3826.93186 | S150: 4515 | T150: 5113.599449 | U150: 5769.538964
B151: =B148+1 -> 46 | C151: Price | D151: Gold Coast | F151: Waste-water via Sewer | H151: Business | J151: Charge per unit of volume ($) - Non-residential wastewater: Gold Coast | L151: Variable | N151: $ | P151: 2.1592827 | Q151: 2.429162358 | R151: 4.04 | S151: 4.18544 | T151: 4.26 | U151: 4.38
C152: Quantity | D152: =D151 -> Gold Coast | F152: =F151 -> Waste-water via Sewer | H152: =H151 -> Business | J152: =J151 -> Charge per unit of volume ($) - Non-residential wastewater: Gold Coast | L152: =L151 -> Variable | N152: ML | P152: 6636 | Q152: 6769 | R152: 6478.686713 | S152: 7290.465 | T152: 7283.38 | U152: 7276.295
C153: Revenue | D153: =D151 -> Gold Coast | F153: =F151 -> Waste-water via Sewer | H153: =H151 -> Business | J153: =J151 -> Charge per unit of volume ($) - Non-residential wastewater: Gold Coast | L153: =L151 -> Variable | N153: $'000 | P153: 14329 | Q153: 16443 | R153: 26173.89432 | S153: 30513.80383 | T153: 31027.1988 | U153: 31870.1721
B154: =B151+1 -> 47 | C154: Price | D154: Logan | F154: Waste-water via Sewer | H154: Business | J154: Charge per unit of volume ($) - Non-residential wastewater: Logan | L154: Variable | N154: $ | R154: 0 | S154: 0 | T154: 0 | U154: 0
C155: Quantity | D155: =D154 -> Logan | F155: =F154 -> Waste-water via Sewer | H155: =H154 -> Business | J155: =J154 -> Charge per unit of volume ($) - Non-residential wastewater: Logan | L155: =L154 -> Variable | N155: ML | R155: 0 | S155: 17050.26286 | T155: 17400.94629 | U155: 18215.67987
C156: Revenue | D156: =D154 -> Logan | F156: =F154 -> Waste-water via Sewer | H156: =H154 -> Business | J156: =J154 -> Charge per unit of volume ($) - Non-residential wastewater: Logan | L156: =L154 -> Variable | N156: $'000 | R156: 0 | S156: 0 | T156: 0 | U156: 0
B157: =B154+1 -> 48 | C157: Price | D157: Redland | F157: Waste-water via Sewer | H157: Business | J157: Charge per unit of volume ($) - Non-residential wastewater: Redland | L157: Variable | N157: $ | R157: 0 | S157: 0 | T157: 0 | U157: 0
C158: Quantity | D158: =D157 -> Redland | F158: =F157 -> Waste-water via Sewer | H158: =H157 -> Business | J158: =J157 -> Charge per unit of volume ($) - Non-residential wastewater: Redland | L158: =L157 -> Variable | N158: ML | R158: 0 | S158: 0 | T158: 0 | U158: 0
C159: Revenue | D159: =D157 -> Redland | F159: =F157 -> Waste-water via Sewer | H159: =H157 -> Business | J159: =J157 -> Charge per unit of volume ($) - Non-residential wastewater: Redland | L159: =L157 -> Variable | N159: $'000 | R159: 0 | S159: 0 | T159: 0 | U159: 0
B160: =B157+1 -> 49 | C160: Price | D160: Gold Coast | F160: Other Core Water Services | H160: Business | J160: Charge per unit of volume ($) - Non-residential recycled water: Gold Coast | L160: Variable | N160: $ | R160: 1.6 | S160: 1.6576 | T160: 1.69904 | U160: 1.741516
C161: Quantity | D161: =D160 -> Gold Coast | F161: =F160 -> Other Core Water Services | H161: =H160 -> Business | J161: =J160 -> Charge per unit of volume ($) - Non-residential recycled water: Gold Coast | L161: =L160 -> Variable | N161: ML | R161: 25.04370625 | S161: 37.044 | T161: 37.008 | U161: 36.972
C162: Revenue | D162: =D160 -> Gold Coast | F162: =F160 -> Other Core Water Services | H162: =H160 -> Business | J162: =J160 -> Charge per unit of volume ($) - Non-residential recycled water: Gold Coast | L162: =L160 -> Variable | N162: $'000 | R162: 40.06993 | S162: 61.4041344 | T162: 62.87807232 | U162: 64.38732955
B163: =B160+1 -> 50 | C163: Price | D163: Logan | F163: Other Core Water Services | H163: Business | J163: Charge per unit of volume ($) - Non-residential recycled water: Logan | L163: Variable | N163: $ | R163: 0 | S163: 0 | T163: 0 | U163: 0
C164: Quantity | D164: =D163 -> Logan | F164: =F163 -> Other Core Water Services | H164: =H163 -> Business | J164: =J163 -> Charge per unit of volume ($) - Non-residential recycled water: Logan | L164: =L163 -> Variable | N164: ML | R164: 0 | S164: 0 | T164: 0 | U164: 0
C165: Revenue | D165: =D163 -> Logan | F165: =F163 -> Other Core Water Services | H165: =H163 -> Business | J165: =J163 -> Charge per unit of volume ($) - Non-residential recycled water: Logan | L165: =L163 -> Variable | N165: $'000 | R165: 0 | S165: 0 | T165: 0 | U165: 0
B166: =B163+1 -> 51 | C166: Price | D166: Redland | F166: Other Core Water Services | H166: Business | J166: Charge per unit of volume ($) - Non-residential recycled water: Redland | L166: Variable | N166: $ | R166: 1.59 | S166: 1.64724 | T166: 1.688421 | U166: 1.730631525
C167: Quantity | D167: =D166 -> Redland | F167: =F166 -> Other Core Water Services | H167: =H166 -> Business | J167: =J166 -> Charge per unit of volume ($) - Non-residential recycled water: Redland | L167: =L166 -> Variable | N167: ML | R167: 0 | S167: 0 | T167: 0 | U167: 0
C168: Revenue | D168: =D166 -> Redland | F168: =F166 -> Other Core Water Services | H168: =H166 -> Business | J168: =J166 -> Charge per unit of volume ($) - Non-residential recycled water: Redland | L168: =L166 -> Variable | N168: $'000 | R168: 0 | S168: 0 | T168: 0 | U168: 0
B169: =B166+1 -> 52 | C169: Price | D169: Gold Coast | F169: Trade Waste | H169: Business | J169: Charge per unit of volume ($) - Non-residential trade waste: Gold Coast COD | L169: Variable | N169: $ | R169: 1.45 | S169: 1.5022 | T169: 1.539755 | U169: 1.578248875 | W169: 2008-09 to 2010-11 TW charges are captured as one line item only for GC - apportioned according to forecast distribution across three products
C170: Quantity | D170: =D169 -> Gold Coast | F170: =F169 -> Trade Waste | H170: =H169 -> Business | J170: =J169 -> Charge per unit of volume ($) - Non-residential trade waste: Gold Coast COD | L170: =L169 -> Variable | N170: KG | R170: 944.780193 | S170: 226.8 | T170: 226.8 | U170: 226.8
C171: Revenue | D171: =D169 -> Gold Coast | F171: =F169 -> Trade Waste | H171: =H169 -> Business | J171: =J169 -> Charge per unit of volume ($) - Non-residential trade waste: Gold Coast COD | L171: =L169 -> Variable | N171: $'000 | P171: 6269.750342 | Q171: 7163.077506 | R171: 1369.93128 | S171: 340.69896 | T171: 349.216434 | U171: 357.9468448
B172: =B169+1 -> 53 | C172: Price | D172: Gold Coast | F172: Trade Waste | H172: Business | J172: Charge per unit of volume ($) - Non-residential trade waste: Gold Coast NVSS | L172: Variable | N172: $ | R172: 0.94 | S172: 0.97384 | T172: 0.998186 | U172: 1.02314065
C173: Quantity | D173: =D172 -> Gold Coast | F173: =F172 -> Trade Waste | H173: =H172 -> Business | J173: =J172 -> Charge per unit of volume ($) - Non-residential trade waste: Gold Coast NVSS | L173: =L172 -> Variable | N173: KG | R173: 31.89258006 | S173: 7.656 | T173: 7.656 | U173: 7.656
C174: Revenue | D174: =D172 -> Gold Coast | F174: =F172 -> Trade Waste | H174: =H172 -> Business | J174: =J172 -> Charge per unit of volume ($) - Non-residential trade waste: Gold Coast NVSS | L174: =L172 -> Variable | N174: $'000 | P174: 137.2046953 | Q174: 156.7539078 | R174: 29.97902526 | S174: 7.45571904 | T174: 7.642112016 | U174: 7.833164816
B175: =B172+1 -> 54 | C175: Price | D175: Gold Coast | F175: Trade Waste | H175: Business | J175: Charge per unit of volume ($) - Non-residential trade waste: Gold Coast phosphorous | L175: Variable | N175: $ | R175: 10.41 | S175: 10.78476 | T175: 11.054379 | U175: 11.33073847
C176: Quantity | D176: =D175 -> Gold Coast | F176: =F175 -> Trade Waste | H176: =H175 -> Business | J176: =J175 -> Charge per unit of volume ($) - Non-residential trade waste: Gold Coast phosphorous | L176: =L175 -> Variable | N176: KG | R176: =IF(OR(R177=0,R175=0),0,R177/R175) -> 4.44896493 | S176: 1.068 | T176: 1.068 | U176: 1.068
C177: Revenue | D177: =D175 -> Gold Coast | F177: =F175 -> Trade Waste | H177: =H175 -> Business | J177: =J175 -> Charge per unit of volume ($) - Non-residential trade waste: Gold Coast phosphorous | L177: =L175 -> Variable | N177: $'000 | P177: 211.9635466 | Q177: 242.1645568 | R177: 46.31372492 | S177: 11.51812368 | T177: 11.80607677 | U177: 12.10122869
B178: =B175+1 -> 55 | C178: Price | D178: Logan | F178: Trade Waste | H178: Business | J178: Charge per unit of volume ($) - Non-residential trade waste: Logan | L178: Variable | N178: $ | R178: 2362.98592 | S178: 204.0044511 | T178: 209.1045624 | U178: 214.3321764
C179: Quantity | D179: =D178 -> Logan | F179: =F178 -> Trade Waste | H179: =H178 -> Business | J179: =J178 -> Charge per unit of volume ($) - Non-residential trade waste: Logan | L179: =L178 -> Variable | N179: KG | R179: 1.064196553 | S179: 12 | T179: 12 | U179: 12
C180: Revenue | D180: =D178 -> Logan | F180: =F178 -> Trade Waste | H180: =H178 -> Business | J180: =J178 -> Charge per unit of volume ($) - Non-residential trade waste: Logan | L180: =L178 -> Variable | N180: $'000 | P180: 2280 | Q180: 2480 | R180: 2514.68147 | S180: 2448.053413 | T180: 2509.254748 | U180: 2571.986117
B181: =B178+1 -> 56 | C181: Price | D181: Redland | F181: Trade Waste | H181: Business | J181: Charge per unit of volume ($) - Non-residential trade waste: Redland | L181: Variable | N181: $ | R181: 1208.75241 | S181: 104.3556247 | T181: 106.9645153 | U181: 109.6386282
C182: Quantity | D182: =D181 -> Redland | F182: =F181 -> Trade Waste | H182: =H181 -> Business | J182: =J181 -> Charge per unit of volume ($) - Non-residential trade waste: Redland | L182: =L181 -> Variable | N182: KG | R182: 0.8446075322 | S182: 12 | T182: 12 | U182: 12
C183: Revenue | D183: =D181 -> Redland | F183: =F181 -> Trade Waste | H183: =H181 -> Business | J183: =J181 -> Charge per unit of volume ($) - Non-residential trade waste: Redland | L183: =L181 -> Variable | N183: $'000 | P183: 1153.988599 | Q183: 1430 | R183: 1020.92139 | S183: 1252.267497 | T183: 1283.574184 | U183: 1315.663539
B184: =B181+1 -> 57 | C184: Price | D184: Gold Coast | F184: Other Core Water Services | H184: Other | J184: Charge per unit of volume ($) - Standpipe water: Gold Coast | L184: Variable | N184: $ | R184: 3.33 | S184: 3.44988 | T184: 3.536127 | U184: 3.624530175
C185: Quantity | D185: =D184 -> Gold Coast | F185: =F184 -> Other Core Water Services | H185: =H184 -> Other | J185: =J184 -> Charge per unit of volume ($) - Standpipe water: Gold Coast | L185: =L184 -> Variable | N185: ML | R185: 133.0778529 | S185: 427 | T185: 427 | U185: 427
C186: Revenue | D186: =D184 -> Gold Coast | F186: =F184 -> Other Core Water Services | H186: =H184 -> Other | J186: =J184 -> Charge per unit of volume ($) - Standpipe water: Gold Coast | L186: =L184 -> Variable | N186: $'000 | R186: 443.14925 | S186: 1473.09876 | T186: 1509.926229 | U186: 1547.674385
B187: =B184+1 -> 58 | C187: Price | D187: Logan | F187: Other Core Water Services | H187: Other | J187: Charge per unit of volume ($) - Standpipe water: Logan | L187: Variable | N187: $ | R187: 4.4 | S187: 4.5584 | T187: 4.67236 | U187: 4.789169
C188: Quantity | D188: =D187 -> Logan | F188: =F187 -> Other Core Water Services | H188: =H187 -> Other | J188: =J187 -> Charge per unit of volume ($) - Standpipe water: Logan | L188: =L187 -> Variable | N188: ML | R188: 68.188375 | S188: 130 | T188: 130 | U188: 130
C189: Revenue | D189: =D187 -> Logan | F189: =F187 -> Other Core Water Services | H189: =H187 -> Other | J189: =J187 -> Charge per unit of volume ($) - Standpipe water: Logan | L189: =L187 -> Variable | N189: $'000 | R189: 300.02885 | S189: 592.592 | T189: 607.4068 | U189: 622.59197
B190: =B187+1 -> 59 | C190: Price | D190: Redland | F190: Other Core Water Services | H190: Other | J190: Charge per unit of volume ($) - Standpipe water: Redland | L190: Variable | N190: $ | R190: 2.41 | S190: 2.49676 | T190: 2.559179 | U190: 2.623158475
C191: Quantity | D191: =D190 -> Redland | F191: =F190 -> Other Core Water Services | H191: =H190 -> Other | J191: =J190 -> Charge per unit of volume ($) - Standpipe water: Redland | L191: =L190 -> Variable | N191: ML | R191: 5.959958506 | S191: 55 | T191: 55 | U191: 55
C192: Revenue | D192: =D190 -> Redland | F192: =F190 -> Other Core Water Services | H192: =H190 -> Other | J192: =J190 -> Charge per unit of volume ($) - Standpipe water: Redland | L192: =L190 -> Variable | N192: $'000 | R192: 14.3635 | S192: 137.3218 | T192: 140.754845 | U192: 144.2737161
B193: =B190+1 -> 60 | C193: Price | D193: Gold Coast | F193: Other Core Water Services | H193: Other | J193: Charge per unit of volume ($) - Standpipe recycled water: Gold Coast | L193: Variable | N193: $ | R193: 1.6 | S193: 1.6576 | T193: 1.69904 | U193: 1.741516
C194: Quantity | D194: =D193 -> Gold Coast | F194: =F193 -> Other Core Water Services | H194: =H193 -> Other | J194: =J193 -> Charge per unit of volume ($) - Standpipe recycled water: Gold Coast | L194: =L193 -> Variable | N194: ML | R194: 0 | S194: 0 | T194: 0 | U194: 0
C195: Revenue | D195: =D193 -> Gold Coast | F195: =F193 -> Other Core Water Services | H195: =H193 -> Other | J195: =J193 -> Charge per unit of volume ($) - Standpipe recycled water: Gold Coast | L195: =L193 -> Variable | N195: $'000 | R195: 0 | S195: 0 | T195: 0 | U195: 0
B196: =B193+1 -> 61 | C196: Price | D196: Logan | F196: Other Core Water Services | H196: Other | J196: Charge per unit of volume ($) - Standpipe recycled water: Logan | L196: Variable | N196: $ | R196: 0 | S196: 0 | T196: 0 | U196: 0
C197: Quantity | D197: =D196 -> Logan | F197: =F196 -> Other Core Water Services | H197: =H196 -> Other | J197: =J196 -> Charge per unit of volume ($) - Standpipe recycled water: Logan | L197: =L196 -> Variable | N197: ML | R197: 0 | S197: 0 | T197: 0 | U197: 0
C198: Revenue | D198: =D196 -> Logan | F198: =F196 -> Other Core Water Services | H198: =H196 -> Other | J198: =J196 -> Charge per unit of volume ($) - Standpipe recycled water: Logan | L198: =L196 -> Variable | N198: $'000 | R198: 0 | S198: 0 | T198: 0 | U198: 0
B199: =B196+1 -> 62 | C199: Price | D199: Redland | F199: Other Core Water Services | H199: Other | J199: Charge per unit of volume ($) - Standpipe recycled water: Redland | L199: Variable | N199: $ | R199: 0 | S199: 0 | T199: 0 | U199: 0
C200: Quantity | D200: =D199 -> Redland | F200: =F199 -> Other Core Water Services | H200: =H199 -> Other | J200: =J199 -> Charge per unit of volume ($) - Standpipe recycled water: Redland | L200: =L199 -> Variable | N200: ML | R200: 0 | S200: 0 | T200: 0 | U200: 0
C201: Revenue | D201: =D199 -> Redland | F201: =F199 -> Other Core Water Services | H201: =H199 -> Other | J201: =J199 -> Charge per unit of volume ($) - Standpipe recycled water: Redland | L201: =L199 -> Variable | N201: $'000 | R201: 0.03741 | S201: 0 | T201: 0 | U201: 0
B202: =B199+1 -> 63 | C202: Price | D202: Gold Coast | F202: Aggregate Non-regulated Services | H202: Business | J202: Gold Coast Contributed assets | N202: $
C203: Quantity | D203: =D202 -> Gold Coast | F203: =F202 -> Aggregate Non-regulated Services | H203: =H202 -> Business | J203: =J202 -> Gold Coast Contributed assets | L203: =L202 -> 0
C204: Revenue | D204: =D202 -> Gold Coast | F204: =F202 -> Aggregate Non-regulated Services | H204: =H202 -> Business | J204: =J202 -> Gold Coast Contributed assets | L204: =L202 -> 0 | N204: $'000 | P204: ='5.7.1'!F17+'5.7.1'!F37 -> 29162.88416 | Q204: ='5.7.1'!G17+'5.7.1'!G37 -> 31232.60178 | R204: 21369.026 | S204: 18800 | T204: 19270 | U204: 19751.71798
B205: =B202+1 -> 64 | C205: Price | D205: Gold Coast | F205: Aggregate Non-regulated Services | H205: Business | J205: Gold Coast Developer contributions | N205: $
C206: Quantity | D206: =D205 -> Gold Coast | F206: =F205 -> Aggregate Non-regulated Services | H206: =H205 -> Business | J206: =J205 -> Gold Coast Developer contributions | L206: =L205 -> 0
C207: Revenue | D207: =D205 -> Gold Coast | F207: =F205 -> Aggregate Non-regulated Services | H207: =H205 -> Business | J207: =J205 -> Gold Coast Developer contributions | L207: =L205 -> 0 | N207: $'000 | P207: =SUM('5.7.1'!F18,'5.7.1'!F38) -> 30213.67492 | Q207: =SUM('5.7.1'!G18,'5.7.1'!G38) -> 24715.033 | R207: 32836.64423 | S207: 28500 | T207: 29212.5 | U207: 29942.76396
B208: =B205+1 -> 65 | C208: Price | D208: Gold Coast | F208: Aggregate Non-regulated Services | H208: Other | J208: Gold Coast Other capital revenue/(loss) | N208: $
C209: Quantity | D209: =D208 -> Gold Coast | F209: =F208 -> Aggregate Non-regulated Services | H209: =H208 -> Other | J209: =J208 -> Gold Coast Other capital revenue/(loss) | L209: =L208 -> 0
C210: Revenue | D210: =D208 -> Gold Coast | F210: =F208 -> Aggregate Non-regulated Services | H210: =H208 -> Other | J210: =J208 -> Gold Coast Other capital revenue/(loss) | L210: =L208 -> 0 | N210: $'000 | P210: ='5.2.1'!F39+'5.2.1'!F34 -> 86101 | Q210: ='5.2.1'!G39+'5.2.1'!G34 -> 0 | R210: -65.86604 | S210: 1200 | T210: 1230 | U210: 1260.747956
... 53 more rows

Sheet 5.3.1
B4: ='Business Details'!$B$4 -> SEQ INTERIM REVENUE MONITORING - INFORMATION REQUIREMENT TEMPLATE
B7: =CONCATENATE("Service Standards for ",'Business Details'!$D$9) -> Service Standards for Allconnex Water
B8: =CONCATENATE("Reporting year = ",AnalysisYear) -> Reporting year = 2012
K10: 0
F11: Unit of Measurement | G11: For Year Ending 30 June: | M11: Approving Agency | N11: Changes expected in service standard | O11: Date of expected changes | P11: Supporting Documents
D12: Service (Dropdown list) | E12: Region (Dropdown list) | G12: ='5.1.1'!F13 -> 2009 | H12: ='5.1.1'!G13 -> 2010 | I12: ='5.1.1'!H13 -> 2011 | J12: ='5.1.1'!I13 -> 2012 | K12: ='5.1.1'!J13 -> 2013 | L12: ='5.1.1'!K13 -> 2014
B13: # | C13: Description | AG13: =AF13 -> 
B16: 1 | C16: Water main breaks | D16: Drinking water | E16: Allconnex (all districts) | F16: breaks per 100 km of mains per annum | I16: <20 | J16: <20 | K16: <20 | L16: <20 | N16: No | O16: n/a | P16: Allconnex Water Customer Service Standard
B17: 2 | C17: System Water Loss | D17: Drinking water | E17: Allconnex (all districts) | F17: litres/connection/day | I17: <150 | J17: <150 | K17: <150 | L17: <150 | N17: No | O17: n/a | P17: Allconnex Water Customer Service Standard
B18: 3 | C18: Minimum pressure at meter (on demand) other than for properties designated on maps A10 and A11 | D18: Drinking water | E18: Allconnex (all districts) | F18: metres | I18: 22m | J18: 22m | K18: 22m | L18: 22m | N18: No | O18: n/a | P18: Allconnex Water Customer Service Standard
B19: 4 | C19: Compliance with NHMRC guidelines§ Microbiological | D19: Drinking water | E19: Allconnex (all districts) | F19: Number of samples pass | I19: >98% | J19: >98% | K19: >98% | L19: >98% | N19: No | O19: n/a | P19: Allconnex Water Customer Service Standard
B20: 5 | C20: Compliance with NHMRC guidelines§ Chemical Quality | D20: Drinking water | E20: Allconnex (all districts) | F20: Number of zones | I20: All zones | J20: All zones | K20: All zones | L20: All zones | N20: No | O20: n/a | P20: Allconnex Water Customer Service Standard
B21: 6 | C21: Drinking water quality complaints | D21: Drinking water | E21: Allconnex (all districts) | F21: number of connections per annum | I21: < 5 per 1,000 | J21: < 5 per 1,000 | K21: < 5 per 1,000 | L21: < 5 per 1,000 | N21: No | O21: n/a | P21: Allconnex Water Customer Service Standard
B22: 7 | C22: Connections experiencing unplanned interruption | D22: Drinking water | E22: Allconnex (all districts) | F22: number of connections per annum | I22: < 150 per 1,000 | J22: < 150 per 1,000 | K22: < 150 per 1,000 | L22: < 150 per 1,000 | N22: No | O22: n/a | P22: Allconnex Water Customer Service Standard
B23: 8 | C23: Time for restoration of service – unplanned interruption | D23: Drinking water | E23: Allconnex (all districts) | F23: Percentage within number of hours | I23: 95% within < 5 hours | J23: 95% within < 5 hours | K23: 95% within < 5 hours | L23: 95% within < 5 hours | N23: No | O23: n/a | P23: Allconnex Water Customer Service Standard
A24: hours | B24: 9 | C24: Average interruption duration - planned | D24: Drinking water | E24: Allconnex (all districts) | F24: Hours | I24: <5 hours | J24: <5 hours | K24: <5 hours | L24: <5 hours | N24: No | O24: n/a | P24: Allconnex Water Customer Service Standard
B25: 10 | C25: Dry Weather Wastewater overflows | D25: Waste-water via Sewer | E25: Allconnex (all districts) | F25: Number per km of mains per annum | I25: < 20 per 100 km main | J25: < 20 per 100 km main | K25: < 20 per 100 km main | L25: < 20 per 100 km main | N25: No | O25: n/a | P25: Allconnex Water Customer Service Standard
B26: 11 | C26: Dry Weather Wastewater overflows to customer property | D26: Waste-water via Sewer | E26: Allconnex (all districts) | F26: Overflows to customer properties per 1,000 connections | I26: < 5 | J26: < 5 | K26: < 5 | L26: < 5 | N26: No | O26: n/a | P26: Allconnex Water Customer Service Standard
B27: 12 | C27: Validated odour complaints | D27: Waste-water via Sewer | E27: Allconnex (all districts) | F27: Complaints per 1,000 properties | I27: <3 | J27: <3 | K27: <3 | L27: <3 | N27: No | O27: n/a | P27: Allconnex Water Customer Service Standard
B28: 13 | C28: Wastewater main breaks and chokes | D28: Waste-water via Sewer | E28: Allconnex (all districts) | F28: breaks/chokes per 100 km main | I28: < 50 | J28: < 50 | K28: < 50 | L28: < 50 | N28: No | O28: n/a | P28: Allconnex Water Customer Service Standard
B29: 14 | C29: Complaints resolved | D29: Waste-water via Sewer | E29: Allconnex (all districts) | F29: % within 20 working days | I29: >90% | J29: >90% | K29: >90% | L29: >90% | N29: No | O29: n/a | P29: Allconnex Water Customer Service Standard
B30: 15 | C30: Complaints resolved | D30: Drinking water | E30: Allconnex (all districts) | F30: % within 20 working days | I30: >90% | J30: >90% | K30: >90% | L30: >90% | N30: No | O30: n/a | P30: Allconnex Water Customer Service Standard
B31: 16 | C31: Response and repair time for water supply - Priority 1 | D31: Drinking water | E31: Allconnex (all districts) | F31: Response time | I31: Within 1 hour | J31: Within 1 hour | K31: Within 1 hour | L31: Within 1 hour | N31: No | O31: n/a | P31: Allconnex Water Customer Service Standard
B32: 17 | C32: Response and repair time for water supply - Priority 1 | D32: Drinking water | E32: Allconnex (all districts) | F32: Repairs to commence | I32: Within 1 hour | J32: Within 1 hour | K32: Within 1 hour | L32: Within 1 hour | N32: No | O32: n/a | P32: Allconnex Water Customer Service Standard
B33: 18 | C33: Response and repair time for water supply - Priority 1 | D33: Drinking water | E33: Allconnex (all districts) | F33: Fault repaired (i.e. asset functioning and back in service) | I33: Within 5 hours | J33: Within 5 hours | K33: Within 5 hours | L33: Within 5 hours | N33: No | O33: n/a | P33: Allconnex Water Customer Service Standard
B34: 19 | C34: Response and repair time for water supply - Priority 1 | D34: Drinking water | E34: Allconnex (all districts) | F34: Surface Reinstatement and clean up completed | I34: Within 5 working days | J34: Within 5 working days | K34: Within 5 working days | L34: Within 5 working days | N34: No | O34: n/a | P34: Allconnex Water Customer Service Standard
B35: 20 | C35: Response and repair time for water supply - Priority 1 | D35: Drinking water | E35: Allconnex (all districts) | F35: Compliance | I35: 0.8 | J35: 0.8 | K35: 0.8 | L35: 0.8 | N35: No | O35: n/a | P35: Allconnex Water Customer Service Standard
B36: 21 | C36: Response and repair time for water supply - Priority 2 | D36: Drinking water | E36: Allconnex (all districts) | F36: Response time | I36: Within 4 hours | J36: Within 4 hours | K36: Within 4 hours | L36: Within 4 hours | N36: No | O36: n/a | P36: Allconnex Water Customer Service Standard
B37: 22 | C37: Response and repair time for water supply - Priority 2 | D37: Drinking water | E37: Allconnex (all districts) | F37: Repairs to commence | I37: Within 16 hours | J37: Within 16 hours | K37: Within 16 hours | L37: Within 16 hours | N37: No | O37: n/a | P37: Allconnex Water Customer Service Standard
B38: 23 | C38: Response and repair time for water supply - Priority 2 | D38: Drinking water | E38: Allconnex (all districts) | F38: Fault repaired (i.e. asset functioning and back in service) | I38: Within 24 hours | J38: Within 24 hours | K38: Within 24 hours | L38: Within 24 hours | N38: No | O38: n/a | P38: Allconnex Water Customer Service Standard
B39: 24 | C39: Response and repair time for water supply - Priority 2 | D39: Drinking water | E39: Allconnex (all districts) | F39: Surface Reinstatement and clean up completed | I39: Within 5 working days | J39: Within 5 working days | K39: Within 5 working days | L39: Within 5 working days | N39: No | O39: n/a | P39: Allconnex Water Customer Service Standard
B40: 25 | C40: Response and repair time for water supply - Priority 2 | D40: Drinking water | E40: Allconnex (all districts) | F40: Compliance | I40: 0.8 | J40: 0.8 | K40: 0.8 | L40: 0.8 | N40: No | O40: n/a | P40: Allconnex Water Customer Service Standard
B41: 26 | C41: Response and repair time for water supply - Priority 3 | D41: Drinking water | E41: Allconnex (all districts) | F41: Response time | I41: Within 36 hours | J41: Within 36 hours | K41: Within 36 hours | L41: Within 36 hours | N41: No | O41: n/a | P41: Allconnex Water Customer Service Standard
B42: 27 | C42: Response and repair time for water supply - Priority 3 | D42: Drinking water | E42: Allconnex (all districts) | F42: Repairs to commence | I42: Within 48 hours | J42: Within 48 hours | K42: Within 48 hours | L42: Within 48 hours | N42: No | O42: n/a | P42: Allconnex Water Customer Service Standard
B43: 28 | C43: Response and repair time for water supply - Priority 3 | D43: Drinking water | E43: Allconnex (all districts) | F43: Fault repaired (i.e. asset functioning and back in service) | I43: Within 48 hours | J43: Within 48 hours | K43: Within 48 hours | L43: Within 48 hours | N43: No | O43: n/a | P43: Allconnex Water Customer Service Standard
B44: 29 | C44: Response and repair time for water supply - Priority 3 | D44: Drinking water | E44: Allconnex (all districts) | F44: Surface Reinstatement and clean up completed | I44: Within 5 working days | J44: Within 5 working days | K44: Within 5 working days | L44: Within 5 working days | N44: No | O44: n/a | P44: Allconnex Water Customer Service Standard
B45: 30 | C45: Response and repair time for water supply - Priority 3 | D45: Drinking water | E45: Allconnex (all districts) | F45: Compliance | I45: 0.8 | J45: 0.8 | K45: 0.8 | L45: 0.8 | N45: No | O45: n/a | P45: Allconnex Water Customer Service Standard
B46: 31 | C46: Response and repair time for water supply - Priority 4 | D46: Drinking water | E46: Allconnex (all districts) | F46: Response time | I46: Within 5 working days | J46: Within 5 working days | K46: Within 5 working days | L46: Within 5 working days | N46: No | O46: n/a | P46: Allconnex Water Customer Service Standard
B47: 32 | C47: Response and repair time for water supply - Priority 4 | D47: Drinking water | E47: Allconnex (all districts) | F47: Repairs to commence | I47: Within five working days | J47: Within five working days | K47: Within five working days | L47: Within five working days | N47: No | O47: n/a | P47: Allconnex Water Customer Service Standard
B48: 33 | C48: Response and repair time for water supply - Priority 4 | D48: Drinking water | E48: Allconnex (all districts) | F48: Fault repaired (i.e. asset functioning and back in service) | I48: Within 5 working days | J48: Within 5 working days | K48: Within 5 working days | L48: Within 5 working days | N48: No | O48: n/a | P48: Allconnex Water Customer Service Standard
B49: 34 | C49: Response and repair time for water supply - Priority 4 | D49: Drinking water | E49: Allconnex (all districts) | F49: Surface Reinstatement and clean up completed | I49: Within 5 working days | J49: Within 5 working days | K49: Within 5 working days | L49: Within 5 working days | N49: No | O49: n/a | P49: Allconnex Water Customer Service Standard
B50: 35 | C50: Response and repair time for water supply - Priority 4 | D50: Drinking water | E50: Allconnex (all districts) | F50: Compliance | I50: 0.8 | J50: 0.8 | K50: 0.8 | L50: 0.8 | N50: No | O50: n/a | P50: Allconnex Water Customer Service Standard
B51: 36 | C51: Response and repair time for water supply - Priority 5 | D51: Drinking water | E51: Allconnex (all districts) | F51: Response time | I51: Within agreed timeframe (1 week default) | J51: Within agreed timeframe (1 week default) | K51: Within agreed timeframe (1 week default) | L51: Within agreed timeframe (1 week default) | N51: No | O51: n/a | P51: Allconnex Water Customer Service Standard
B52: 37 | C52: Response and repair time for water supply - Priority 5 | D52: Drinking water | E52: Allconnex (all districts) | F52: Repairs to commence | I52: Within agreed timeframe (1 week default) | J52: Within agreed timeframe (1 week default) | K52: Within agreed timeframe (1 week default) | L52: Within agreed timeframe (1 week default) | N52: No | O52: n/a | P52: Allconnex Water Customer Service Standard
B53: 38 | C53: Response and repair time for water supply - Priority 5 | D53: Drinking water | E53: Allconnex (all districts) | F53: Fault repaired (i.e. asset functioning and back in service) | I53: Within agreed timeframe (1 week default) | J53: Within agreed timeframe (1 week default) | K53: Within agreed timeframe (1 week default) | L53: Within agreed timeframe (1 week default) | N53: No | O53: n/a | P53: Allconnex Water Customer Service Standard
B54: 39 | C54: Response and repair time for water supply - Priority 5 | D54: Drinking water | E54: Allconnex (all districts) | F54: Surface Reinstatement and clean up completed | I54: Within agreed timeframe (1 week default) | J54: Within agreed timeframe (1 week default) | K54: Within agreed timeframe (1 week default) | L54: Within agreed timeframe (1 week default) | N54: No | O54: n/a | P54: Allconnex Water Customer Service Standard
B55: 40 | C55: Response and repair time for water supply - Priority 5 | D55: Drinking water | E55: Allconnex (all districts) | F55: Compliance | I55: 0.8 | J55: 0.8 | K55: 0.8 | L55: 0.8 | N55: No | O55: n/a | P55: Allconnex Water Customer Service Standard
B56: 41 | C56: Response and repair time for wastewater supply - Priority 1 | D56: Waste-water via Sewer | E56: Allconnex (all districts) | F56: Response time | I56: Within 1 Hour | J56: Within 1 Hour | K56: Within 1 Hour | L56: Within 1 Hour | N56: No | O56: n/a | P56: Allconnex Water Customer Service Standard
B57: 42 | C57: Response and repair time for wastewater supply - Priority 1 | D57: Waste-water via Sewer | E57: Allconnex (all districts) | F57: Repairs to commence | I57: Within 1 hour | J57: Within 1 hour | K57: Within 1 hour | L57: Within 1 hour | N57: No | O57: n/a | P57: Allconnex Water Customer Service Standard
B58: 43 | C58: Response and repair time for wastewater supply - Priority 1 | D58: Waste-water via Sewer | E58: Allconnex (all districts) | F58: Fault repaired (i.e. asset functioning and back in service) | I58: Within 5 hours | J58: Within 5 hours | K58: Within 5 hours | L58: Within 5 hours | N58: No | O58: n/a | P58: Allconnex Water Customer Service Standard
B59: 44 | C59: Response and repair time for wastewater supply - Priority 1 | D59: Waste-water via Sewer | E59: Allconnex (all districts) | F59: Surface reinstatement and clean up completed | I59: Within 5 working days (if not, notify customer at time of repair) | J59: Within 5 working days (if not, notify customer at time of repair) | K59: Within 5 working days (if not, notify customer at time of repair) | L59: Within 5 working days (if not, notify customer at time of repair) | N59: No | O59: n/a | P59: Allconnex Water Customer Service Standard
B60: 45 | C60: Response and repair time for wastewater supply - Priority 1 | D60: Waste-water via Sewer | E60: Allconnex (all districts) | F60: Compliance | I60: 0.8 | J60: 0.8 | K60: 0.8 | L60: 0.8 | N60: No | O60: n/a | P60: Allconnex Water Customer Service Standard
B61: 46 | C61: Response and repair time for wastewater supply - Priority 2 | D61: Waste-water via Sewer | E61: Allconnex (all districts) | F61: Response time | I61: Within 4 hours | J61: Within 4 hours | K61: Within 4 hours | L61: Within 4 hours | N61: No | O61: n/a | P61: Allconnex Water Customer Service Standard
B62: 47 | C62: Response and repair time for wastewater supply - Priority 2 | D62: Waste-water via Sewer | E62: Allconnex (all districts) | F62: Repairs to commence | I62: Within 16 hours | J62: Within 16 hours | K62: Within 16 hours | L62: Within 16 hours | N62: No | O62: n/a | P62: Allconnex Water Customer Service Standard
B63: 48 | C63: Response and repair time for wastewater supply - Priority 2 | D63: Waste-water via Sewer | E63: Allconnex (all districts) | F63: Fault repaired (i.e. asset functioning and back in service) | I63: Within 24 hours | J63: Within 24 hours | K63: Within 24 hours | L63: Within 24 hours | N63: No | O63: n/a | P63: Allconnex Water Customer Service Standard
B64: 49 | C64: Response and repair time for wastewater supply - Priority 2 | D64: Waste-water via Sewer | E64: Allconnex (all districts) | F64: Surface reinstatement and clean up completed | I64: Within 5 working days (if not, notify customer at time of repair) | J64: Within 5 working days (if not, notify customer at time of repair) | K64: Within 5 working days (if not, notify customer at time of repair) | L64: Within 5 working days (if not, notify customer at time of repair) | N64: No | O64: n/a | P64: Allconnex Water Customer Service Standard
B65: 50 | C65: Response and repair time for wastewater supply - Priority 2 | D65: Waste-water via Sewer | E65: Allconnex (all districts) | F65: Compliance | I65: 0.8 | J65: 0.8 | K65: 0.8 | L65: 0.8 | N65: No | O65: n/a | P65: Allconnex Water Customer Service Standard
B66: 51 | C66: Response and repair time for wastewater supply - Priority 3 | D66: Waste-water via Sewer | E66: Allconnex (all districts) | F66: Response time | I66: Within 36 hours | J66: Within 36 hours | K66: Within 36 hours | L66: Within 36 hours | N66: No | O66: n/a | P66: Allconnex Water Customer Service Standard
B67: 52 | C67: Response and repair time for wastewater supply - Priority 3 | D67: Waste-water via Sewer | E67: Allconnex (all districts) | F67: Repairs to commence | I67: Within 48 hours | J67: Within 48 hours | K67: Within 48 hours | L67: Within 48 hours | N67: No | O67: n/a | P67: Allconnex Water Customer Service Standard
B68: 53 | C68: Response and repair time for wastewater supply - Priority 3 | D68: Waste-water via Sewer | E68: Allconnex (all districts) | F68: Fault repaired (i.e. asset functioning and back in service) | I68: Within 48 hours | J68: Within 48 hours | K68: Within 48 hours | L68: Within 48 hours | N68: No | O68: n/a | P68: Allconnex Water Customer Service Standard
B69: 54 | C69: Response and repair time for wastewater supply - Priority 3 | D69: Waste-water via Sewer | E69: Allconnex (all districts) | F69: Surface reinstatement and clean up completed | I69: Within 5 working days (if not, notify customer at time of repair) | J69: Within 5 working days (if not, notify customer at time of repair) | K69: Within 5 working days (if not, notify customer at time of repair) | L69: Within 5 working days (if not, notify customer at time of repair) | N69: No | O69: n/a | P69: Allconnex Water Customer Service Standard
B70: 55 | C70: Response and repair time for wastewater supply - Priority 3 | D70: Waste-water via Sewer | E70: Allconnex (all districts) | F70: Compliance | I70: 0.8 | J70: 0.8 | K70: 0.8 | L70: 0.8 | N70: No | O70: n/a | P70: Allconnex Water Customer Service Standard
B71: 56 | C71: Response and repair time for wastewater supply - Priority 4 | D71: Waste-water via Sewer | E71: Allconnex (all districts) | F71: Response time | I71: Within 5 Days | J71: Within 5 Days | K71: Within 5 Days | L71: Within 5 Days | N71: No | O71: n/a | P71: Allconnex Water Customer Service Standard
B72: 57 | C72: Response and repair time for wastewater supply - Priority 4 | D72: Waste-water via Sewer | E72: Allconnex (all districts) | F72: Repairs to commence | I72: Within 5 days | J72: Within 5 days | K72: Within 5 days | L72: Within 5 days | N72: No | O72: n/a | P72: Allconnex Water Customer Service Standard
B73: 58 | C73: Response and repair time for wastewater supply - Priority 4 | D73: Waste-water via Sewer | E73: Allconnex (all districts) | F73: Fault repaired (i.e. asset functioning and back in service) | I73: Within 5 days | J73: Within 5 days | K73: Within 5 days | L73: Within 5 days | N73: No | O73: n/a | P73: Allconnex Water Customer Service Standard
B74: 59 | C74: Response and repair time for wastewater supply - Priority 4 | D74: Waste-water via Sewer | E74: Allconnex (all districts) | F74: Surface reinstatement and clean up completed | I74: Within 5 working days (if not, notify customer at time of repair) | J74: Within 5 working days (if not, notify customer at time of repair) | K74: Within 5 working days (if not, notify customer at time of repair) | L74: Within 5 working days (if not, notify customer at time of repair) | N74: No | O74: n/a | P74: Allconnex Water Customer Service Standard
B75: 60 | C75: Response and repair time for wastewater supply - Priority 4 | D75: Waste-water via Sewer | E75: Allconnex (all districts) | F75: Compliance | I75: 0.8 | J75: 0.8 | K75: 0.8 | L75: 0.8 | N75: No | O75: n/a | P75: Allconnex Water Customer Service Standard
B76: 61 | C76: Response and repair time for wastewater supply - Priority 5 | D76: Waste-water via Sewer | E76: Allconnex (all districts) | F76: Response time | I76: Within agreed timeframe (1 week default) | J76: Within agreed timeframe (1 week default) | K76: Within agreed timeframe (1 week default) | L76: Within agreed timeframe (1 week default) | N76: No | O76: n/a | P76: Allconnex Water Customer Service Standard
B77: 62 | C77: Response and repair time for wastewater supply - Priority 5 | D77: Waste-water via Sewer | E77: Allconnex (all districts) | F77: Repairs to commence | I77: Within agreed timeframe (1 week default) | J77: Within agreed timeframe (1 week default) | K77: Within agreed timeframe (1 week default) | L77: Within agreed timeframe (1 week default) | N77: No | O77: n/a | P77: Allconnex Water Customer Service Standard
B78: 63 | C78: Response and repair time for wastewater supply - Priority 5 | D78: Waste-water via Sewer | E78: Allconnex (all districts) | F78: Fault repaired (i.e. asset functioning and back in service) | I78: Within agreed timeframe (1 week default) | J78: Within agreed timeframe (1 week default) | K78: Within agreed timeframe (1 week default) | L78: Within agreed timeframe (1 week default) | N78: No | O78: n/a | P78: Allconnex Water Customer Service Standard
B79: 64 | C79: Response and repair time for wastewater supply - Priority 5 | D79: Waste-water via Sewer | E79: Allconnex (all districts) | F79: Surface reinstatement and clean up completed | I79: Within agreed timeframe | J79: Within agreed timeframe | K79: Within agreed timeframe | L79: Within agreed timeframe | N79: No | O79: n/a | P79: Allconnex Water Customer Service Standard
B80: 65 | C80: Response and repair time for wastewater supply - Priority 5 | D80: Waste-water via Sewer | E80: Allconnex (all districts) | F80: Compliance | I80: 0.8 | J80: 0.8 | K80: 0.8 | L80: 0.8 | N80: No | O80: n/a | P80: Allconnex Water Customer Service Standard
B81: 66 | C81: Enter service standard description | F81: [specify] | N81: [yes/no]
B82: 67 | C82: Enter service standard description | F82: [specify] | N82: [yes/no]
B83: 68 | C83: Enter service standard description | F83: [specify] | N83: [yes/no]
B84: 69 | C84: Enter service standard description | F84: [specify] | N84: [yes/no]
B85: 70 | C85: Enter service standard description | F85: [specify] | N85: [yes/no]
A124: List for Geographic Areas
A125: ='Business Details'!D12 -> Gold Coast
A126: ='Business Details'!D13 -> Logan
A127: ='Business Details'!D14 -> Redland
A128: ='Business Details'!D15 -> Allconnex (all districts)
A129: ='Business Details'!D16 -> 0
A131: List for Services
A132: Drinking water
A133: Other Core Water Services
A134: Waste-water via Sewer
A135: Trade Waste
A136: Other Core Waste-water Services
A137: Aggregate Non-regulated Services
A139: (Yes/No)
A140: Yes
A141: No
AG191: =AF191 -> 

Sheet 5.4.1
B4: ='Business Details'!$B$4 -> SEQ INTERIM REVENUE MONITORING - INFORMATION REQUIREMENT TEMPLATE
B7: =CONCATENATE("Demand Details for ",'Business Details'!D9," - Geographic Areas") -> Demand Details for Allconnex Water - Geographic Areas
B8: =CONCATENATE("Reporting year = ",AnalysisYear) -> Reporting year = 2012
F11: ='5.2.1'!F11 -> For Year Ending 30 June: | L11: Estimated annual | N11: =CONCATENATE("For Year Ending 30 June ",AnalysisYear) -> For Year Ending 30 June 2012
C12: Revenue Source | F12: ='5.1.1'!F13 -> 2009 | G12: ='5.1.1'!G13 -> 2010 | H12: ='5.1.1'!H13 -> 2011 | I12: ='5.1.1'!I13 -> 2012 | J12: ='5.1.1'!J13 -> 2013 | K12: ='5.1.1'!K13 -> 2014 | L12: =CONCATENATE("increase post ",K12) -> increase post 2014 | N12: Supporting Documents | AG12: =AF12 -> 
B14: ="Geographical Area 1 - "&'Business Details'!$D$12 -> Geographical Area 1 - Gold Coast
B16: WATER
C17: Drinking Water:
C18: Residential Demand | E18: ML | F18: 30096 | G18: 39144 | H18: 35038.41362 | I18: 38294.18784 | J18: 39168.72846 | K18: 40148.44717
C19: Non-residential Demand | E19: ML | F19: 10934 | G19: 11771 | H19: 10466.01965 | I19: 12029.97749 | J19: 12320.31741 | K19: 12643.52611
C20: Other Demand (Inc Commercially Negotiated ) | E20: ML | F20: 556 | G20: 420 | H20: 430.75 | I20: 427 | J20: 427 | K20: 427 | N20: Standpipe demand
C21: Non-revenue water | E21: ML | F21: 4663 | G21: 5556 | H21: 5392.616727 | I21: 5430.374691 | J21: 5555.016907 | K21: 5694.430141
C22: Other core water services: | E22: ML | H22: 200.384 | I22: 159.495 | J22: 159.459 | K22: 159.423 | N22: Recycled water (NB. Not differentiated for 2009 and 2010)
B23: Total Water | E23: ML | F23: =SUM(F18:F22) -> 46249 | G23: 56891 | H23: =SUM(H18:H21) -> 51327.8 | I23: 56341.03502 | J23: 57630.52177 | K23: 59072.82642
B25: WASTEWATER | F25: =SUM(F26:F27)/SUM(F18:F20) -> 1.084358854 | G25: =SUM(G26:G27)/SUM(G18:G20) -> 0.8852853275
C26: Wastewater via sewer | E26: [specify] | F26: 41545.23792 | G26: 41869.51246 | H26: 37775.21861 | I26: 41464.76012 | J26: 42413.77106 | K26: 43475.2499 | N26: NB. Estimated treatment plant volume (not charged volume)
C27: Trade waste | E27: [specify] | F27: 3548.909394 | G27: 3576.609824 | H27: 3226.863893 | I27: 3542.034757 | J27: 3623.101902 | K27: 3713.776367 | N27: NB. Estimated treatment plant volume (not charged volume)
C28: Other core wastewater services | E28: [specify]
B29: Total Wastewater | E29: [specify] | F29: =SUM(F26:F28) -> 45094.14732 | G29: 45446.12229 | H29: 41002.0825 | I29: 45006.79488 | J29: 46036.87297 | K29: 47189.02627
F30: 0 | G30: 0
B31: NON-REGULATED
C32: Aggregate non-regulated services | E32: [specify] | N32: Not available on a quantity basis
F36: =F$11 -> For Year Ending 30 June: | L36: =L$11 -> Estimated annual | N36: =CONCATENATE("For Year Ending 30 June ",AnalysisYear) -> For Year Ending 30 June 2012
C37: =C12 -> Revenue Source | F37: =F$12 -> 2009 | G37: 2010 | H37: 2011 | I37: 2012 | J37: 2013 | K37: 2014 | L37: increase post 2014 | N37: Supporting Documents | AG37: =AF37 -> 
B39: ="Geographical Area 2 - "&'Business Details'!$D$13 -> Geographical Area 2 - Logan
B41: =B16 -> WATER
C42: Drinking Water:
C43: Residential Demand | E43: ML | F43: 13650.50439 | G43: 15487 | H43: 13682.21612 | I43: 15293.5927 | J43: 15578.97555 | K43: 15906.14418
C44: Non-residential Demand | E44: ML | F44: 3347.463398 | G44: 3752 | H44: 3209.408719 | I44: 3642.074746 | J44: 3731.587445 | K44: 3831.051168
C45: Other Demand (Inc Commercially Negotiated ) | E45: ML | F45: 117 | G45: 130 | H45: 130 | I45: 130 | J45: 130 | K45: 130 | N45: Standpipe demand
C46: Non-revenue water | E46: ML | F46: 1750 | G46: 1980 | H46: 1137.375162 | I46: 1143.940047 | J46: 1166.43378 | K46: 1192.031721
C47: =C22 -> Other core water services: | E47: =E22 -> ML | I47: 0 | J47: 0 | K47: 0 | N47: Recycled water (NB. Not differentiated for 2009 and 2010)
B48: =B23 -> Total Water | E48: =E23 -> ML | F48: =SUM(F43:F47) -> 18864.96779 | G48: 21349 | H48: 18159 | I48: 20209.60749 | J48: 20606.99678 | K48: 21059.22707
B50: =B25 -> WASTEWATER
C51: =C26 -> Wastewater via sewer | E51: [specify] | F51: 19527.48 | G51: 19669.53492 | H51: 16310.89325 | I51: 18152.80304 | J51: 18509.74859 | K51: 18915.95378 | N51: NB. Estimated treatment plant volume (not charged volume)
C52: =C27 -> Trade waste | E52: [specify] | F52: 1136.52 | G52: 1144.787747 | H52: 1393.321718 | I52: 1550.662759 | J52: 1581.154037 | K52: 1615.85321 | N52: NB. Estimated treatment plant volume (not charged volume)
C53: =C28 -> Other core wastewater services | E53: [specify]
B54: =B29 -> Total Wastewater | E54: [specify] | F54: =SUM(F51:F53) -> 20664 | G54: 20814.32267 | H54: 17704.21497 | I54: 19703.4658 | J54: 20090.90263 | K54: 20531.80699
F55: 0 | G55: 0
B56: =B31 -> NON-REGULATED
C57: =C32 -> Aggregate non-regulated services | E57: [specify] | N57: Not available on a quantity basis
F61: =F$11 -> For Year Ending 30 June: | L61: =L$11 -> Estimated annual | N61: =CONCATENATE("For Year Ending 30 June ",AnalysisYear) -> For Year Ending 30 June 2012
C62: =C37 -> Revenue Source | F62: =F$12 -> 2009 | G62: 2010 | H62: 2011 | I62: 2012 | J62: 2013 | K62: 2014 | L62: increase post 2014 | N62: Supporting Documents | AG62: =AF62 -> 
B64: ="Geographical Area 3 - "&'Business Details'!$D$14 -> Geographical Area 3 - Redland
B66: =B41 -> WATER
C67: Drinking Water:
C68: Residential Demand | E68: ML | F68: 9868 | G68: 10016.868 | H68: 8900.320356 | I68: 9594.982676 | J68: 9740.817416 | K68: 9912.867956
C69: Non-residential Demand | E69: ML | F69: 1076 | G69: 1500 | H69: 1695.299116 | I69: 1652.421104 | J69: 1687.656584 | K69: 1727.406876
C70: Other Demand (Inc Commercially Negotiated ) | E70: ML | F70: 0 | G70: 0 | H70: 3.7341 | I70: 55 | J70: 55 | K70: 55 | N70: Standpipe demand
C71: Non-revenue water | E71: ML | F71: 0 | G71: 1056.132 | H71: 943.9464281 | I71: 1017.21634 | J71: 1033.51266 | K71: 1052.574735
C72: =C47 -> Other core water services: | E72: =E47 -> ML | I72: 0 | J72: 0 | K72: 0 | N72: Recycled water (NB. Not differentiated for 2009 and 2010)
B73: =B48 -> Total Water | E73: =E48 -> ML | F73: =SUM(F68:F72) -> 10944 | G73: 12573 | H73: 11543.3 | I73: 12319.62012 | J73: 12516.98666 | K73: 12747.84957
B75: =B50 -> WASTEWATER
C76: =C51 -> Wastewater via sewer | E76: [specify] | F76: 9644.640235 | G76: 9759.565025 | H76: 8960.278927 | I76: 9562.883452 | J76: 9716.085678 | K76: 9895.288855 | N76: NB. Estimated treatment plant volume (not charged volume)
C77: =C52 -> Trade waste | E77: [specify] | F77: 1071.626693 | G77: 1084.396114 | H77: 1125.420258 | I77: 1201.108007 | J77: 1220.350364 | K77: 1242.858468 | N77: NB. Estimated treatment plant volume (not charged volume)
C78: =C53 -> Other core wastewater services | E78: [specify]
B79: =B54 -> Total Wastewater | E79: [specify] | F79: =SUM(F76:F78) -> 10716.26693 | G79: 10843.96114 | H79: 10085.69919 | I79: 10763.99146 | J79: 10936.43604 | K79: 11138.14732
F80: 0 | G80: 0
B81: =B56 -> NON-REGULATED
C82: =C57 -> Aggregate non-regulated services | E82: [specify] | N82: Not available on a quantity basis
F86: =F$11 -> For Year Ending 30 June: | L86: =L$11 -> Estimated annual | N86: =CONCATENATE("For Year Ending 30 June ",AnalysisYear) -> For Year Ending 30 June 2012
C87: =C62 -> Revenue Source | F87: =F$12 -> 2009 | G87: 2010 | H87: 2011 | I87: 2012 | J87: 2013 | K87: 2014 | L87: increase post 2014 | N87: Supporting Documents | AG87: =AF87 -> 
B89: ="Geographical Area 4 - "&'Business Details'!$D$15 -> Geographical Area 4 - Allconnex (all districts)
B91: =B66 -> WATER
C92: Drinking Water:
C93: Residential Demand | E93: ML
C94: Non-residential Demand | E94: ML
C95: Other Demand (Inc Commercially Negotiated ) | E95: ML
C96: Non-revenue water | E96: ML
C97: =C72 -> Other core water services: | E97: =E72 -> ML
B98: =B73 -> Total Water | E98: =E73 -> ML | F98: =SUM(F93:F97) -> 0 | G98: 0 | H98: 0 | I98: 0 | J98: 0 | K98: 0
B100: =B75 -> WASTEWATER
C101: =C76 -> Wastewater via sewer | E101: [specify]
C102: =C77 -> Trade waste | E102: [specify]
C103: =C78 -> Other core wastewater services | E103: [specify]
B104: =B79 -> Total Wastewater | E104: [specify] | F104: =SUM(F101:F103) -> 0 | G104: 0 | H104: 0 | I104: 0 | J104: 0 | K104: 0
B106: =B81 -> NON-REGULATED
C107: =C82 -> Aggregate non-regulated services | E107: [specify]
F111: =F$11 -> For Year Ending 30 June: | L111: =L$11 -> Estimated annual | N111: =CONCATENATE("For Year Ending 30 June ",AnalysisYear) -> For Year Ending 30 June 2012
C112: =C87 -> Revenue Source | F112: =F$12 -> 2009 | G112: 2010 | H112: 2011 | I112: 2012 | J112: 2013 | K112: 2014 | L112: increase post 2014 | N112: Supporting Documents | AG112: =AF112 -> 
B114: ="Geographical Area 5 - "&'Business Details'!$D$16 -> Geographical Area 5 -
B116: =B91 -> WATER
C117: Drinking Water:
C118: Residential Demand | E118: ML
C119: Non-residential Demand | E119: ML
C120: Other Demand (Inc Commercially Negotiated ) | E120: ML
C121: Non-revenue water | E121: ML
C122: =C97 -> Other core water services: | E122: =E97 -> ML
B123: =B98 -> Total Water | E123: =E98 -> ML | F123: =SUM(F118:F122) -> 0 | G123: 0 | H123: 0 | I123: 0 | J123: 0 | K123: 0
B125: =B100 -> WASTEWATER
C126: =C101 -> Wastewater via sewer | E126: [specify]
C127: =C102 -> Trade waste | E127: [specify]
C128: =C103 -> Other core wastewater services | E128: [specify]
B129: =B104 -> Total Wastewater | E129: [specify] | F129: =SUM(F126:F128) -> 0 | G129: 0 | H129: 0 | I129: 0 | J129: 0 | K129: 0
B131: =B106 -> NON-REGULATED
C132: =C107 -> Aggregate non-regulated services | E132: [specify]
F136: =F$11 -> For Year Ending 30 June: | L136: =L$11 -> Estimated annual | N136: =CONCATENATE("For Year Ending 30 June ",AnalysisYear) -> For Year Ending 30 June 2012
C137: =C112 -> Revenue Source | F137: =F$12 -> 2009 | G137: 2010 | H137: 2011 | I137: 2012 | J137: 2013 | K137: 2014 | L137: increase post 2014 | N137: Supporting Documents | AG137: =AF137 -> 
B139: Total
B141: =B116 -> WATER
C142: Drinking Water:
C143: Residential Demand | E143: ML | F143: =F18+F43+F68+F93+F118 -> 53614.50439 | G143: 64647.868 | H143: 57620.9501 | I143: 63182.76321 | J143: 64488.52142 | K143: 65967.4593
C144: Non-residential Demand | E144: ML | F144: 15357.4634 | G144: 17023 | H144: =H19+H44+H69+H94+H119 -> 15370.72749 | I144: 17324.47334 | J144: 17739.56144 | K144: 18201.98415
C145: Other Demand (Inc Commercially Negotiated ) | E145: ML | F145: 673 | G145: 550 | H145: =H20+H45+H70+H95+H120 -> 564.4841 | I145: 612 | J145: 612 | K145: 612
C146: Non-revenue water | E146: ML | F146: 6413 | G146: 8592.132 | H146: =H21+H46+H71+H96+H121 -> 7473.938317 | I146: 7591.531078 | J146: 7754.963347 | K146: 7939.036597
C147: =C122 -> Other core water services: | E147: =E122 -> ML | F147: 0 | G147: 0 | H147: =H22+H47+H72+H97+H122 -> 200.384 | I147: 159.495 | J147: 159.459 | K147: 159.423
B148: =B123 -> Total Water | E148: =E123 -> ML | F148: =SUM(F143:F147) -> 76057.96779 | G148: 90813 | H148: 81230.484 | I148: 88870.26264 | J148: 90754.50521 | K148: 92879.90305
B150: =B125 -> WASTEWATER
C151: =C126 -> Wastewater via sewer | E151: [specify] | F151: =F26+F51+F76+F101+F126 -> 70717.35816 | G151: 71298.61241 | H151: =H26+H51+H76+H101+H126 -> 63046.39079 | I151: 69180.44662 | J151: 70639.60533 | K151: 72286.49253 | N151: NB. Estimated treatment plant volume (not charged volume)
C152: =C127 -> Trade waste | E152: [specify] | F152: 5757.056086 | G152: 5805.793685 | H152: =H27+H52+H77+H102+H127 -> 5745.605869 | I152: 6293.805522 | J152: 6424.606303 | K152: 6572.488045 | N152: NB. Estimated treatment plant volume (not charged volume)
C153: =C128 -> Other core wastewater services | E153: [specify] | F153: 0 | G153: 0 | H153: =H28+H53+H78+H103+H128 -> 0 | I153: 0 | J153: 0 | K153: 0
B154: =B129 -> Total Wastewater | E154: [specify] | F154: =SUM(F151:F153) -> 76474.41424 | G154: 77104.4061 | H154: 68791.99666 | I154: 75474.25214 | J154: 77064.21163 | K154: 78858.98058
B156: =B131 -> NON-REGULATED
C157: =C132 -> Aggregate non-regulated services | E157: [specify] | F157: =F32+F57+F82+F107+F132 -> 0 | G157: 0 | H157: 0 | I157: 0 | J157: 0 | K157: 0 | N157: Not available on a quantity basis

Sheet 5.5.1
B4: ='Business Details'!$B$4 -> SEQ INTERIM REVENUE MONITORING - INFORMATION REQUIREMENT TEMPLATE
B7: =CONCATENATE("Opening Asset Base for ",'Business Details'!D9) -> Opening Asset Base for Allconnex Water
B8: =CONCATENATE("Reporting year = ",AnalysisYear) -> Reporting year = 2012
F11: Geographic Area 1 | G11: Geographic Area 2 | H11: Geographic Area 3 | I11: Geographic Area 4 | J11: Geographic Area 5
E12: Numeration | F12: ='Business Details'!$D$12 -> Gold Coast | G12: ='Business Details'!$D$13 -> Logan | H12: ='Business Details'!$D$14 -> Redland | I12: ='Business Details'!$D$15 -> Allconnex (all districts) | J12: ='Business Details'!$D$16 -> 0 | K12: Total | M12: Supporting Documents
B14: WRITTEN DOWN VALUE as at 1 July 2008
B16: Total WDV (accounting values) as at 1 July 2008 | E16: $'000 | K16: 4193097.262 | L16: =IF(K16='5.5.1 SD04'!K16,"OK","check") -> OK | M16: From fixed asset registers (accounting value)
B19: REGULATORY ASSET BASE VALUES as at 1 July 2008
C20: Water:
C21: Drinking water | E21: $'000 | F21: ='5.5.1 SD03'!F37 -> 849721.4351 | G21: ='5.5.1 SD03'!G37 -> 435148.0652 | H21: ='5.5.1 SD03'!H37 -> 172080.9499 | I21: ='5.5.1 SD03'!I37 -> 0 | J21: ='5.5.1 SD03'!J37 -> 0 | K21: =SUM(F21:J21) -> 1456950.45
C22: Other core water services | E22: $'000 | F22: ='5.5.1 SD03'!F56 -> 0 | G22: ='5.5.1 SD03'!G56 -> 0 | H22: ='5.5.1 SD03'!H56 -> 0 | I22: ='5.5.1 SD03'!I56 -> 0 | J22: ='5.5.1 SD03'!J56 -> 0 | K22: =SUM(F22:J22) -> 0
C24: Wastewater:
C25: Wastewater via sewer | E25: $'000 | F25: ='5.5.1 SD03'!F75 -> 1180349.721 | G25: ='5.5.1 SD03'!G75 -> 538918.3184 | H25: ='5.5.1 SD03'!H75 -> 223977.6451 | I25: ='5.5.1 SD03'!I75 -> 0 | J25: ='5.5.1 SD03'!J75 -> 0 | K25: =SUM(F25:J25) -> 1943245.685
C26: Trade waste | E26: $'000 | F26: ='5.5.1 SD03'!F94 -> 100828.7453 | G26: ='5.5.1 SD03'!G94 -> 31365.61641 | H26: ='5.5.1 SD03'!H94 -> 24886.40501 | I26: ='5.5.1 SD03'!I94 -> 0 | J26: ='5.5.1 SD03'!J94 -> 0 | K26: =SUM(F26:J26) -> 157080.7667
C27: Other core wastewater services | E27: $'000 | F27: ='5.5.1 SD03'!F113 -> 0 | G27: ='5.5.1 SD03'!G113 -> 0 | H27: ='5.5.1 SD03'!H113 -> 0 | I27: ='5.5.1 SD03'!I113 -> 0 | J27: ='5.5.1 SD03'!J113 -> 0 | K27: =SUM(F27:J27) -> 0
C29: Non-regulated:
C30: Aggregate non-regulated services | E30: $'000 | F30: ='5.5.1 SD03'!F132 -> 260.0983146 | G30: ='5.5.1 SD03'!G132 -> 0 | H30: ='5.5.1 SD03'!H132 -> 0 | I30: ='5.5.1 SD03'!I132 -> 0 | J30: ='5.5.1 SD03'!J132 -> 0 | K30: =SUM(F30:J30) -> 260.0983146
B32: Total RAB Value as at 1 July 2008 | E32: $'000 | F32: =SUM(F21:F22)+SUM(F25:F27)+F30 -> 2131160 | G32: 1005432 | H32: 420945 | I32: 0 | J32: 0 | K32: 3557537 | L32: =IF(K32='5.5.1 SD03'!K16,"OK","check") -> OK
B35: Basis for Disaggregated RAB
E36: Is the disaggregated RAB based on the ratio of the RAB advised by the Minister to the audited WDV of the assets? | M36: Yes
E38: If no (i.e. an alternative methodology was used), provide supporting documentation explaining the methodology used. | M38: n/a
A109: (Yes/No)
A110: Yes
A111: No

Sheet 5.5.1 SD01
B4: ='Business Details'!$B$4 -> SEQ INTERIM REVENUE MONITORING - INFORMATION REQUIREMENT TEMPLATE
B7: =CONCATENATE("Allocation of Opening Asset Base for ",'Business Details'!$D$9) -> Allocation of Opening Asset Base for Allconnex Water
B8: =CONCATENATE("Reporting year = ",AnalysisYear) -> Reporting year = 2012
B11: Unique identifier | C11: Asset Name | D11: Asset Description | E11: WDV as at 1 July 2008 ($'000) | F11: Regulatory Asset Base Values as at 1 July 2008 ($'000) | G11: Remaining Useful Life (Years) | I11: Allocation of RAB Value to QCA Asset Category (dropdown list) | K11: Allocation of RAB Value to Geographic Area (dropdown list) | M11: Allocation of RAB Value to Services ($'000) | T11: Basis of Allocation (dropdown list) | V11: Supporting Documents
M12: WATER | O12: WASTE WATER | R12: OTHER
M13: Drinking water | N13: Other core water services | O13: Waste-water via Sewer | P13: Trade Waste | Q13: Other core wastewater services | R13: Aggregate Non-regulated Services
C15: Mains | D15: Water | E15: 830421.2423 | F15: 736247.1855 | G15: 45 | I15: Mains | K15: Gold Coast | M15: =$F15 -> 736247.1855 | T15: Directly attributable | W15: NOTE: Need to check allocations as drop down menus have disappeared….
C16: Reservoirs | D16: Water | E16: 76713.17274 | F16: 68013.50284 | G16: 38 | I16: Reservoirs | K16: Gold Coast | M16: =$F16 -> 68013.50284 | T16: Directly attributable | W16: Did QCA comment on causal/non-causal allocation basis etc????
C17: Pump Stations | D17: Water | E17: 10041.46452 | F17: 8902.710594 | G17: 29 | I17: Pump stations | K17: Gold Coast | M17: 8902.710594 | T17: Directly attributable
C18: Telemetry | D18: Water | E18: 0 | F18: 0 | G18: 0 | I18: Associated telemetry and control systems | K18: Gold Coast | M18: 0 | T18: Directly attributable
C19: Meters | D19: Water | E19: 13343.26934 | F19: 11830.0737 | G19: 14.02308765 | I19: Meters | K19: Gold Coast | M19: 11830.0737 | T19: Directly attributable
C20: Software | D20: Water | E20: 0 | F20: 0 | G20: 0 | I20: Corporate systems | K20: Gold Coast | M20: 0 | T20: Directly attributable
C21: Plant & Equipment | D21: Water | E21: 588.31511 | F21: 521.5971387 | G21: 3.495338461 | I21: Sundry property, plant and equipment | K21: Gold Coast | M21: 521.5971387 | T21: Directly attributable
C22: Buildings | D22: Water | E22: 1538.26834 | F22: 1363.820767 | G22: 32.77862895 | I22: Building other than infrastructure housing | K22: Gold Coast | M22: 1363.820767 | T22: Directly attributable
C23: Land | D23: Water | E23: 25764.3555 | F23: 22842.54455 | G23: 0 | I23: Land | K23: Gold Coast | M23: 22842.54455 | T23: Directly attributable
E24: 0 | F24: 0 | G24: 0 | T24: 0
C25: Mains | D25: Wastewater Collection | E25: 1060845.137 | F25: 940539.8203 | G25: 41.10009444 | I25: Mains | K25: Gold Coast | O25: 866519.3365 | P25: 74020.48386 | T25: Causal allocation
C26: Pump Stations | D26: Wastewater Collection | E26: 113001.8266 | F26: 100186.836 | G26: 23 | I26: Pump stations | K26: Gold Coast | O26: 92302.13199 | P26: 7884.703992 | T26: Causal allocation
C27: Telemetry | D27: Wastewater Collection | E27: 0 | F27: 0 | G27: 0 | I27: Associated telemetry and control systems | K27: Gold Coast | O27: 0 | P27: 0 | T27: Causal allocation
C28: Plant & Equipment | D28: Wastewater Collection | E28: 286.9586 | F28: 254.416013 | G28: 2.364683204 | I28: Sundry property, plant and equipment | K28: Gold Coast | O28: 234.3934728 | P28: 20.02254023 | T28: Causal allocation
C29: Buildings | D29: Wastewater Collection | E29: 0 | F29: 0 | G29: 0 | I29: Building other than infrastructure housing | K29: Gold Coast | O29: 0 | P29: 0 | T29: Causal allocation
C30: Land | D30: Wastewater Collection | E30: 7025.7211 | F30: 6228.968049 | G30: 0 | I30: Land | K30: Gold Coast | O30: 5738.748264 | P30: 490.2197855 | T30: Causal allocation
E31: 0 | F31: 0 | G31: 0 | O31: 0 | P31: 0 | T31: 0
C32: Treatment Plant | D32: Wastewater Treatment | E32: 218536.7518 | F32: 193753.5557 | G32: 39.80535527 | I32: Treatment | K32: Gold Coast | O32: 178505.1509 | P32: 15248.40483 | T32: Causal allocation
C33: Plant & Equipment | D33: Wastewater Treatment | E33: 0 | F33: 0 | G33: 0 | I33: Sundry property, plant and equipment | K33: Gold Coast | O33: 0 | P33: 0 | T33: Causal allocation
C34: Buildings | D34: Wastewater Treatment | E34: 0 | F34: 0 | G34: 0 | I34: Building other than infrastructure housing | K34: Gold Coast | O34: 0 | P34: 0 | T34: Causal allocation
C35: Land | D35: Wastewater Treatment | E35: 41176.967 | F35: 36507.28632 | G35: 0 | I35: Land | K35: Gold Coast | O35: 33634.16289 | P35: 2873.123434 | T35: Causal allocation
E36: 0 | F36: 0 | G36: 0 | O36: 0 | P36: 0 | T36: 0
C37: Mains | D37: Recycled Water | E37: 4181.82472 | F37: 3707.584204 | G37: 44.87475474 | I37: Mains | K37: Gold Coast | O37: 3415.797327 | P37: 291.7868768 | T37: Causal allocation
C38: Reservoirs | D38: Recycled Water | E38: 0 | F38: 0 | G38: 0 | I38: Reservoirs | K38: Gold Coast | O38: 0 | P38: 0 | T38: Causal allocation
C39: Pump Stations | D39: Recycled Water | E39: 0 | F39: 0 | G39: 0 | I39: Pump stations | K39: Gold Coast | O39: 0 | P39: 0 | T39: Causal allocation
C40: Demineralised Water Plant | D40: Recycled Water | E40: 0 | F40: 0 | G40: 0 | I40: Sundry property, plant and equipment | K40: Gold Coast | O40: 0 | P40: 0 | T40: Causal allocation
C41: Other Filtration Plant | D41: Recycled Water | E41: 0 | F41: 0 | G41: 0 | I41: Sundry property, plant and equipment | K41: Gold Coast | O41: 0 | P41: 0 | T41: Causal allocation
C42: Buildings | D42: Recycled Water | E42: 0 | F42: 0 | G42: 0 | I42: Building other than infrastructure housing | K42: Gold Coast | O42: 0 | P42: 0 | T42: Causal allocation
C43: Land | D43: Recycled Water | E43: 0 | F43: 0 | G43: 0 | I43: Land | K43: Gold Coast | O43: 0 | P43: 0 | T43: Causal allocation
E44: 0 | F44: 0 | G44: 0 | T44: 0
C45: Software | D45: Competitive Services | E45: 0 | F45: 0 | G45: 0 | I45: Corporate systems | K45: Gold Coast | R45: =$F45 -> 0 | T45: Causal allocation
C46: Plant & Equipment | D46: Competitive Services | E46: 0 | F46: 0 | G46: 0 | I46: Sundry property, plant and equipment | K46: Gold Coast | R46: =$F46 -> 0 | T46: Causal allocation
C47: Buildings | D47: Competitive Services | E47: 0 | F47: 0 | G47: 0 | I47: Building other than infrastructure housing | K47: Gold Coast | R47: =$F47 -> 0 | T47: Causal allocation
C48: Land | D48: Competitive Services | E48: 0 | F48: 0 | G48: 0 | I48: Land | K48: Gold Coast | R48: =$F48 -> 0 | T48: Causal allocation
E49: 0 | F49: 0 | G49: 0 | T49: Causal allocation
C50: Software | D50: Support Services | E50: 0 | F50: 0 | G50: 0 | I50: Corporate systems | K50: Gold Coast | R50: =$F50 -> 0 | T50: Causal allocation
C51: Plant & Equipment | D51: Support Services | E51: 293.36773 | F51: 260.0983146 | G51: 3.902599089 | I51: Sundry property, plant and equipment | K51: Gold Coast | R51: =$F51 -> 260.0983146 | T51: Causal allocation
C52: Fleet | D52: Support Services | E52: 0 | F52: 0 | G52: 0 | I52: Sundry property, plant and equipment | K52: Gold Coast | R52: =$F52 -> 0 | T52: Causal allocation
C53: Buildings | D53: Support Services | E53: 0 | F53: 0 | G53: 0 | I53: Building other than infrastructure housing | K53: Gold Coast | R53: =$F53 -> 0 | T53: Causal allocation
C54: Land | D54: Support Services | E54: 0 | F54: 0 | G54: 0 | I54: Land | K54: Gold Coast | R54: =$F54 -> 0 | T54: Causal allocation
E55: 0 | F55: 0 | G55: 0 | T55: 0
C56: Mains | D56: Water | E56: 409453.6475 | F56: 376592.0001 | G56: 42.03561416 | I56: Mains | K56: Logan | M56: =$F56 -> 376592.0001 | T56: Directly attributable
C57: Reservoirs | D57: Water | E57: 42588.04157 | F57: 39170.04002 | G57: 42.10766603 | I57: Reservoirs | K57: Logan | M57: =$F57 -> 39170.04002 | T57: Directly attributable
C58: Pump Stations | D58: Water | E58: 5900.15154 | F58: 5426.621263 | G58: 16.13960646 | I58: Pump stations | K58: Logan | M58: 5426.621263 | T58: Directly attributable
C59: Telemetry | D59: Water | E59: 924.79407 | F59: 850.5725878 | G59: 8.633364313 | I59: Associated telemetry and control systems | K59: Logan | M59: 850.5725878 | T59: Directly attributable
C60: Meters | D60: Water | E60: 5876.29835 | F60: 5404.682466 | G60: 7.646607728 | I60: Meters | K60: Logan | M60: 5404.682466 | T60: Directly attributable
C61: Software | D61: Water | E61: 0 | F61: 0 | G61: 0 | I61: Corporate systems | K61: Logan | M61: 0 | T61: Directly attributable
C62: Plant & Equipment | D62: Water | E62: 250.76548 | F62: 230.6397177 | G62: 5.072639742 | I62: Sundry property, plant and equipment | K62: Logan | M62: 230.6397177 | T62: Directly attributable
C63: Buildings | D63: Water | E63: 1588.90194 | F63: 1461.380948 | G63: 24.2392296 | I63: Building other than infrastructure housing | K63: Logan | M63: 1461.380948 | T63: Directly attributable
C64: Land | D64: Water | E64: 6536.75 | F64: 6012.128044 | G64: 0 | I64: Land | K64: Logan | M64: 6012.128044 | T64: Directly attributable
E65: 0 | F65: 0 | G65: 0 | T65: 0
C66: Mains | D66: Wastewater Collection | E66: 499038.7438 | F66: 458987.2378 | G66: 43.21819401 | I66: Mains | K66: Logan | O66: 433742.9398 | P66: 25244.29808 | T66: Causal allocation
C67: Pump Stations | D67: Wastewater Collection | E67: 38728.92075 | F67: 35620.64184 | G67: 27.3284951 | I67: Pump stations | K67: Logan | O67: 33661.50654 | P67: 1959.135301 | T67: Causal allocation
C68: Telemetry | D68: Wastewater Collection | E68: 820.68766 | F68: 754.821478 | G68: 7.412825557 | I68: Associated telemetry and control systems | K68: Logan | O68: 713.3062967 | P68: 41.51518129 | T68: Causal allocation
C69: Plant & Equipment | D69: Wastewater Collection | E69: 90.7566 | F69: 83.47271964 | G69: 6.82617584 | I69: Sundry property, plant and equipment | K69: Logan | O69: 78.88172006 | P69: 4.59099958 | T69: Causal allocation
C70: Buildings | D70: Wastewater Collection | E70: 0 | F70: 0 | G70: 0 | I70: Building other than infrastructure housing | K70: Logan | O70: 0 | P70: 0 | T70: Causal allocation
C71: Land | D71: Wastewater Collection | E71: 13682 | F71: 12583.91952 | G71: 0 | I71: Land | K71: Logan | O71: 11891.80394 | P71: 692.1155735 | T71: Causal allocation
E72: 0 | F72: 0 | G72: 0 | O72: 0 | P72: 0 | T72: 0
C73: Treatment Plant | D73: Wastewater Treatment | E73: 62838.67681 | F73: 57795.4138 | G73: 20.96313311 | I73: Treatment | K73: Logan | O73: 54616.66604 | P73: 3178.747759 | T73: Causal allocation
C74: Plant & Equipment | D74: Wastewater Treatment | E74: 0 | F74: 0 | G74: 0 | I74: Sundry property, plant and equipment | K74: Logan | O74: 0 | P74: 0 | T74: Causal allocation
C75: Buildings | D75: Wastewater Treatment | E75: 1369.47373 | F75: 1259.563456 | G75: 46.74145531 | I75: Building other than infrastructure housing | K75: Logan | O75: 1190.287466 | P75: 69.27599006 | T75: Causal allocation
C76: Land | D76: Wastewater Treatment | E76: 3477.999 | F76: 3198.864164 | G76: 0 | I76: Land | K76: Logan | O76: 3022.926635 | P76: 175.937529 | T76: Causal allocation
E77: 0 | F77: 0 | G77: 0 | T77: 0
C78: Mains | D78: Recycled Water | E78: 0 | F78: 0 | G78: 0 | I78: Mains | K78: Logan | S78: =$F78 -> 0 | T78: Causal allocation
C79: Reservoirs | D79: Recycled Water | E79: 0 | F79: 0 | G79: 0 | I79: Reservoirs | K79: Logan | S79: 0 | T79: Causal allocation
C80: Pump Stations | D80: Recycled Water | E80: 0 | F80: 0 | G80: 0 | I80: Pump stations | K80: Logan | S80: 0 | T80: Causal allocation
C81: Demineralised Water Plant | D81: Recycled Water | E81: 0 | F81: 0 | G81: 0 | I81: Sundry property, plant and equipment | K81: Logan | S81: 0 | T81: Causal allocation
C82: Other Filtration Plant | D82: Recycled Water | E82: 0 | F82: 0 | G82: 0 | I82: Sundry property, plant and equipment | K82: Logan | S82: 0 | T82: Causal allocation
C83: Buildings | D83: Recycled Water | E83: 0 | F83: 0 | G83: 0 | I83: Building other than infrastructure housing | K83: Logan | S83: 0 | T83: Causal allocation
C84: Land | D84: Recycled Water | E84: 0 | F84: 0 | G84: 0 | I84: Land | K84: Logan | S84: 0 | T84: Causal allocation
E85: 0 | F85: 0 | G85: 0 | T85: 0
C86: Software | D86: Competitive Services | E86: 0 | F86: 0 | G86: 0 | I86: Corporate systems | K86: Logan | T86: Causal allocation
C87: Plant & Equipment | D87: Competitive Services | E87: 0 | F87: 0 | G87: 0 | I87: Sundry property, plant and equipment | K87: Logan | T87: Causal allocation
C88: Buildings | D88: Competitive Services | E88: 0 | F88: 0 | G88: 0 | I88: Building other than infrastructure housing | K88: Logan | T88: Causal allocation
C89: Land | D89: Competitive Services | E89: 0 | F89: 0 | G89: 0 | I89: Land | K89: Logan | T89: Causal allocation
E90: 0 | F90: 0 | G90: 0 | T90: 0
C91: Software | D91: Support Services | E91: 0 | F91: 0 | G91: 0 | I91: Corporate systems | K91: Logan | T91: Causal allocation
C92: Plant & Equipment | D92: Support Services | E92: 0 | F92: 0 | G92: 0 | I92: Sundry property, plant and equipment | K92: Logan | T92: Causal allocation
C93: Fleet | D93: Support Services | E93: 0 | F93: 0 | G93: 0 | I93: Sundry property, plant and equipment | K93: Logan | T93: Causal allocation
C94: Buildings | D94: Support Services | E94: 0 | F94: 0 | G94: 0 | I94: Building other than infrastructure housing | K94: Logan | T94: Causal allocation
C95: Land | D95: Support Services | E95: 0 | F95: 0 | G95: 0 | I95: Land | K95: Logan | T95: Causal allocation
E96: 0 | F96: 0 | G96: 0 | T96: 0
C97: Mains | D97: Water | E97: 258542.348 | F97: 156329.3367 | G97: 36.47422645 | I97: Mains | K97: Redland | M97: =$F97 -> 156329.3367 | T97: Directly attributable
C98: Reservoirs | D98: Water | E98: 1455.2608 | F98: 879.9330453 | G98: 42.06174153 | I98: Reservoirs | K98: Redland | M98: =$F98 -> 879.9330453 | T98: Directly attributable
C99: Pump Stations | D99: Water | E99: 592.72255 | F99: 358.393601 | G99: 14.29739589 | I99: Pump stations | K99: Redland | M99: 358.393601 | T99: Directly attributable
C100: Telemetry | D100: Water | E100: 248.96469 | F100: 150.5381426 | G100: 8.468945474 | I100: Associated telemetry and control systems | K100: Redland | M100: 150.5381426 | T100: Directly attributable
C101: Meters | D101: Water | E101: 23317.9691 | F101: 14099.36388 | G101: 44.89801135 | I101: Meters | K101: Redland | M101: 14099.36388 | T101: Directly attributable
C102: Software | D102: Water | E102: 0 | F102: 0 | G102: 0 | I102: Corporate systems | K102: Redland | M102: 0 | T102: Directly attributable
C103: Plant & Equipment | D103: Water | E103: 145.59364 | F103: 88.03415513 | G103: 4.651096997 | I103: Sundry property, plant and equipment | K103: Redland | M103: 88.03415513 | T103: Directly attributable
C104: Buildings | D104: Water | E104: 0 | F104: 0 | G104: 0 | I104: Building other than infrastructure housing | K104: Redland | M104: 0 | T104: Directly attributable
C105: Land | D105: Water | E105: 290 | F105: 175.3504136 | G105: 0 | I105: Land | K105: Redland | M105: 175.3504136 | T105: Directly attributable
E106: 0 | F106: 0 | G106: 0 | T106: 0
C107: Mains | D107: Wastewater Collection | E107: 309937.9193 | F107: 187406.0081 | G107: 50.99879501 | I107: Mains | K107: Redland | O107: 168665.4073 | P107: 18740.60081 | T107: Causal allocation
C108: Pump Stations | D108: Wastewater Collection | E108: 17860.49717 | F108: 10799.46747 | G108: 16.21837493 | I108: Pump stations | K108: Redland | O108: 9719.52072 | P108: 1079.946747 | T108: Causal allocation
C109: Telemetry | D109: Wastewater Collection | E109: 1891.18144 | F109: 1143.515337 | G109: 12.2764034 | I109: Associated telemetry and control systems | K109: Redland | O109: 1029.163803 | P109: 114.3515337 | T109: Causal allocation
C110: Plant & Equipment | D110: Wastewater Collection | E110: 58.12193 | F110: 35.14380849 | G110: 2.860057658 | I110: Sundry property, plant and equipment | K110: Redland | O110: 31.62942764 | P110: 3.514380849 | T110: Causal allocation
C111: Buildings | D111: Wastewater Collection | E111: 93.79767 | F111: 56.71538009 | G111: 0 | I111: Building other than infrastructure housing | K111: Redland | O111: 51.04384208 | P111: 5.671538009 | T111: Causal allocation
C112: Land | D112: Wastewater Collection | E112: 491.6 | F112: 297.2491838 | G112: 0 | I112: Land | K112: Redland | O112: 267.5242655 | P112: 29.72491838 | T112: Causal allocation
E113: 0 | F113: 0 | G113: 0 | O113: 0 | P113: 0 | T113: 0
C114: Treatment Plant | D114: Wastewater Treatment | E114: 70757.13819 | F114: 42783.7705 | G114: 22.635084 | I114: Treatment | K114: Redland | O114: 38505.39345 | P114: 4278.37705 | T114: Causal allocation
C115: Plant & Equipment | D115: Wastewater Treatment | E115: 0 | F115: 0 | G115: 0 | I115: Sundry property, plant and equipment | K115: Redland | O115: 0 | P115: 0 | T115: Causal allocation
C116: Buildings | D116: Wastewater Treatment | E116: 4641.89624 | F116: 2806.753191 | G116: 41.88723209 | I116: Building other than infrastructure housing | K116: Redland | O116: 2526.077872 | P116: 280.6753191 | T116: Causal allocation
C117: Land | D117: Wastewater Treatment | E117: 5847 | F117: 3535.427132 | G117: 0 | I117: Land | K117: Redland | O117: 3181.884418 | P117: 353.5427132 | T117: Causal allocation
E118: 0 | F118: 0 | G118: 0 | T118: 0
C119: Mains | D119: Recycled Water | E119: 0 | F119: 0 | G119: 0 | I119: Mains | K119: Redland | S119: =$F119 -> 0 | T119: Causal allocation
C120: Reservoirs | D120: Recycled Water | E120: 0 | F120: 0 | G120: 0 | I120: Reservoirs | K120: Redland | S120: 0 | T120: Causal allocation
C121: Pump Stations | D121: Recycled Water | E121: 0 | F121: 0 | G121: 0 | I121: Pump stations | K121: Redland | S121: 0 | T121: Causal allocation
C122: Demineralised Water Plant | D122: Recycled Water | E122: 0 | F122: 0 | G122: 0 | I122: Sundry property, plant and equipment | K122: Redland | S122: 0 | T122: Causal allocation
C123: Other Filtration Plant | D123: Recycled Water | E123: 0 | F123: 0 | G123: 0 | I123: Sundry property, plant and equipment | K123: Redland | S123: 0 | T123: Causal allocation
C124: Buildings | D124: Recycled Water | E124: 0 | F124: 0 | G124: 0 | I124: Building other than infrastructure housing | K124: Redland | S124: 0 | T124: Causal allocation
C125: Land | D125: Recycled Water | E125: 0 | F125: 0 | G125: 0 | I125: Land | K125: Redland | S125: 0 | T125: Causal allocation
E126: 0 | F126: 0 | G126: 0 | T126: 0
C127: Software | D127: Competitive Services | E127: 0 | F127: 0 | G127: 0 | I127: Corporate systems | K127: Redland | T127: Causal allocation
C128: Plant & Equipment | D128: Competitive Services | E128: 0 | F128: 0 | G128: 0 | I128: Sundry property, plant and equipment | K128: Redland | T128: Causal allocation
C129: Buildings | D129: Competitive Services | E129: 0 | F129: 0 | G129: 0 | I129: Building other than infrastructure housing | K129: Redland | T129: Causal allocation
C130: Land | D130: Competitive Services | E130: 0 | F130: 0 | G130: 0 | I130: Land | K130: Redland | T130: Causal allocation
E131: 0 | F131: 0 | G131: 0 | T131: 0
C132: Software | D132: Support Services | E132: 0 | F132: 0 | G132: 0 | I132: Corporate systems | K132: Redland | T132: Causal allocation
C133: Plant & Equipment | D133: Support Services | E133: 0 | F133: 0 | G133: 0 | I133: Sundry property, plant and equipment | K133: Redland | T133: Causal allocation
C134: Fleet | D134: Support Services | E134: 0 | F134: 0 | G134: 0 | I134: Sundry property, plant and equipment | K134: Redland | T134: Causal allocation
C135: Buildings | D135: Support Services | E135: 0 | F135: 0 | G135: 0 | I135: Building other than infrastructure housing | K135: Redland | T135: Causal allocation
C136: Land | D136: Support Services | E136: 0 | F136: 0 | G136: 0 | I136: Land | K136: Redland | T136: Causal allocation
B139: Total | E139: =SUM(E15:E138) -> 4193097.262 | F139: =SUM(F15:F138) -> 3557537 | M139: =SUM(M15:M138) -> 1456950.45 | N139: 0 | O139: 1943245.685 | P139: 157080.7667 | Q139: 0 | R139: 260.0983146
D140: CHECK | E140: =E139-'5.5.1'!K16 -> 8.894130588e-08 | F140: =F139-'5.5.1'!K32 -> 0 | M140: 0 | N140: 0 | O140: 0 | P140: 0 | Q140: 0 | R140: 0
A171: List for Asset Categories
A173: ='Business Details'!D40 -> Reservoirs
A174: ='Business Details'!D41 -> Pump stations
A175: ='Business Details'!D42 -> Treatment
A176: ='Business Details'!D43 -> Associated telemetry and control systems
A177: ='Business Details'!D44 -> Meters
A178: ='Business Details'!D45 -> Billing systems
A179: ='Business Details'!D46 -> Corporate systems
A180: ='Business Details'!D47 -> Sundry property, plant and equipment
A181: ='Business Details'!D48 -> Land
A182: ='Business Details'!D49 -> Building other than infrastructure housing
A183: ='Business Details'!D50 -> Distribution infrastructure not included in another category
A184: ='Business Details'!D51 -> Support services
A185: ='Business Details'!D52 -> Mains
A186: ='Business Details'!D53 -> Establishment Costs
A187: ='Business Details'!D54 -> Unallocated cash contribution
A189: List for Geographic Areas
A190: =IF('Business Details'!D12="","Geographic Area 1",'Business Details'!D12) -> Gold Coast
A191: =IF('Business Details'!D13="","Geographic Area 2",'Business Details'!D13) -> Logan
A192: =IF('Business Details'!D14="","Geographic Area 3",'Business Details'!D14) -> Redland
A193: =IF('Business Details'!D15="","Geographic Area 4",'Business Details'!D15) -> Allconnex (all districts)
A194: =IF('Business Details'!D16="","Geographic Area 5",'Business Details'!D16) -> Geographic Area 5
A196: List for Allocation Basis
A197: Directly attributable
A198: Causal allocation
A199: Non-causal allocation

Sheet 5.5.1 SD02
B4: ='Business Details'!$B$4 -> SEQ INTERIM REVENUE MONITORING - INFORMATION REQUIREMENT TEMPLATE
B7: =CONCATENATE("Asset Allocation Workpaper for ",'Business Details'!$D$9) -> Asset Allocation Workpaper for Allconnex Water
B8: =CONCATENATE("Reporting year = ",AnalysisYear) -> Reporting year = 2012
B10: Unique Identifier: | D10: Gold Coast
B11: Asset Name: | D11: Gold Coast WW/Tradewaste Assets
B12: Type of Allocation: | D12: Causal allocation
F14: Value as at 1 July 2008 | H14: WATER | J14: WASTE WATER | M14: OTHER
H15: Drinking water | I15: Other core water services | J15: Waste-water via Sewer | K15: Trade Waste | L15: Other core wastewater services | M15: Aggregate Non-regulated Services
B17: Opening RAB value for the asset | D17: ($'000) | F17: =SUM('5.5.1 SD01'!F25:F43) -> 1281178.467 | J17: =$F$17*J20 -> 1180349.721 | K17: =$F$17*K20 -> 100828.7453
B19: Basis of allocation:
B20: Allocation of Wastewater Asset to Trade Waste and Sewerage | F20: 1 | J20: =1-K20 -> 0.9213 | K20: 0.0787
B22: Reason for choosing this basis:
B23: Estimated percentage volume of trade waste to sewerage (as provided by Council for initial 1 Jul 2008 RAB allocation)
B25: Unique Identifier: | D25: Logan
B26: Asset Name: | D26: Logan WW/Tradewaste Assets
B27: Type of Allocation: | D27: Causal allocation
F29: Value as at 1 July 2008 | H29: WATER | J29: WASTE WATER | M29: OTHER
H30: Drinking water | I30: Other core water services | J30: Waste-water via Sewer | K30: Trade Waste | L30: Other core wastewater services | M30: Aggregate Non-regulated Services
B32: Opening RAB value for the asset | D32: ($'000) | F32: =SUM('5.5.1 SD01'!F66:F76) -> 570283.9348 | J32: =$F$32*J35 -> 538918.3184 | K32: =$F$32*K35 -> 31365.61641
B34: Basis of allocation:
B35: Allocation of Wastewater Asset to Trade Waste and Sewerage | F35: 1 | J35: 0.945 | K35: 0.055
B37: Reason for choosing this basis:
B38: Estimated percentage volume of trade waste to sewerage (as provided by Council for initial 1 Jul 2008 RAB allocation)
B41: Unique Identifier: | D41: Redland
B42: Asset Name: | D42: Redland WW/Tradewaste Assets
B43: Type of Allocation: | D43: Causal allocation
F45: Value as at 1 July 2008 | H45: WATER | J45: WASTE WATER | M45: OTHER
H46: Drinking water | I46: Other core water services | J46: Waste-water via Sewer | K46: Trade Waste | L46: Other core wastewater services | M46: Aggregate Non-regulated Services
B48: Opening RAB value for the asset | D48: ($'000) | F48: =SUM('5.5.1 SD01'!F107:F117) -> 248864.0501 | J48: =$F$48*J51 -> 223977.6451 | K48: =$F$48*K51 -> 24886.40501
B50: Basis of allocation:
B51: Allocation of Wastewater Asset to Trade Waste and Sewerage | F51: 1 | J51: =1-K51 -> 0.9 | K51: 0.1
B53: Reason for choosing this basis: | J53: =J48+J32+J17-'5.5.1 SD01'!O139 -> 0 | K53: =K48+K32+K17-'5.5.1 SD01'!P139 -> 0
B54: Estimated percentage volume of trade waste to sewerage (as provided by Council for initial 1 Jul 2008 RAB allocation)
A67: List for Allocation Basis
A68: Causal allocation
A69: Non-causal allocation

Sheet 5.5.1 SD02 - New % split WW-TW
B4: ='Business Details'!$B$4 -> SEQ INTERIM REVENUE MONITORING - INFORMATION REQUIREMENT TEMPLATE
B7: =CONCATENATE("Asset Allocation Workpaper for ",'Business Details'!$D$9) -> Asset Allocation Workpaper for Allconnex Water
B8: =CONCATENATE("Reporting year = ",AnalysisYear) -> Reporting year = 2012
B10: Unique Identifier: | D10: Gold Coast
B11: Asset Name: | D11: Gold Coast WW/Tradewaste Assets
B12: Type of Allocation: | D12: Causal allocation
F14: Value as at 1 July 2008 | H14: WATER | J14: WASTE WATER | M14: OTHER
H15: Drinking water | I15: Other core water services | J15: Waste-water via Sewer | K15: Trade Waste | L15: Other core wastewater services | M15: Aggregate Non-regulated Services
B17: Opening RAB value for the asset | D17: ($'000) | F17: =SUM('5.5.1 SD01'!F25:F43) -> 1281178.467 | J17: =$F$17*J20 -> 1180349.721 | K17: =$F$17*K20 -> 100828.7453
B19: Basis of allocation:
B20: Allocation of Wastewater Asset to Trade Waste and Sewerage | F20: 1 | J20: =1-K20 -> 0.9213 | K20: 0.0787
B22: Reason for choosing this basis:
B23: Estimated percentage volume of trade waste to sewerage
B25: Unique Identifier: | D25: Logan
B26: Asset Name: | D26: Logan WW/Tradewaste Assets
B27: Type of Allocation: | D27: Causal allocation
F29: Value as at 1 July 2008 | H29: WATER | J29: WASTE WATER | M29: OTHER
H30: Drinking water | I30: Other core water services | J30: Waste-water via Sewer | K30: Trade Waste | L30: Other core wastewater services | M30: Aggregate Non-regulated Services
B32: Opening RAB value for the asset | D32: ($'000) | F32: =SUM('5.5.1 SD01'!F66:F76) -> 570283.9348 | J32: =$F$32*J35 -> 525402.5891 | K32: =$F$32*K35 -> 44881.34567
B34: Basis of allocation:
B35: Allocation of Wastewater Asset to Trade Waste and Sewerage | F35: 1 | J35: =1-K35 -> 0.9213 | K35: 0.0787
B37: Reason for choosing this basis:
B38: Estimated percentage volume of trade waste to sewerage
B41: Unique Identifier: | D41: Redland
B42: Asset Name: | D42: Redland WW/Tradewaste Assets
B43: Type of Allocation: | D43: Causal allocation
F45: Value as at 1 July 2008 | H45: WATER | J45: WASTE WATER | M45: OTHER
H46: Drinking water | I46: Other core water services | J46: Waste-water via Sewer | K46: Trade Waste | L46: Other core wastewater services | M46: Aggregate Non-regulated Services
B48: Opening RAB value for the asset | D48: ($'000) | F48: =SUM('5.5.1 SD01'!F107:F117) -> 248864.0501 | J48: =$F$48*J51 -> 223977.6451 | K48: =$F$48*K51 -> 24886.40501
B50: Basis of allocation:
B51: Allocation of Wastewater Asset to Trade Waste and Sewerage | F51: 1 | J51: =1-K51 -> 0.9 | K51: 0.1
B53: Reason for choosing this basis:
B54: Estimated percentage volume of trade waste to sewerage
A67: List for Allocation Basis
A68: Causal allocation
A69: Non-causal allocation

Sheet 5.5.1 SD03
B4: ='Business Details'!$B$4 -> SEQ INTERIM REVENUE MONITORING - INFORMATION REQUIREMENT TEMPLATE | K4: Provide (for each deemed category in section 3.4.2 of the Information Requirements, except for customer groups) details of the opening RAB for 1 July 2008. Entities are also required to allocate the RAB between asset classes. See sections 5.5.1 and 5.6.2 of the Information Requirements.
B5: 5.5.1 SD03 OPENING REGULATORY ASSET BASE as at 1 July 2008
B7: =CONCATENATE("Allocation of Opening RAB for ",'Business Details'!$D$9) -> Allocation of Opening RAB for Allconnex Water
B8: =CONCATENATE("Reporting year = ",AnalysisYear) -> Reporting year = 2012
F11: Geographic Area 1 | G11: Geographic Area 2 | H11: Geographic Area 3 | I11: Geographic Area 4 | J11: Geographic Area 5
E12: Numeration | F12: ='Business Details'!$D$12 -> Gold Coast | G12: ='Business Details'!$D$13 -> Logan | H12: ='Business Details'!$D$14 -> Redland | I12: ='Business Details'!$D$15 -> Allconnex (all districts) | J12: ='Business Details'!$D$16 -> 0 | K12: Total | M12: Supporting Documents
B14: WRITTEN DOWN VALUE as at 1 July 2008
B16: Total RAB as at 1 July 2008 | E16: $'000 | K16: =SUM(K37,K56,K75,K94,K113,K132) -> 3557537 | L16: =IF(K16='5.5.1'!K32,"OK","check") -> OK
B19: REGULATORY ASSET BASE VALUES as at 1 July 2008
B20: Drinking water
B21: ='Business Details'!$D$40 -> Reservoirs | E21: $'000 | F21: 68013.50284 | G21: 39170.04002 | H21: 879.9330453 | K21: =SUM(F21:H21) -> 108063.4759
B22: ='Business Details'!$D$41 -> Pump stations | E22: $'000 | F22: 8902.710594 | G22: 5426.621263 | H22: 358.393601 | K22: =SUM(F22:H22) -> 14687.72546
B23: ='Business Details'!$D$42 -> Treatment | E23: $'000 | F23: 0 | G23: 0 | H23: 0 | K23: 0
B24: ='Business Details'!$D$43 -> Associated telemetry and control systems | E24: $'000 | F24: 0 | G24: 850.5725878 | H24: 150.5381426 | K24: 1001.11073
B25: ='Business Details'!$D$44 -> Meters | E25: $'000 | F25: 11830.0737 | G25: 5404.682466 | H25: 14099.36388 | K25: 31334.12004
B26: ='Business Details'!$D$45 -> Billing systems | E26: $'000 | F26: 0 | G26: 0 | H26: 0 | K26: 0
B27: ='Business Details'!$D$46 -> Corporate systems | E27: $'000 | F27: 0 | G27: 0 | H27: 0 | K27: 0
B28: ='Business Details'!$D$47 -> Sundry property, plant and equipment | E28: $'000 | F28: 521.5971387 | G28: 230.6397177 | H28: 88.03415513 | K28: 840.2710116
B29: ='Business Details'!$D$48 -> Land | E29: $'000 | F29: 22842.54455 | G29: 6012.128044 | H29: 175.3504136 | K29: 29030.02301
B30: ='Business Details'!$D$49 -> Building other than infrastructure housing | E30: $'000 | F30: 1363.820767 | G30: 1461.380948 | H30: 0 | K30: 2825.201716
B31: ='Business Details'!$D$50 -> Distribution infrastructure not included in another category | E31: $'000 | F31: 0 | G31: 0 | H31: 0 | K31: 0
B32: ='Business Details'!$D$51 -> Support services | E32: $'000 | F32: 0 | G32: 0 | H32: 0 | K32: 0
B33: ='Business Details'!$D$52 -> Mains | E33: $'000 | F33: 736247.1855 | G33: 376592.0001 | H33: 156329.3367 | K33: 1269168.522
B34: ='Business Details'!$D$53 -> Establishment Costs | E34: $'000 | F34: 0 | G34: 0 | H34: 0 | K34: 0
B35: ='Business Details'!$D$54 -> Unallocated cash contribution | E35: $'000 | F35: 0 | G35: 0 | H35: 0 | K35: 0
B37: Total RAB Value for Drinking water as at 1 July 2008 | E37: $'000 | F37: =SUM(F21:F35) -> 849721.4351 | G37: 435148.0652 | H37: 172080.9499 | I37: 0 | J37: 0 | K37: 1456950.45
K38: =K37-'5.5.1'!K21 -> 0
B39: Other core water services
B40: ='Business Details'!$D$40 -> Reservoirs | E40: $'000 | F40: 0 | G40: 0 | H40: 0 | K40: =SUM(F40:H40) -> 0
B41: ='Business Details'!$D$41 -> Pump stations | E41: $'000 | F41: 0 | G41: 0 | H41: 0 | K41: =SUM(F41:H41) -> 0
B42: ='Business Details'!$D$42 -> Treatment | E42: $'000 | F42: 0 | G42: 0 | H42: 0 | K42: 0
B43: ='Business Details'!$D$43 -> Associated telemetry and control systems | E43: $'000 | F43: 0 | G43: 0 | H43: 0 | K43: 0
B44: ='Business Details'!$D$44 -> Meters | E44: $'000 | F44: 0 | G44: 0 | H44: 0 | K44: 0
B45: ='Business Details'!$D$45 -> Billing systems | E45: $'000 | F45: 0 | G45: 0 | H45: 0 | K45: 0
B46: ='Business Details'!$D$46 -> Corporate systems | E46: $'000 | F46: 0 | G46: 0 | H46: 0 | K46: 0
B47: ='Business Details'!$D$47 -> Sundry property, plant and equipment | E47: $'000 | F47: 0 | G47: 0 | H47: 0 | K47: 0
B48: ='Business Details'!$D$48 -> Land | E48: $'000 | F48: 0 | G48: 0 | H48: 0 | K48: 0
B49: ='Business Details'!$D$49 -> Building other than infrastructure housing | E49: $'000 | F49: 0 | G49: 0 | H49: 0 | K49: 0
B50: ='Business Details'!$D$50 -> Distribution infrastructure not included in another category | E50: $'000 | F50: 0 | G50: 0 | H50: 0 | K50: 0
B51: ='Business Details'!$D$51 -> Support services | E51: $'000 | F51: 0 | G51: 0 | H51: 0 | K51: 0
B52: ='Business Details'!$D$52 -> Mains | E52: $'000 | F52: 0 | G52: 0 | H52: 0 | K52: 0
B53: ='Business Details'!$D$53 -> Establishment Costs | E53: $'000 | F53: 0 | G53: 0 | H53: 0 | K53: 0
B54: ='Business Details'!$D$54 -> Unallocated cash contribution | E54: $'000 | F54: 0 | G54: 0 | H54: 0 | K54: 0
B56: Total RAB Value for Other core water services as at 1 July 2008 | E56: $'000 | F56: =SUM(F40:F54) -> 0 | G56: 0 | H56: 0 | I56: 0 | J56: 0 | K56: 0
B58: Wastewater via sewer
B59: ='Business Details'!$D$40 -> Reservoirs | E59: $'000 | F59: 0 | G59: 0 | H59: 0 | K59: =SUM(F59:H59) -> 0
B60: ='Business Details'!$D$41 -> Pump stations | E60: $'000 | F60: 92302.13199 | G60: 33661.50654 | H60: 9719.52072 | K60: =SUM(F60:H60) -> 135683.1592
B61: ='Business Details'!$D$42 -> Treatment | E61: $'000 | F61: 178505.1509 | G61: 54616.66604 | H61: 38505.39345 | K61: 271627.2104
B62: ='Business Details'!$D$43 -> Associated telemetry and control systems | E62: $'000 | F62: 0 | G62: 713.3062967 | H62: 1029.163803 | K62: 1742.4701
B63: ='Business Details'!$D$44 -> Meters | E63: $'000 | F63: 0 | G63: 0 | H63: 0 | K63: 0
B64: ='Business Details'!$D$45 -> Billing systems | E64: $'000 | F64: 0 | G64: 0 | H64: 0 | K64: 0
B65: ='Business Details'!$D$46 -> Corporate systems | E65: $'000 | F65: 0 | G65: 0 | H65: 0 | K65: 0
B66: ='Business Details'!$D$47 -> Sundry property, plant and equipment | E66: $'000 | F66: 234.3934728 | G66: 78.88172006 | H66: 31.62942764 | K66: 344.9046205
B67: ='Business Details'!$D$48 -> Land | E67: $'000 | F67: 39372.91115 | G67: 14914.73058 | H67: 3449.408684 | K67: 57737.05042
B68: ='Business Details'!$D$49 -> Building other than infrastructure housing | E68: $'000 | F68: 0 | G68: 1190.287466 | H68: 2577.121714 | K68: 3767.40918
B69: ='Business Details'!$D$50 -> Distribution infrastructure not included in another category | E69: $'000 | F69: 0 | G69: 0 | H69: 0 | K69: 0
B70: ='Business Details'!$D$51 -> Support services | E70: $'000 | F70: 0 | G70: 0 | H70: 0 | K70: 0
B71: ='Business Details'!$D$52 -> Mains | E71: $'000 | F71: 869935.1338 | G71: 433742.9398 | H71: 168665.4073 | K71: 1472343.481
B72: ='Business Details'!$D$53 -> Establishment Costs | E72: $'000 | F72: 0 | G72: 0 | H72: 0 | K72: 0
B73: ='Business Details'!$D$54 -> Unallocated cash contribution | E73: $'000 | F73: 0 | G73: 0 | H73: 0 | K73: 0
B75: Total RAB Value for Wastewater via Sewer as at 1 July 2008 | E75: $'000 | F75: =SUM(F59:F73) -> 1180349.721 | G75: 538918.3184 | H75: 223977.6451 | I75: 0 | J75: 0 | K75: 1943245.685
K76: =K75-'5.5.1'!K25 -> 0
B77: Trade Waste
B78: ='Business Details'!$D$40 -> Reservoirs | E78: $'000 | F78: 0 | G78: 0 | H78: 0 | K78: =SUM(F78:H78) -> 0
B79: ='Business Details'!$D$41 -> Pump stations | E79: $'000 | F79: 7884.703992 | G79: 1959.135301 | H79: 1079.946747 | K79: =SUM(F79:H79) -> 10923.78604
B80: ='Business Details'!$D$42 -> Treatment | E80: $'000 | F80: 15248.40483 | G80: 3178.747759 | H80: 4278.37705 | K80: 22705.52964
B81: ='Business Details'!$D$43 -> Associated telemetry and control systems | E81: $'000 | F81: 0 | G81: 41.51518129 | H81: 114.3515337 | K81: 155.866715
B82: ='Business Details'!$D$44 -> Meters | E82: $'000 | F82: 0 | G82: 0 | H82: 0 | K82: 0
B83: ='Business Details'!$D$45 -> Billing systems | E83: $'000 | F83: 0 | G83: 0 | H83: 0 | K83: 0
B84: ='Business Details'!$D$46 -> Corporate systems | E84: $'000 | F84: 0 | G84: 0 | H84: 0 | K84: 0
B85: ='Business Details'!$D$47 -> Sundry property, plant and equipment | E85: $'000 | F85: 20.02254023 | G85: 4.59099958 | H85: 3.514380849 | K85: 28.12792065
B86: ='Business Details'!$D$48 -> Land | E86: $'000 | F86: 3363.343219 | G86: 868.0531025 | H86: 383.2676315 | K86: 4614.663953
B87: ='Business Details'!$D$49 -> Building other than infrastructure housing | E87: $'000 | F87: 0 | G87: 69.27599006 | H87: 286.3468571 | K87: 355.6228472
B88: ='Business Details'!$D$50 -> Distribution infrastructure not included in another category | E88: $'000 | F88: 0 | G88: 0 | H88: 0 | K88: 0
B89: ='Business Details'!$D$51 -> Support services | E89: $'000 | F89: 0 | G89: 0 | H89: 0 | K89: 0
B90: ='Business Details'!$D$52 -> Mains | E90: $'000 | F90: 74312.27074 | G90: 25244.29808 | H90: 18740.60081 | K90: 118297.1696
B91: ='Business Details'!$D$53 -> Establishment Costs | E91: $'000 | F91: 0 | G91: 0 | H91: 0 | K91: 0
B92: ='Business Details'!$D$54 -> Unallocated cash contribution | E92: $'000 | F92: 0 | G92: 0 | H92: 0 | K92: 0
B94: Total RAB Value for Trade Waste as at 1 July 2008 | E94: $'000 | F94: =SUM(F78:F92) -> 100828.7453 | G94: 31365.61641 | H94: 24886.40501 | I94: 0 | J94: 0 | K94: 157080.7667
K95: =K94-'5.5.1'!K26 -> 0
B96: Other core wastewater services
B97: ='Business Details'!$D$40 -> Reservoirs | E97: $'000 | F97: 0 | G97: 0 | H97: 0 | K97: =SUM(F97:H97) -> 0
B98: ='Business Details'!$D$41 -> Pump stations | E98: $'000 | F98: 0 | G98: 0 | H98: 0 | K98: =SUM(F98:H98) -> 0
B99: ='Business Details'!$D$42 -> Treatment | E99: $'000 | F99: 0 | G99: 0 | H99: 0 | K99: 0
B100: ='Business Details'!$D$43 -> Associated telemetry and control systems | E100: $'000 | F100: 0 | G100: 0 | H100: 0 | K100: 0
B101: ='Business Details'!$D$44 -> Meters | E101: $'000 | F101: 0 | G101: 0 | H101: 0 | K101: 0
B102: ='Business Details'!$D$45 -> Billing systems | E102: $'000 | F102: 0 | G102: 0 | H102: 0 | K102: 0
B103: ='Business Details'!$D$46 -> Corporate systems | E103: $'000 | F103: 0 | G103: 0 | H103: 0 | K103: 0
B104: ='Business Details'!$D$47 -> Sundry property, plant and equipment | E104: $'000 | F104: 0 | G104: 0 | H104: 0 | K104: 0
B105: ='Business Details'!$D$48 -> Land | E105: $'000 | F105: 0 | G105: 0 | H105: 0 | K105: 0
B106: ='Business Details'!$D$49 -> Building other than infrastructure housing | E106: $'000 | F106: 0 | G106: 0 | H106: 0 | K106: 0
B107: ='Business Details'!$D$50 -> Distribution infrastructure not included in another category | E107: $'000 | F107: 0 | G107: 0 | H107: 0 | K107: 0
B108: ='Business Details'!$D$51 -> Support services | E108: $'000 | F108: 0 | G108: 0 | H108: 0 | K108: 0
B109: ='Business Details'!$D$52 -> Mains | E109: $'000 | F109: 0 | G109: 0 | H109: 0 | K109: 0
B110: ='Business Details'!$D$53 -> Establishment Costs | E110: $'000 | F110: 0 | G110: 0 | H110: 0 | K110: 0
B111: ='Business Details'!$D$54 -> Unallocated cash contribution | E111: $'000 | F111: 0 | G111: 0 | H111: 0 | K111: 0
B113: Total RAB Value for Other core wastewater services as at 1 July 2008 | E113: $'000 | F113: =SUM(F97:F111) -> 0 | G113: 0 | H113: 0 | I113: 0 | J113: 0 | K113: 0
B115: Aggregate non-regulated services
B116: ='Business Details'!$D$40 -> Reservoirs | E116: $'000 | F116: 0 | G116: 0 | H116: 0 | K116: =SUM(F116:H116) -> 0
B117: ='Business Details'!$D$41 -> Pump stations | E117: $'000 | F117: 0 | G117: 0 | H117: 0 | K117: =SUM(F117:H117) -> 0
B118: ='Business Details'!$D$42 -> Treatment | E118: $'000 | F118: 0 | G118: 0 | H118: 0 | K118: 0
B119: ='Business Details'!$D$43 -> Associated telemetry and control systems | E119: $'000 | F119: 0 | G119: 0 | H119: 0 | K119: 0
B120: ='Business Details'!$D$44 -> Meters | E120: $'000 | F120: 0 | G120: 0 | H120: 0 | K120: 0
B121: ='Business Details'!$D$45 -> Billing systems | E121: $'000 | F121: 0 | G121: 0 | H121: 0 | K121: 0
B122: ='Business Details'!$D$46 -> Corporate systems | E122: $'000 | F122: 0 | G122: 0 | H122: 0 | K122: 0
B123: ='Business Details'!$D$47 -> Sundry property, plant and equipment | E123: $'000 | F123: 260.0983146 | G123: 0 | H123: 0 | K123: 260.0983146
B124: ='Business Details'!$D$48 -> Land | E124: $'000 | F124: 0 | G124: 0 | H124: 0 | K124: 0
B125: ='Business Details'!$D$49 -> Building other than infrastructure housing | E125: $'000 | F125: 0 | G125: 0 | H125: 0 | K125: 0
B126: ='Business Details'!$D$50 -> Distribution infrastructure not included in another category | E126: $'000 | F126: 0 | G126: 0 | H126: 0 | K126: 0
B127: ='Business Details'!$D$51 -> Support services | E127: $'000 | F127: 0 | G127: 0 | H127: 0 | K127: 0
B128: ='Business Details'!$D$52 -> Mains | E128: $'000 | F128: 0 | G128: 0 | H128: 0 | K128: 0
B129: ='Business Details'!$D$53 -> Establishment Costs | E129: $'000 | F129: 0 | G129: 0 | H129: 0 | K129: 0
B130: ='Business Details'!$D$54 -> Unallocated cash contribution | E130: $'000 | F130: 0 | G130: 0 | H130: 0 | K130: 0
B132: Total RAB Value for Aggregate Non-regulated Services as at 1 July 2008 | E132: $'000 | F132: =SUM(F116:F130) -> 260.0983146 | G132: 0 | H132: 0 | I132: 0 | J132: 0 | K132: 260.0983146
K133: =K132-'5.5.1'!K30 -> 0

Sheet 5.5.1 SD04
B4: ='Business Details'!$B$4 -> SEQ INTERIM REVENUE MONITORING - INFORMATION REQUIREMENT TEMPLATE | K4: Provide (for each deemed category in section 3.4.2 of the Information Requirements, except for customer groups) details for the opening tax asset base as at 1 July 2008.
B5: 5.5.1 SD04 OPENING ASSET BASE as at 1 July 2008 (TAX VALUES)
B7: =CONCATENATE("Allocation of Opening Tax Asset Base for ",'Business Details'!$D$9) -> Allocation of Opening Tax Asset Base for Allconnex Water
B8: =CONCATENATE("Reporting year = ",AnalysisYear) -> Reporting year = 2012
F11: Geographic Area 1 | G11: Geographic Area 2 | H11: Geographic Area 3 | I11: Geographic Area 4 | J11: Geographic Area 5
E12: Numeration | F12: ='Business Details'!$D$12 -> Gold Coast | G12: ='Business Details'!$D$13 -> Logan | H12: ='Business Details'!$D$14 -> Redland | I12: ='Business Details'!$D$15 -> Allconnex (all districts) | J12: ='Business Details'!$D$16 -> 0 | K12: Total | M12: Supporting Documents
B14: WRITTEN DOWN VALUE as at 1 July 2008
B16: Total WDV (accounting values) as at 1 July 2008 | E16: $'000 | K16: ='5.5.1'!K16 -> 4193097.262
B19: TAX ASSET BASE VALUES as at 1 July 2008
B20: Drinking water
B21: ='Business Details'!$D$40 -> Reservoirs | E21: $'000 | F21: ='5.5.1 SD03'!F21 -> 68013.50284 | G21: ='5.5.1 SD03'!G21 -> 39170.04002 | H21: ='5.5.1 SD03'!H21 -> 879.9330453 | I21: ='5.5.1 SD03'!I21 -> 0 | J21: ='5.5.1 SD03'!J21 -> 0 | K21: =SUM(F21:J21) -> 108063.4759 | M21: NB. RAB values are used as opening tax base is yet to be determined
B22: ='Business Details'!$D$41 -> Pump stations | E22: $'000 | F22: ='5.5.1 SD03'!F22 -> 8902.710594 | G22: ='5.5.1 SD03'!G22 -> 5426.621263 | H22: ='5.5.1 SD03'!H22 -> 358.393601 | I22: ='5.5.1 SD03'!I22 -> 0 | J22: ='5.5.1 SD03'!J22 -> 0 | K22: =SUM(F22:J22) -> 14687.72546
B23: ='Business Details'!$D$42 -> Treatment | E23: $'000 | F23: ='5.5.1 SD03'!F23 -> 0 | G23: ='5.5.1 SD03'!G23 -> 0 | H23: ='5.5.1 SD03'!H23 -> 0 | I23: ='5.5.1 SD03'!I23 -> 0 | J23: ='5.5.1 SD03'!J23 -> 0 | K23: 0
B24: ='Business Details'!$D$43 -> Associated telemetry and control systems | E24: $'000 | F24: ='5.5.1 SD03'!F24 -> 0 | G24: ='5.5.1 SD03'!G24 -> 850.5725878 | H24: ='5.5.1 SD03'!H24 -> 150.5381426 | I24: ='5.5.1 SD03'!I24 -> 0 | J24: ='5.5.1 SD03'!J24 -> 0 | K24: 1001.11073
B25: ='Business Details'!$D$44 -> Meters | E25: $'000 | F25: ='5.5.1 SD03'!F25 -> 11830.0737 | G25: ='5.5.1 SD03'!G25 -> 5404.682466 | H25: ='5.5.1 SD03'!H25 -> 14099.36388 | I25: ='5.5.1 SD03'!I25 -> 0 | J25: ='5.5.1 SD03'!J25 -> 0 | K25: 31334.12004
B26: ='Business Details'!$D$45 -> Billing systems | E26: $'000 | F26: ='5.5.1 SD03'!F26 -> 0 | G26: ='5.5.1 SD03'!G26 -> 0 | H26: ='5.5.1 SD03'!H26 -> 0 | I26: ='5.5.1 SD03'!I26 -> 0 | J26: ='5.5.1 SD03'!J26 -> 0 | K26: 0
B27: ='Business Details'!$D$46 -> Corporate systems | E27: $'000 | F27: ='5.5.1 SD03'!F27 -> 0 | G27: ='5.5.1 SD03'!G27 -> 0 | H27: ='5.5.1 SD03'!H27 -> 0 | I27: ='5.5.1 SD03'!I27 -> 0 | J27: ='5.5.1 SD03'!J27 -> 0 | K27: 0
B28: ='Business Details'!$D$47 -> Sundry property, plant and equipment | E28: $'000 | F28: ='5.5.1 SD03'!F28 -> 521.5971387 | G28: ='5.5.1 SD03'!G28 -> 230.6397177 | H28: ='5.5.1 SD03'!H28 -> 88.03415513 | I28: ='5.5.1 SD03'!I28 -> 0 | J28: ='5.5.1 SD03'!J28 -> 0 | K28: 840.2710116
B29: ='Business Details'!$D$48 -> Land | E29: $'000 | F29: ='5.5.1 SD03'!F29 -> 22842.54455 | G29: ='5.5.1 SD03'!G29 -> 6012.128044 | H29: ='5.5.1 SD03'!H29 -> 175.3504136 | I29: ='5.5.1 SD03'!I29 -> 0 | J29: ='5.5.1 SD03'!J29 -> 0 | K29: 29030.02301
B30: ='Business Details'!$D$49 -> Building other than infrastructure housing | E30: $'000 | F30: ='5.5.1 SD03'!F30 -> 1363.820767 | G30: ='5.5.1 SD03'!G30 -> 1461.380948 | H30: ='5.5.1 SD03'!H30 -> 0 | I30: ='5.5.1 SD03'!I30 -> 0 | J30: ='5.5.1 SD03'!J30 -> 0 | K30: 2825.201716
B31: ='Business Details'!$D$50 -> Distribution infrastructure not included in another category | E31: $'000 | F31: ='5.5.1 SD03'!F31 -> 0 | G31: ='5.5.1 SD03'!G31 -> 0 | H31: ='5.5.1 SD03'!H31 -> 0 | I31: ='5.5.1 SD03'!I31 -> 0 | J31: ='5.5.1 SD03'!J31 -> 0 | K31: 0
B32: ='Business Details'!$D$51 -> Support services | E32: $'000 | F32: ='5.5.1 SD03'!F32 -> 0 | G32: ='5.5.1 SD03'!G32 -> 0 | H32: ='5.5.1 SD03'!H32 -> 0 | I32: ='5.5.1 SD03'!I32 -> 0 | J32: ='5.5.1 SD03'!J32 -> 0 | K32: 0
B33: ='Business Details'!$D$52 -> Mains | E33: $'000 | F33: ='5.5.1 SD03'!F33 -> 736247.1855 | G33: ='5.5.1 SD03'!G33 -> 376592.0001 | H33: ='5.5.1 SD03'!H33 -> 156329.3367 | I33: ='5.5.1 SD03'!I33 -> 0 | J33: ='5.5.1 SD03'!J33 -> 0 | K33: 1269168.522
B34: ='Business Details'!$D$53 -> Establishment Costs | E34: $'000 | F34: ='5.5.1 SD03'!F34 -> 0 | G34: ='5.5.1 SD03'!G34 -> 0 | H34: ='5.5.1 SD03'!H34 -> 0 | I34: ='5.5.1 SD03'!I34 -> 0 | J34: ='5.5.1 SD03'!J34 -> 0 | K34: 0
B35: ='Business Details'!$D$54 -> Unallocated cash contribution | E35: $'000 | F35: ='5.5.1 SD03'!F35 -> 0 | G35: ='5.5.1 SD03'!G35 -> 0 | H35: ='5.5.1 SD03'!H35 -> 0 | I35: ='5.5.1 SD03'!I35 -> 0 | J35: ='5.5.1 SD03'!J35 -> 0 | K35: 0
B37: =CONCATENATE("Total Opening Tax Asset Base Value for ",B20) -> Total Opening Tax Asset Base Value for Drinking water | E37: $'000 | F37: =SUM(F21:F35) -> 849721.4351 | G37: 435148.0652 | H37: 172080.9499 | I37: 0 | J37: 0 | K37: 1456950.45
B39: Other core water services
B40: ='Business Details'!$D$40 -> Reservoirs | E40: $'000 | F40: ='5.5.1 SD03'!F40 -> 0 | G40: ='5.5.1 SD03'!G40 -> 0 | H40: ='5.5.1 SD03'!H40 -> 0 | I40: ='5.5.1 SD03'!I40 -> 0 | J40: ='5.5.1 SD03'!J40 -> 0 | K40: =SUM(F40:J40) -> 0
B41: ='Business Details'!$D$41 -> Pump stations | E41: $'000 | F41: ='5.5.1 SD03'!F41 -> 0 | G41: ='5.5.1 SD03'!G41 -> 0 | H41: ='5.5.1 SD03'!H41 -> 0 | I41: ='5.5.1 SD03'!I41 -> 0 | J41: ='5.5.1 SD03'!J41 -> 0 | K41: =SUM(F41:J41) -> 0
B42: ='Business Details'!$D$42 -> Treatment | E42: $'000 | F42: ='5.5.1 SD03'!F42 -> 0 | G42: ='5.5.1 SD03'!G42 -> 0 | H42: ='5.5.1 SD03'!H42 -> 0 | I42: ='5.5.1 SD03'!I42 -> 0 | J42: ='5.5.1 SD03'!J42 -> 0 | K42: 0
B43: ='Business Details'!$D$43 -> Associated telemetry and control systems | E43: $'000 | F43: ='5.5.1 SD03'!F43 -> 0 | G43: ='5.5.1 SD03'!G43 -> 0 | H43: ='5.5.1 SD03'!H43 -> 0 | I43: ='5.5.1 SD03'!I43 -> 0 | J43: ='5.5.1 SD03'!J43 -> 0 | K43: 0
B44: ='Business Details'!$D$44 -> Meters | E44: $'000 | F44: ='5.5.1 SD03'!F44 -> 0 | G44: ='5.5.1 SD03'!G44 -> 0 | H44: ='5.5.1 SD03'!H44 -> 0 | I44: ='5.5.1 SD03'!I44 -> 0 | J44: ='5.5.1 SD03'!J44 -> 0 | K44: 0
B45: ='Business Details'!$D$45 -> Billing systems | E45: $'000 | F45: ='5.5.1 SD03'!F45 -> 0 | G45: ='5.5.1 SD03'!G45 -> 0 | H45: ='5.5.1 SD03'!H45 -> 0 | I45: ='5.5.1 SD03'!I45 -> 0 | J45: ='5.5.1 SD03'!J45 -> 0 | K45: 0
B46: ='Business Details'!$D$46 -> Corporate systems | E46: $'000 | F46: ='5.5.1 SD03'!F46 -> 0 | G46: ='5.5.1 SD03'!G46 -> 0 | H46: ='5.5.1 SD03'!H46 -> 0 | I46: ='5.5.1 SD03'!I46 -> 0 | J46: ='5.5.1 SD03'!J46 -> 0 | K46: 0
B47: ='Business Details'!$D$47 -> Sundry property, plant and equipment | E47: $'000 | F47: ='5.5.1 SD03'!F47 -> 0 | G47: ='5.5.1 SD03'!G47 -> 0 | H47: ='5.5.1 SD03'!H47 -> 0 | I47: ='5.5.1 SD03'!I47 -> 0 | J47: ='5.5.1 SD03'!J47 -> 0 | K47: 0
B48: ='Business Details'!$D$48 -> Land | E48: $'000 | F48: ='5.5.1 SD03'!F48 -> 0 | G48: ='5.5.1 SD03'!G48 -> 0 | H48: ='5.5.1 SD03'!H48 -> 0 | I48: ='5.5.1 SD03'!I48 -> 0 | J48: ='5.5.1 SD03'!J48 -> 0 | K48: 0
B49: ='Business Details'!$D$49 -> Building other than infrastructure housing | E49: $'000 | F49: ='5.5.1 SD03'!F49 -> 0 | G49: ='5.5.1 SD03'!G49 -> 0 | H49: ='5.5.1 SD03'!H49 -> 0 | I49: ='5.5.1 SD03'!I49 -> 0 | J49: ='5.5.1 SD03'!J49 -> 0 | K49: 0
B50: ='Business Details'!$D$50 -> Distribution infrastructure not included in another category | E50: $'000 | F50: ='5.5.1 SD03'!F50 -> 0 | G50: ='5.5.1 SD03'!G50 -> 0 | H50: ='5.5.1 SD03'!H50 -> 0 | I50: ='5.5.1 SD03'!I50 -> 0 | J50: ='5.5.1 SD03'!J50 -> 0 | K50: 0
B51: ='Business Details'!$D$51 -> Support services | E51: $'000 | F51: ='5.5.1 SD03'!F51 -> 0 | G51: ='5.5.1 SD03'!G51 -> 0 | H51: ='5.5.1 SD03'!H51 -> 0 | I51: ='5.5.1 SD03'!I51 -> 0 | J51: ='5.5.1 SD03'!J51 -> 0 | K51: 0
B52: ='Business Details'!$D$52 -> Mains | E52: $'000 | F52: ='5.5.1 SD03'!F52 -> 0 | G52: ='5.5.1 SD03'!G52 -> 0 | H52: ='5.5.1 SD03'!H52 -> 0 | I52: ='5.5.1 SD03'!I52 -> 0 | J52: ='5.5.1 SD03'!J52 -> 0 | K52: 0
B53: ='Business Details'!$D$53 -> Establishment Costs | E53: $'000 | F53: ='5.5.1 SD03'!F53 -> 0 | G53: ='5.5.1 SD03'!G53 -> 0 | H53: ='5.5.1 SD03'!H53 -> 0 | I53: ='5.5.1 SD03'!I53 -> 0 | J53: ='5.5.1 SD03'!J53 -> 0 | K53: 0
B54: ='Business Details'!$D$54 -> Unallocated cash contribution | E54: $'000 | F54: ='5.5.1 SD03'!F54 -> 0 | G54: ='5.5.1 SD03'!G54 -> 0 | H54: ='5.5.1 SD03'!H54 -> 0 | I54: ='5.5.1 SD03'!I54 -> 0 | J54: ='5.5.1 SD03'!J54 -> 0 | K54: 0
B56: =CONCATENATE("Total Opening Tax Asset Base Value for ",B39) -> Total Opening Tax Asset Base Value for Other core water services | E56: $'000 | F56: =SUM(F40:F54) -> 0 | G56: 0 | H56: 0 | I56: 0 | J56: 0 | K56: 0
B58: Wastewater via sewer
B59: ='Business Details'!$D$40 -> Reservoirs | E59: $'000 | F59: ='5.5.1 SD03'!F59 -> 0 | G59: ='5.5.1 SD03'!G59 -> 0 | H59: ='5.5.1 SD03'!H59 -> 0 | I59: ='5.5.1 SD03'!I59 -> 0 | J59: ='5.5.1 SD03'!J59 -> 0 | K59: =SUM(F59:J59) -> 0
B60: ='Business Details'!$D$41 -> Pump stations | E60: $'000 | F60: ='5.5.1 SD03'!F60 -> 92302.13199 | G60: ='5.5.1 SD03'!G60 -> 33661.50654 | H60: ='5.5.1 SD03'!H60 -> 9719.52072 | I60: ='5.5.1 SD03'!I60 -> 0 | J60: ='5.5.1 SD03'!J60 -> 0 | K60: =SUM(F60:J60) -> 135683.1592
B61: ='Business Details'!$D$42 -> Treatment | E61: $'000 | F61: ='5.5.1 SD03'!F61 -> 178505.1509 | G61: ='5.5.1 SD03'!G61 -> 54616.66604 | H61: ='5.5.1 SD03'!H61 -> 38505.39345 | I61: ='5.5.1 SD03'!I61 -> 0 | J61: ='5.5.1 SD03'!J61 -> 0 | K61: 271627.2104
B62: ='Business Details'!$D$43 -> Associated telemetry and control systems | E62: $'000 | F62: ='5.5.1 SD03'!F62 -> 0 | G62: ='5.5.1 SD03'!G62 -> 713.3062967 | H62: ='5.5.1 SD03'!H62 -> 1029.163803 | I62: ='5.5.1 SD03'!I62 -> 0 | J62: ='5.5.1 SD03'!J62 -> 0 | K62: 1742.4701
B63: ='Business Details'!$D$44 -> Meters | E63: $'000 | F63: ='5.5.1 SD03'!F63 -> 0 | G63: ='5.5.1 SD03'!G63 -> 0 | H63: ='5.5.1 SD03'!H63 -> 0 | I63: ='5.5.1 SD03'!I63 -> 0 | J63: ='5.5.1 SD03'!J63 -> 0 | K63: 0
B64: ='Business Details'!$D$45 -> Billing systems | E64: $'000 | F64: ='5.5.1 SD03'!F64 -> 0 | G64: ='5.5.1 SD03'!G64 -> 0 | H64: ='5.5.1 SD03'!H64 -> 0 | I64: ='5.5.1 SD03'!I64 -> 0 | J64: ='5.5.1 SD03'!J64 -> 0 | K64: 0
B65: ='Business Details'!$D$46 -> Corporate systems | E65: $'000 | F65: ='5.5.1 SD03'!F65 -> 0 | G65: ='5.5.1 SD03'!G65 -> 0 | H65: ='5.5.1 SD03'!H65 -> 0 | I65: ='5.5.1 SD03'!I65 -> 0 | J65: ='5.5.1 SD03'!J65 -> 0 | K65: 0
B66: ='Business Details'!$D$47 -> Sundry property, plant and equipment | E66: $'000 | F66: ='5.5.1 SD03'!F66 -> 234.3934728 | G66: ='5.5.1 SD03'!G66 -> 78.88172006 | H66: ='5.5.1 SD03'!H66 -> 31.62942764 | I66: ='5.5.1 SD03'!I66 -> 0 | J66: ='5.5.1 SD03'!J66 -> 0 | K66: 344.9046205
B67: ='Business Details'!$D$48 -> Land | E67: $'000 | F67: ='5.5.1 SD03'!F67 -> 39372.91115 | G67: ='5.5.1 SD03'!G67 -> 14914.73058 | H67: ='5.5.1 SD03'!H67 -> 3449.408684 | I67: ='5.5.1 SD03'!I67 -> 0 | J67: ='5.5.1 SD03'!J67 -> 0 | K67: 57737.05042
B68: ='Business Details'!$D$49 -> Building other than infrastructure housing | E68: $'000 | F68: ='5.5.1 SD03'!F68 -> 0 | G68: ='5.5.1 SD03'!G68 -> 1190.287466 | H68: ='5.5.1 SD03'!H68 -> 2577.121714 | I68: ='5.5.1 SD03'!I68 -> 0 | J68: ='5.5.1 SD03'!J68 -> 0 | K68: 3767.40918
B69: ='Business Details'!$D$50 -> Distribution infrastructure not included in another category | E69: $'000 | F69: ='5.5.1 SD03'!F69 -> 0 | G69: ='5.5.1 SD03'!G69 -> 0 | H69: ='5.5.1 SD03'!H69 -> 0 | I69: ='5.5.1 SD03'!I69 -> 0 | J69: ='5.5.1 SD03'!J69 -> 0 | K69: 0
B70: ='Business Details'!$D$51 -> Support services | E70: $'000 | F70: ='5.5.1 SD03'!F70 -> 0 | G70: ='5.5.1 SD03'!G70 -> 0 | H70: ='5.5.1 SD03'!H70 -> 0 | I70: ='5.5.1 SD03'!I70 -> 0 | J70: ='5.5.1 SD03'!J70 -> 0 | K70: 0
B71: ='Business Details'!$D$52 -> Mains | E71: $'000 | F71: ='5.5.1 SD03'!F71 -> 869935.1338 | G71: ='5.5.1 SD03'!G71 -> 433742.9398 | H71: ='5.5.1 SD03'!H71 -> 168665.4073 | I71: ='5.5.1 SD03'!I71 -> 0 | J71: ='5.5.1 SD03'!J71 -> 0 | K71: 1472343.481
B72: ='Business Details'!$D$53 -> Establishment Costs | E72: $'000 | F72: ='5.5.1 SD03'!F72 -> 0 | G72: ='5.5.1 SD03'!G72 -> 0 | H72: ='5.5.1 SD03'!H72 -> 0 | I72: ='5.5.1 SD03'!I72 -> 0 | J72: ='5.5.1 SD03'!J72 -> 0 | K72: 0
B73: ='Business Details'!$D$54 -> Unallocated cash contribution | E73: $'000 | F73: ='5.5.1 SD03'!F73 -> 0 | G73: ='5.5.1 SD03'!G73 -> 0 | H73: ='5.5.1 SD03'!H73 -> 0 | I73: ='5.5.1 SD03'!I73 -> 0 | J73: ='5.5.1 SD03'!J73 -> 0 | K73: 0
B75: =CONCATENATE("Total Opening Tax Asset Base Value for ",B58) -> Total Opening Tax Asset Base Value for Wastewater via sewer | E75: $'000 | F75: =SUM(F59:F73) -> 1180349.721 | G75: 538918.3184 | H75: 223977.6451 | I75: 0 | J75: 0 | K75: 1943245.685
B77: Trade Waste
B78: ='Business Details'!$D$40 -> Reservoirs | E78: $'000 | F78: ='5.5.1 SD03'!F78 -> 0 | G78: ='5.5.1 SD03'!G78 -> 0 | H78: ='5.5.1 SD03'!H78 -> 0 | I78: ='5.5.1 SD03'!I78 -> 0 | J78: ='5.5.1 SD03'!J78 -> 0 | K78: =SUM(F78:J78) -> 0
B79: ='Business Details'!$D$41 -> Pump stations | E79: $'000 | F79: ='5.5.1 SD03'!F79 -> 7884.703992 | G79: ='5.5.1 SD03'!G79 -> 1959.135301 | H79: ='5.5.1 SD03'!H79 -> 1079.946747 | I79: ='5.5.1 SD03'!I79 -> 0 | J79: ='5.5.1 SD03'!J79 -> 0 | K79: =SUM(F79:J79) -> 10923.78604
B80: ='Business Details'!$D$42 -> Treatment | E80: $'000 | F80: ='5.5.1 SD03'!F80 -> 15248.40483 | G80: ='5.5.1 SD03'!G80 -> 3178.747759 | H80: ='5.5.1 SD03'!H80 -> 4278.37705 | I80: ='5.5.1 SD03'!I80 -> 0 | J80: ='5.5.1 SD03'!J80 -> 0 | K80: 22705.52964
B81: ='Business Details'!$D$43 -> Associated telemetry and control systems | E81: $'000 | F81: ='5.5.1 SD03'!F81 -> 0 | G81: ='5.5.1 SD03'!G81 -> 41.51518129 | H81: ='5.5.1 SD03'!H81 -> 114.3515337 | I81: ='5.5.1 SD03'!I81 -> 0 | J81: ='5.5.1 SD03'!J81 -> 0 | K81: 155.866715
B82: ='Business Details'!$D$44 -> Meters | E82: $'000 | F82: ='5.5.1 SD03'!F82 -> 0 | G82: ='5.5.1 SD03'!G82 -> 0 | H82: ='5.5.1 SD03'!H82 -> 0 | I82: ='5.5.1 SD03'!I82 -> 0 | J82: ='5.5.1 SD03'!J82 -> 0 | K82: 0
B83: ='Business Details'!$D$45 -> Billing systems | E83: $'000 | F83: ='5.5.1 SD03'!F83 -> 0 | G83: ='5.5.1 SD03'!G83 -> 0 | H83: ='5.5.1 SD03'!H83 -> 0 | I83: ='5.5.1 SD03'!I83 -> 0 | J83: ='5.5.1 SD03'!J83 -> 0 | K83: 0
B84: ='Business Details'!$D$46 -> Corporate systems | E84: $'000 | F84: ='5.5.1 SD03'!F84 -> 0 | G84: ='5.5.1 SD03'!G84 -> 0 | H84: ='5.5.1 SD03'!H84 -> 0 | I84: ='5.5.1 SD03'!I84 -> 0 | J84: ='5.5.1 SD03'!J84 -> 0 | K84: 0
B85: ='Business Details'!$D$47 -> Sundry property, plant and equipment | E85: $'000 | F85: ='5.5.1 SD03'!F85 -> 20.02254023 | G85: ='5.5.1 SD03'!G85 -> 4.59099958 | H85: ='5.5.1 SD03'!H85 -> 3.514380849 | I85: ='5.5.1 SD03'!I85 -> 0 | J85: ='5.5.1 SD03'!J85 -> 0 | K85: 28.12792065
B86: ='Business Details'!$D$48 -> Land | E86: $'000 | F86: ='5.5.1 SD03'!F86 -> 3363.343219 | G86: ='5.5.1 SD03'!G86 -> 868.0531025 | H86: ='5.5.1 SD03'!H86 -> 383.2676315 | I86: ='5.5.1 SD03'!I86 -> 0 | J86: ='5.5.1 SD03'!J86 -> 0 | K86: 4614.663953
B87: ='Business Details'!$D$49 -> Building other than infrastructure housing | E87: $'000 | F87: ='5.5.1 SD03'!F87 -> 0 | G87: ='5.5.1 SD03'!G87 -> 69.27599006 | H87: ='5.5.1 SD03'!H87 -> 286.3468571 | I87: ='5.5.1 SD03'!I87 -> 0 | J87: ='5.5.1 SD03'!J87 -> 0 | K87: 355.6228472
B88: ='Business Details'!$D$50 -> Distribution infrastructure not included in another category | E88: $'000 | F88: ='5.5.1 SD03'!F88 -> 0 | G88: ='5.5.1 SD03'!G88 -> 0 | H88: ='5.5.1 SD03'!H88 -> 0 | I88: ='5.5.1 SD03'!I88 -> 0 | J88: ='5.5.1 SD03'!J88 -> 0 | K88: 0
B89: ='Business Details'!$D$51 -> Support services | E89: $'000 | F89: ='5.5.1 SD03'!F89 -> 0 | G89: ='5.5.1 SD03'!G89 -> 0 | H89: ='5.5.1 SD03'!H89 -> 0 | I89: ='5.5.1 SD03'!I89 -> 0 | J89: ='5.5.1 SD03'!J89 -> 0 | K89: 0
B90: ='Business Details'!$D$52 -> Mains | E90: $'000 | F90: ='5.5.1 SD03'!F90 -> 74312.27074 | G90: ='5.5.1 SD03'!G90 -> 25244.29808 | H90: ='5.5.1 SD03'!H90 -> 18740.60081 | I90: ='5.5.1 SD03'!I90 -> 0 | J90: ='5.5.1 SD03'!J90 -> 0 | K90: 118297.1696
B91: ='Business Details'!$D$53 -> Establishment Costs | E91: $'000 | F91: ='5.5.1 SD03'!F91 -> 0 | G91: ='5.5.1 SD03'!G91 -> 0 | H91: ='5.5.1 SD03'!H91 -> 0 | I91: ='5.5.1 SD03'!I91 -> 0 | J91: ='5.5.1 SD03'!J91 -> 0 | K91: 0
B92: ='Business Details'!$D$54 -> Unallocated cash contribution | E92: $'000 | F92: ='5.5.1 SD03'!F92 -> 0 | G92: ='5.5.1 SD03'!G92 -> 0 | H92: ='5.5.1 SD03'!H92 -> 0 | I92: ='5.5.1 SD03'!I92 -> 0 | J92: ='5.5.1 SD03'!J92 -> 0 | K92: 0
B94: =CONCATENATE("Total Opening Tax Asset Base Value for ",B77) -> Total Opening Tax Asset Base Value for Trade Waste | E94: $'000 | F94: =SUM(F78:F92) -> 100828.7453 | G94: 31365.61641 | H94: 24886.40501 | I94: 0 | J94: 0 | K94: 157080.7667
B97: Other core wastewater services
B98: ='Business Details'!$D$40 -> Reservoirs | E98: $'000 | F98: ='5.5.1 SD03'!F98 -> 0 | G98: ='5.5.1 SD03'!G98 -> 0 | H98: ='5.5.1 SD03'!H98 -> 0 | I98: ='5.5.1 SD03'!I98 -> 0 | J98: ='5.5.1 SD03'!J98 -> 0 | K98: =SUM(F98:J98) -> 0
B99: ='Business Details'!$D$41 -> Pump stations | E99: $'000 | F99: ='5.5.1 SD03'!F99 -> 0 | G99: ='5.5.1 SD03'!G99 -> 0 | H99: ='5.5.1 SD03'!H99 -> 0 | I99: ='5.5.1 SD03'!I99 -> 0 | J99: ='5.5.1 SD03'!J99 -> 0 | K99: =SUM(F99:J99) -> 0
B100: ='Business Details'!$D$42 -> Treatment | E100: $'000 | F100: ='5.5.1 SD03'!F100 -> 0 | G100: ='5.5.1 SD03'!G100 -> 0 | H100: ='5.5.1 SD03'!H100 -> 0 | I100: ='5.5.1 SD03'!I100 -> 0 | J100: ='5.5.1 SD03'!J100 -> 0 | K100: 0
B101: ='Business Details'!$D$43 -> Associated telemetry and control systems | E101: $'000 | F101: ='5.5.1 SD03'!F101 -> 0 | G101: ='5.5.1 SD03'!G101 -> 0 | H101: ='5.5.1 SD03'!H101 -> 0 | I101: ='5.5.1 SD03'!I101 -> 0 | J101: ='5.5.1 SD03'!J101 -> 0 | K101: 0
B102: ='Business Details'!$D$44 -> Meters | E102: $'000 | F102: ='5.5.1 SD03'!F102 -> 0 | G102: ='5.5.1 SD03'!G102 -> 0 | H102: ='5.5.1 SD03'!H102 -> 0 | I102: ='5.5.1 SD03'!I102 -> 0 | J102: ='5.5.1 SD03'!J102 -> 0 | K102: 0
B103: ='Business Details'!$D$45 -> Billing systems | E103: $'000 | F103: ='5.5.1 SD03'!F103 -> 0 | G103: ='5.5.1 SD03'!G103 -> 0 | H103: ='5.5.1 SD03'!H103 -> 0 | I103: ='5.5.1 SD03'!I103 -> 0 | J103: ='5.5.1 SD03'!J103 -> 0 | K103: 0
B104: ='Business Details'!$D$46 -> Corporate systems | E104: $'000 | F104: ='5.5.1 SD03'!F104 -> 0 | G104: ='5.5.1 SD03'!G104 -> 0 | H104: ='5.5.1 SD03'!H104 -> 0 | I104: ='5.5.1 SD03'!I104 -> 0 | J104: ='5.5.1 SD03'!J104 -> 0 | K104: 0
B105: ='Business Details'!$D$47 -> Sundry property, plant and equipment | E105: $'000 | F105: ='5.5.1 SD03'!F105 -> 0 | G105: ='5.5.1 SD03'!G105 -> 0 | H105: ='5.5.1 SD03'!H105 -> 0 | I105: ='5.5.1 SD03'!I105 -> 0 | J105: ='5.5.1 SD03'!J105 -> 0 | K105: 0
B106: ='Business Details'!$D$48 -> Land | E106: $'000 | F106: ='5.5.1 SD03'!F106 -> 0 | G106: ='5.5.1 SD03'!G106 -> 0 | H106: ='5.5.1 SD03'!H106 -> 0 | I106: ='5.5.1 SD03'!I106 -> 0 | J106: ='5.5.1 SD03'!J106 -> 0 | K106: 0
B107: ='Business Details'!$D$49 -> Building other than infrastructure housing | E107: $'000 | F107: ='5.5.1 SD03'!F107 -> 0 | G107: ='5.5.1 SD03'!G107 -> 0 | H107: ='5.5.1 SD03'!H107 -> 0 | I107: ='5.5.1 SD03'!I107 -> 0 | J107: ='5.5.1 SD03'!J107 -> 0 | K107: 0
B108: ='Business Details'!$D$50 -> Distribution infrastructure not included in another category | E108: $'000 | F108: ='5.5.1 SD03'!F108 -> 0 | G108: ='5.5.1 SD03'!G108 -> 0 | H108: ='5.5.1 SD03'!H108 -> 0 | I108: ='5.5.1 SD03'!I108 -> 0 | J108: ='5.5.1 SD03'!J108 -> 0 | K108: 0
B109: ='Business Details'!$D$51 -> Support services | E109: $'000 | F109: ='5.5.1 SD03'!F109 -> 0 | G109: ='5.5.1 SD03'!G109 -> 0 | H109: ='5.5.1 SD03'!H109 -> 0 | I109: ='5.5.1 SD03'!I109 -> 0 | J109: ='5.5.1 SD03'!J109 -> 0 | K109: 0
B110: ='Business Details'!$D$52 -> Mains | E110: $'000 | F110: ='5.5.1 SD03'!F110 -> 0 | G110: ='5.5.1 SD03'!G110 -> 0 | H110: ='5.5.1 SD03'!H110 -> 0 | I110: ='5.5.1 SD03'!I110 -> 0 | J110: ='5.5.1 SD03'!J110 -> 0 | K110: 0
B111: ='Business Details'!$D$53 -> Establishment Costs | E111: $'000 | F111: ='5.5.1 SD03'!F111 -> 0 | G111: ='5.5.1 SD03'!G111 -> 0 | H111: ='5.5.1 SD03'!H111 -> 0 | I111: ='5.5.1 SD03'!I111 -> 0 | J111: ='5.5.1 SD03'!J111 -> 0 | K111: 0
B112: ='Business Details'!$D$54 -> Unallocated cash contribution | E112: $'000 | F112: ='5.5.1 SD03'!F112 -> 0 | G112: ='5.5.1 SD03'!G112 -> 0 | H112: ='5.5.1 SD03'!H112 -> 0 | I112: ='5.5.1 SD03'!I112 -> 0 | J112: ='5.5.1 SD03'!J112 -> 0 | K112: 0
B114: =CONCATENATE("Total Opening Tax Asset Base Value for ",B97) -> Total Opening Tax Asset Base Value for Other core wastewater services | E114: $'000 | F114: =SUM(F98:F112) -> 0 | G114: 0 | H114: 0 | I114: 0 | J114: 0 | K114: 0
B116: Aggregate non-regulated services
B117: ='Business Details'!$D$40 -> Reservoirs | E117: $'000 | F117: ='5.5.1 SD03'!F117 -> 0 | G117: ='5.5.1 SD03'!G117 -> 0 | H117: ='5.5.1 SD03'!H117 -> 0 | I117: ='5.5.1 SD03'!I117 -> 0 | J117: ='5.5.1 SD03'!J117 -> 0 | K117: =SUM(F117:J117) -> 0
B118: ='Business Details'!$D$41 -> Pump stations | E118: $'000 | F118: ='5.5.1 SD03'!F118 -> 0 | G118: ='5.5.1 SD03'!G118 -> 0 | H118: ='5.5.1 SD03'!H118 -> 0 | I118: ='5.5.1 SD03'!I118 -> 0 | J118: ='5.5.1 SD03'!J118 -> 0 | K118: =SUM(F118:J118) -> 0
B119: ='Business Details'!$D$42 -> Treatment | E119: $'000 | F119: ='5.5.1 SD03'!F119 -> 0 | G119: ='5.5.1 SD03'!G119 -> 0 | H119: ='5.5.1 SD03'!H119 -> 0 | I119: ='5.5.1 SD03'!I119 -> 0 | J119: ='5.5.1 SD03'!J119 -> 0 | K119: 0
B120: ='Business Details'!$D$43 -> Associated telemetry and control systems | E120: $'000 | F120: ='5.5.1 SD03'!F120 -> 0 | G120: ='5.5.1 SD03'!G120 -> 0 | H120: ='5.5.1 SD03'!H120 -> 0 | I120: ='5.5.1 SD03'!I120 -> 0 | J120: ='5.5.1 SD03'!J120 -> 0 | K120: 0
B121: ='Business Details'!$D$44 -> Meters | E121: $'000 | F121: ='5.5.1 SD03'!F121 -> 0 | G121: ='5.5.1 SD03'!G121 -> 0 | H121: ='5.5.1 SD03'!H121 -> 0 | I121: ='5.5.1 SD03'!I121 -> 0 | J121: ='5.5.1 SD03'!J121 -> 0 | K121: 0
B122: ='Business Details'!$D$45 -> Billing systems | E122: $'000 | F122: ='5.5.1 SD03'!F122 -> 0 | G122: ='5.5.1 SD03'!G122 -> 0 | H122: ='5.5.1 SD03'!H122 -> 0 | I122: ='5.5.1 SD03'!I122 -> 0 | J122: ='5.5.1 SD03'!J122 -> 0 | K122: 0
B123: ='Business Details'!$D$46 -> Corporate systems | E123: $'000 | F123: ='5.5.1 SD03'!F123 -> 260.0983146 | G123: ='5.5.1 SD03'!G123 -> 0 | H123: ='5.5.1 SD03'!H123 -> 0 | I123: ='5.5.1 SD03'!I123 -> 0 | J123: ='5.5.1 SD03'!J123 -> 0 | K123: 260.0983146
B124: ='Business Details'!$D$47 -> Sundry property, plant and equipment | E124: $'000 | F124: ='5.5.1 SD03'!F124 -> 0 | G124: ='5.5.1 SD03'!G124 -> 0 | H124: ='5.5.1 SD03'!H124 -> 0 | I124: ='5.5.1 SD03'!I124 -> 0 | J124: ='5.5.1 SD03'!J124 -> 0 | K124: 0
B125: ='Business Details'!$D$48 -> Land | E125: $'000 | F125: ='5.5.1 SD03'!F125 -> 0 | G125: ='5.5.1 SD03'!G125 -> 0 | H125: ='5.5.1 SD03'!H125 -> 0 | I125: ='5.5.1 SD03'!I125 -> 0 | J125: ='5.5.1 SD03'!J125 -> 0 | K125: 0
B126: ='Business Details'!$D$49 -> Building other than infrastructure housing | E126: $'000 | F126: ='5.5.1 SD03'!F126 -> 0 | G126: ='5.5.1 SD03'!G126 -> 0 | H126: ='5.5.1 SD03'!H126 -> 0 | I126: ='5.5.1 SD03'!I126 -> 0 | J126: ='5.5.1 SD03'!J126 -> 0 | K126: 0
B127: ='Business Details'!$D$50 -> Distribution infrastructure not included in another category | E127: $'000 | F127: ='5.5.1 SD03'!F127 -> 0 | G127: ='5.5.1 SD03'!G127 -> 0 | H127: ='5.5.1 SD03'!H127 -> 0 | I127: ='5.5.1 SD03'!I127 -> 0 | J127: ='5.5.1 SD03'!J127 -> 0 | K127: 0
B128: ='Business Details'!$D$51 -> Support services | E128: $'000 | F128: ='5.5.1 SD03'!F128 -> 0 | G128: ='5.5.1 SD03'!G128 -> 0 | H128: ='5.5.1 SD03'!H128 -> 0 | I128: ='5.5.1 SD03'!I128 -> 0 | J128: ='5.5.1 SD03'!J128 -> 0 | K128: 0
B129: ='Business Details'!$D$52 -> Mains | E129: $'000 | F129: ='5.5.1 SD03'!F129 -> 0 | G129: ='5.5.1 SD03'!G129 -> 0 | H129: ='5.5.1 SD03'!H129 -> 0 | I129: ='5.5.1 SD03'!I129 -> 0 | J129: ='5.5.1 SD03'!J129 -> 0 | K129: 0
B130: ='Business Details'!$D$53 -> Establishment Costs | E130: $'000 | F130: ='5.5.1 SD03'!F130 -> 0 | G130: ='5.5.1 SD03'!G130 -> 0 | H130: ='5.5.1 SD03'!H130 -> 0 | I130: ='5.5.1 SD03'!I130 -> 0 | J130: ='5.5.1 SD03'!J130 -> 0 | K130: 0
B131: ='Business Details'!$D$54 -> Unallocated cash contribution | E131: $'000 | F131: ='5.5.1 SD03'!F131 -> 0 | G131: ='5.5.1 SD03'!G131 -> 0 | H131: ='5.5.1 SD03'!H131 -> 0 | I131: ='5.5.1 SD03'!I131 -> 0 | J131: ='5.5.1 SD03'!J131 -> 0 | K131: 0
B133: =CONCATENATE("Total Opening Tax Asset Base Value for ",B116) -> Total Opening Tax Asset Base Value for Aggregate non-regulated services | E133: $'000 | F133: =SUM(F117:F131) -> 260.0983146 | G133: 0 | H133: 0 | I133: 0 | J133: 0 | K133: 260.0983146

Sheet 5.5.3
AA1: ="If revenues are smoothed beyond "&J11&", additional data is to be provided for the corresponding period. Additional years can be accessed by clicking on the '+' sign above." -> If revenues are smoothed beyond 2013, additional data is to be provided for the corresponding period. Additional years can be accessed by clicking on the '+' sign above.
B4: ='Business Details'!$B$4 -> SEQ INTERIM REVENUE MONITORING - INFORMATION REQUIREMENT TEMPLATE
B8: =CONCATENATE("Asset Disposals for ",'Business Details'!$D$9) -> Asset Disposals for Allconnex Water
B9: =CONCATENATE("Reporting year = ",AnalysisYear) -> Reporting year = 2012
B10: Geographic Area / Service / Asset Class | F10: For Year Ending 30 June: | AA10: ='5.1.1'!M12 -> For Year Ending 30 June 2012:
F11: ='5.1.1'!F13 -> 2009 | G11: ='5.1.1'!G13 -> 2010 | H11: ='5.1.1'!H13 -> 2011 | I11: ='5.1.1'!I13 -> 2012 | J11: ='5.1.1'!J13 -> 2013 | K11: =J11+1 -> 2014 | L11: =K11+1 -> 2015 | M11: 2016 | N11: 2017 | O11: 2018 | P11: 2019 | Q11: 2020 | R11: 2021 | S11: 2022 | T11: 2023 | U11: 2024 | V11: 2025 | W11: 2026 | X11: 2027 | Y11: 2028 | AA11: Supporting Documents
B13: =CONCATENATE("Geographic Area ",'Business Details'!$C$12," - ",'Business Details'!$D$12) -> Geographic Area 1 - Gold Coast
B15: TOTAL FOR GEOGRAPHIC AREA
D17: Gross value of disposals | E17: $'000 | F17: =F24+F29+F34+F39+F44+F49+F54+F59+F64+F69+F74+F79+F84+F89+F94+F103+F108+F113+F118+F123+F128+F133+F138+F143+F148+F153+F158+F163+F173+F182+F187+F192+F197+F202+F207+F217+F222+F212+F232+F227+F237+F242+F247+F252+F261+F266+F271+F276+F281+F286+F291+F296+F301+F306+F311+F316+F321+F326+F331+F340+F345+F350+F355+F360+F365+F370+F375+F380+F385+F390+F395+F400+F405+F410+F419+F424+F429+F434+F439+F444+F449+F454+F459+F464+F469+F474+F479+F484+F489 -> 4403.916923 | G17: 3789.979256 | H17: 4230.098903 | I17: 4321.169962 | J17: 4411.964989 | K17: 4522.264114 | L17: =L24+L29+L34+L39+L44+L49+L54+L59+L64+L69+L74+L79+L84+L89+L94+L103+L108+L113+L118+L123+L128+L133+L138+L143+L148+L153+L158+L163+L173+L182+L187+L192+L197+L202+L207+L217+L222+L212+L232+L227+L237+L242+L247+L252+L261+L266+L271+L276+L281+L286+L291+L296+L301+L306+L311+L316+L321+L326+L331+L340+L345+L350+L355+L360+L365+L370+L375+L380+L385+L390+L395+L400+L405+L410+L419+L424+L429+L434+L439+L444+L449+L454+L459+L464+L469+L474+L479+L484+L489 -> 0 | M17: 0 | N17: 0 | O17: 0 | P17: 0 | Q17: 0 | R17: 0 | S17: 0 | T17: 0 | U17: 0 | V17: 0 | W17: 0 | X17: 0 | Y17: 0 | AA17: NB. RAB disposals used as tax base is yet to be determined
D18: less Accumulated depreciation on disposals | E18: $'000 | F18: 0 | G18: 0 | H18: 0 | I18: 0 | J18: 0 | K18: 0 | L18: =L25+L30+L35+L40+L45+L50+L55+L60+L65+L70+L75+L80+L85+L90+L95+L104+L109+L114+L119+L124+L129+L134+L139+L144+L149+L154+L159+L164+L174+L183+L188+L193+L198+L203+L208+L218+L223+L213+L233+L228+L238+L243+L248+L253+L262+L267+L272+L277+L282+L287+L292+L297+L302+L307+L312+L317+L322+L327+L332+L341+L346+L351+L356+L361+L366+L371+L376+L381+L386+L391+L396+L401+L406+L411+L420+L425+L430+L435+L440+L445+L450+L455+L460+L465+L470+L475+L480+L485+L490 -> 0 | M18: 0 | N18: 0 | O18: 0 | P18: 0 | Q18: 0 | R18: 0 | S18: 0 | T18: 0 | U18: 0 | V18: 0 | W18: 0 | X18: 0 | Y18: 0 | AA18: Therefore linked to worksheet 5.5.2
D19: Net value of disposals | E19: $'000 | F19: =F17-F18 -> 4403.916923 | G19: 3789.979256 | H19: 4230.098903 | I19: 4321.169962 | J19: 4411.964989 | K19: 4522.264114 | L19: =L17-L18 -> 0 | M19: 0 | N19: 0 | O19: 0 | P19: 0 | Q19: 0 | R19: 0 | S19: 0 | T19: 0 | U19: 0 | V19: 0 | W19: 0 | X19: 0 | Y19: 0
B21: DRINKING WATER
C23: ='Business Details'!$D$40 -> Reservoirs
D24: Gross value of disposals | E24: $'000 | F24: ='5.5.2'!F24 -> 77.07080254 | G24: ='5.5.2'!G24 -> 0 | H24: ='5.5.2'!H24 -> 39.78780181 | I24: ='5.5.2'!I24 -> 40.64440524 | J24: ='5.5.2'!J24 -> 41.49841236 | K24: ='5.5.2'!K24 -> 42.53587266 | AC24: Enter both the gross value and accumulated depreciation as positive numbers.
D25: less Accumulated depreciation on disposals | E25: $'000 | F25: ='5.5.2'!F25 -> 0 | G25: ='5.5.2'!G25 -> 0 | H25: ='5.5.2'!H25 -> 0 | I25: ='5.5.2'!I25 -> 0 | J25: ='5.5.2'!J25 -> 0 | K25: ='5.5.2'!K25 -> 0
D26: Net value of disposals | E26: $'000 | F26: =F24-F25 -> 77.07080254 | G26: =G24-G25 -> 0 | H26: =H24-H25 -> 39.78780181 | I26: =I24-I25 -> 40.64440524 | J26: =J24-J25 -> 41.49841236 | K26: =K24-K25 -> 42.53587266 | L26: 0 | M26: 0 | N26: 0 | O26: 0 | P26: 0 | Q26: 0 | R26: 0 | S26: 0 | T26: 0 | U26: 0 | V26: 0 | W26: 0 | X26: 0 | Y26: 0
C28: ='Business Details'!$D$41 -> Pump stations
D29: Gross value of disposals | E29: $'000 | F29: ='5.5.2'!F29 -> 204.2785431 | G29: ='5.5.2'!G29 -> 0 | H29: ='5.5.2'!H29 -> 105.4587979 | I29: ='5.5.2'!I29 -> 107.7292517 | J29: ='5.5.2'!J29 -> 109.992824 | K29: ='5.5.2'!K29 -> 112.7426446
D30: less Accumulated depreciation on disposals | E30: $'000 | F30: ='5.5.2'!F30 -> 0 | G30: ='5.5.2'!G30 -> 0 | H30: ='5.5.2'!H30 -> 0 | I30: ='5.5.2'!I30 -> 0 | J30: ='5.5.2'!J30 -> 0 | K30: ='5.5.2'!K30 -> 0
D31: Net value of disposals | E31: $'000 | F31: =F29-F30 -> 204.2785431 | G31: =G29-G30 -> 0 | H31: =H29-H30 -> 105.4587979 | I31: =I29-I30 -> 107.7292517 | J31: =J29-J30 -> 109.992824 | K31: =K29-K30 -> 112.7426446 | L31: 0 | M31: 0 | N31: 0 | O31: 0 | P31: 0 | Q31: 0 | R31: 0 | S31: 0 | T31: 0 | U31: 0 | V31: 0 | W31: 0 | X31: 0 | Y31: 0
C33: ='Business Details'!$D$42 -> Treatment
D34: Gross value of disposals | E34: $'000 | F34: ='5.5.2'!F34 -> 0 | G34: ='5.5.2'!G34 -> 0 | H34: ='5.5.2'!H34 -> 0 | I34: ='5.5.2'!I34 -> 0 | J34: ='5.5.2'!J34 -> 0 | K34: ='5.5.2'!K34 -> 0
D35: less Accumulated depreciation on disposals | E35: $'000 | F35: ='5.5.2'!F35 -> 0 | G35: ='5.5.2'!G35 -> 0 | H35: ='5.5.2'!H35 -> 0 | I35: ='5.5.2'!I35 -> 0 | J35: ='5.5.2'!J35 -> 0 | K35: ='5.5.2'!K35 -> 0
D36: Net value of disposals | E36: $'000 | F36: =F34-F35 -> 0 | G36: =G34-G35 -> 0 | H36: =H34-H35 -> 0 | I36: =I34-I35 -> 0 | J36: =J34-J35 -> 0 | K36: =K34-K35 -> 0 | L36: 0 | M36: 0 | N36: 0 | O36: 0 | P36: 0 | Q36: 0 | R36: 0 | S36: 0 | T36: 0 | U36: 0 | V36: 0 | W36: 0 | X36: 0 | Y36: 0
C38: ='Business Details'!$D$43 -> Associated telemetry and control systems
D39: Gross value of disposals | E39: $'000 | F39: ='5.5.2'!F39 -> 0 | G39: ='5.5.2'!G39 -> 0 | H39: ='5.5.2'!H39 -> 0 | I39: ='5.5.2'!I39 -> 0 | J39: ='5.5.2'!J39 -> 0 | K39: ='5.5.2'!K39 -> 0
D40: less Accumulated depreciation on disposals | E40: $'000 | F40: ='5.5.2'!F40 -> 0 | G40: ='5.5.2'!G40 -> 0 | H40: ='5.5.2'!H40 -> 0 | I40: ='5.5.2'!I40 -> 0 | J40: ='5.5.2'!J40 -> 0 | K40: ='5.5.2'!K40 -> 0
D41: Net value of disposals | E41: $'000 | F41: =F39-F40 -> 0 | G41: =G39-G40 -> 0 | H41: =H39-H40 -> 0 | I41: =I39-I40 -> 0 | J41: =J39-J40 -> 0 | K41: =K39-K40 -> 0 | L41: 0 | M41: 0 | N41: 0 | O41: 0 | P41: 0 | Q41: 0 | R41: 0 | S41: 0 | T41: 0 | U41: 0 | V41: 0 | W41: 0 | X41: 0 | Y41: 0
C43: ='Business Details'!$D$44 -> Meters
D44: Gross value of disposals | E44: $'000 | F44: ='5.5.2'!F44 -> 0 | G44: ='5.5.2'!G44 -> 0 | H44: ='5.5.2'!H44 -> 0 | I44: ='5.5.2'!I44 -> 0 | J44: ='5.5.2'!J44 -> 0 | K44: ='5.5.2'!K44 -> 0
D45: less Accumulated depreciation on disposals | E45: $'000 | F45: ='5.5.2'!F45 -> 0 | G45: ='5.5.2'!G45 -> 0 | H45: ='5.5.2'!H45 -> 0 | I45: ='5.5.2'!I45 -> 0 | J45: ='5.5.2'!J45 -> 0 | K45: ='5.5.2'!K45 -> 0
D46: Net value of disposals | E46: $'000 | F46: =F44-F45 -> 0 | G46: =G44-G45 -> 0 | H46: =H44-H45 -> 0 | I46: =I44-I45 -> 0 | J46: =J44-J45 -> 0 | K46: =K44-K45 -> 0 | L46: 0 | M46: 0 | N46: 0 | O46: 0 | P46: 0 | Q46: 0 | R46: 0 | S46: 0 | T46: 0 | U46: 0 | V46: 0 | W46: 0 | X46: 0 | Y46: 0
C48: ='Business Details'!$D$45 -> Billing systems
D49: Gross value of disposals | E49: $'000 | F49: ='5.5.2'!F49 -> 0 | G49: ='5.5.2'!G49 -> 0 | H49: ='5.5.2'!H49 -> 0 | I49: ='5.5.2'!I49 -> 0 | J49: ='5.5.2'!J49 -> 0 | K49: ='5.5.2'!K49 -> 0
D50: less Accumulated depreciation on disposals | E50: $'000 | F50: ='5.5.2'!F50 -> 0 | G50: ='5.5.2'!G50 -> 0 | H50: ='5.5.2'!H50 -> 0 | I50: ='5.5.2'!I50 -> 0 | J50: ='5.5.2'!J50 -> 0 | K50: ='5.5.2'!K50 -> 0
D51: Net value of disposals | E51: $'000 | F51: =F49-F50 -> 0 | G51: =G49-G50 -> 0 | H51: =H49-H50 -> 0 | I51: =I49-I50 -> 0 | J51: =J49-J50 -> 0 | K51: =K49-K50 -> 0 | L51: 0 | M51: 0 | N51: 0 | O51: 0 | P51: 0 | Q51: 0 | R51: 0 | S51: 0 | T51: 0 | U51: 0 | V51: 0 | W51: 0 | X51: 0 | Y51: 0
C53: ='Business Details'!$D$46 -> Corporate systems
D54: Gross value of disposals | E54: $'000 | F54: ='5.5.2'!F54 -> 0 | G54: ='5.5.2'!G54 -> 0 | H54: ='5.5.2'!H54 -> 0 | I54: ='5.5.2'!I54 -> 0 | J54: ='5.5.2'!J54 -> 0 | K54: ='5.5.2'!K54 -> 0
D55: less Accumulated depreciation on disposals | E55: $'000 | F55: ='5.5.2'!F55 -> 0 | G55: ='5.5.2'!G55 -> 0 | H55: ='5.5.2'!H55 -> 0 | I55: ='5.5.2'!I55 -> 0 | J55: ='5.5.2'!J55 -> 0 | K55: ='5.5.2'!K55 -> 0
D56: Net value of disposals | E56: $'000 | F56: =F54-F55 -> 0 | G56: =G54-G55 -> 0 | H56: =H54-H55 -> 0 | I56: =I54-I55 -> 0 | J56: =J54-J55 -> 0 | K56: =K54-K55 -> 0 | L56: 0 | M56: 0 | N56: 0 | O56: 0 | P56: 0 | Q56: 0 | R56: 0 | S56: 0 | T56: 0 | U56: 0 | V56: 0 | W56: 0 | X56: 0 | Y56: 0
C58: ='Business Details'!$D$47 -> Sundry property, plant and equipment
D59: Gross value of disposals | E59: $'000 | F59: ='5.5.2'!F59 -> 0 | G59: ='5.5.2'!G59 -> 0 | H59: ='5.5.2'!H59 -> 0 | I59: ='5.5.2'!I59 -> 0 | J59: ='5.5.2'!J59 -> 0 | K59: ='5.5.2'!K59 -> 0
D60: less Accumulated depreciation on disposals | E60: $'000 | F60: ='5.5.2'!F60 -> 0 | G60: ='5.5.2'!G60 -> 0 | H60: ='5.5.2'!H60 -> 0 | I60: ='5.5.2'!I60 -> 0 | J60: ='5.5.2'!J60 -> 0 | K60: ='5.5.2'!K60 -> 0
D61: Net value of disposals | E61: $'000 | F61: =F59-F60 -> 0 | G61: =G59-G60 -> 0 | H61: =H59-H60 -> 0 | I61: =I59-I60 -> 0 | J61: =J59-J60 -> 0 | K61: =K59-K60 -> 0 | L61: 0 | M61: 0 | N61: 0 | O61: 0 | P61: 0 | Q61: 0 | R61: 0 | S61: 0 | T61: 0 | U61: 0 | V61: 0 | W61: 0 | X61: 0 | Y61: 0
C63: ='Business Details'!$D$48 -> Land
D64: Gross value of disposals | E64: $'000 | F64: ='5.5.2'!F64 -> 0 | G64: ='5.5.2'!G64 -> 0 | H64: ='5.5.2'!H64 -> 0 | I64: ='5.5.2'!I64 -> 0 | J64: ='5.5.2'!J64 -> 0 | K64: ='5.5.2'!K64 -> 0
D65: less Accumulated depreciation on disposals | E65: $'000 | F65: ='5.5.2'!F65 -> 0 | G65: ='5.5.2'!G65 -> 0 | H65: ='5.5.2'!H65 -> 0 | I65: ='5.5.2'!I65 -> 0 | J65: ='5.5.2'!J65 -> 0 | K65: ='5.5.2'!K65 -> 0
D66: Net value of disposals | E66: $'000 | F66: =F64-F65 -> 0 | G66: =G64-G65 -> 0 | H66: =H64-H65 -> 0 | I66: =I64-I65 -> 0 | J66: =J64-J65 -> 0 | K66: =K64-K65 -> 0 | L66: 0 | M66: 0 | N66: 0 | O66: 0 | P66: 0 | Q66: 0 | R66: 0 | S66: 0 | T66: 0 | U66: 0 | V66: 0 | W66: 0 | X66: 0 | Y66: 0
C68: ='Business Details'!$D$49 -> Building other than infrastructure housing
D69: Gross value of disposals | E69: $'000 | F69: ='5.5.2'!F69 -> 0 | G69: ='5.5.2'!G69 -> 0 | H69: ='5.5.2'!H69 -> 0 | I69: ='5.5.2'!I69 -> 0 | J69: ='5.5.2'!J69 -> 0 | K69: ='5.5.2'!K69 -> 0
D70: less Accumulated depreciation on disposals | E70: $'000 | F70: ='5.5.2'!F70 -> 0 | G70: ='5.5.2'!G70 -> 0 | H70: ='5.5.2'!H70 -> 0 | I70: ='5.5.2'!I70 -> 0 | J70: ='5.5.2'!J70 -> 0 | K70: ='5.5.2'!K70 -> 0
D71: Net value of disposals | E71: $'000 | F71: =F69-F70 -> 0 | G71: =G69-G70 -> 0 | H71: =H69-H70 -> 0 | I71: =I69-I70 -> 0 | J71: =J69-J70 -> 0 | K71: =K69-K70 -> 0 | L71: 0 | M71: 0 | N71: 0 | O71: 0 | P71: 0 | Q71: 0 | R71: 0 | S71: 0 | T71: 0 | U71: 0 | V71: 0 | W71: 0 | X71: 0 | Y71: 0
C73: ='Business Details'!$D$50 -> Distribution infrastructure not included in another category
D74: Gross value of disposals | E74: $'000 | F74: ='5.5.2'!F74 -> 0 | G74: ='5.5.2'!G74 -> 0 | H74: ='5.5.2'!H74 -> 0 | I74: ='5.5.2'!I74 -> 0 | J74: ='5.5.2'!J74 -> 0 | K74: ='5.5.2'!K74 -> 0
D75: less Accumulated depreciation on disposals | E75: $'000 | F75: ='5.5.2'!F75 -> 0 | G75: ='5.5.2'!G75 -> 0 | H75: ='5.5.2'!H75 -> 0 | I75: ='5.5.2'!I75 -> 0 | J75: ='5.5.2'!J75 -> 0 | K75: ='5.5.2'!K75 -> 0
D76: Net value of disposals | E76: $'000 | F76: =F74-F75 -> 0 | G76: =G74-G75 -> 0 | H76: =H74-H75 -> 0 | I76: =I74-I75 -> 0 | J76: =J74-J75 -> 0 | K76: =K74-K75 -> 0 | L76: 0 | M76: 0 | N76: 0 | O76: 0 | P76: 0 | Q76: 0 | R76: 0 | S76: 0 | T76: 0 | U76: 0 | V76: 0 | W76: 0 | X76: 0 | Y76: 0
C78: ='Business Details'!$D$51 -> Support services
D79: Gross value of disposals | E79: $'000 | F79: ='5.5.2'!F79 -> 0 | G79: ='5.5.2'!G79 -> 0 | H79: ='5.5.2'!H79 -> 0 | I79: ='5.5.2'!I79 -> 0 | J79: ='5.5.2'!J79 -> 0 | K79: ='5.5.2'!K79 -> 0
D80: less Accumulated depreciation on disposals | E80: $'000 | F80: ='5.5.2'!F80 -> 0 | G80: ='5.5.2'!G80 -> 0 | H80: ='5.5.2'!H80 -> 0 | I80: ='5.5.2'!I80 -> 0 | J80: ='5.5.2'!J80 -> 0 | K80: ='5.5.2'!K80 -> 0
D81: Net value of disposals | E81: $'000 | F81: =F79-F80 -> 0 | G81: =G79-G80 -> 0 | H81: =H79-H80 -> 0 | I81: =I79-I80 -> 0 | J81: =J79-J80 -> 0 | K81: =K79-K80 -> 0 | L81: 0 | M81: 0 | N81: 0 | O81: 0 | P81: 0 | Q81: 0 | R81: 0 | S81: 0 | T81: 0 | U81: 0 | V81: 0 | W81: 0 | X81: 0 | Y81: 0
C83: ='Business Details'!$D$52 -> Mains
D84: Gross value of disposals | E84: $'000 | F84: ='5.5.2'!F84 -> 1724.873801 | G84: ='5.5.2'!G84 -> 1808.354684 | H84: ='5.5.2'!H84 -> 1824.029205 | I84: ='5.5.2'!I84 -> 1863.299273 | J84: ='5.5.2'!J84 -> 1902.450315 | K84: ='5.5.2'!K84 -> 1950.011573
D85: less Accumulated depreciation on disposals | E85: $'000 | F85: ='5.5.2'!F85 -> 0 | G85: ='5.5.2'!G85 -> 0 | H85: ='5.5.2'!H85 -> 0 | I85: ='5.5.2'!I85 -> 0 | J85: ='5.5.2'!J85 -> 0 | K85: ='5.5.2'!K85 -> 0
D86: Net value of disposals | E86: $'000 | F86: =F84-F85 -> 1724.873801 | G86: =G84-G85 -> 1808.354684 | H86: =H84-H85 -> 1824.029205 | I86: =I84-I85 -> 1863.299273 | J86: =J84-J85 -> 1902.450315 | K86: =K84-K85 -> 1950.011573 | L86: 0 | M86: 0 | N86: 0 | O86: 0 | P86: 0 | Q86: 0 | R86: 0 | S86: 0 | T86: 0 | U86: 0 | V86: 0 | W86: 0 | X86: 0 | Y86: 0
C88: ='Business Details'!$D$53 -> Establishment Costs
D89: Gross value of disposals | E89: $'000 | F89: ='5.5.2'!F89 -> 0 | G89: ='5.5.2'!G89 -> 0 | H89: ='5.5.2'!H89 -> 0 | I89: ='5.5.2'!I89 -> 0 | J89: ='5.5.2'!J89 -> 0 | K89: ='5.5.2'!K89 -> 0
D90: less Accumulated depreciation on disposals | E90: $'000 | F90: ='5.5.2'!F90 -> 0 | G90: ='5.5.2'!G90 -> 0 | H90: ='5.5.2'!H90 -> 0 | I90: ='5.5.2'!I90 -> 0 | J90: ='5.5.2'!J90 -> 0 | K90: ='5.5.2'!K90 -> 0
D91: Net value of disposals | E91: $'000 | F91: =F89-F90 -> 0 | G91: =G89-G90 -> 0 | H91: =H89-H90 -> 0 | I91: =I89-I90 -> 0 | J91: =J89-J90 -> 0 | K91: =K89-K90 -> 0 | L91: 0 | M91: 0 | N91: 0 | O91: 0 | P91: 0 | Q91: 0 | R91: 0 | S91: 0 | T91: 0 | U91: 0 | V91: 0 | W91: 0 | X91: 0 | Y91: 0
C93: ='Business Details'!$D$54 -> Unallocated cash contribution
D94: Gross value of disposals | E94: $'000 | F94: ='5.5.2'!F94 -> 0 | G94: ='5.5.2'!G94 -> 0 | H94: ='5.5.2'!H94 -> 0 | I94: ='5.5.2'!I94 -> 0 | J94: ='5.5.2'!J94 -> 0 | K94: ='5.5.2'!K94 -> 0
D95: less Accumulated depreciation on disposals | E95: $'000 | F95: ='5.5.2'!F95 -> 0 | G95: ='5.5.2'!G95 -> 0 | H95: ='5.5.2'!H95 -> 0 | I95: ='5.5.2'!I95 -> 0 | J95: ='5.5.2'!J95 -> 0 | K95: ='5.5.2'!K95 -> 0
D96: Net value of disposals | E96: $'000 | F96: =F94-F95 -> 0 | G96: =G94-G95 -> 0 | H96: =H94-H95 -> 0 | I96: =I94-I95 -> 0 | J96: =J94-J95 -> 0 | K96: =K94-K95 -> 0 | L96: 0 | M96: 0 | N96: 0 | O96: 0 | P96: 0 | Q96: 0 | R96: 0 | S96: 0 | T96: 0 | U96: 0 | V96: 0 | W96: 0 | X96: 0 | Y96: 0
B100: Other core water services
C102: Reservoirs
D103: Gross value of disposals | E103: $'000 | F103: ='5.5.2'!F103 -> 0 | G103: ='5.5.2'!G103 -> 0 | H103: ='5.5.2'!H103 -> 0 | I103: ='5.5.2'!I103 -> 0 | J103: ='5.5.2'!J103 -> 0 | K103: ='5.5.2'!K103 -> 0
D104: less Accumulated depreciation on disposals | E104: $'000 | F104: ='5.5.2'!F104 -> 0 | G104: ='5.5.2'!G104 -> 0 | H104: ='5.5.2'!H104 -> 0 | I104: ='5.5.2'!I104 -> 0 | J104: ='5.5.2'!J104 -> 0 | K104: ='5.5.2'!K104 -> 0
D105: Net value of disposals | E105: $'000 | F105: =F103-F104 -> 0 | G105: =G103-G104 -> 0 | H105: =H103-H104 -> 0 | I105: =I103-I104 -> 0 | J105: =J103-J104 -> 0 | K105: =K103-K104 -> 0 | L105: 0 | M105: 0 | N105: 0 | O105: 0 | P105: 0 | Q105: 0 | R105: 0 | S105: 0 | T105: 0 | U105: 0 | V105: 0 | W105: 0 | X105: 0 | Y105: 0
C107: Pump stations
D108: Gross value of disposals | E108: $'000 | F108: ='5.5.2'!F108 -> 0 | G108: ='5.5.2'!G108 -> 0 | H108: ='5.5.2'!H108 -> 0 | I108: ='5.5.2'!I108 -> 0 | J108: ='5.5.2'!J108 -> 0 | K108: ='5.5.2'!K108 -> 0
D109: less Accumulated depreciation on disposals | E109: $'000 | F109: ='5.5.2'!F109 -> 0 | G109: ='5.5.2'!G109 -> 0 | H109: ='5.5.2'!H109 -> 0 | I109: ='5.5.2'!I109 -> 0 | J109: ='5.5.2'!J109 -> 0 | K109: ='5.5.2'!K109 -> 0
D110: Net value of disposals | E110: $'000 | F110: =F108-F109 -> 0 | G110: =G108-G109 -> 0 | H110: =H108-H109 -> 0 | I110: =I108-I109 -> 0 | J110: =J108-J109 -> 0 | K110: =K108-K109 -> 0 | L110: 0 | M110: 0 | N110: 0 | O110: 0 | P110: 0 | Q110: 0 | R110: 0 | S110: 0 | T110: 0 | U110: 0 | V110: 0 | W110: 0 | X110: 0 | Y110: 0
C112: Treatment
D113: Gross value of disposals | E113: $'000 | F113: ='5.5.2'!F113 -> 0 | G113: ='5.5.2'!G113 -> 0 | H113: ='5.5.2'!H113 -> 0 | I113: ='5.5.2'!I113 -> 0 | J113: ='5.5.2'!J113 -> 0 | K113: ='5.5.2'!K113 -> 0
D114: less Accumulated depreciation on disposals | E114: $'000 | F114: ='5.5.2'!F114 -> 0 | G114: ='5.5.2'!G114 -> 0 | H114: ='5.5.2'!H114 -> 0 | I114: ='5.5.2'!I114 -> 0 | J114: ='5.5.2'!J114 -> 0 | K114: ='5.5.2'!K114 -> 0
D115: Net value of disposals | E115: $'000 | F115: =F113-F114 -> 0 | G115: =G113-G114 -> 0 | H115: =H113-H114 -> 0 | I115: =I113-I114 -> 0 | J115: =J113-J114 -> 0 | K115: =K113-K114 -> 0 | L115: 0 | M115: 0 | N115: 0 | O115: 0 | P115: 0 | Q115: 0 | R115: 0 | S115: 0 | T115: 0 | U115: 0 | V115: 0 | W115: 0 | X115: 0 | Y115: 0
C117: Associated telemetry and control systems
D118: Gross value of disposals | E118: $'000 | F118: ='5.5.2'!F118 -> 0 | G118: ='5.5.2'!G118 -> 0 | H118: ='5.5.2'!H118 -> 0 | I118: ='5.5.2'!I118 -> 0 | J118: ='5.5.2'!J118 -> 0 | K118: ='5.5.2'!K118 -> 0
D119: less Accumulated depreciation on disposals | E119: $'000 | F119: ='5.5.2'!F119 -> 0 | G119: ='5.5.2'!G119 -> 0 | H119: ='5.5.2'!H119 -> 0 | I119: ='5.5.2'!I119 -> 0 | J119: ='5.5.2'!J119 -> 0 | K119: ='5.5.2'!K119 -> 0
D120: Net value of disposals | E120: $'000 | F120: =F118-F119 -> 0 | G120: =G118-G119 -> 0 | H120: =H118-H119 -> 0 | I120: =I118-I119 -> 0 | J120: =J118-J119 -> 0 | K120: =K118-K119 -> 0 | L120: 0 | M120: 0 | N120: 0 | O120: 0 | P120: 0 | Q120: 0 | R120: 0 | S120: 0 | T120: 0 | U120: 0 | V120: 0 | W120: 0 | X120: 0 | Y120: 0
C122: Meters
D123: Gross value of disposals | E123: $'000 | F123: ='5.5.2'!F123 -> 0 | G123: ='5.5.2'!G123 -> 0 | H123: ='5.5.2'!H123 -> 0 | I123: ='5.5.2'!I123 -> 0 | J123: ='5.5.2'!J123 -> 0 | K123: ='5.5.2'!K123 -> 0
D124: less Accumulated depreciation on disposals | E124: $'000 | F124: ='5.5.2'!F124 -> 0 | G124: ='5.5.2'!G124 -> 0 | H124: ='5.5.2'!H124 -> 0 | I124: ='5.5.2'!I124 -> 0 | J124: ='5.5.2'!J124 -> 0 | K124: ='5.5.2'!K124 -> 0
D125: Net value of disposals | E125: $'000 | F125: =F123-F124 -> 0 | G125: =G123-G124 -> 0 | H125: =H123-H124 -> 0 | I125: =I123-I124 -> 0 | J125: =J123-J124 -> 0 | K125: =K123-K124 -> 0 | L125: 0 | M125: 0 | N125: 0 | O125: 0 | P125: 0 | Q125: 0 | R125: 0 | S125: 0 | T125: 0 | U125: 0 | V125: 0 | W125: 0 | X125: 0 | Y125: 0
C127: Billing systems
D128: Gross value of disposals | E128: $'000 | F128: ='5.5.2'!F128 -> 0 | G128: ='5.5.2'!G128 -> 0 | H128: ='5.5.2'!H128 -> 0 | I128: ='5.5.2'!I128 -> 0 | J128: ='5.5.2'!J128 -> 0 | K128: ='5.5.2'!K128 -> 0
D129: less Accumulated depreciation on disposals | E129: $'000 | F129: ='5.5.2'!F129 -> 0 | G129: ='5.5.2'!G129 -> 0 | H129: ='5.5.2'!H129 -> 0 | I129: ='5.5.2'!I129 -> 0 | J129: ='5.5.2'!J129 -> 0 | K129: ='5.5.2'!K129 -> 0
D130: Net value of disposals | E130: $'000 | F130: =F128-F129 -> 0 | G130: =G128-G129 -> 0 | H130: =H128-H129 -> 0 | I130: =I128-I129 -> 0 | J130: =J128-J129 -> 0 | K130: =K128-K129 -> 0 | L130: 0 | M130: 0 | N130: 0 | O130: 0 | P130: 0 | Q130: 0 | R130: 0 | S130: 0 | T130: 0 | U130: 0 | V130: 0 | W130: 0 | X130: 0 | Y130: 0
C132: Corporate systems
D133: Gross value of disposals | E133: $'000 | F133: ='5.5.2'!F133 -> 0 | G133: ='5.5.2'!G133 -> 0 | H133: ='5.5.2'!H133 -> 0 | I133: ='5.5.2'!I133 -> 0 | J133: ='5.5.2'!J133 -> 0 | K133: ='5.5.2'!K133 -> 0
D134: less Accumulated depreciation on disposals | E134: $'000 | F134: ='5.5.2'!F134 -> 0 | G134: ='5.5.2'!G134 -> 0 | H134: ='5.5.2'!H134 -> 0 | I134: ='5.5.2'!I134 -> 0 | J134: ='5.5.2'!J134 -> 0 | K134: ='5.5.2'!K134 -> 0
D135: Net value of disposals | E135: $'000 | F135: =F133-F134 -> 0 | G135: =G133-G134 -> 0 | H135: =H133-H134 -> 0 | I135: =I133-I134 -> 0 | J135: =J133-J134 -> 0 | K135: =K133-K134 -> 0 | L135: 0 | M135: 0 | N135: 0 | O135: 0 | P135: 0 | Q135: 0 | R135: 0 | S135: 0 | T135: 0 | U135: 0 | V135: 0 | W135: 0 | X135: 0 | Y135: 0
C137: Sundry Property, Plant and Equipments
D138: Gross value of disposals | E138: $'000 | F138: ='5.5.2'!F138 -> 0 | G138: ='5.5.2'!G138 -> 0 | H138: ='5.5.2'!H138 -> 0 | I138: ='5.5.2'!I138 -> 0 | J138: ='5.5.2'!J138 -> 0 | K138: ='5.5.2'!K138 -> 0
D139: less Accumulated depreciation on disposals | E139: $'000 | F139: ='5.5.2'!F139 -> 0 | G139: ='5.5.2'!G139 -> 0 | H139: ='5.5.2'!H139 -> 0 | I139: ='5.5.2'!I139 -> 0 | J139: ='5.5.2'!J139 -> 0 | K139: ='5.5.2'!K139 -> 0
D140: Net value of disposals | E140: $'000 | F140: =F138-F139 -> 0 | G140: =G138-G139 -> 0 | H140: =H138-H139 -> 0 | I140: =I138-I139 -> 0 | J140: =J138-J139 -> 0 | K140: =K138-K139 -> 0 | L140: 0 | M140: 0 | N140: 0 | O140: 0 | P140: 0 | Q140: 0 | R140: 0 | S140: 0 | T140: 0 | U140: 0 | V140: 0 | W140: 0 | X140: 0 | Y140: 0
C142: Land
D143: Gross value of disposals | E143: $'000 | F143: ='5.5.2'!F143 -> 0 | G143: ='5.5.2'!G143 -> 0 | H143: ='5.5.2'!H143 -> 0 | I143: ='5.5.2'!I143 -> 0 | J143: ='5.5.2'!J143 -> 0 | K143: ='5.5.2'!K143 -> 0
D144: less Accumulated depreciation on disposals | E144: $'000 | F144: ='5.5.2'!F144 -> 0 | G144: ='5.5.2'!G144 -> 0 | H144: ='5.5.2'!H144 -> 0 | I144: ='5.5.2'!I144 -> 0 | J144: ='5.5.2'!J144 -> 0 | K144: ='5.5.2'!K144 -> 0
D145: Net value of disposals | E145: $'000 | F145: =F143-F144 -> 0 | G145: =G143-G144 -> 0 | H145: =H143-H144 -> 0 | I145: =I143-I144 -> 0 | J145: =J143-J144 -> 0 | K145: =K143-K144 -> 0 | L145: 0 | M145: 0 | N145: 0 | O145: 0 | P145: 0 | Q145: 0 | R145: 0 | S145: 0 | T145: 0 | U145: 0 | V145: 0 | W145: 0 | X145: 0 | Y145: 0
C147: Buildings other than infrastructure housing
D148: Gross value of disposals | E148: $'000 | F148: ='5.5.2'!F148 -> 0 | G148: ='5.5.2'!G148 -> 0 | H148: ='5.5.2'!H148 -> 0 | I148: ='5.5.2'!I148 -> 0 | J148: ='5.5.2'!J148 -> 0 | K148: ='5.5.2'!K148 -> 0
D149: less Accumulated depreciation on disposals | E149: $'000 | F149: ='5.5.2'!F149 -> 0 | G149: ='5.5.2'!G149 -> 0 | H149: ='5.5.2'!H149 -> 0 | I149: ='5.5.2'!I149 -> 0 | J149: ='5.5.2'!J149 -> 0 | K149: ='5.5.2'!K149 -> 0
D150: Net value of disposals | E150: $'000 | F150: =F148-F149 -> 0 | G150: =G148-G149 -> 0 | H150: =H148-H149 -> 0 | I150: =I148-I149 -> 0 | J150: =J148-J149 -> 0 | K150: =K148-K149 -> 0 | L150: 0 | M150: 0 | N150: 0 | O150: 0 | P150: 0 | Q150: 0 | R150: 0 | S150: 0 | T150: 0 | U150: 0 | V150: 0 | W150: 0 | X150: 0 | Y150: 0
C152: Distribution infrastructure not listed above
D153: Gross value of disposals | E153: $'000 | F153: ='5.5.2'!F153 -> 0 | G153: ='5.5.2'!G153 -> 0 | H153: ='5.5.2'!H153 -> 0 | I153: ='5.5.2'!I153 -> 0 | J153: ='5.5.2'!J153 -> 0 | K153: ='5.5.2'!K153 -> 0
D154: less Accumulated depreciation on disposals | E154: $'000 | F154: ='5.5.2'!F154 -> 0 | G154: ='5.5.2'!G154 -> 0 | H154: ='5.5.2'!H154 -> 0 | I154: ='5.5.2'!I154 -> 0 | J154: ='5.5.2'!J154 -> 0 | K154: ='5.5.2'!K154 -> 0
D155: Net value of disposals | E155: $'000 | F155: =F153-F154 -> 0 | G155: =G153-G154 -> 0 | H155: =H153-H154 -> 0 | I155: =I153-I154 -> 0 | J155: =J153-J154 -> 0 | K155: =K153-K154 -> 0 | L155: 0 | M155: 0 | N155: 0 | O155: 0 | P155: 0 | Q155: 0 | R155: 0 | S155: 0 | T155: 0 | U155: 0 | V155: 0 | W155: 0 | X155: 0 | Y155: 0
C157: ='Business Details'!$D$51 -> Support services
D158: Gross value of disposals | E158: $'000 | F158: ='5.5.2'!F158 -> 0 | G158: ='5.5.2'!G158 -> 0 | H158: ='5.5.2'!H158 -> 0 | I158: ='5.5.2'!I158 -> 0 | J158: ='5.5.2'!J158 -> 0 | K158: ='5.5.2'!K158 -> 0
D159: less Accumulated depreciation on disposals | E159: $'000 | F159: ='5.5.2'!F159 -> 0 | G159: ='5.5.2'!G159 -> 0 | H159: ='5.5.2'!H159 -> 0 | I159: ='5.5.2'!I159 -> 0 | J159: ='5.5.2'!J159 -> 0 | K159: ='5.5.2'!K159 -> 0
D160: Net value of disposals | E160: $'000 | F160: =F158-F159 -> 0 | G160: =G158-G159 -> 0 | H160: =H158-H159 -> 0 | I160: =I158-I159 -> 0 | J160: =J158-J159 -> 0 | K160: =K158-K159 -> 0 | L160: 0 | M160: 0 | N160: 0 | O160: 0 | P160: 0 | Q160: 0 | R160: 0 | S160: 0 | T160: 0 | U160: 0 | V160: 0 | W160: 0 | X160: 0 | Y160: 0
C162: ='Business Details'!$D$52 -> Mains
D163: Gross value of disposals | E163: $'000 | F163: ='5.5.2'!F163 -> 0 | G163: ='5.5.2'!G163 -> 0 | H163: ='5.5.2'!H163 -> 0 | I163: ='5.5.2'!I163 -> 0 | J163: ='5.5.2'!J163 -> 0 | K163: ='5.5.2'!K163 -> 0
D164: less Accumulated depreciation on disposals | E164: $'000 | F164: ='5.5.2'!F164 -> 0 | G164: ='5.5.2'!G164 -> 0 | H164: ='5.5.2'!H164 -> 0 | I164: ='5.5.2'!I164 -> 0 | J164: ='5.5.2'!J164 -> 0 | K164: ='5.5.2'!K164 -> 0
D165: Net value of disposals | E165: $'000 | F165: =F163-F164 -> 0 | G165: =G163-G164 -> 0 | H165: =H163-H164 -> 0 | I165: =I163-I164 -> 0 | J165: =J163-J164 -> 0 | K165: =K163-K164 -> 0 | L165: 0 | M165: 0 | N165: 0 | O165: 0 | P165: 0 | Q165: 0 | R165: 0 | S165: 0 | T165: 0 | U165: 0 | V165: 0 | W165: 0 | X165: 0 | Y165: 0
C167: ='Business Details'!$D$53 -> Establishment Costs
D168: Gross value of disposals | E168: $'000 | F168: ='5.5.2'!F168 -> 0 | G168: ='5.5.2'!G168 -> 0 | H168: ='5.5.2'!H168 -> 0 | I168: ='5.5.2'!I168 -> 0 | J168: ='5.5.2'!J168 -> 0 | K168: ='5.5.2'!K168 -> 0
D169: less Accumulated depreciation on disposals | E169: $'000 | F169: ='5.5.2'!F169 -> 0 | G169: ='5.5.2'!G169 -> 0 | H169: ='5.5.2'!H169 -> 0 | I169: ='5.5.2'!I169 -> 0 | J169: ='5.5.2'!J169 -> 0 | K169: ='5.5.2'!K169 -> 0
D170: Net value of disposals | E170: $'000 | F170: =F168-F169 -> 0 | G170: =G168-G169 -> 0 | H170: =H168-H169 -> 0 | I170: =I168-I169 -> 0 | J170: =J168-J169 -> 0 | K170: =K168-K169 -> 0 | L170: 0 | M170: 0 | N170: 0 | O170: 0 | P170: 0 | Q170: 0 | R170: 0 | S170: 0 | T170: 0 | U170: 0 | V170: 0 | W170: 0 | X170: 0 | Y170: 0
C172: ='Business Details'!$D$54 -> Unallocated cash contribution
D173: Gross value of disposals | E173: $'000 | F173: ='5.5.2'!F173 -> 0 | G173: ='5.5.2'!G173 -> 0 | H173: ='5.5.2'!H173 -> 0 | I173: ='5.5.2'!I173 -> 0 | J173: ='5.5.2'!J173 -> 0 | K173: ='5.5.2'!K173 -> 0
D174: less Accumulated depreciation on disposals | E174: $'000 | F174: ='5.5.2'!F174 -> 0 | G174: ='5.5.2'!G174 -> 0 | H174: ='5.5.2'!H174 -> 0 | I174: ='5.5.2'!I174 -> 0 | J174: ='5.5.2'!J174 -> 0 | K174: ='5.5.2'!K174 -> 0
D175: Net value of disposals | E175: $'000 | F175: =F173-F174 -> 0 | G175: =G173-G174 -> 0 | H175: =H173-H174 -> 0 | I175: =I173-I174 -> 0 | J175: =J173-J174 -> 0 | K175: =K173-K174 -> 0 | L175: 0 | M175: 0 | N175: 0 | O175: 0 | P175: 0 | Q175: 0 | R175: 0 | S175: 0 | T175: 0 | U175: 0 | V175: 0 | W175: 0 | X175: 0 | Y175: 0
B179: WASTEWATER VIA SEWER
C181: Reservoirs
D182: Gross value of disposals | E182: $'000 | F182: ='5.5.2'!F182 -> 0 | G182: ='5.5.2'!G182 -> 0 | H182: ='5.5.2'!H182 -> 0 | I182: ='5.5.2'!I182 -> 0 | J182: ='5.5.2'!J182 -> 0 | K182: ='5.5.2'!K182 -> 0
D183: less Accumulated depreciation on disposals | E183: $'000 | F183: ='5.5.2'!F183 -> 0 | G183: ='5.5.2'!G183 -> 0 | H183: ='5.5.2'!H183 -> 0 | I183: ='5.5.2'!I183 -> 0 | J183: ='5.5.2'!J183 -> 0 | K183: ='5.5.2'!K183 -> 0
D184: Net value of disposals | E184: $'000 | F184: =F182-F183 -> 0 | G184: =G182-G183 -> 0 | H184: =H182-H183 -> 0 | I184: =I182-I183 -> 0 | J184: =J182-J183 -> 0 | K184: =K182-K183 -> 0 | L184: 0 | M184: 0 | N184: 0 | O184: 0 | P184: 0 | Q184: 0 | R184: 0 | S184: 0 | T184: 0 | U184: 0 | V184: 0 | W184: 0 | X184: 0 | Y184: 0
C186: Pump stations
D187: Gross value of disposals | E187: $'000 | F187: ='5.5.2'!F187 -> 1530.677873 | G187: ='5.5.2'!G187 -> 0 | H187: ='5.5.2'!H187 -> 790.2124521 | I187: ='5.5.2'!I187 -> 807.2251713 | J187: ='5.5.2'!J187 -> 824.1863258 | K187: ='5.5.2'!K187 -> 844.790984
D188: less Accumulated depreciation on disposals | E188: $'000 | F188: ='5.5.2'!F188 -> 0 | G188: ='5.5.2'!G188 -> 0 | H188: ='5.5.2'!H188 -> 0 | I188: ='5.5.2'!I188 -> 0 | J188: ='5.5.2'!J188 -> 0 | K188: ='5.5.2'!K188 -> 0
D189: Net value of disposals | E189: $'000 | F189: =F187-F188 -> 1530.677873 | G189: =G187-G188 -> 0 | H189: =H187-H188 -> 790.2124521 | I189: =I187-I188 -> 807.2251713 | J189: =J187-J188 -> 824.1863258 | K189: =K187-K188 -> 844.790984 | L189: 0 | M189: 0 | N189: 0 | O189: 0 | P189: 0 | Q189: 0 | R189: 0 | S189: 0 | T189: 0 | U189: 0 | V189: 0 | W189: 0 | X189: 0 | Y189: 0
C191: Treatment
D192: Gross value of disposals | E192: $'000 | F192: ='5.5.2'!F192 -> 0 | G192: ='5.5.2'!G192 -> 0 | H192: ='5.5.2'!H192 -> 0 | I192: ='5.5.2'!I192 -> 0 | J192: ='5.5.2'!J192 -> 0 | K192: ='5.5.2'!K192 -> 0
D193: less Accumulated depreciation on disposals | E193: $'000 | F193: ='5.5.2'!F193 -> 0 | G193: ='5.5.2'!G193 -> 0 | H193: ='5.5.2'!H193 -> 0 | I193: ='5.5.2'!I193 -> 0 | J193: ='5.5.2'!J193 -> 0 | K193: ='5.5.2'!K193 -> 0
D194: Net value of disposals | E194: $'000 | F194: =F192-F193 -> 0 | G194: =G192-G193 -> 0 | H194: =H192-H193 -> 0 | I194: =I192-I193 -> 0 | J194: =J192-J193 -> 0 | K194: =K192-K193 -> 0 | L194: 0 | M194: 0 | N194: 0 | O194: 0 | P194: 0 | Q194: 0 | R194: 0 | S194: 0 | T194: 0 | U194: 0 | V194: 0 | W194: 0 | X194: 0 | Y194: 0
C196: Associated telemetry and control systems
D197: Gross value of disposals | E197: $'000 | F197: ='5.5.2'!F197 -> 0 | G197: ='5.5.2'!G197 -> 0 | H197: ='5.5.2'!H197 -> 0 | I197: ='5.5.2'!I197 -> 0 | J197: ='5.5.2'!J197 -> 0 | K197: ='5.5.2'!K197 -> 0
D198: less Accumulated depreciation on disposals | E198: $'000 | F198: ='5.5.2'!F198 -> 0 | G198: ='5.5.2'!G198 -> 0 | H198: ='5.5.2'!H198 -> 0 | I198: ='5.5.2'!I198 -> 0 | J198: ='5.5.2'!J198 -> 0 | K198: ='5.5.2'!K198 -> 0
D199: Net value of disposals | E199: $'000 | F199: =F197-F198 -> 0 | G199: =G197-G198 -> 0 | H199: =H197-H198 -> 0 | I199: =I197-I198 -> 0 | J199: =J197-J198 -> 0 | K199: =K197-K198 -> 0 | L199: 0 | M199: 0 | N199: 0 | O199: 0 | P199: 0 | Q199: 0 | R199: 0 | S199: 0 | T199: 0 | U199: 0 | V199: 0 | W199: 0 | X199: 0 | Y199: 0
C201: Meters
D202: Gross value of disposals | E202: $'000 | F202: ='5.5.2'!F202 -> 0 | G202: ='5.5.2'!G202 -> 0 | H202: ='5.5.2'!H202 -> 0 | I202: ='5.5.2'!I202 -> 0 | J202: ='5.5.2'!J202 -> 0 | K202: ='5.5.2'!K202 -> 0
D203: less Accumulated depreciation on disposals | E203: $'000 | F203: ='5.5.2'!F203 -> 0 | G203: ='5.5.2'!G203 -> 0 | H203: ='5.5.2'!H203 -> 0 | I203: ='5.5.2'!I203 -> 0 | J203: ='5.5.2'!J203 -> 0 | K203: ='5.5.2'!K203 -> 0
D204: Net value of disposals | E204: $'000 | F204: =F202-F203 -> 0 | G204: =G202-G203 -> 0 | H204: =H202-H203 -> 0 | I204: =I202-I203 -> 0 | J204: =J202-J203 -> 0 | K204: =K202-K203 -> 0 | L204: 0 | M204: 0 | N204: 0 | O204: 0 | P204: 0 | Q204: 0 | R204: 0 | S204: 0 | T204: 0 | U204: 0 | V204: 0 | W204: 0 | X204: 0 | Y204: 0
C206: Billing systems
D207: Gross value of disposals | E207: $'000 | F207: ='5.5.2'!F207 -> 0 | G207: ='5.5.2'!G207 -> 0 | H207: ='5.5.2'!H207 -> 0 | I207: ='5.5.2'!I207 -> 0 | J207: ='5.5.2'!J207 -> 0 | K207: ='5.5.2'!K207 -> 0
D208: less Accumulated depreciation on disposals | E208: $'000 | F208: ='5.5.2'!F208 -> 0 | G208: ='5.5.2'!G208 -> 0 | H208: ='5.5.2'!H208 -> 0 | I208: ='5.5.2'!I208 -> 0 | J208: ='5.5.2'!J208 -> 0 | K208: ='5.5.2'!K208 -> 0
D209: Net value of disposals | E209: $'000 | F209: =F207-F208 -> 0 | G209: =G207-G208 -> 0 | H209: =H207-H208 -> 0 | I209: =I207-I208 -> 0 | J209: =J207-J208 -> 0 | K209: =K207-K208 -> 0 | L209: 0 | M209: 0 | N209: 0 | O209: 0 | P209: 0 | Q209: 0 | R209: 0 | S209: 0 | T209: 0 | U209: 0 | V209: 0 | W209: 0 | X209: 0 | Y209: 0
C211: Corporate systems
D212: Gross value of disposals | E212: $'000 | F212: ='5.5.2'!F212 -> 0 | G212: ='5.5.2'!G212 -> 0 | H212: ='5.5.2'!H212 -> 0 | I212: ='5.5.2'!I212 -> 0 | J212: ='5.5.2'!J212 -> 0 | K212: ='5.5.2'!K212 -> 0
D213: less Accumulated depreciation on disposals | E213: $'000 | F213: ='5.5.2'!F213 -> 0 | G213: ='5.5.2'!G213 -> 0 | H213: ='5.5.2'!H213 -> 0 | I213: ='5.5.2'!I213 -> 0 | J213: ='5.5.2'!J213 -> 0 | K213: ='5.5.2'!K213 -> 0
D214: Net value of disposals | E214: $'000 | F214: =F212-F213 -> 0 | G214: =G212-G213 -> 0 | H214: =H212-H213 -> 0 | I214: =I212-I213 -> 0 | J214: =J212-J213 -> 0 | K214: =K212-K213 -> 0 | L214: 0 | M214: 0 | N214: 0 | O214: 0 | P214: 0 | Q214: 0 | R214: 0 | S214: 0 | T214: 0 | U214: 0 | V214: 0 | W214: 0 | X214: 0 | Y214: 0
C216: Sundry Property, Plant and Equipments
D217: Gross value of disposals | E217: $'000 | F217: ='5.5.2'!F217 -> 0 | G217: ='5.5.2'!G217 -> 0 | H217: ='5.5.2'!H217 -> 0 | I217: ='5.5.2'!I217 -> 0 | J217: ='5.5.2'!J217 -> 0 | K217: ='5.5.2'!K217 -> 0
D218: less Accumulated depreciation on disposals | E218: $'000 | F218: ='5.5.2'!F218 -> 0 | G218: ='5.5.2'!G218 -> 0 | H218: ='5.5.2'!H218 -> 0 | I218: ='5.5.2'!I218 -> 0 | J218: ='5.5.2'!J218 -> 0 | K218: ='5.5.2'!K218 -> 0
D219: Net value of disposals | E219: $'000 | F219: =F217-F218 -> 0 | G219: =G217-G218 -> 0 | H219: =H217-H218 -> 0 | I219: =I217-I218 -> 0 | J219: =J217-J218 -> 0 | K219: =K217-K218 -> 0 | L219: 0 | M219: 0 | N219: 0 | O219: 0 | P219: 0 | Q219: 0 | R219: 0 | S219: 0 | T219: 0 | U219: 0 | V219: 0 | W219: 0 | X219: 0 | Y219: 0
C221: Land
D222: Gross value of disposals | E222: $'000 | F222: ='5.5.2'!F222 -> 0 | G222: ='5.5.2'!G222 -> 0 | H222: ='5.5.2'!H222 -> 0 | I222: ='5.5.2'!I222 -> 0 | J222: ='5.5.2'!J222 -> 0 | K222: ='5.5.2'!K222 -> 0
D223: less Accumulated depreciation on disposals | E223: $'000 | F223: ='5.5.2'!F223 -> 0 | G223: ='5.5.2'!G223 -> 0 | H223: ='5.5.2'!H223 -> 0 | I223: ='5.5.2'!I223 -> 0 | J223: ='5.5.2'!J223 -> 0 | K223: ='5.5.2'!K223 -> 0
D224: Net value of disposals | E224: $'000 | F224: =F222-F223 -> 0 | G224: =G222-G223 -> 0 | H224: =H222-H223 -> 0 | I224: =I222-I223 -> 0 | J224: =J222-J223 -> 0 | K224: =K222-K223 -> 0 | L224: 0 | M224: 0 | N224: 0 | O224: 0 | P224: 0 | Q224: 0 | R224: 0 | S224: 0 | T224: 0 | U224: 0 | V224: 0 | W224: 0 | X224: 0 | Y224: 0
C226: Buildings other than infrastructure housing
D227: Gross value of disposals | E227: $'000 | F227: ='5.5.2'!F227 -> 0 | G227: ='5.5.2'!G227 -> 0 | H227: ='5.5.2'!H227 -> 0 | I227: ='5.5.2'!I227 -> 0 | J227: ='5.5.2'!J227 -> 0 | K227: ='5.5.2'!K227 -> 0
D228: less Accumulated depreciation on disposals | E228: $'000 | F228: ='5.5.2'!F228 -> 0 | G228: ='5.5.2'!G228 -> 0 | H228: ='5.5.2'!H228 -> 0 | I228: ='5.5.2'!I228 -> 0 | J228: ='5.5.2'!J228 -> 0 | K228: ='5.5.2'!K228 -> 0
D229: Net value of disposals | E229: $'000 | F229: =F227-F228 -> 0 | G229: =G227-G228 -> 0 | H229: =H227-H228 -> 0 | I229: =I227-I228 -> 0 | J229: =J227-J228 -> 0 | K229: =K227-K228 -> 0 | L229: 0 | M229: 0 | N229: 0 | O229: 0 | P229: 0 | Q229: 0 | R229: 0 | S229: 0 | T229: 0 | U229: 0 | V229: 0 | W229: 0 | X229: 0 | Y229: 0
C231: Distribution infrastructure not listed above
D232: Gross value of disposals | E232: $'000 | F232: ='5.5.2'!F232 -> 0 | G232: ='5.5.2'!G232 -> 0 | H232: ='5.5.2'!H232 -> 0 | I232: ='5.5.2'!I232 -> 0 | J232: ='5.5.2'!J232 -> 0 | K232: ='5.5.2'!K232 -> 0
D233: less Accumulated depreciation on disposals | E233: $'000 | F233: ='5.5.2'!F233 -> 0 | G233: ='5.5.2'!G233 -> 0 | H233: ='5.5.2'!H233 -> 0 | I233: ='5.5.2'!I233 -> 0 | J233: ='5.5.2'!J233 -> 0 | K233: ='5.5.2'!K233 -> 0
D234: Net value of disposals | E234: $'000 | F234: =F232-F233 -> 0 | G234: =G232-G233 -> 0 | H234: =H232-H233 -> 0 | I234: =I232-I233 -> 0 | J234: =J232-J233 -> 0 | K234: =K232-K233 -> 0 | L234: 0 | M234: 0 | N234: 0 | O234: 0 | P234: 0 | Q234: 0 | R234: 0 | S234: 0 | T234: 0 | U234: 0 | V234: 0 | W234: 0 | X234: 0 | Y234: 0
C236: ='Business Details'!$D$51 -> Support services
D237: Gross value of disposals | E237: $'000 | F237: ='5.5.2'!F237 -> 0 | G237: ='5.5.2'!G237 -> 0 | H237: ='5.5.2'!H237 -> 0 | I237: ='5.5.2'!I237 -> 0 | J237: ='5.5.2'!J237 -> 0 | K237: ='5.5.2'!K237 -> 0
D238: less Accumulated depreciation on disposals | E238: $'000 | F238: ='5.5.2'!F238 -> 0 | G238: ='5.5.2'!G238 -> 0 | H238: ='5.5.2'!H238 -> 0 | I238: ='5.5.2'!I238 -> 0 | J238: ='5.5.2'!J238 -> 0 | K238: ='5.5.2'!K238 -> 0
D239: Net value of disposals | E239: $'000 | F239: =F237-F238 -> 0 | G239: =G237-G238 -> 0 | H239: =H237-H238 -> 0 | I239: =I237-I238 -> 0 | J239: =J237-J238 -> 0 | K239: =K237-K238 -> 0 | L239: 0 | M239: 0 | N239: 0 | O239: 0 | P239: 0 | Q239: 0 | R239: 0 | S239: 0 | T239: 0 | U239: 0 | V239: 0 | W239: 0 | X239: 0 | Y239: 0
C241: ='Business Details'!$D$52 -> Mains
D242: Gross value of disposals | E242: $'000 | F242: ='5.5.2'!F242 -> 678.3174032 | G242: ='5.5.2'!G242 -> 1825.670719 | H242: ='5.5.2'!H242 -> 1292.683868 | I242: ='5.5.2'!I242 -> 1320.514444 | J242: ='5.5.2'!J242 -> 1348.260667 | K242: ='5.5.2'!K242 -> 1381.967183
D243: less Accumulated depreciation on disposals | E243: $'000 | F243: ='5.5.2'!F243 -> 0 | G243: ='5.5.2'!G243 -> 0 | H243: ='5.5.2'!H243 -> 0 | I243: ='5.5.2'!I243 -> 0 | J243: ='5.5.2'!J243 -> 0 | K243: ='5.5.2'!K243 -> 0
D244: Net value of disposals | E244: $'000 | F244: =F242-F243 -> 678.3174032 | G244: =G242-G243 -> 1825.670719 | H244: =H242-H243 -> 1292.683868 | I244: =I242-I243 -> 1320.514444 | J244: =J242-J243 -> 1348.260667 | K244: =K242-K243 -> 1381.967183 | L244: 0 | M244: 0 | N244: 0 | O244: 0 | P244: 0 | Q244: 0 | R244: 0 | S244: 0 | T244: 0 | U244: 0 | V244: 0 | W244: 0 | X244: 0 | Y244: 0
C246: ='Business Details'!$D$53 -> Establishment Costs
D247: Gross value of disposals | E247: $'000 | F247: ='5.5.2'!F247 -> 0 | G247: ='5.5.2'!G247 -> 0 | H247: ='5.5.2'!H247 -> 0 | I247: ='5.5.2'!I247 -> 0 | J247: ='5.5.2'!J247 -> 0 | K247: ='5.5.2'!K247 -> 0
D248: less Accumulated depreciation on disposals | E248: $'000 | F248: ='5.5.2'!F248 -> 0 | G248: ='5.5.2'!G248 -> 0 | H248: ='5.5.2'!H248 -> 0 | I248: ='5.5.2'!I248 -> 0 | J248: ='5.5.2'!J248 -> 0 | K248: ='5.5.2'!K248 -> 0
D249: Net value of disposals | E249: $'000 | F249: =F247-F248 -> 0 | G249: =G247-G248 -> 0 | H249: =H247-H248 -> 0 | I249: =I247-I248 -> 0 | J249: =J247-J248 -> 0 | K249: =K247-K248 -> 0 | L249: 0 | M249: 0 | N249: 0 | O249: 0 | P249: 0 | Q249: 0 | R249: 0 | S249: 0 | T249: 0 | U249: 0 | V249: 0 | W249: 0 | X249: 0 | Y249: 0
C251: ='Business Details'!$D$54 -> Unallocated cash contribution
D252: Gross value of disposals | E252: $'000 | F252: ='5.5.2'!F252 -> 0 | G252: ='5.5.2'!G252 -> 0 | H252: ='5.5.2'!H252 -> 0 | I252: ='5.5.2'!I252 -> 0 | J252: ='5.5.2'!J252 -> 0 | K252: ='5.5.2'!K252 -> 0
D253: less Accumulated depreciation on disposals | E253: $'000 | F253: ='5.5.2'!F253 -> 0 | G253: ='5.5.2'!G253 -> 0 | H253: ='5.5.2'!H253 -> 0 | I253: ='5.5.2'!I253 -> 0 | J253: ='5.5.2'!J253 -> 0 | K253: ='5.5.2'!K253 -> 0
D254: Net value of disposals | E254: $'000 | F254: =F252-F253 -> 0 | G254: =G252-G253 -> 0 | H254: =H252-H253 -> 0 | I254: =I252-I253 -> 0 | J254: =J252-J253 -> 0 | K254: =K252-K253 -> 0 | L254: 0 | M254: 0 | N254: 0 | O254: 0 | P254: 0 | Q254: 0 | R254: 0 | S254: 0 | T254: 0 | U254: 0 | V254: 0 | W254: 0 | X254: 0 | Y254: 0
B258: TRADE WASTE
C260: Reservoirs
D261: Gross value of disposals | E261: $'000 | F261: ='5.5.2'!F261 -> 0 | G261: ='5.5.2'!G261 -> 0 | H261: ='5.5.2'!H261 -> 0 | I261: ='5.5.2'!I261 -> 0 | J261: ='5.5.2'!J261 -> 0 | K261: ='5.5.2'!K261 -> 0
D262: less Accumulated depreciation on disposals | E262: $'000 | F262: ='5.5.2'!F262 -> 0 | G262: ='5.5.2'!G262 -> 0 | H262: ='5.5.2'!H262 -> 0 | I262: ='5.5.2'!I262 -> 0 | J262: ='5.5.2'!J262 -> 0 | K262: ='5.5.2'!K262 -> 0
D263: Net value of disposals | E263: $'000 | F263: =F261-F262 -> 0 | G263: =G261-G262 -> 0 | H263: =H261-H262 -> 0 | I263: =I261-I262 -> 0 | J263: =J261-J262 -> 0 | K263: =K261-K262 -> 0 | L263: 0 | M263: 0 | N263: 0 | O263: 0 | P263: 0 | Q263: 0 | R263: 0 | S263: 0 | T263: 0 | U263: 0 | V263: 0 | W263: 0 | X263: 0 | Y263: 0
C265: Pump stations
... 1669 more rows

Sheet 5.5.2
AA1: ="If revenues are smoothed beyond "&J11&", additional data is to be provided for the corresponding period. Additional years can be accessed by clicking on the '+' sign above." -> If revenues are smoothed beyond 2013, additional data is to be provided for the corresponding period. Additional years can be accessed by clicking on the '+' sign above.
B4: ='Business Details'!$B$4 -> SEQ INTERIM REVENUE MONITORING - INFORMATION REQUIREMENT TEMPLATE
B8: =CONCATENATE("Asset Disposals for ",'Business Details'!$D$9) -> Asset Disposals for Allconnex Water
B9: =CONCATENATE("Reporting year = ",AnalysisYear) -> Reporting year = 2012 | H9: 1 | I9: 2 | J9: 3 | K9: 4
B10: Geographic Area / Service / Asset Class | F10: For Year Ending 30 June: | AA10: ='5.1.1'!M12 -> For Year Ending 30 June 2012:
F11: ='5.1.1'!F13 -> 2009 | G11: ='5.1.1'!G13 -> 2010 | H11: ='5.1.1'!H13 -> 2011 | I11: ='5.1.1'!I13 -> 2012 | J11: ='5.1.1'!J13 -> 2013 | K11: =J11+1 -> 2014 | L11: =K11+1 -> 2015 | M11: 2016 | N11: 2017 | O11: 2018 | P11: 2019 | Q11: 2020 | R11: 2021 | S11: 2022 | T11: 2023 | U11: 2024 | V11: 2025 | W11: 2026 | X11: 2027 | Y11: 2028 | AA11: Supporting Documents
B13: =CONCATENATE("Geographic Area ",'Business Details'!$C$12," - ",'Business Details'!$D$12) -> Geographic Area 1 - Gold Coast | H13: =SUM(H19,H504,H988) -> 10345.03015 | I13: =SUM(I19,I504,I988) -> 10567.75139 | J13: =SUM(J19,J504,J988) -> 10789.79756 | K13: =SUM(K19,K504,K988) -> 11059.5425 | AA13: Total
B15: TOTAL FOR GEOGRAPHIC AREA
D17: Gross value of disposals | E17: $'000 | F17: =F24+F29+F34+F39+F44+F49+F54+F59+F64+F69+F74+F79+F84+F89+F94+F103+F108+F113+F118+F123+F128+F133+F138+F143+F148+F153+F158+F163+F173+F182+F187+F192+F197+F202+F207+F217+F222+F212+F232+F227+F237+F242+F247+F252+F261+F266+F271+F276+F281+F286+F291+F296+F301+F306+F311+F316+F321+F326+F331+F340+F345+F350+F355+F360+F365+F370+F375+F380+F385+F390+F395+F400+F405+F410+F419+F424+F429+F434+F439+F444+F449+F454+F459+F464+F469+F474+F479+F484+F489 -> 4403.916923 | G17: 3789.979256 | H17: 4230.098903 | I17: 4321.169962 | J17: 4411.964989 | K17: 4522.264114 | L17: =L24+L29+L34+L39+L44+L49+L54+L59+L64+L69+L74+L79+L84+L89+L94+L103+L108+L113+L118+L123+L128+L133+L138+L143+L148+L153+L158+L163+L173+L182+L187+L192+L197+L202+L207+L217+L222+L212+L232+L227+L237+L242+L247+L252+L261+L266+L271+L276+L281+L286+L291+L296+L301+L306+L311+L316+L321+L326+L331+L340+L345+L350+L355+L360+L365+L370+L375+L380+L385+L390+L395+L400+L405+L410+L419+L424+L429+L434+L439+L444+L449+L454+L459+L464+L469+L474+L479+L484+L489 -> 0 | M17: 0 | N17: 0 | O17: 0 | P17: 0 | Q17: 0 | R17: 0 | S17: 0 | T17: 0 | U17: 0 | V17: 0 | W17: 0 | X17: 0 | Y17: 0
D18: less Accumulated depreciation on disposals | E18: $'000 | F18: 0 | G18: 0 | H18: 0 | I18: 0 | J18: 0 | K18: 0 | L18: =L25+L30+L35+L40+L45+L50+L55+L60+L65+L70+L75+L80+L85+L90+L95+L104+L109+L114+L119+L124+L129+L134+L139+L144+L149+L154+L159+L164+L174+L183+L188+L193+L198+L203+L208+L218+L223+L213+L233+L228+L238+L243+L248+L253+L262+L267+L272+L277+L282+L287+L292+L297+L302+L307+L312+L317+L322+L327+L332+L341+L346+L351+L356+L361+L366+L371+L376+L381+L386+L391+L396+L401+L406+L411+L420+L425+L430+L435+L440+L445+L450+L455+L460+L465+L470+L475+L480+L485+L490 -> 0 | M18: 0 | N18: 0 | O18: 0 | P18: 0 | Q18: 0 | R18: 0 | S18: 0 | T18: 0 | U18: 0 | V18: 0 | W18: 0 | X18: 0 | Y18: 0
D19: Net value of disposals | E19: $'000 | F19: =F17-F18 -> 4403.916923 | G19: 3789.979256 | H19: 4230.098903 | I19: 4321.169962 | J19: 4411.964989 | K19: 4522.264114 | L19: =L17-L18 -> 0 | M19: 0 | N19: 0 | O19: 0 | P19: 0 | Q19: 0 | R19: 0 | S19: 0 | T19: 0 | U19: 0 | V19: 0 | W19: 0 | X19: 0 | Y19: 0
F20: 0 | G20: 0
B21: DRINKING WATER
C23: ='Business Details'!$D$40 -> Reservoirs
D24: Gross value of disposals | E24: $'000 | F24: 77.07080254 | G24: 0 | H24: =AVERAGE($F24:$G24)*(1+'Business Details'!G$31)^'5.5.2'!H$9 -> 39.78780181 | I24: =AVERAGE($F24:$G24)*(1+'Business Details'!H31)^'5.5.2'!I$9 -> 40.64440524 | J24: =AVERAGE($F24:$G24)*(1+'Business Details'!I$31)^'5.5.2'!J$9 -> 41.49841236 | K24: =AVERAGE($F24:$G24)*(1+'Business Details'!J$31)^'5.5.2'!K$9 -> 42.53587266 | AC24: Enter both the gross value and accumulated depreciation as positive numbers.
D25: less Accumulated depreciation on disposals | E25: $'000 | F25: 0 | G25: 0 | H25: =AVERAGE($F25:$G25)*(1+'Business Details'!G$31)^'5.5.2'!H$9 -> 0 | I25: =AVERAGE($F25:$G25)*(1+'Business Details'!H$31)^'5.5.2'!I$9 -> 0 | J25: =AVERAGE($F25:$G25)*(1+'Business Details'!I$31)^'5.5.2'!J$9 -> 0 | K25: =AVERAGE($F25:$G25)*(1+'Business Details'!J$31)^'5.5.2'!K$9 -> 0
D26: Net value of disposals | E26: $'000 | F26: =F24-F25 -> 77.07080254 | G26: =G24-G25 -> 0 | H26: =H24-H25 -> 39.78780181 | I26: =I24-I25 -> 40.64440524 | J26: =J24-J25 -> 41.49841236 | K26: =K24-K25 -> 42.53587266 | L26: 0 | M26: 0 | N26: 0 | O26: 0 | P26: 0 | Q26: 0 | R26: 0 | S26: 0 | T26: 0 | U26: 0 | V26: 0 | W26: 0 | X26: 0 | Y26: 0
C28: ='Business Details'!$D$41 -> Pump stations
D29: Gross value of disposals | E29: $'000 | F29: 204.2785431 | G29: 0 | H29: =AVERAGE($F29:$G29)*(1+'Business Details'!G$31)^'5.5.2'!H$9 -> 105.4587979 | I29: =AVERAGE($F29:$G29)*(1+'Business Details'!H$31)^'5.5.2'!I$9 -> 107.7292517 | J29: =AVERAGE($F29:$G29)*(1+'Business Details'!I$31)^'5.5.2'!J$9 -> 109.992824 | K29: =AVERAGE($F29:$G29)*(1+'Business Details'!J$31)^'5.5.2'!K$9 -> 112.7426446
D30: less Accumulated depreciation on disposals | E30: $'000 | F30: 0 | G30: 0 | H30: =AVERAGE($F30:$G30)*(1+'Business Details'!G$31)^'5.5.2'!H$9 -> 0 | I30: =AVERAGE($F30:$G30)*(1+'Business Details'!H$31)^'5.5.2'!I$9 -> 0 | J30: =AVERAGE($F30:$G30)*(1+'Business Details'!I$31)^'5.5.2'!J$9 -> 0 | K30: =AVERAGE($F30:$G30)*(1+'Business Details'!J$31)^'5.5.2'!K$9 -> 0
D31: Net value of disposals | E31: $'000 | F31: =F29-F30 -> 204.2785431 | G31: =G29-G30 -> 0 | H31: =H29-H30 -> 105.4587979 | I31: =I29-I30 -> 107.7292517 | J31: =J29-J30 -> 109.992824 | K31: =K29-K30 -> 112.7426446 | L31: 0 | M31: 0 | N31: 0 | O31: 0 | P31: 0 | Q31: 0 | R31: 0 | S31: 0 | T31: 0 | U31: 0 | V31: 0 | W31: 0 | X31: 0 | Y31: 0
C33: ='Business Details'!$D$42 -> Treatment
D34: Gross value of disposals | E34: $'000 | F34: 0 | G34: 0 | H34: =AVERAGE($F34:$G34)*(1+'Business Details'!G$31)^'5.5.2'!H$9 -> 0 | I34: =AVERAGE($F34:$G34)*(1+'Business Details'!H$31)^'5.5.2'!I$9 -> 0 | J34: =AVERAGE($F34:$G34)*(1+'Business Details'!I$31)^'5.5.2'!J$9 -> 0 | K34: =AVERAGE($F34:$G34)*(1+'Business Details'!J$31)^'5.5.2'!K$9 -> 0
D35: less Accumulated depreciation on disposals | E35: $'000 | F35: 0 | G35: 0 | H35: =AVERAGE($F35:$G35)*(1+'Business Details'!G$31)^'5.5.2'!H$9 -> 0 | I35: =AVERAGE($F35:$G35)*(1+'Business Details'!H$31)^'5.5.2'!I$9 -> 0 | J35: =AVERAGE($F35:$G35)*(1+'Business Details'!I$31)^'5.5.2'!J$9 -> 0 | K35: =AVERAGE($F35:$G35)*(1+'Business Details'!J$31)^'5.5.2'!K$9 -> 0
D36: Net value of disposals | E36: $'000 | F36: =F34-F35 -> 0 | G36: =G34-G35 -> 0 | H36: =H34-H35 -> 0 | I36: =I34-I35 -> 0 | J36: =J34-J35 -> 0 | K36: =K34-K35 -> 0 | L36: 0 | M36: 0 | N36: 0 | O36: 0 | P36: 0 | Q36: 0 | R36: 0 | S36: 0 | T36: 0 | U36: 0 | V36: 0 | W36: 0 | X36: 0 | Y36: 0
C38: ='Business Details'!$D$43 -> Associated telemetry and control systems
D39: Gross value of disposals | E39: $'000 | F39: 0 | G39: 0 | H39: =AVERAGE($F39:$G39)*(1+'Business Details'!G$31)^'5.5.2'!H$9 -> 0 | I39: =AVERAGE($F39:$G39)*(1+'Business Details'!H$31)^'5.5.2'!I$9 -> 0 | J39: =AVERAGE($F39:$G39)*(1+'Business Details'!I$31)^'5.5.2'!J$9 -> 0 | K39: =AVERAGE($F39:$G39)*(1+'Business Details'!J$31)^'5.5.2'!K$9 -> 0
D40: less Accumulated depreciation on disposals | E40: $'000 | F40: 0 | G40: 0 | H40: =AVERAGE($F40:$G40)*(1+'Business Details'!G$31)^'5.5.2'!H$9 -> 0 | I40: =AVERAGE($F40:$G40)*(1+'Business Details'!H$31)^'5.5.2'!I$9 -> 0 | J40: =AVERAGE($F40:$G40)*(1+'Business Details'!I$31)^'5.5.2'!J$9 -> 0 | K40: =AVERAGE($F40:$G40)*(1+'Business Details'!J$31)^'5.5.2'!K$9 -> 0
D41: Net value of disposals | E41: $'000 | F41: =F39-F40 -> 0 | G41: =G39-G40 -> 0 | H41: =H39-H40 -> 0 | I41: =I39-I40 -> 0 | J41: =J39-J40 -> 0 | K41: =K39-K40 -> 0 | L41: 0 | M41: 0 | N41: 0 | O41: 0 | P41: 0 | Q41: 0 | R41: 0 | S41: 0 | T41: 0 | U41: 0 | V41: 0 | W41: 0 | X41: 0 | Y41: 0
C43: ='Business Details'!$D$44 -> Meters
D44: Gross value of disposals | E44: $'000 | F44: 0 | G44: 0 | H44: =AVERAGE($F44:$G44)*(1+'Business Details'!G$31)^'5.5.2'!H$9 -> 0 | I44: =AVERAGE($F44:$G44)*(1+'Business Details'!H$31)^'5.5.2'!I$9 -> 0 | J44: =AVERAGE($F44:$G44)*(1+'Business Details'!I$31)^'5.5.2'!J$9 -> 0 | K44: =AVERAGE($F44:$G44)*(1+'Business Details'!J$31)^'5.5.2'!K$9 -> 0
D45: less Accumulated depreciation on disposals | E45: $'000 | F45: 0 | G45: 0 | H45: =AVERAGE($F45:$G45)*(1+'Business Details'!G$31)^'5.5.2'!H$9 -> 0 | I45: =AVERAGE($F45:$G45)*(1+'Business Details'!H$31)^'5.5.2'!I$9 -> 0 | J45: =AVERAGE($F45:$G45)*(1+'Business Details'!I$31)^'5.5.2'!J$9 -> 0 | K45: =AVERAGE($F45:$G45)*(1+'Business Details'!J$31)^'5.5.2'!K$9 -> 0
D46: Net value of disposals | E46: $'000 | F46: =F44-F45 -> 0 | G46: =G44-G45 -> 0 | H46: =H44-H45 -> 0 | I46: =I44-I45 -> 0 | J46: =J44-J45 -> 0 | K46: =K44-K45 -> 0 | L46: 0 | M46: 0 | N46: 0 | O46: 0 | P46: 0 | Q46: 0 | R46: 0 | S46: 0 | T46: 0 | U46: 0 | V46: 0 | W46: 0 | X46: 0 | Y46: 0
C48: ='Business Details'!$D$45 -> Billing systems
D49: Gross value of disposals | E49: $'000 | F49: 0 | G49: 0 | H49: =AVERAGE($F49:$G49)*(1+'Business Details'!G$31)^'5.5.2'!H$9 -> 0 | I49: =AVERAGE($F49:$G49)*(1+'Business Details'!H$31)^'5.5.2'!I$9 -> 0 | J49: =AVERAGE($F49:$G49)*(1+'Business Details'!I$31)^'5.5.2'!J$9 -> 0 | K49: =AVERAGE($F49:$G49)*(1+'Business Details'!J$31)^'5.5.2'!K$9 -> 0
D50: less Accumulated depreciation on disposals | E50: $'000 | F50: 0 | G50: 0 | H50: =AVERAGE($F50:$G50)*(1+'Business Details'!G$31)^'5.5.2'!H$9 -> 0 | I50: =AVERAGE($F50:$G50)*(1+'Business Details'!H$31)^'5.5.2'!I$9 -> 0 | J50: =AVERAGE($F50:$G50)*(1+'Business Details'!I$31)^'5.5.2'!J$9 -> 0 | K50: =AVERAGE($F50:$G50)*(1+'Business Details'!J$31)^'5.5.2'!K$9 -> 0
D51: Net value of disposals | E51: $'000 | F51: =F49-F50 -> 0 | G51: =G49-G50 -> 0 | H51: =H49-H50 -> 0 | I51: =I49-I50 -> 0 | J51: =J49-J50 -> 0 | K51: =K49-K50 -> 0 | L51: 0 | M51: 0 | N51: 0 | O51: 0 | P51: 0 | Q51: 0 | R51: 0 | S51: 0 | T51: 0 | U51: 0 | V51: 0 | W51: 0 | X51: 0 | Y51: 0
C53: ='Business Details'!$D$46 -> Corporate systems
D54: Gross value of disposals | E54: $'000 | F54: 0 | G54: 0 | H54: =AVERAGE($F54:$G54)*(1+'Business Details'!G$31)^'5.5.2'!H$9 -> 0 | I54: =AVERAGE($F54:$G54)*(1+'Business Details'!H$31)^'5.5.2'!I$9 -> 0 | J54: =AVERAGE($F54:$G54)*(1+'Business Details'!I$31)^'5.5.2'!J$9 -> 0 | K54: =AVERAGE($F54:$G54)*(1+'Business Details'!J$31)^'5.5.2'!K$9 -> 0
D55: less Accumulated depreciation on disposals | E55: $'000 | F55: 0 | G55: 0 | H55: =AVERAGE($F55:$G55)*(1+'Business Details'!G$31)^'5.5.2'!H$9 -> 0 | I55: =AVERAGE($F55:$G55)*(1+'Business Details'!H$31)^'5.5.2'!I$9 -> 0 | J55: =AVERAGE($F55:$G55)*(1+'Business Details'!I$31)^'5.5.2'!J$9 -> 0 | K55: =AVERAGE($F55:$G55)*(1+'Business Details'!J$31)^'5.5.2'!K$9 -> 0
D56: Net value of disposals | E56: $'000 | F56: =F54-F55 -> 0 | G56: =G54-G55 -> 0 | H56: =H54-H55 -> 0 | I56: =I54-I55 -> 0 | J56: =J54-J55 -> 0 | K56: =K54-K55 -> 0 | L56: 0 | M56: 0 | N56: 0 | O56: 0 | P56: 0 | Q56: 0 | R56: 0 | S56: 0 | T56: 0 | U56: 0 | V56: 0 | W56: 0 | X56: 0 | Y56: 0
C58: ='Business Details'!$D$47 -> Sundry property, plant and equipment
D59: Gross value of disposals | E59: $'000 | F59: 0 | G59: 0 | H59: =AVERAGE($F59:$G59)*(1+'Business Details'!G$31)^'5.5.2'!H$9 -> 0 | I59: =AVERAGE($F59:$G59)*(1+'Business Details'!H$31)^'5.5.2'!I$9 -> 0 | J59: =AVERAGE($F59:$G59)*(1+'Business Details'!I$31)^'5.5.2'!J$9 -> 0 | K59: =AVERAGE($F59:$G59)*(1+'Business Details'!J$31)^'5.5.2'!K$9 -> 0
D60: less Accumulated depreciation on disposals | E60: $'000 | F60: 0 | G60: 0 | H60: =AVERAGE($F60:$G60)*(1+'Business Details'!G$31)^'5.5.2'!H$9 -> 0 | I60: =AVERAGE($F60:$G60)*(1+'Business Details'!H$31)^'5.5.2'!I$9 -> 0 | J60: =AVERAGE($F60:$G60)*(1+'Business Details'!I$31)^'5.5.2'!J$9 -> 0 | K60: =AVERAGE($F60:$G60)*(1+'Business Details'!J$31)^'5.5.2'!K$9 -> 0
D61: Net value of disposals | E61: $'000 | F61: =F59-F60 -> 0 | G61: =G59-G60 -> 0 | H61: =H59-H60 -> 0 | I61: =I59-I60 -> 0 | J61: =J59-J60 -> 0 | K61: =K59-K60 -> 0 | L61: 0 | M61: 0 | N61: 0 | O61: 0 | P61: 0 | Q61: 0 | R61: 0 | S61: 0 | T61: 0 | U61: 0 | V61: 0 | W61: 0 | X61: 0 | Y61: 0
C63: ='Business Details'!$D$48 -> Land
D64: Gross value of disposals | E64: $'000 | F64: 0 | G64: 0 | H64: =AVERAGE($F64:$G64)*(1+'Business Details'!G$31)^'5.5.2'!H$9 -> 0 | I64: =AVERAGE($F64:$G64)*(1+'Business Details'!H$31)^'5.5.2'!I$9 -> 0 | J64: =AVERAGE($F64:$G64)*(1+'Business Details'!I$31)^'5.5.2'!J$9 -> 0 | K64: =AVERAGE($F64:$G64)*(1+'Business Details'!J$31)^'5.5.2'!K$9 -> 0
D65: less Accumulated depreciation on disposals | E65: $'000 | F65: 0 | G65: 0 | H65: =AVERAGE($F65:$G65)*(1+'Business Details'!G$31)^'5.5.2'!H$9 -> 0 | I65: =AVERAGE($F65:$G65)*(1+'Business Details'!H$31)^'5.5.2'!I$9 -> 0 | J65: =AVERAGE($F65:$G65)*(1+'Business Details'!I$31)^'5.5.2'!J$9 -> 0 | K65: =AVERAGE($F65:$G65)*(1+'Business Details'!J$31)^'5.5.2'!K$9 -> 0
D66: Net value of disposals | E66: $'000 | F66: =F64-F65 -> 0 | G66: =G64-G65 -> 0 | H66: =H64-H65 -> 0 | I66: =I64-I65 -> 0 | J66: =J64-J65 -> 0 | K66: =K64-K65 -> 0 | L66: 0 | M66: 0 | N66: 0 | O66: 0 | P66: 0 | Q66: 0 | R66: 0 | S66: 0 | T66: 0 | U66: 0 | V66: 0 | W66: 0 | X66: 0 | Y66: 0
C68: ='Business Details'!$D$49 -> Building other than infrastructure housing
D69: Gross value of disposals | E69: $'000 | F69: 0 | G69: 0 | H69: =AVERAGE($F69:$G69)*(1+'Business Details'!G$31)^'5.5.2'!H$9 -> 0 | I69: =AVERAGE($F69:$G69)*(1+'Business Details'!H$31)^'5.5.2'!I$9 -> 0 | J69: =AVERAGE($F69:$G69)*(1+'Business Details'!I$31)^'5.5.2'!J$9 -> 0 | K69: =AVERAGE($F69:$G69)*(1+'Business Details'!J$31)^'5.5.2'!K$9 -> 0
D70: less Accumulated depreciation on disposals | E70: $'000 | F70: 0 | G70: 0 | H70: =AVERAGE($F70:$G70)*(1+'Business Details'!G$31)^'5.5.2'!H$9 -> 0 | I70: =AVERAGE($F70:$G70)*(1+'Business Details'!H$31)^'5.5.2'!I$9 -> 0 | J70: =AVERAGE($F70:$G70)*(1+'Business Details'!I$31)^'5.5.2'!J$9 -> 0 | K70: =AVERAGE($F70:$G70)*(1+'Business Details'!J$31)^'5.5.2'!K$9 -> 0
D71: Net value of disposals | E71: $'000 | F71: =F69-F70 -> 0 | G71: =G69-G70 -> 0 | H71: =H69-H70 -> 0 | I71: =I69-I70 -> 0 | J71: =J69-J70 -> 0 | K71: =K69-K70 -> 0 | L71: 0 | M71: 0 | N71: 0 | O71: 0 | P71: 0 | Q71: 0 | R71: 0 | S71: 0 | T71: 0 | U71: 0 | V71: 0 | W71: 0 | X71: 0 | Y71: 0
C73: ='Business Details'!$D$50 -> Distribution infrastructure not included in another category
D74: Gross value of disposals | E74: $'000
D75: less Accumulated depreciation on disposals | E75: $'000
D76: Net value of disposals | E76: $'000 | F76: =F74-F75 -> 0 | G76: =G74-G75 -> 0 | H76: =H74-H75 -> 0 | I76: =I74-I75 -> 0 | J76: =J74-J75 -> 0 | K76: =K74-K75 -> 0 | L76: 0 | M76: 0 | N76: 0 | O76: 0 | P76: 0 | Q76: 0 | R76: 0 | S76: 0 | T76: 0 | U76: 0 | V76: 0 | W76: 0 | X76: 0 | Y76: 0
C78: ='Business Details'!$D$51 -> Support services
D79: Gross value of disposals | E79: $'000 | F79: 0 | G79: 0 | H79: =AVERAGE($F79:$G79)*(1+'Business Details'!G$31)^'5.5.2'!H$9 -> 0 | I79: =AVERAGE($F79:$G79)*(1+'Business Details'!H$31)^'5.5.2'!I$9 -> 0 | J79: =AVERAGE($F79:$G79)*(1+'Business Details'!I$31)^'5.5.2'!J$9 -> 0 | K79: =AVERAGE($F79:$G79)*(1+'Business Details'!J$31)^'5.5.2'!K$9 -> 0
